Workbook

Sheet Deckblatt

Sheet Impressum
F1: Grundsicherung für Arbeitsuchende (SGBII)
A4: Impressum
A7: Produktlinie/Reihe: | C7: Tabellen
A9: Titel: | C9: Kinder in Bedarfsgemeinschaften (Monatszahlen)
A11: Region: | C11: Deutschland, West/Ost, Länder und Kreise
A13: Berichtsmonat: | C13: Juni 2022
A15: Erstellungsdatum: | C15: 2022-10-20
A17: Periodizität: | C17: halbjährlich
A19: Hinweise:
A21: Nächster Veröffentlichungstermin:
C22: 2023-04-20
A24: Herausgeberin: | C24: Bundesagentur für Arbeit
C25: Statistik
A27: Rückfragen an: | C27: Zentraler Statistik-Service
C28: Regensburger Straße 104
C29: 90478 Nürnberg
A30: E-Mail: | C30: Zentraler-Statistik-Service@arbeitsagentur.de
A31: Hotline: | C31: 0911/179-3632
A32: Fax: | C32: 0911/179-1131
A35: Weiterführende statistische Informationen
A37: Internet: | C37: http://statistik.arbeitsagentur.de
A41: Zitierhinweis: | C41: Statistik der Bundesagentur für Arbeit
C42: Tabellen, Kinder in Bedarfsgemeinschaften (Monatszahlen), Nürnberg, April 2021
A44: Nutzungsbedingungen: | C44: © Statistik der Bundesagentur für Arbeit
C45: Sie können Informationen speichern, (auch auszugsweise) mit Quellen-
C46: angabe weitergeben, vervielfältigen und verbreiten. Die Inhalte dürfen
C47: nicht verändert oder verfälscht werden. Eigene Berechnungen sind
C48: erlaubt, jedoch als solche kenntlich zu machen.
C49: Im Falle einer Zugänglichmachung im Internet soll dies in Form einer
C50: Verlinkung auf die Homepage der Statistik der Bundesagentur für Arbeit
C51: erfolgen.
C52: Die Nutzung der Inhalte für gewerbliche Zwecke, ausgenommen Presse,
C53: Rundfunk und Fernsehen und wissenschaftliche Publikationen, bedarf
C54: der Genehmigung durch die Statistik der Bundesagentur für Arbeit.

Sheet Inhalt
F1: Grundsicherung für Arbeitsuchende (SGBII)
A5: Inhaltsverzeichnis
A10: 1. Einführung | F10: 1
A13: 2. Kinder in Bedarfsgemeinschaften
A15: 2.1 Bestand an Kindern in Bedarfsgemeinschaften nach Strukturmerkmalen und Vergleichsmonaten | F15: 2.1
A16: 2.2 Bestand an Kindern unter 18 Jahren in Bedarfsgemeinschaften nach ausgewählten Altersklassen | F16: 2.2
A17: 2.3 Bestand an Kindern nach Alter und BG-Typ | F17: 2.3
A20: 3. Bedarfsgemeinschaften mit Kindern
A22: 3.1 Bestand an Bedarfsgemeinschaften (BG) mit Kindern unter 18 Jahren nach BG-Typ | F22: 3.1
A23: 3.2 Bedarfsgemeinschaften (BG) mit Kindern nach Anzahl der Kinder, BG-Typ | F23: 3.2
B24: und ausgewählten Merkmalen
A25: 3.3 Durchschnittliches Haushaltsbudget von Regelleistungsbedarfsgemeinschaften (RL-BG) | F25: 3.3
B26: mit Kindern unter 18 Jahren nach BG-Typ pro RL-BG in Euro
A29: 4. SGB II-Hilfequoten
A31: 4.1 SGB II-Hilfequote der leistungsberechtigten Kinder unter 18 Jahren in Bedarfsgemeinschaften | F31: 4.1
A32: 4.2 SGB II-Hilfequote der leistungsberechtigten Kinder unter 3 Jahren in Bedarfsgemeinschaften | F32: 4.2
A35: 5. Anteil minderjähriger Kinder in Bedarfsgemeinschaften an der Bevölkerung | F35: 5
A38: Methodische Hinweise 1
A40: Methodische Hinweise 2
A42: Methodische Hinweise 3
A44: Statistik Infoseite
A47: (über das Statistik-Symbol am linken oberen Rand gelangen Sie von jeder Seite auf das Inhaltsverzeichnis zurück)

Sheet 1
F1: Grundsicherung für Arbeitsuchende nach dem SGB II
A4: 1. Einführung
A6: In der vorliegenden Publikation finden Sie Zahlen und Strukturdaten zu den Kindern und Jugendlichen in der Grundsicherung nach dem SGB II. Je nach Fragestellung gibt es unterschiedliche Definitionen des Begriffs "Kind". Grundlegend kann man zwei Ansätze unterscheiden: "Kinder" können definiert werden als Personen in einem frühen Lebensalter und/oder als Personen in einer bestimmten Stellung in einem Haushalt oder einer Bedarfsgemeinschaft (BG). Beide Abgrenzungen finden sich im SGB II.
A12: Kinder nach dem SGB VIII
A13: Im Kinder- und Jugendhilfegesetz gelten alle Bestimmungen, die sich auf die Annahme einer Person als Kind beziehen, nur für Personen, die das 18. Lebensjahr noch nicht vollendet haben (§ 7 Abs.1 (1) SGB VIII). Im Sinne des Jugendschutzgesetzes unterteilen sich diese in Kinder (Personen, die noch nicht 14 Jahre alt sind) und Jugendliche (Personen im Alter von 14 bis unter 18 Jahren) (§ 1 Jugendschutzgesetz).
A17: Im Juni 2022 lebten 1.917.026 Personen unter 18 Jahren in Bedarfsgemeinschaften - darunter 1.539.576 Kinder unter 14 Jahren.
A20: Kinder nach dem SGB II
A21: In der Grundsicherung für Arbeitsuchende wird leistungsrechtlich der Haushaltskontext betrachtet, so dass Kinder (bis unter 25 Jahren) grundsätzlich anhand ihrer Stellung in der Bedarfsgemeinschaft definiert werden. Statistisch können minderjährige und volljährige Kinder nach verschiedenen Altersgrenzen differenziert werden. Kinder unter 15 Jahren gelten als nicht erwerbsfähig.
A25: Im Juni 2022 lebten 1.639.344 Kinder unter 15 Jahren in Bedarfsgemeinschaften.
A27: Kinder in Bedarfsgemeinschaften
A28: Zu einer Bedarfsgemeinschaft gehören grundsätzlich alle erwerbsfähigen Leistungsberechtigten mit deren Ehegatten/Partnern und unverheirateten Kindern, „wenn sie das 25. Lebensjahr noch nicht vollendet haben, soweit sie die Leistungen zur Sicherung ihres Lebensunterhaltes nicht aus eigenem Einkommen oder Vermögen beschaffen können“ (§ 7 Abs. 3 Nr. 4 SGB II).
A32: Im Juni 2022 lebten 2.113.199 unverheiratete Kinder unter 25 Jahren, die Ihren Lebensunterhalt nicht aus eigenem Einkommen oder Vermögen beschaffen konnten, in Bedarfsgemeinschaften.
A34: Zur Typisierung von Bedarfsgemeinschaften werden nur die Informationen über minderjährige, unverheiratete Kinder herangezogen. Volljährige Kinder bis zur Vollendung des 25. Lebensjahres werden bei der Typisierung nicht berücksichtigt, was bedeutet, dass z.B. eine Bedarfsgemeinschaft mit zwei Ehegatten und einem 20jährigen Sohn als Paar ohne Kinder geführt wird. Verheiratete minderjährige Personen oder Personen unter 18 Jahren mit Kind und Partner bilden eigene Bedarfsgemeinschaften, in denen sie selbst nicht als Kind gezählt werden.
A39: Im Juni 2022 lebten 1.908.308 minderjährige unverheiratete Kinder unter 18 Jahren in Bedarfsgemeinschaften.
A40: Bedarfsgemeinschaften mit minderjährigen Kindern können nach alleinerziehenden BG und Partner-BG mit Kindern differenziert werden.
A42: Im Juni 2022 gab es 993.616 Bedarfsgemeinschaften mit Kindern (35% aller BG) - 559.885 davon waren Alleinerziehende-BG und 431.016 Partner-BG mit Kindern.
A45: Regelbedarfssätze von (minderjährigen und unverheirateten) Kindern und Jugendlichen unter 25 Jahren
A46: (nach § 20 SGB II); Stand: 01.01.2022
A47: Regelbedarfsstufe 3 | B47: (Volljährige von 18 bis unter 25 Jahre) | D47: 360 Euro
A48: Regelbedarfsstufe 4 | B48: (Jugendliche von 14 bis unter 18 Jahre): | D48: 376 Euro
A49: Regelbedarfsstufe 5 | B49: (Kinder von 6 bis unter 14 Jahre): | D49: 311 Euro
A50: Regelbedarfsstufe 6 | B50: (Kinder von 0 bis unter 6 Jahre): | D50: 285 Euro
A51: Im Juni 2022 gab es 669.080 Kinder unter 6 Jahren, 870.496 im Alter von 6 bis unter 14 Jahren, 368.732 Jugendliche von 14 bis unter 18 Jahren und 204.891 volljährige Personen von 18 bis unter 25 Jahren, die noch bei den Eltern lebten.
A55: Kinder mit bedarfsdeckendem Einkommen
A56: Es gibt Personen innerhalb von Bedarfsgemeinschaften, die individuell keine Leistungen beziehen, jedoch als Personen einer Bedarfsgemeinschaft gezählt werden. Dabei handelt es sich vor allem um Kinder (bis zum 25. Lebensjahr), die in der Bedarfsgemeinschaft der Eltern leben und deren Einkommen den eigenen Bedarf übersteigt. Nach den Bestimmungen des SGB II verbleibt das Einkommen eines Kindes (z.B. Unterhaltszahlungen oder Einkommen aus Erwerbstätigkeit) beim Kind und muss nicht zur Bedarfsdeckung der übrigen Mitglieder der Bedarfsgemeinschaft eingesetzt werden (Ausnahme: Kindergeld). Die Kinder mit ausreichendem Einkommen haben daher keinen individuellen Leistungsanspruch im SGB II.
A62: Im Juni 2022 gab es 104.102 minderjährige unverheiratete Kinder ohne Leistungsanspruch (KOL).

Sheet 2.1
J1: Grundsicherung für Arbeitsuchende (SGBII)
A3: =CONCATENATE(A5&A4) -> 2.1 Entwicklung des Bestands an Kindern unter 18 Jahren in Bedarfsgemeinschaften - Deutschland
A4: ='2.1 roh'!$A$1 -> Deutschland
A5: 2.1 Entwicklung des Bestands an Kindern unter 18 Jahren in Bedarfsgemeinschaften -
A17: Tabelle 2.1 Bestand an Kindern in Bedarfsgemeinschaften nach Strukturmerkmalen und Vergleichsmonaten
A20: Berichtsmonat Juni 2022
A21: Bund, Länder, Kreise und kreisfreie Städte
A23: Merkmal | C23: Juni 2022 | D23: Juni 2021 | E23: Juni 2020 | F23: Juni 2019 | G23: Juni 2018 | H23: Juni 2017 | I23: Veränder-ung Juni 2022 zu Juni 2021 in % | J23: Veränder-ung Juni 2022 zu Juni 2017 in %
C24: 1 | D24: 2 | E24: 3 | F24: 4 | G24: 5 | H24: 6 | I24: 7 | J24: 8
A25: Personen unter 18 Jahren2) | C25: =IF('Vorl 2.1'!D14=".",".",IF('Vorl 2.1'!D14-'Vorl 2.1'!D15<3,IF('Vorl 2.1'!D14-'Vorl 2.1'!D15>0,"*",'Vorl 2.1'!D14),'Vorl 2.1'!D14)) -> 1917026 | D25: =IF('Vorl 2.1'!E14=".",".",IF('Vorl 2.1'!E14-'Vorl 2.1'!E15<3,IF('Vorl 2.1'!E14-'Vorl 2.1'!E15>0,"*",'Vorl 2.1'!E14),'Vorl 2.1'!E14)) -> 1851339 | E25: =IF('Vorl 2.1'!F14=".",".",IF('Vorl 2.1'!F14-'Vorl 2.1'!F15<3,IF('Vorl 2.1'!F14-'Vorl 2.1'!F15>0,"*",'Vorl 2.1'!F14),'Vorl 2.1'!F14)) -> 1932432 | F25: =IF('Vorl 2.1'!G14=".",".",IF('Vorl 2.1'!G14-'Vorl 2.1'!G15<3,IF('Vorl 2.1'!G14-'Vorl 2.1'!G15>0,"*",'Vorl 2.1'!G14),'Vorl 2.1'!G14)) -> 1935754 | G25: =IF('Vorl 2.1'!H14=".",".",IF('Vorl 2.1'!H14-'Vorl 2.1'!H15<3,IF('Vorl 2.1'!H14-'Vorl 2.1'!H15>0,"*",'Vorl 2.1'!H14),'Vorl 2.1'!H14)) -> 2016496 | H25: =IF('Vorl 2.1'!I14=".",".",IF('Vorl 2.1'!I14-'Vorl 2.1'!I15<3,IF('Vorl 2.1'!I14-'Vorl 2.1'!I15>0,"*",'Vorl 2.1'!I14),'Vorl 2.1'!I14)) -> 2063506.953 | I25: =IF(ISNUMBER((C25-D25)/D25%),((C25-D25)/D25%),"-") -> 3.548080605 | J25: =IF(ISNUMBER((C25-H25)/H25%),((C25-H25)/H25%),"-") -> -7.098641128
A26: Kinder unter 18 Jahren3) | C26: ='Vorl 2.1'!D15 -> 1908308 | D26: ='Vorl 2.1'!E15 -> 1845907 | E26: ='Vorl 2.1'!F15 -> 1926441 | F26: ='Vorl 2.1'!G15 -> 1928648 | G26: ='Vorl 2.1'!H15 -> 2007275 | H26: ='Vorl 2.1'!I15 -> 2052511.257 | I26: =IF(ISNUMBER((C26-D26)/D26%),((C26-D26)/D26%),"-") -> 3.380506169 | J26: =IF(ISNUMBER((C26-H26)/H26%),((C26-H26)/H26%),"-") -> -7.025698697
A27: dav.
A28: nicht erwerbsfähige Leistungsberechtigte (NEF) | C28: ='Vorl 2.1'!D18 -> 1488180 | D28: ='Vorl 2.1'!E18 -> 1430927 | E28: ='Vorl 2.1'!F18 -> 1522247 | F28: ='Vorl 2.1'!G18 -> 1543081 | G28: ='Vorl 2.1'!H18 -> 1609270 | H28: ='Vorl 2.1'!I18 -> 1659777.615 | I28: =IF(ISNUMBER((C28-D28)/D28%),((C28-D28)/D28%),"-") -> 4.001112565 | J28: =IF(ISNUMBER((C28-H28)/H28%),((C28-H28)/H28%),"-") -> -10.33859077
A29: erwerbsfähige Leistungsberechtigte (ELB) | C29: ='Vorl 2.1'!D19 -> 242241 | D29: ='Vorl 2.1'!E19 -> 225115 | E29: ='Vorl 2.1'!F19 -> 224555 | F29: ='Vorl 2.1'!G19 -> 222817 | G29: ='Vorl 2.1'!H19 -> 234642 | H29: ='Vorl 2.1'!I19 -> 257089.9687 | I29: =IF(ISNUMBER((C29-D29)/D29%),((C29-D29)/D29%),"-") -> 7.607667192 | J29: =IF(ISNUMBER((C29-H29)/H29%),((C29-H29)/H29%),"-") -> -5.775786892
A30: sonstige Leistungsberechtigte (SLB) | C30: =IF(C79="*",IF(C79="-",'Vorl 2.1'!D20,"*"),'Vorl 2.1'!D20) -> 55008 | D30: =IF(D79="*",IF(D79="-",'Vorl 2.1'!E20,"*"),'Vorl 2.1'!E20) -> 49430 | E30: =IF(E79="*",IF(E79="-",'Vorl 2.1'!F20,"*"),'Vorl 2.1'!F20) -> 39337 | F30: =IF(F79="*",IF(F79="-",'Vorl 2.1'!G20,"*"),'Vorl 2.1'!G20) -> 39636 | G30: =IF(G79="*",IF(G79="-",'Vorl 2.1'!H20,"*"),'Vorl 2.1'!H20) -> 40010 | H30: =IF(H79="*",IF(H79="-",'Vorl 2.1'!I20,"*"),'Vorl 2.1'!I20) -> 30302.59605 | I30: =IF(ISNUMBER((C30-D30)/D30%),(IF((C30-D30)/D30%<250,(C30-D30)/D30%,".X")),"-") -> 11.28464495 | J30: =IF(ISNUMBER((C30-H30)/H30%),(IF((C30-H30)/H30%<250,(C30-H30)/H30%,".X")),"-") -> 81.52900137
A31: Kinder ohne Leistungsanspruch (KOL) | C31: ='Vorl 2.1'!D21 -> 104102 | D31: ='Vorl 2.1'!E21 -> 122207 | E31: ='Vorl 2.1'!F21 -> 123701 | F31: ='Vorl 2.1'!G21 -> 108731 | G31: ='Vorl 2.1'!H21 -> 111073 | H31: ='Vorl 2.1'!I21 -> 93686.08483 | I31: =IF(ISNUMBER((C31-D31)/D31%),((C31-D31)/D31%),"-") -> -14.81502696 | J31: =IF(ISNUMBER((C31-H31)/H31%),((C31-H31)/H31%),"-") -> 11.11788927
A32: vom Leistungsanspruch ausgeschlossene Personen (AUS) | C32: =IF(C30="*","*",'Vorl 2.1'!D22) -> 18777 | D32: =IF(D30="*","*",'Vorl 2.1'!E22) -> 18228 | E32: =IF(E30="*","*",'Vorl 2.1'!F22) -> 16601 | F32: =IF(F30="*","*",'Vorl 2.1'!G22) -> 14383 | G32: =IF(G30="*","*",'Vorl 2.1'!H22) -> 12280 | H32: =IF(H30="*","*",'Vorl 2.1'!I22) -> 11654.99172 | I32: =IF(ISNUMBER((C32-D32)/D32%),(IF((C32-D32)/D32%<250,(C32-D32)/D32%,".X")),"-") -> 3.011849901 | J32: =IF(ISNUMBER((C32-H32)/H32%),(IF((C32-H32)/H32%<250,(C32-H32)/H32%,".X")),"-") -> 61.1069356
A33: dar.
A34: männlich | C34: ='Vorl 2.1'!D24 -> 982718 | D34: ='Vorl 2.1'!E24 -> 952711 | E34: ='Vorl 2.1'!F24 -> 994627 | F34: ='Vorl 2.1'!G24 -> 996033 | G34: ='Vorl 2.1'!H24 -> 1036455 | H34: ='Vorl 2.1'!I24 -> 1058226.459 | I34: =IF(ISNUMBER((C34-D34)/D34%),((C34-D34)/D34%),"-") -> 3.149643491 | J34: =IF(ISNUMBER((C34-H34)/H34%),((C34-H34)/H34%),"-") -> -7.13537806
A35: weiblich | C35: ='Vorl 2.1'!D25 -> 925397 | D35: ='Vorl 2.1'!E25 -> 893096 | E35: ='Vorl 2.1'!F25 -> 931707 | F35: ='Vorl 2.1'!G25 -> 932524 | G35: ='Vorl 2.1'!H25 -> 970726 | H35: ='Vorl 2.1'!I25 -> 994206.5744 | I35: =IF(ISNUMBER((C35-D35)/D35%),((C35-D35)/D35%),"-") -> 3.616744449 | J35: =IF(ISNUMBER((C35-H35)/H35%),((C35-H35)/H35%),"-") -> -6.921054049
A36: dar.
A37: Ausländer1) 5) | C37: ='Vorl 2.1'!D27 -> 851084 | D37: ='Vorl 2.1'!E27 -> 679884 | E37: ='Vorl 2.1'!F27 -> 691773 | F37: ='Vorl 2.1'!G27 -> 676898 | G37: ='Vorl 2.1'!H27 -> 662621 | H37: ='Vorl 2.1'!I27 -> 605054.0879 | I37: =IF(ISNUMBER((C37-D37)/D37%),((C37-D37)/D37%),"-") -> 25.18076613 | J37: =IF(ISNUMBER((C37-H37)/H37%),((C37-H37)/H37%),"-") -> 40.6624659
A38: dar.
A39: unter 15 Jahren | C39: ='Vorl 2.1'!D29 -> 1639344 | D39: ='Vorl 2.1'!E29 -> 1592653 | E39: ='Vorl 2.1'!F29 -> 1668760 | F39: ='Vorl 2.1'!G29 -> 1676287 | G39: ='Vorl 2.1'!H29 -> 1743970 | H39: ='Vorl 2.1'!I29 -> 1773955.188 | I39: =IF(ISNUMBER((C39-D39)/D39%),((C39-D39)/D39%),"-") -> 2.931649267 | J39: =IF(ISNUMBER((C39-H39)/H39%),((C39-H39)/H39%),"-") -> -7.588195533
A40: dav.
A41: unter 3 Jahren | C41: ='Vorl 2.1'!D31 -> 309578 | D41: ='Vorl 2.1'!E31 -> 320277 | E41: ='Vorl 2.1'!F31 -> 348730 | F41: ='Vorl 2.1'!G31 -> 365626 | G41: ='Vorl 2.1'!H31 -> 385753 | H41: ='Vorl 2.1'!I31 -> 388872.2023 | I41: =IF(ISNUMBER((C41-D41)/D41%),((C41-D41)/D41%),"-") -> -3.34054584 | J41: =IF(ISNUMBER((C41-H41)/H41%),((C41-H41)/H41%),"-") -> -20.39081266
A42: 3 bis unter 6 Jahren | C42: ='Vorl 2.1'!D32 -> 359502 | D42: ='Vorl 2.1'!E32 -> 353787 | E42: ='Vorl 2.1'!F32 -> 364965 | F42: ='Vorl 2.1'!G32 -> 355335 | G42: ='Vorl 2.1'!H32 -> 366811 | H42: ='Vorl 2.1'!I32 -> 370019.6397 | I42: =IF(ISNUMBER((C42-D42)/D42%),((C42-D42)/D42%),"-") -> 1.615378745 | J42: =IF(ISNUMBER((C42-H42)/H42%),((C42-H42)/H42%),"-") -> -2.842454439
A43: 6 bis unter 15 Jahren | C43: ='Vorl 2.1'!D33 -> 970264 | D43: ='Vorl 2.1'!E33 -> 918589 | E43: ='Vorl 2.1'!F33 -> 955065 | F43: ='Vorl 2.1'!G33 -> 955326 | G43: ='Vorl 2.1'!H33 -> 991406 | H43: ='Vorl 2.1'!I33 -> 1015063.346 | I43: =IF(ISNUMBER((C43-D43)/D43%),((C43-D43)/D43%),"-") -> 5.625475594 | J43: =IF(ISNUMBER((C43-H43)/H43%),((C43-H43)/H43%),"-") -> -4.413453267
A44: 15 bis unter 18 Jahren3) | C44: ='Vorl 2.1'!D34 -> 268964 | D44: ='Vorl 2.1'!E34 -> 253254 | E44: ='Vorl 2.1'!F34 -> 257681 | F44: ='Vorl 2.1'!G34 -> 252361 | G44: ='Vorl 2.1'!H34 -> 263305 | H44: ='Vorl 2.1'!I34 -> 278556.0683 | I44: =IF(ISNUMBER((C44-D44)/D44%),((C44-D44)/D44%),"-") -> 6.203258389 | J44: =IF(ISNUMBER((C44-H44)/H44%),((C44-H44)/H44%),"-") -> -3.443496428
A45: dar. (nach Regelbedarfsaltersstufen)4)
A46: unter 6 Jahren | C46: ='Vorl 2.1'!D36 -> 669080 | D46: ='Vorl 2.1'!E36 -> 674064 | E46: ='Vorl 2.1'!F36 -> 713695 | F46: ='Vorl 2.1'!G36 -> 720961 | G46: ='Vorl 2.1'!H36 -> 752564 | H46: ='Vorl 2.1'!I36 -> 758891.8419 | I46: =IF(ISNUMBER((C46-D46)/D46%),((C46-D46)/D46%),"-") -> -0.7393956657 | J46: =IF(ISNUMBER((C46-H46)/H46%),((C46-H46)/H46%),"-") -> -11.83460369
A47: 6 bis unter 14 Jahren | C47: ='Vorl 2.1'!D37 -> 870496 | D47: ='Vorl 2.1'!E37 -> 827351 | E47: ='Vorl 2.1'!F37 -> 861236 | F47: ='Vorl 2.1'!G37 -> 861690 | G47: ='Vorl 2.1'!H37 -> 896041 | H47: ='Vorl 2.1'!I37 -> 917237.9868 | I47: =IF(ISNUMBER((C47-D47)/D47%),((C47-D47)/D47%),"-") -> 5.214836267 | J47: =IF(ISNUMBER((C47-H47)/H47%),((C47-H47)/H47%),"-") -> -5.095949736
A48: 14 bis unter 18 Jahren | C48: ='Vorl 2.1'!D38 -> 368732 | D48: ='Vorl 2.1'!E38 -> 344492 | E48: ='Vorl 2.1'!F38 -> 351510 | F48: ='Vorl 2.1'!G38 -> 345997 | G48: ='Vorl 2.1'!H38 -> 358670 | H48: ='Vorl 2.1'!I38 -> 376381.4279 | I48: =IF(ISNUMBER((C48-D48)/D48%),((C48-D48)/D48%),"-") -> 7.036447871 | J48: =IF(ISNUMBER((C48-H48)/H48%),((C48-H48)/H48%),"-") -> -2.032360619
A49: Nachrichtlich: Personen unter 25 Jahren | C49: ='Vorl 2.1'!D39 -> 2349073 | D49: ='Vorl 2.1'!E39 -> 2309684 | E49: ='Vorl 2.1'!F39 -> 2434315 | F49: ='Vorl 2.1'!G39 -> 2440936 | G49: ='Vorl 2.1'!H39 -> 2565435 | H49: ='Vorl 2.1'!I39 -> 2646518.78 | I49: =IF(ISNUMBER((C49-D49)/D49%),((C49-D49)/D49%),"-") -> 1.705384806 | J49: =IF(ISNUMBER((C49-H49)/H49%),((C49-H49)/H49%),"-") -> -11.23913356
A50: Hinweis: Nicht plausible Werte werden mit "." ausgewiesen. | J50: © Statistik der Bundesagentur für Arbeit
A51: Hinweis: Veränderungswerte > 250% werden mit ".X" gekennzeichnet.
A52: 1) Für Kinder unter 18 Jahren, die eine doppelter Staatsangehörigkeit besitzen, kann bei Antragstellung nur eine Staatsbürgerschaft erfasst werden.
A53: 2) alle minderjährigen Personen unter 18 Jahren in Bedarfsgemeinschaften
A54: 3) minderjährige, unverheiratete Kinder unter 18 Jahren in Bedarfsgemeinschaften
A55: 4) Der Regelbedarf der Kinder unter 6 Jahren beträgt 285 Euro, der 6 bis 13-Jährigen 311 Euro und der Jugendlichen von 14 bis unter 18 Jahren 376 Euro (Stand 01.01.2022).
A56: 5) Die Zählweise von Ausländern hat sich im Vergleich zu früheren Publikationen geändert. Staatenlose und Personen ohne Angabe zur Staatsangehörigkeit werden nun mehr unter „Keine Angabe“, sondern zu den Ausländern gezählt.
A58: Details dazu finden Sie in der Hintergrundinfo „Statistiken nach Staatsangehörigkeit – neue Zuordnung von Staatenlosen und Personen ohne Angabe der Staatsangehörigkeit“ auf unserer Internetseite Grundlagen > Methodik und Qualität > Methodenberichte und Hintergrundinfos > Übergreifende Themen.
C79: ='Vorl 2.1'!D22 -> 18777 | D79: ='Vorl 2.1'!E22 -> 18228 | E79: ='Vorl 2.1'!F22 -> 16601 | F79: ='Vorl 2.1'!G22 -> 14383 | G79: ='Vorl 2.1'!H22 -> 12280 | H79: ='Vorl 2.1'!I22 -> 11654.99172

Sheet 2.2
L1: Grundsicherung für Arbeitsuchende (SGBII)
A3: 2.2 Bestand und Veränderung der Anzahl der Kinder unter 18 Jahren in Bedarfsgemeinschaften nach Altersstufen gegenüber dem Vorjahresmonat in %
A24: Tabelle 2.2 Bestand an Kindern unter 18 Jahren in Bedarfsgemeinschaften nach ausgewählten Altersklassen
A27: Berichtsmonat Juni 2022
A28: Bund, Länder, Kreise und kreisfreie Städte
A30: Region | C30: Insgesamt | H30: Veränderung zum Vorjahresmonat
C32: Kinder unter 18 Jahren | D32: davon | H32: Kinder unter 18 Jahren | I32: davon
D33: unter 3 Jahren | E33: 3 bis unter 6 Jahren | F33: 6 bis unter 15 Jahren | G33: 15 bis unter 18 Jahren | I33: unter 3 Jahren | J33: 3 bis unter 6 Jahren | K33: 6 bis unter 15 Jahren | L33: 15 bis unter 18 Jahren
C34: 1 | D34: 2 | E34: 3 | F34: 4 | G34: 5 | H34: 6 | I34: 7 | J34: 8 | K34: 9 | L34: 10
A35: Deutschland | C35: ='2.2 Daten'!E4 -> 1908308 | D35: ='2.2 Daten'!F4 -> 309578 | E35: ='2.2 Daten'!G4 -> 359502 | F35: ='2.2 Daten'!H4 -> 970264 | G35: ='2.2 Daten'!I4 -> 268964 | H35: ='2.2 Daten'!K4 -> 3.380506169 | I35: ='2.2 Daten'!L4 -> -3.34054584 | J35: ='2.2 Daten'!M4 -> 1.615378745 | K35: ='2.2 Daten'!N4 -> 5.625475594 | L35: ='2.2 Daten'!O4 -> 6.203258389
A36: Westdeutschland | C36: ='2.2 Daten'!E5 -> 1499620 | D36: ='2.2 Daten'!F5 -> 241819 | E36: ='2.2 Daten'!G5 -> 283691 | F36: ='2.2 Daten'!H5 -> 761708 | G36: ='2.2 Daten'!I5 -> 212402 | H36: ='2.2 Daten'!K5 -> 4.203668343 | I36: ='2.2 Daten'!L5 -> -2.927598831 | J36: ='2.2 Daten'!M5 -> 2.473234023 | K36: ='2.2 Daten'!N5 -> 6.618329426 | L36: ='2.2 Daten'!O5 -> 6.872694887
A37: Ostdeutschland | C37: ='2.2 Daten'!E6 -> 408688 | D37: ='2.2 Daten'!F6 -> 67759 | E37: ='2.2 Daten'!G6 -> 75811 | F37: ='2.2 Daten'!H6 -> 208556 | G37: ='2.2 Daten'!I6 -> 56562 | H37: ='2.2 Daten'!K6 -> 0.468308656 | I37: ='2.2 Daten'!L6 -> -4.786060563 | J37: ='2.2 Daten'!M6 -> -1.471218954 | K37: ='2.2 Daten'!N6 -> 2.151211771 | L37: ='2.2 Daten'!O6 -> 3.76254334
A38: =CHOOSE('2.2 Daten'!$A$2,'2.2 Daten'!B460,'2.2 Daten'!B9,'2.2 Daten'!B26,'2.2 Daten'!B43,'2.2 Daten'!B46,'2.2 Daten'!B93,'2.2 Daten'!B97,'2.2 Daten'!B152,'2.2 Daten'!B180,'2.2 Daten'!B218,'2.2 Daten'!B264,'2.2 Daten'!B362,'2.2 Daten'!B370,'2.2 Daten'!B373,'2.2 Daten'!B393,'2.2 Daten'!B403,'2.2 Daten'!B418,'2.2 Daten'!B434,x) -> Schleswig-Holstein | B38: =IF($A38<>0,INDEX('2.2 Daten'!C$9:C$859,MATCH('2.2'!$A38,'2.2 Daten'!$B$9:$B$859,0))," ") -> 01 | C38: =IF($A38<>0,INDEX('2.2 Daten'!E$9:E$859,MATCH('2.2'!$A38,'2.2 Daten'!$B$9:$B$859,0))) -> 67863 | D38: =IF($A38<>0,INDEX('2.2 Daten'!F$9:F$859,MATCH('2.2'!$A38,'2.2 Daten'!$B$9:$B$859,0))) -> 10766 | E38: =IF($A38<>0,INDEX('2.2 Daten'!G$9:G$859,MATCH('2.2'!$A38,'2.2 Daten'!$B$9:$B$859,0))) -> 12898 | F38: =IF($A38<>0,INDEX('2.2 Daten'!H$9:H$859,MATCH('2.2'!$A38,'2.2 Daten'!$B$9:$B$859,0))) -> 34590 | G38: =IF($A38<>0,INDEX('2.2 Daten'!I$9:I$859,MATCH('2.2'!$A38,'2.2 Daten'!$B$9:$B$859,0))) -> 9609 | H38: =IF($A38<>0,INDEX('2.2 Daten'!K$9:K$859,MATCH('2.2'!$A38,'2.2 Daten'!$B$9:$B$859,0))) -> -0.2102755639 | I38: =IF($A38<>0,INDEX('2.2 Daten'!L$9:L$859,MATCH('2.2'!$A38,'2.2 Daten'!$B$9:$B$859,0))) -> -6.690934304 | J38: =IF($A38<>0,INDEX('2.2 Daten'!M$9:M$859,MATCH('2.2'!$A38,'2.2 Daten'!$B$9:$B$859,0))) -> -1.005449382 | K38: =IF($A38<>0,INDEX('2.2 Daten'!N$9:N$859,MATCH('2.2'!$A38,'2.2 Daten'!$B$9:$B$859,0))) -> 1.09305588 | L38: =IF($A38<>0,INDEX('2.2 Daten'!O$9:O$859,MATCH('2.2'!$A38,'2.2 Daten'!$B$9:$B$859,0))) -> 4.185189201
A39: =CHOOSE('2.2 Daten'!$A$2,'2.2 Daten'!B461,'2.2 Daten'!B10,'2.2 Daten'!B27,'2.2 Daten'!B44,'2.2 Daten'!B47,'2.2 Daten'!B94,'2.2 Daten'!B98,'2.2 Daten'!B153,'2.2 Daten'!B181,'2.2 Daten'!B219,'2.2 Daten'!B265,'2.2 Daten'!B363,'2.2 Daten'!B371,'2.2 Daten'!B374,'2.2 Daten'!B394,'2.2 Daten'!B404,'2.2 Daten'!B419,'2.2 Daten'!B435,x) -> Hamburg | B39: =IF($A39<>0,INDEX('2.2 Daten'!C$9:C$859,MATCH('2.2'!$A39,'2.2 Daten'!$B$9:$B$859,0))," ") -> 02 | C39: =IF($A39<>0,INDEX('2.2 Daten'!E$9:E$859,MATCH('2.2'!$A39,'2.2 Daten'!$B$9:$B$859,0))) -> 63212 | D39: =IF($A39<>0,INDEX('2.2 Daten'!F$9:F$859,MATCH('2.2'!$A39,'2.2 Daten'!$B$9:$B$859,0))) -> 10668 | E39: =IF($A39<>0,INDEX('2.2 Daten'!G$9:G$859,MATCH('2.2'!$A39,'2.2 Daten'!$B$9:$B$859,0))) -> 11979 | F39: =IF($A39<>0,INDEX('2.2 Daten'!H$9:H$859,MATCH('2.2'!$A39,'2.2 Daten'!$B$9:$B$859,0))) -> 31575 | G39: =IF($A39<>0,INDEX('2.2 Daten'!I$9:I$859,MATCH('2.2'!$A39,'2.2 Daten'!$B$9:$B$859,0))) -> 8990 | H39: =IF($A39<>0,INDEX('2.2 Daten'!K$9:K$859,MATCH('2.2'!$A39,'2.2 Daten'!$B$9:$B$859,0))) -> 1.761164236 | I39: =IF($A39<>0,INDEX('2.2 Daten'!L$9:L$859,MATCH('2.2'!$A39,'2.2 Daten'!$B$9:$B$859,0))) -> -3.395816354 | J39: =IF($A39<>0,INDEX('2.2 Daten'!M$9:M$859,MATCH('2.2'!$A39,'2.2 Daten'!$B$9:$B$859,0))) -> 0.1002757583 | K39: =IF($A39<>0,INDEX('2.2 Daten'!N$9:N$859,MATCH('2.2'!$A39,'2.2 Daten'!$B$9:$B$859,0))) -> 3.848051307 | L39: =IF($A39<>0,INDEX('2.2 Daten'!O$9:O$859,MATCH('2.2'!$A39,'2.2 Daten'!$B$9:$B$859,0))) -> 3.297713432
A40: =CHOOSE('2.2 Daten'!$A$2,'2.2 Daten'!B462,'2.2 Daten'!B11,'2.2 Daten'!B28,'2.2 Daten'!B45,'2.2 Daten'!B48,'2.2 Daten'!B95,'2.2 Daten'!B99,'2.2 Daten'!B154,'2.2 Daten'!B182,'2.2 Daten'!B220,'2.2 Daten'!B266,'2.2 Daten'!B364,'2.2 Daten'!B372,'2.2 Daten'!B375,'2.2 Daten'!B395,'2.2 Daten'!B405,'2.2 Daten'!B420,'2.2 Daten'!B436,x) -> Niedersachsen | B40: =IF($A40<>0,INDEX('2.2 Daten'!C$9:C$859,MATCH('2.2'!$A40,'2.2 Daten'!$B$9:$B$859,0))," ") -> 03 | C40: =IF($A40<>0,INDEX('2.2 Daten'!E$9:E$859,MATCH('2.2'!$A40,'2.2 Daten'!$B$9:$B$859,0))) -> 189164 | D40: =IF($A40<>0,INDEX('2.2 Daten'!F$9:F$859,MATCH('2.2'!$A40,'2.2 Daten'!$B$9:$B$859,0))) -> 30837 | E40: =IF($A40<>0,INDEX('2.2 Daten'!G$9:G$859,MATCH('2.2'!$A40,'2.2 Daten'!$B$9:$B$859,0))) -> 35356 | F40: =IF($A40<>0,INDEX('2.2 Daten'!H$9:H$859,MATCH('2.2'!$A40,'2.2 Daten'!$B$9:$B$859,0))) -> 95986 | G40: =IF($A40<>0,INDEX('2.2 Daten'!I$9:I$859,MATCH('2.2'!$A40,'2.2 Daten'!$B$9:$B$859,0))) -> 26985 | H40: =IF($A40<>0,INDEX('2.2 Daten'!K$9:K$859,MATCH('2.2'!$A40,'2.2 Daten'!$B$9:$B$859,0))) -> 2.275135708 | I40: =IF($A40<>0,INDEX('2.2 Daten'!L$9:L$859,MATCH('2.2'!$A40,'2.2 Daten'!$B$9:$B$859,0))) -> -2.985591141 | J40: =IF($A40<>0,INDEX('2.2 Daten'!M$9:M$859,MATCH('2.2'!$A40,'2.2 Daten'!$B$9:$B$859,0))) -> 0.6977870183 | K40: =IF($A40<>0,INDEX('2.2 Daten'!N$9:N$859,MATCH('2.2'!$A40,'2.2 Daten'!$B$9:$B$859,0))) -> 4.060016695 | L40: =IF($A40<>0,INDEX('2.2 Daten'!O$9:O$859,MATCH('2.2'!$A40,'2.2 Daten'!$B$9:$B$859,0))) -> 4.520102254
A41: =CHOOSE('2.2 Daten'!$A$2,'2.2 Daten'!B463,'2.2 Daten'!B12,'2.2 Daten'!B29,'2.2 Daten'!B46,'2.2 Daten'!B49,'2.2 Daten'!B96,'2.2 Daten'!B100,'2.2 Daten'!B155,'2.2 Daten'!B183,'2.2 Daten'!B221,'2.2 Daten'!B267,'2.2 Daten'!B365,'2.2 Daten'!B373,'2.2 Daten'!B376,'2.2 Daten'!B396,'2.2 Daten'!B406,'2.2 Daten'!B421,'2.2 Daten'!B437,x) -> Bremen | B41: =IF($A41<>0,INDEX('2.2 Daten'!C$9:C$859,MATCH('2.2'!$A41,'2.2 Daten'!$B$9:$B$859,0))," ") -> 04 | C41: =IF($A41<>0,INDEX('2.2 Daten'!E$9:E$859,MATCH('2.2'!$A41,'2.2 Daten'!$B$9:$B$859,0))) -> 35729 | D41: =IF($A41<>0,INDEX('2.2 Daten'!F$9:F$859,MATCH('2.2'!$A41,'2.2 Daten'!$B$9:$B$859,0))) -> 6380 | E41: =IF($A41<>0,INDEX('2.2 Daten'!G$9:G$859,MATCH('2.2'!$A41,'2.2 Daten'!$B$9:$B$859,0))) -> 7227 | F41: =IF($A41<>0,INDEX('2.2 Daten'!H$9:H$859,MATCH('2.2'!$A41,'2.2 Daten'!$B$9:$B$859,0))) -> 17292 | G41: =IF($A41<>0,INDEX('2.2 Daten'!I$9:I$859,MATCH('2.2'!$A41,'2.2 Daten'!$B$9:$B$859,0))) -> 4830 | H41: =IF($A41<>0,INDEX('2.2 Daten'!K$9:K$859,MATCH('2.2'!$A41,'2.2 Daten'!$B$9:$B$859,0))) -> 1.928508259 | I41: =IF($A41<>0,INDEX('2.2 Daten'!L$9:L$859,MATCH('2.2'!$A41,'2.2 Daten'!$B$9:$B$859,0))) -> -5.002977963 | J41: =IF($A41<>0,INDEX('2.2 Daten'!M$9:M$859,MATCH('2.2'!$A41,'2.2 Daten'!$B$9:$B$859,0))) -> 2.773037543 | K41: =IF($A41<>0,INDEX('2.2 Daten'!N$9:N$859,MATCH('2.2'!$A41,'2.2 Daten'!$B$9:$B$859,0))) -> 4.012030075 | L41: =IF($A41<>0,INDEX('2.2 Daten'!O$9:O$859,MATCH('2.2'!$A41,'2.2 Daten'!$B$9:$B$859,0))) -> 3.205128205
A42: =CHOOSE('2.2 Daten'!$A$2,'2.2 Daten'!B464,'2.2 Daten'!B13,'2.2 Daten'!B30,'2.2 Daten'!B47,'2.2 Daten'!B50,'2.2 Daten'!B97,'2.2 Daten'!B101,'2.2 Daten'!B156,'2.2 Daten'!B184,'2.2 Daten'!B222,'2.2 Daten'!B268,'2.2 Daten'!B366,'2.2 Daten'!B374,'2.2 Daten'!B377,'2.2 Daten'!B397,'2.2 Daten'!B407,'2.2 Daten'!B422,'2.2 Daten'!B438,x) -> Nordrhein-Westfalen | B42: =IF($A42<>0,INDEX('2.2 Daten'!C$9:C$859,MATCH('2.2'!$A42,'2.2 Daten'!$B$9:$B$859,0))," ") -> 05 | C42: =IF($A42<>0,INDEX('2.2 Daten'!E$9:E$859,MATCH('2.2'!$A42,'2.2 Daten'!$B$9:$B$859,0))) -> 556978 | D42: =IF($A42<>0,INDEX('2.2 Daten'!F$9:F$859,MATCH('2.2'!$A42,'2.2 Daten'!$B$9:$B$859,0))) -> 88234 | E42: =IF($A42<>0,INDEX('2.2 Daten'!G$9:G$859,MATCH('2.2'!$A42,'2.2 Daten'!$B$9:$B$859,0))) -> 103764 | F42: =IF($A42<>0,INDEX('2.2 Daten'!H$9:H$859,MATCH('2.2'!$A42,'2.2 Daten'!$B$9:$B$859,0))) -> 284099 | G42: =IF($A42<>0,INDEX('2.2 Daten'!I$9:I$859,MATCH('2.2'!$A42,'2.2 Daten'!$B$9:$B$859,0))) -> 80881 | H42: =IF($A42<>0,INDEX('2.2 Daten'!K$9:K$859,MATCH('2.2'!$A42,'2.2 Daten'!$B$9:$B$859,0))) -> 1.255656088 | I42: =IF($A42<>0,INDEX('2.2 Daten'!L$9:L$859,MATCH('2.2'!$A42,'2.2 Daten'!$B$9:$B$859,0))) -> -4.509691454 | J42: =IF($A42<>0,INDEX('2.2 Daten'!M$9:M$859,MATCH('2.2'!$A42,'2.2 Daten'!$B$9:$B$859,0))) -> -0.1472328878 | K42: =IF($A42<>0,INDEX('2.2 Daten'!N$9:N$859,MATCH('2.2'!$A42,'2.2 Daten'!$B$9:$B$859,0))) -> 3.08007692 | L42: =IF($A42<>0,INDEX('2.2 Daten'!O$9:O$859,MATCH('2.2'!$A42,'2.2 Daten'!$B$9:$B$859,0))) -> 3.503832717
A43: =CHOOSE('2.2 Daten'!$A$2,'2.2 Daten'!B465,'2.2 Daten'!B14,'2.2 Daten'!B31,'2.2 Daten'!B48,'2.2 Daten'!B51,'2.2 Daten'!B98,'2.2 Daten'!B102,'2.2 Daten'!B157,'2.2 Daten'!B185,'2.2 Daten'!B223,'2.2 Daten'!B269,'2.2 Daten'!B367,'2.2 Daten'!B375,'2.2 Daten'!B378,'2.2 Daten'!B398,'2.2 Daten'!B408,'2.2 Daten'!B423,'2.2 Daten'!B439,x) -> Hessen | B43: =IF($A43<>0,INDEX('2.2 Daten'!C$9:C$859,MATCH('2.2'!$A43,'2.2 Daten'!$B$9:$B$859,0))," ") -> 06 | C43: =IF($A43<>0,INDEX('2.2 Daten'!E$9:E$859,MATCH('2.2'!$A43,'2.2 Daten'!$B$9:$B$859,0))) -> 150672 | D43: =IF($A43<>0,INDEX('2.2 Daten'!F$9:F$859,MATCH('2.2'!$A43,'2.2 Daten'!$B$9:$B$859,0))) -> 24351 | E43: =IF($A43<>0,INDEX('2.2 Daten'!G$9:G$859,MATCH('2.2'!$A43,'2.2 Daten'!$B$9:$B$859,0))) -> 28874 | F43: =IF($A43<>0,INDEX('2.2 Daten'!H$9:H$859,MATCH('2.2'!$A43,'2.2 Daten'!$B$9:$B$859,0))) -> 76172 | G43: =IF($A43<>0,INDEX('2.2 Daten'!I$9:I$859,MATCH('2.2'!$A43,'2.2 Daten'!$B$9:$B$859,0))) -> 21275 | H43: =IF($A43<>0,INDEX('2.2 Daten'!K$9:K$859,MATCH('2.2'!$A43,'2.2 Daten'!$B$9:$B$859,0))) -> 4.588302259 | I43: =IF($A43<>0,INDEX('2.2 Daten'!L$9:L$859,MATCH('2.2'!$A43,'2.2 Daten'!$B$9:$B$859,0))) -> -2.95699996 | J43: =IF($A43<>0,INDEX('2.2 Daten'!M$9:M$859,MATCH('2.2'!$A43,'2.2 Daten'!$B$9:$B$859,0))) -> 1.952614668 | K43: =IF($A43<>0,INDEX('2.2 Daten'!N$9:N$859,MATCH('2.2'!$A43,'2.2 Daten'!$B$9:$B$859,0))) -> 7.520749816 | L43: =IF($A43<>0,INDEX('2.2 Daten'!O$9:O$859,MATCH('2.2'!$A43,'2.2 Daten'!$B$9:$B$859,0))) -> 7.427792365
A44: =CHOOSE('2.2 Daten'!$A$2,'2.2 Daten'!B466,'2.2 Daten'!B15,'2.2 Daten'!B32,'2.2 Daten'!B49,'2.2 Daten'!B52,'2.2 Daten'!B99,'2.2 Daten'!B103,'2.2 Daten'!B158,'2.2 Daten'!B186,'2.2 Daten'!B224,'2.2 Daten'!B270,'2.2 Daten'!B368,'2.2 Daten'!B376,'2.2 Daten'!B379,'2.2 Daten'!B399,'2.2 Daten'!B409,'2.2 Daten'!B424,'2.2 Daten'!B440,x) -> Rheinland-Pfalz | B44: =IF($A44<>0,INDEX('2.2 Daten'!C$9:C$859,MATCH('2.2'!$A44,'2.2 Daten'!$B$9:$B$859,0))," ") -> 07 | C44: =IF($A44<>0,INDEX('2.2 Daten'!E$9:E$859,MATCH('2.2'!$A44,'2.2 Daten'!$B$9:$B$859,0))) -> 80417 | D44: =IF($A44<>0,INDEX('2.2 Daten'!F$9:F$859,MATCH('2.2'!$A44,'2.2 Daten'!$B$9:$B$859,0))) -> 13271 | E44: =IF($A44<>0,INDEX('2.2 Daten'!G$9:G$859,MATCH('2.2'!$A44,'2.2 Daten'!$B$9:$B$859,0))) -> 15421 | F44: =IF($A44<>0,INDEX('2.2 Daten'!H$9:H$859,MATCH('2.2'!$A44,'2.2 Daten'!$B$9:$B$859,0))) -> 40810 | G44: =IF($A44<>0,INDEX('2.2 Daten'!I$9:I$859,MATCH('2.2'!$A44,'2.2 Daten'!$B$9:$B$859,0))) -> 10915 | H44: =IF($A44<>0,INDEX('2.2 Daten'!K$9:K$859,MATCH('2.2'!$A44,'2.2 Daten'!$B$9:$B$859,0))) -> 6.530925855 | I44: =IF($A44<>0,INDEX('2.2 Daten'!L$9:L$859,MATCH('2.2'!$A44,'2.2 Daten'!$B$9:$B$859,0))) -> -2.347314202 | J44: =IF($A44<>0,INDEX('2.2 Daten'!M$9:M$859,MATCH('2.2'!$A44,'2.2 Daten'!$B$9:$B$859,0))) -> 4.2593469 | K44: =IF($A44<>0,INDEX('2.2 Daten'!N$9:N$859,MATCH('2.2'!$A44,'2.2 Daten'!$B$9:$B$859,0))) -> 10.04745982 | L44: =IF($A44<>0,INDEX('2.2 Daten'!O$9:O$859,MATCH('2.2'!$A44,'2.2 Daten'!$B$9:$B$859,0))) -> 8.910397126
A45: =CHOOSE('2.2 Daten'!$A$2,'2.2 Daten'!B467,'2.2 Daten'!B16,'2.2 Daten'!B33,'2.2 Daten'!B50,'2.2 Daten'!B53,'2.2 Daten'!B100,'2.2 Daten'!B104,'2.2 Daten'!B159,'2.2 Daten'!B187,'2.2 Daten'!B225,'2.2 Daten'!B271,'2.2 Daten'!B369,'2.2 Daten'!B377,'2.2 Daten'!B380,'2.2 Daten'!B400,'2.2 Daten'!B410,'2.2 Daten'!B425,'2.2 Daten'!B441,x) -> Baden-Württemberg | B45: =IF($A45<>0,INDEX('2.2 Daten'!C$9:C$859,MATCH('2.2'!$A45,'2.2 Daten'!$B$9:$B$859,0))," ") -> 08 | C45: =IF($A45<>0,INDEX('2.2 Daten'!E$9:E$859,MATCH('2.2'!$A45,'2.2 Daten'!$B$9:$B$859,0))) -> 168820 | D45: =IF($A45<>0,INDEX('2.2 Daten'!F$9:F$859,MATCH('2.2'!$A45,'2.2 Daten'!$B$9:$B$859,0))) -> 26994 | E45: =IF($A45<>0,INDEX('2.2 Daten'!G$9:G$859,MATCH('2.2'!$A45,'2.2 Daten'!$B$9:$B$859,0))) -> 32390 | F45: =IF($A45<>0,INDEX('2.2 Daten'!H$9:H$859,MATCH('2.2'!$A45,'2.2 Daten'!$B$9:$B$859,0))) -> 85932 | G45: =IF($A45<>0,INDEX('2.2 Daten'!I$9:I$859,MATCH('2.2'!$A45,'2.2 Daten'!$B$9:$B$859,0))) -> 23504 | H45: =IF($A45<>0,INDEX('2.2 Daten'!K$9:K$859,MATCH('2.2'!$A45,'2.2 Daten'!$B$9:$B$859,0))) -> 10.90672588 | I45: =IF($A45<>0,INDEX('2.2 Daten'!L$9:L$859,MATCH('2.2'!$A45,'2.2 Daten'!$B$9:$B$859,0))) -> 1.203464177 | J45: =IF($A45<>0,INDEX('2.2 Daten'!M$9:M$859,MATCH('2.2'!$A45,'2.2 Daten'!$B$9:$B$859,0))) -> 9.233778497 | K45: =IF($A45<>0,INDEX('2.2 Daten'!N$9:N$859,MATCH('2.2'!$A45,'2.2 Daten'!$B$9:$B$859,0))) -> 14.4082013 | L45: =IF($A45<>0,INDEX('2.2 Daten'!O$9:O$859,MATCH('2.2'!$A45,'2.2 Daten'!$B$9:$B$859,0))) -> 13.09243131
A46: =CHOOSE('2.2 Daten'!$A$2,'2.2 Daten'!B468,'2.2 Daten'!B17,'2.2 Daten'!B34,'2.2 Daten'!B51,'2.2 Daten'!B54,'2.2 Daten'!B101,'2.2 Daten'!B105,'2.2 Daten'!B160,'2.2 Daten'!B188,'2.2 Daten'!B226,'2.2 Daten'!B272,'2.2 Daten'!B370,'2.2 Daten'!B378,'2.2 Daten'!B381,'2.2 Daten'!B401,'2.2 Daten'!B411,'2.2 Daten'!B426,'2.2 Daten'!B442,x) -> Bayern | B46: =IF($A46<>0,INDEX('2.2 Daten'!C$9:C$859,MATCH('2.2'!$A46,'2.2 Daten'!$B$9:$B$859,0))," ") -> 09 | C46: =IF($A46<>0,INDEX('2.2 Daten'!E$9:E$859,MATCH('2.2'!$A46,'2.2 Daten'!$B$9:$B$859,0))) -> 159023 | D46: =IF($A46<>0,INDEX('2.2 Daten'!F$9:F$859,MATCH('2.2'!$A46,'2.2 Daten'!$B$9:$B$859,0))) -> 25842 | E46: =IF($A46<>0,INDEX('2.2 Daten'!G$9:G$859,MATCH('2.2'!$A46,'2.2 Daten'!$B$9:$B$859,0))) -> 30572 | F46: =IF($A46<>0,INDEX('2.2 Daten'!H$9:H$859,MATCH('2.2'!$A46,'2.2 Daten'!$B$9:$B$859,0))) -> 81158 | G46: =IF($A46<>0,INDEX('2.2 Daten'!I$9:I$859,MATCH('2.2'!$A46,'2.2 Daten'!$B$9:$B$859,0))) -> 21451 | H46: =IF($A46<>0,INDEX('2.2 Daten'!K$9:K$859,MATCH('2.2'!$A46,'2.2 Daten'!$B$9:$B$859,0))) -> 13.55784543 | I46: =IF($A46<>0,INDEX('2.2 Daten'!L$9:L$859,MATCH('2.2'!$A46,'2.2 Daten'!$B$9:$B$859,0))) -> 1.249853074 | J46: =IF($A46<>0,INDEX('2.2 Daten'!M$9:M$859,MATCH('2.2'!$A46,'2.2 Daten'!$B$9:$B$859,0))) -> 9.412354162 | K46: =IF($A46<>0,INDEX('2.2 Daten'!N$9:N$859,MATCH('2.2'!$A46,'2.2 Daten'!$B$9:$B$859,0))) -> 17.9519228 | L46: =IF($A46<>0,INDEX('2.2 Daten'!O$9:O$859,MATCH('2.2'!$A46,'2.2 Daten'!$B$9:$B$859,0))) -> 20.74186649
A47: =CHOOSE('2.2 Daten'!$A$2,'2.2 Daten'!B469,'2.2 Daten'!B18,'2.2 Daten'!B35,'2.2 Daten'!B52,'2.2 Daten'!B55,'2.2 Daten'!B102,'2.2 Daten'!B106,'2.2 Daten'!B161,'2.2 Daten'!B189,'2.2 Daten'!B227,'2.2 Daten'!B273,'2.2 Daten'!B371,'2.2 Daten'!B379,'2.2 Daten'!B382,'2.2 Daten'!B402,'2.2 Daten'!B412,'2.2 Daten'!B427,'2.2 Daten'!B443,x) -> Saarland | B47: =IF($A47<>0,INDEX('2.2 Daten'!C$9:C$859,MATCH('2.2'!$A47,'2.2 Daten'!$B$9:$B$859,0))," ") -> 10 | C47: =IF($A47<>0,INDEX('2.2 Daten'!E$9:E$859,MATCH('2.2'!$A47,'2.2 Daten'!$B$9:$B$859,0))) -> 27742 | D47: =IF($A47<>0,INDEX('2.2 Daten'!F$9:F$859,MATCH('2.2'!$A47,'2.2 Daten'!$B$9:$B$859,0))) -> 4476 | E47: =IF($A47<>0,INDEX('2.2 Daten'!G$9:G$859,MATCH('2.2'!$A47,'2.2 Daten'!$B$9:$B$859,0))) -> 5210 | F47: =IF($A47<>0,INDEX('2.2 Daten'!H$9:H$859,MATCH('2.2'!$A47,'2.2 Daten'!$B$9:$B$859,0))) -> 14094 | G47: =IF($A47<>0,INDEX('2.2 Daten'!I$9:I$859,MATCH('2.2'!$A47,'2.2 Daten'!$B$9:$B$859,0))) -> 3962 | H47: =IF($A47<>0,INDEX('2.2 Daten'!K$9:K$859,MATCH('2.2'!$A47,'2.2 Daten'!$B$9:$B$859,0))) -> 2.308600089 | I47: =IF($A47<>0,INDEX('2.2 Daten'!L$9:L$859,MATCH('2.2'!$A47,'2.2 Daten'!$B$9:$B$859,0))) -> -5.748578648 | J47: =IF($A47<>0,INDEX('2.2 Daten'!M$9:M$859,MATCH('2.2'!$A47,'2.2 Daten'!$B$9:$B$859,0))) -> 2.518693428 | K47: =IF($A47<>0,INDEX('2.2 Daten'!N$9:N$859,MATCH('2.2'!$A47,'2.2 Daten'!$B$9:$B$859,0))) -> 4.523880154 | L47: =IF($A47<>0,INDEX('2.2 Daten'!O$9:O$859,MATCH('2.2'!$A47,'2.2 Daten'!$B$9:$B$859,0))) -> 4.23572744
A48: =CHOOSE('2.2 Daten'!$A$2,'2.2 Daten'!B470,'2.2 Daten'!B19,'2.2 Daten'!B36,'2.2 Daten'!B53,'2.2 Daten'!B56,'2.2 Daten'!B103,'2.2 Daten'!B107,'2.2 Daten'!B162,'2.2 Daten'!B190,'2.2 Daten'!B228,'2.2 Daten'!B274,'2.2 Daten'!B372,'2.2 Daten'!B380,'2.2 Daten'!B383,'2.2 Daten'!B403,'2.2 Daten'!B413,'2.2 Daten'!B428,'2.2 Daten'!B444,x) -> Berlin | B48: =IF($A48<>0,INDEX('2.2 Daten'!C$9:C$859,MATCH('2.2'!$A48,'2.2 Daten'!$B$9:$B$859,0))," ") -> 11 | C48: =IF($A48<>0,INDEX('2.2 Daten'!E$9:E$859,MATCH('2.2'!$A48,'2.2 Daten'!$B$9:$B$859,0))) -> 157119 | D48: =IF($A48<>0,INDEX('2.2 Daten'!F$9:F$859,MATCH('2.2'!$A48,'2.2 Daten'!$B$9:$B$859,0))) -> 26545 | E48: =IF($A48<>0,INDEX('2.2 Daten'!G$9:G$859,MATCH('2.2'!$A48,'2.2 Daten'!$B$9:$B$859,0))) -> 28894 | F48: =IF($A48<>0,INDEX('2.2 Daten'!H$9:H$859,MATCH('2.2'!$A48,'2.2 Daten'!$B$9:$B$859,0))) -> 78700 | G48: =IF($A48<>0,INDEX('2.2 Daten'!I$9:I$859,MATCH('2.2'!$A48,'2.2 Daten'!$B$9:$B$859,0))) -> 22980 | H48: =IF($A48<>0,INDEX('2.2 Daten'!K$9:K$859,MATCH('2.2'!$A48,'2.2 Daten'!$B$9:$B$859,0))) -> -2.966243006 | I48: =IF($A48<>0,INDEX('2.2 Daten'!L$9:L$859,MATCH('2.2'!$A48,'2.2 Daten'!$B$9:$B$859,0))) -> -6.028745398 | J48: =IF($A48<>0,INDEX('2.2 Daten'!M$9:M$859,MATCH('2.2'!$A48,'2.2 Daten'!$B$9:$B$859,0))) -> -4.834991107 | K48: =IF($A48<>0,INDEX('2.2 Daten'!N$9:N$859,MATCH('2.2'!$A48,'2.2 Daten'!$B$9:$B$859,0))) -> -1.960784314 | L48: =IF($A48<>0,INDEX('2.2 Daten'!O$9:O$859,MATCH('2.2'!$A48,'2.2 Daten'!$B$9:$B$859,0))) -> -0.2517579651
A49: =CHOOSE('2.2 Daten'!$A$2,'2.2 Daten'!B471,'2.2 Daten'!B20,'2.2 Daten'!B37,'2.2 Daten'!B54,'2.2 Daten'!B57,'2.2 Daten'!B104,'2.2 Daten'!B108,'2.2 Daten'!B163,'2.2 Daten'!B191,'2.2 Daten'!B229,'2.2 Daten'!B275,'2.2 Daten'!B373,'2.2 Daten'!B381,'2.2 Daten'!B384,'2.2 Daten'!B404,'2.2 Daten'!B414,'2.2 Daten'!B429,'2.2 Daten'!B445,x) -> Brandenburg | B49: =IF($A49<>0,INDEX('2.2 Daten'!C$9:C$859,MATCH('2.2'!$A49,'2.2 Daten'!$B$9:$B$859,0))," ") -> 12 | C49: =IF($A49<>0,INDEX('2.2 Daten'!E$9:E$859,MATCH('2.2'!$A49,'2.2 Daten'!$B$9:$B$859,0))) -> 46348 | D49: =IF($A49<>0,INDEX('2.2 Daten'!F$9:F$859,MATCH('2.2'!$A49,'2.2 Daten'!$B$9:$B$859,0))) -> 7512 | E49: =IF($A49<>0,INDEX('2.2 Daten'!G$9:G$859,MATCH('2.2'!$A49,'2.2 Daten'!$B$9:$B$859,0))) -> 8637 | F49: =IF($A49<>0,INDEX('2.2 Daten'!H$9:H$859,MATCH('2.2'!$A49,'2.2 Daten'!$B$9:$B$859,0))) -> 23913 | G49: =IF($A49<>0,INDEX('2.2 Daten'!I$9:I$859,MATCH('2.2'!$A49,'2.2 Daten'!$B$9:$B$859,0))) -> 6286 | H49: =IF($A49<>0,INDEX('2.2 Daten'!K$9:K$859,MATCH('2.2'!$A49,'2.2 Daten'!$B$9:$B$859,0))) -> 1.930943479 | I49: =IF($A49<>0,INDEX('2.2 Daten'!L$9:L$859,MATCH('2.2'!$A49,'2.2 Daten'!$B$9:$B$859,0))) -> -5.970709726 | J49: =IF($A49<>0,INDEX('2.2 Daten'!M$9:M$859,MATCH('2.2'!$A49,'2.2 Daten'!$B$9:$B$859,0))) -> 1.147675372 | K49: =IF($A49<>0,INDEX('2.2 Daten'!N$9:N$859,MATCH('2.2'!$A49,'2.2 Daten'!$B$9:$B$859,0))) -> 3.559828505 | L49: =IF($A49<>0,INDEX('2.2 Daten'!O$9:O$859,MATCH('2.2'!$A49,'2.2 Daten'!$B$9:$B$859,0))) -> 7.43462656
A50: =CHOOSE('2.2 Daten'!$A$2,'2.2 Daten'!B472,'2.2 Daten'!B21,'2.2 Daten'!B38,'2.2 Daten'!B55,'2.2 Daten'!B58,'2.2 Daten'!B105,'2.2 Daten'!B109,'2.2 Daten'!B164,'2.2 Daten'!B192,'2.2 Daten'!B230,'2.2 Daten'!B276,'2.2 Daten'!B374,'2.2 Daten'!B382,'2.2 Daten'!B385,'2.2 Daten'!B405,'2.2 Daten'!B415,'2.2 Daten'!B430,'2.2 Daten'!B446,x) -> Mecklenburg-Vorpommern | B50: =IF($A50<>0,INDEX('2.2 Daten'!C$9:C$859,MATCH('2.2'!$A50,'2.2 Daten'!$B$9:$B$859,0))," ") -> 13 | C50: =IF($A50<>0,INDEX('2.2 Daten'!E$9:E$859,MATCH('2.2'!$A50,'2.2 Daten'!$B$9:$B$859,0))) -> 34706 | D50: =IF($A50<>0,INDEX('2.2 Daten'!F$9:F$859,MATCH('2.2'!$A50,'2.2 Daten'!$B$9:$B$859,0))) -> 5491 | E50: =IF($A50<>0,INDEX('2.2 Daten'!G$9:G$859,MATCH('2.2'!$A50,'2.2 Daten'!$B$9:$B$859,0))) -> 6218 | F50: =IF($A50<>0,INDEX('2.2 Daten'!H$9:H$859,MATCH('2.2'!$A50,'2.2 Daten'!$B$9:$B$859,0))) -> 18355 | G50: =IF($A50<>0,INDEX('2.2 Daten'!I$9:I$859,MATCH('2.2'!$A50,'2.2 Daten'!$B$9:$B$859,0))) -> 4642 | H50: =IF($A50<>0,INDEX('2.2 Daten'!K$9:K$859,MATCH('2.2'!$A50,'2.2 Daten'!$B$9:$B$859,0))) -> 0.7518796992 | I50: =IF($A50<>0,INDEX('2.2 Daten'!L$9:L$859,MATCH('2.2'!$A50,'2.2 Daten'!$B$9:$B$859,0))) -> -5.196823204 | J50: =IF($A50<>0,INDEX('2.2 Daten'!M$9:M$859,MATCH('2.2'!$A50,'2.2 Daten'!$B$9:$B$859,0))) -> -0.7818733046 | K50: =IF($A50<>0,INDEX('2.2 Daten'!N$9:N$859,MATCH('2.2'!$A50,'2.2 Daten'!$B$9:$B$859,0))) -> 2.410310774 | L50: =IF($A50<>0,INDEX('2.2 Daten'!O$9:O$859,MATCH('2.2'!$A50,'2.2 Daten'!$B$9:$B$859,0))) -> 3.964165733
A51: =CHOOSE('2.2 Daten'!$A$2,'2.2 Daten'!B473,'2.2 Daten'!B22,'2.2 Daten'!B39,'2.2 Daten'!B56,'2.2 Daten'!B59,'2.2 Daten'!B106,'2.2 Daten'!B110,'2.2 Daten'!B165,'2.2 Daten'!B193,'2.2 Daten'!B231,'2.2 Daten'!B277,'2.2 Daten'!B375,'2.2 Daten'!B383,'2.2 Daten'!B386,'2.2 Daten'!B406,'2.2 Daten'!B416,'2.2 Daten'!B431,'2.2 Daten'!B447,x) -> Sachsen | B51: =IF($A51<>0,INDEX('2.2 Daten'!C$9:C$859,MATCH('2.2'!$A51,'2.2 Daten'!$B$9:$B$859,0))," ") -> 14 | C51: =IF($A51<>0,INDEX('2.2 Daten'!E$9:E$859,MATCH('2.2'!$A51,'2.2 Daten'!$B$9:$B$859,0))) -> 78314 | D51: =IF($A51<>0,INDEX('2.2 Daten'!F$9:F$859,MATCH('2.2'!$A51,'2.2 Daten'!$B$9:$B$859,0))) -> 12884 | E51: =IF($A51<>0,INDEX('2.2 Daten'!G$9:G$859,MATCH('2.2'!$A51,'2.2 Daten'!$B$9:$B$859,0))) -> 14660 | F51: =IF($A51<>0,INDEX('2.2 Daten'!H$9:H$859,MATCH('2.2'!$A51,'2.2 Daten'!$B$9:$B$859,0))) -> 40408 | G51: =IF($A51<>0,INDEX('2.2 Daten'!I$9:I$859,MATCH('2.2'!$A51,'2.2 Daten'!$B$9:$B$859,0))) -> 10362 | H51: =IF($A51<>0,INDEX('2.2 Daten'!K$9:K$859,MATCH('2.2'!$A51,'2.2 Daten'!$B$9:$B$859,0))) -> 7.762167518 | I51: =IF($A51<>0,INDEX('2.2 Daten'!L$9:L$859,MATCH('2.2'!$A51,'2.2 Daten'!$B$9:$B$859,0))) -> -0.1472525769 | J51: =IF($A51<>0,INDEX('2.2 Daten'!M$9:M$859,MATCH('2.2'!$A51,'2.2 Daten'!$B$9:$B$859,0))) -> 3.979005603 | K51: =IF($A51<>0,INDEX('2.2 Daten'!N$9:N$859,MATCH('2.2'!$A51,'2.2 Daten'!$B$9:$B$859,0))) -> 11.02013902 | L51: =IF($A51<>0,INDEX('2.2 Daten'!O$9:O$859,MATCH('2.2'!$A51,'2.2 Daten'!$B$9:$B$859,0))) -> 11.7317231
A52: =CHOOSE('2.2 Daten'!$A$2,'2.2 Daten'!B474,'2.2 Daten'!B23,'2.2 Daten'!B40,'2.2 Daten'!B57,'2.2 Daten'!B60,'2.2 Daten'!B107,'2.2 Daten'!B111,'2.2 Daten'!B166,'2.2 Daten'!B194,'2.2 Daten'!B232,'2.2 Daten'!B278,'2.2 Daten'!B376,'2.2 Daten'!B384,'2.2 Daten'!B387,'2.2 Daten'!B407,'2.2 Daten'!B417,'2.2 Daten'!B432,'2.2 Daten'!B448,x) -> Sachsen-Anhalt | B52: =IF($A52<>0,INDEX('2.2 Daten'!C$9:C$859,MATCH('2.2'!$A52,'2.2 Daten'!$B$9:$B$859,0))," ") -> 15 | C52: =IF($A52<>0,INDEX('2.2 Daten'!E$9:E$859,MATCH('2.2'!$A52,'2.2 Daten'!$B$9:$B$859,0))) -> 55199 | D52: =IF($A52<>0,INDEX('2.2 Daten'!F$9:F$859,MATCH('2.2'!$A52,'2.2 Daten'!$B$9:$B$859,0))) -> 9137 | E52: =IF($A52<>0,INDEX('2.2 Daten'!G$9:G$859,MATCH('2.2'!$A52,'2.2 Daten'!$B$9:$B$859,0))) -> 10411 | F52: =IF($A52<>0,INDEX('2.2 Daten'!H$9:H$859,MATCH('2.2'!$A52,'2.2 Daten'!$B$9:$B$859,0))) -> 28289 | G52: =IF($A52<>0,INDEX('2.2 Daten'!I$9:I$859,MATCH('2.2'!$A52,'2.2 Daten'!$B$9:$B$859,0))) -> 7362 | H52: =IF($A52<>0,INDEX('2.2 Daten'!K$9:K$859,MATCH('2.2'!$A52,'2.2 Daten'!$B$9:$B$859,0))) -> 1.301156175 | I52: =IF($A52<>0,INDEX('2.2 Daten'!L$9:L$859,MATCH('2.2'!$A52,'2.2 Daten'!$B$9:$B$859,0))) -> -4.713734487 | J52: =IF($A52<>0,INDEX('2.2 Daten'!M$9:M$859,MATCH('2.2'!$A52,'2.2 Daten'!$B$9:$B$859,0))) -> 1.225085075 | K52: =IF($A52<>0,INDEX('2.2 Daten'!N$9:N$859,MATCH('2.2'!$A52,'2.2 Daten'!$B$9:$B$859,0))) -> 2.738333031 | L52: =IF($A52<>0,INDEX('2.2 Daten'!O$9:O$859,MATCH('2.2'!$A52,'2.2 Daten'!$B$9:$B$859,0))) -> 3.96836605
A53: =CHOOSE('2.2 Daten'!$A$2,'2.2 Daten'!B475,'2.2 Daten'!B24,'2.2 Daten'!B41,'2.2 Daten'!B58,'2.2 Daten'!B61,'2.2 Daten'!B108,'2.2 Daten'!B112,'2.2 Daten'!B167,'2.2 Daten'!B195,'2.2 Daten'!B233,'2.2 Daten'!B279,'2.2 Daten'!B377,'2.2 Daten'!B385,'2.2 Daten'!B388,'2.2 Daten'!B408,'2.2 Daten'!B418,'2.2 Daten'!B433,'2.2 Daten'!B449,x) -> Thüringen | B53: =IF($A53<>0,INDEX('2.2 Daten'!C$9:C$859,MATCH('2.2'!$A53,'2.2 Daten'!$B$9:$B$859,0))," ") -> 16 | C53: =IF($A53<>0,INDEX('2.2 Daten'!E$9:E$859,MATCH('2.2'!$A53,'2.2 Daten'!$B$9:$B$859,0))) -> 37002 | D53: =IF($A53<>0,INDEX('2.2 Daten'!F$9:F$859,MATCH('2.2'!$A53,'2.2 Daten'!$B$9:$B$859,0))) -> 6190 | E53: =IF($A53<>0,INDEX('2.2 Daten'!G$9:G$859,MATCH('2.2'!$A53,'2.2 Daten'!$B$9:$B$859,0))) -> 6991 | F53: =IF($A53<>0,INDEX('2.2 Daten'!H$9:H$859,MATCH('2.2'!$A53,'2.2 Daten'!$B$9:$B$859,0))) -> 18891 | G53: =IF($A53<>0,INDEX('2.2 Daten'!I$9:I$859,MATCH('2.2'!$A53,'2.2 Daten'!$B$9:$B$859,0))) -> 4930 | H53: =IF($A53<>0,INDEX('2.2 Daten'!K$9:K$859,MATCH('2.2'!$A53,'2.2 Daten'!$B$9:$B$859,0))) -> -2.061882957 | I53: =IF($A53<>0,INDEX('2.2 Daten'!L$9:L$859,MATCH('2.2'!$A53,'2.2 Daten'!$B$9:$B$859,0))) -> -6.833232992 | J53: =IF($A53<>0,INDEX('2.2 Daten'!M$9:M$859,MATCH('2.2'!$A53,'2.2 Daten'!$B$9:$B$859,0))) -> -5.411987552 | K53: =IF($A53<>0,INDEX('2.2 Daten'!N$9:N$859,MATCH('2.2'!$A53,'2.2 Daten'!$B$9:$B$859,0))) -> -0.2797719595 | L53: =IF($A53<>0,INDEX('2.2 Daten'!O$9:O$859,MATCH('2.2'!$A53,'2.2 Daten'!$B$9:$B$859,0))) -> 2.665556018
A54: =CHOOSE('2.2 Daten'!$A$2,'2.2 Daten'!B476,'2.2 Daten'!B25,'2.2 Daten'!B42,'2.2 Daten'!B59,'2.2 Daten'!B62,'2.2 Daten'!B109,'2.2 Daten'!B113,'2.2 Daten'!B168,'2.2 Daten'!B196,'2.2 Daten'!B234,'2.2 Daten'!B280,'2.2 Daten'!B378,'2.2 Daten'!B386,'2.2 Daten'!B389,'2.2 Daten'!B409,'2.2 Daten'!B419,'2.2 Daten'!B434,'2.2 Daten'!B450,x) -> 0 | B54: =IF($A54<>0,INDEX('2.2 Daten'!C$9:C$859,MATCH('2.2'!$A54,'2.2 Daten'!$B$9:$B$859,0))," ") ->  | C54: =IF($A54<>0,INDEX('2.2 Daten'!E$9:E$859,MATCH('2.2'!$A54,'2.2 Daten'!$B$9:$B$859,0))) -> FALSE | D54: =IF($A54<>0,INDEX('2.2 Daten'!F$9:F$859,MATCH('2.2'!$A54,'2.2 Daten'!$B$9:$B$859,0))) -> FALSE | E54: =IF($A54<>0,INDEX('2.2 Daten'!G$9:G$859,MATCH('2.2'!$A54,'2.2 Daten'!$B$9:$B$859,0))) -> FALSE | F54: =IF($A54<>0,INDEX('2.2 Daten'!H$9:H$859,MATCH('2.2'!$A54,'2.2 Daten'!$B$9:$B$859,0))) -> FALSE | G54: =IF($A54<>0,INDEX('2.2 Daten'!I$9:I$859,MATCH('2.2'!$A54,'2.2 Daten'!$B$9:$B$859,0))) -> FALSE | H54: =IF($A54<>0,INDEX('2.2 Daten'!K$9:K$859,MATCH('2.2'!$A54,'2.2 Daten'!$B$9:$B$859,0))) -> FALSE | I54: =IF($A54<>0,INDEX('2.2 Daten'!L$9:L$859,MATCH('2.2'!$A54,'2.2 Daten'!$B$9:$B$859,0))) -> FALSE | J54: =IF($A54<>0,INDEX('2.2 Daten'!M$9:M$859,MATCH('2.2'!$A54,'2.2 Daten'!$B$9:$B$859,0))) -> FALSE | K54: =IF($A54<>0,INDEX('2.2 Daten'!N$9:N$859,MATCH('2.2'!$A54,'2.2 Daten'!$B$9:$B$859,0))) -> FALSE | L54: =IF($A54<>0,INDEX('2.2 Daten'!O$9:O$859,MATCH('2.2'!$A54,'2.2 Daten'!$B$9:$B$859,0))) -> FALSE
A55: =CHOOSE('2.2 Daten'!$A$2,'2.2 Daten'!B477,'2.2 Daten'!B26,'2.2 Daten'!B43,'2.2 Daten'!B60,'2.2 Daten'!B63,'2.2 Daten'!B110,'2.2 Daten'!B114,'2.2 Daten'!B169,'2.2 Daten'!B197,'2.2 Daten'!B235,'2.2 Daten'!B281,'2.2 Daten'!B379,'2.2 Daten'!B387,'2.2 Daten'!B390,'2.2 Daten'!B410,'2.2 Daten'!B420,'2.2 Daten'!B435,'2.2 Daten'!B451,x) -> Schleswig-Holstein | B55: =IF($A55<>0,INDEX('2.2 Daten'!C$9:C$859,MATCH('2.2'!$A55,'2.2 Daten'!$B$9:$B$859,0))," ") -> 01 | C55: =IF($A55<>0,INDEX('2.2 Daten'!E$9:E$859,MATCH('2.2'!$A55,'2.2 Daten'!$B$9:$B$859,0))) -> 67863 | D55: =IF($A55<>0,INDEX('2.2 Daten'!F$9:F$859,MATCH('2.2'!$A55,'2.2 Daten'!$B$9:$B$859,0))) -> 10766 | E55: =IF($A55<>0,INDEX('2.2 Daten'!G$9:G$859,MATCH('2.2'!$A55,'2.2 Daten'!$B$9:$B$859,0))) -> 12898 | F55: =IF($A55<>0,INDEX('2.2 Daten'!H$9:H$859,MATCH('2.2'!$A55,'2.2 Daten'!$B$9:$B$859,0))) -> 34590 | G55: =IF($A55<>0,INDEX('2.2 Daten'!I$9:I$859,MATCH('2.2'!$A55,'2.2 Daten'!$B$9:$B$859,0))) -> 9609 | H55: =IF($A55<>0,INDEX('2.2 Daten'!K$9:K$859,MATCH('2.2'!$A55,'2.2 Daten'!$B$9:$B$859,0))) -> -0.2102755639 | I55: =IF($A55<>0,INDEX('2.2 Daten'!L$9:L$859,MATCH('2.2'!$A55,'2.2 Daten'!$B$9:$B$859,0))) -> -6.690934304 | J55: =IF($A55<>0,INDEX('2.2 Daten'!M$9:M$859,MATCH('2.2'!$A55,'2.2 Daten'!$B$9:$B$859,0))) -> -1.005449382 | K55: =IF($A55<>0,INDEX('2.2 Daten'!N$9:N$859,MATCH('2.2'!$A55,'2.2 Daten'!$B$9:$B$859,0))) -> 1.09305588 | L55: =IF($A55<>0,INDEX('2.2 Daten'!O$9:O$859,MATCH('2.2'!$A55,'2.2 Daten'!$B$9:$B$859,0))) -> 4.185189201
A56: =CHOOSE('2.2 Daten'!$A$2,'2.2 Daten'!B478,'2.2 Daten'!B27,'2.2 Daten'!B44,'2.2 Daten'!B61,'2.2 Daten'!B64,'2.2 Daten'!B111,'2.2 Daten'!B115,'2.2 Daten'!B170,'2.2 Daten'!B198,'2.2 Daten'!B236,'2.2 Daten'!B282,'2.2 Daten'!B380,'2.2 Daten'!B388,'2.2 Daten'!B391,'2.2 Daten'!B411,'2.2 Daten'!B421,'2.2 Daten'!B436,'2.2 Daten'!B452,x) -> Flensburg, Stadt | B56: =IF($A56<>0,INDEX('2.2 Daten'!C$9:C$859,MATCH('2.2'!$A56,'2.2 Daten'!$B$9:$B$859,0))," ") -> 01001000 | C56: =IF($A56<>0,INDEX('2.2 Daten'!E$9:E$859,MATCH('2.2'!$A56,'2.2 Daten'!$B$9:$B$859,0))) -> 3593 | D56: =IF($A56<>0,INDEX('2.2 Daten'!F$9:F$859,MATCH('2.2'!$A56,'2.2 Daten'!$B$9:$B$859,0))) -> 659 | E56: =IF($A56<>0,INDEX('2.2 Daten'!G$9:G$859,MATCH('2.2'!$A56,'2.2 Daten'!$B$9:$B$859,0))) -> 738 | F56: =IF($A56<>0,INDEX('2.2 Daten'!H$9:H$859,MATCH('2.2'!$A56,'2.2 Daten'!$B$9:$B$859,0))) -> 1698 | G56: =IF($A56<>0,INDEX('2.2 Daten'!I$9:I$859,MATCH('2.2'!$A56,'2.2 Daten'!$B$9:$B$859,0))) -> 498 | H56: =IF($A56<>0,INDEX('2.2 Daten'!K$9:K$859,MATCH('2.2'!$A56,'2.2 Daten'!$B$9:$B$859,0))) -> -5.02246894 | I56: =IF($A56<>0,INDEX('2.2 Daten'!L$9:L$859,MATCH('2.2'!$A56,'2.2 Daten'!$B$9:$B$859,0))) -> -12.71523179 | J56: =IF($A56<>0,INDEX('2.2 Daten'!M$9:M$859,MATCH('2.2'!$A56,'2.2 Daten'!$B$9:$B$859,0))) -> 1.373626374 | K56: =IF($A56<>0,INDEX('2.2 Daten'!N$9:N$859,MATCH('2.2'!$A56,'2.2 Daten'!$B$9:$B$859,0))) -> -5.561735261 | L56: =IF($A56<>0,INDEX('2.2 Daten'!O$9:O$859,MATCH('2.2'!$A56,'2.2 Daten'!$B$9:$B$859,0))) -> -0.796812749
A57: =CHOOSE('2.2 Daten'!$A$2,'2.2 Daten'!B479,'2.2 Daten'!B28,'2.2 Daten'!B45,'2.2 Daten'!B62,'2.2 Daten'!B65,'2.2 Daten'!B112,'2.2 Daten'!B116,'2.2 Daten'!B171,'2.2 Daten'!B199,'2.2 Daten'!B237,'2.2 Daten'!B283,'2.2 Daten'!B381,'2.2 Daten'!B389,'2.2 Daten'!B392,'2.2 Daten'!B412,'2.2 Daten'!B422,'2.2 Daten'!B437,'2.2 Daten'!B453,x) -> Kiel, Landeshauptstadt | B57: =IF($A57<>0,INDEX('2.2 Daten'!C$9:C$859,MATCH('2.2'!$A57,'2.2 Daten'!$B$9:$B$859,0))," ") -> 01002000 | C57: =IF($A57<>0,INDEX('2.2 Daten'!E$9:E$859,MATCH('2.2'!$A57,'2.2 Daten'!$B$9:$B$859,0))) -> 9805 | D57: =IF($A57<>0,INDEX('2.2 Daten'!F$9:F$859,MATCH('2.2'!$A57,'2.2 Daten'!$B$9:$B$859,0))) -> 1621 | E57: =IF($A57<>0,INDEX('2.2 Daten'!G$9:G$859,MATCH('2.2'!$A57,'2.2 Daten'!$B$9:$B$859,0))) -> 1809 | F57: =IF($A57<>0,INDEX('2.2 Daten'!H$9:H$859,MATCH('2.2'!$A57,'2.2 Daten'!$B$9:$B$859,0))) -> 4920 | G57: =IF($A57<>0,INDEX('2.2 Daten'!I$9:I$859,MATCH('2.2'!$A57,'2.2 Daten'!$B$9:$B$859,0))) -> 1455 | H57: =IF($A57<>0,INDEX('2.2 Daten'!K$9:K$859,MATCH('2.2'!$A57,'2.2 Daten'!$B$9:$B$859,0))) -> -3.67423126 | I57: =IF($A57<>0,INDEX('2.2 Daten'!L$9:L$859,MATCH('2.2'!$A57,'2.2 Daten'!$B$9:$B$859,0))) -> -8.054452638 | J57: =IF($A57<>0,INDEX('2.2 Daten'!M$9:M$859,MATCH('2.2'!$A57,'2.2 Daten'!$B$9:$B$859,0))) -> -5.337519623 | K57: =IF($A57<>0,INDEX('2.2 Daten'!N$9:N$859,MATCH('2.2'!$A57,'2.2 Daten'!$B$9:$B$859,0))) -> -1.913875598 | L57: =IF($A57<>0,INDEX('2.2 Daten'!O$9:O$859,MATCH('2.2'!$A57,'2.2 Daten'!$B$9:$B$859,0))) -> -2.283411686
A58: =CHOOSE('2.2 Daten'!$A$2,'2.2 Daten'!B480,'2.2 Daten'!B29,'2.2 Daten'!B46,'2.2 Daten'!B63,'2.2 Daten'!B66,'2.2 Daten'!B113,'2.2 Daten'!B117,'2.2 Daten'!B172,'2.2 Daten'!B200,'2.2 Daten'!B238,'2.2 Daten'!B284,'2.2 Daten'!B382,'2.2 Daten'!B390,'2.2 Daten'!B393,'2.2 Daten'!B413,'2.2 Daten'!B423,'2.2 Daten'!B438,'2.2 Daten'!B454,x) -> Lübeck, Hansestadt | B58: =IF($A58<>0,INDEX('2.2 Daten'!C$9:C$859,MATCH('2.2'!$A58,'2.2 Daten'!$B$9:$B$859,0))," ") -> 01003000 | C58: =IF($A58<>0,INDEX('2.2 Daten'!E$9:E$859,MATCH('2.2'!$A58,'2.2 Daten'!$B$9:$B$859,0))) -> 7442 | D58: =IF($A58<>0,INDEX('2.2 Daten'!F$9:F$859,MATCH('2.2'!$A58,'2.2 Daten'!$B$9:$B$859,0))) -> 1078 | E58: =IF($A58<>0,INDEX('2.2 Daten'!G$9:G$859,MATCH('2.2'!$A58,'2.2 Daten'!$B$9:$B$859,0))) -> 1426 | F58: =IF($A58<>0,INDEX('2.2 Daten'!H$9:H$859,MATCH('2.2'!$A58,'2.2 Daten'!$B$9:$B$859,0))) -> 3860 | G58: =IF($A58<>0,INDEX('2.2 Daten'!I$9:I$859,MATCH('2.2'!$A58,'2.2 Daten'!$B$9:$B$859,0))) -> 1078 | H58: =IF($A58<>0,INDEX('2.2 Daten'!K$9:K$859,MATCH('2.2'!$A58,'2.2 Daten'!$B$9:$B$859,0))) -> -1.716851558 | I58: =IF($A58<>0,INDEX('2.2 Daten'!L$9:L$859,MATCH('2.2'!$A58,'2.2 Daten'!$B$9:$B$859,0))) -> -9.029535865 | J58: =IF($A58<>0,INDEX('2.2 Daten'!M$9:M$859,MATCH('2.2'!$A58,'2.2 Daten'!$B$9:$B$859,0))) -> -4.742818971 | K58: =IF($A58<>0,INDEX('2.2 Daten'!N$9:N$859,MATCH('2.2'!$A58,'2.2 Daten'!$B$9:$B$859,0))) -> -0.6435006435 | L58: =IF($A58<>0,INDEX('2.2 Daten'!O$9:O$859,MATCH('2.2'!$A58,'2.2 Daten'!$B$9:$B$859,0))) -> 7.263681592
A59: =CHOOSE('2.2 Daten'!$A$2,'2.2 Daten'!B481,'2.2 Daten'!B30,'2.2 Daten'!B47,'2.2 Daten'!B64,'2.2 Daten'!B67,'2.2 Daten'!B114,'2.2 Daten'!B118,'2.2 Daten'!B173,'2.2 Daten'!B201,'2.2 Daten'!B239,'2.2 Daten'!B285,'2.2 Daten'!B383,'2.2 Daten'!B391,'2.2 Daten'!B394,'2.2 Daten'!B414,'2.2 Daten'!B424,'2.2 Daten'!B439,'2.2 Daten'!B455,x) -> Neumünster, Stadt | B59: =IF($A59<>0,INDEX('2.2 Daten'!C$9:C$859,MATCH('2.2'!$A59,'2.2 Daten'!$B$9:$B$859,0))," ") -> 01004000 | C59: =IF($A59<>0,INDEX('2.2 Daten'!E$9:E$859,MATCH('2.2'!$A59,'2.2 Daten'!$B$9:$B$859,0))) -> 3061 | D59: =IF($A59<>0,INDEX('2.2 Daten'!F$9:F$859,MATCH('2.2'!$A59,'2.2 Daten'!$B$9:$B$859,0))) -> 507 | E59: =IF($A59<>0,INDEX('2.2 Daten'!G$9:G$859,MATCH('2.2'!$A59,'2.2 Daten'!$B$9:$B$859,0))) -> 561 | F59: =IF($A59<>0,INDEX('2.2 Daten'!H$9:H$859,MATCH('2.2'!$A59,'2.2 Daten'!$B$9:$B$859,0))) -> 1561 | G59: =IF($A59<>0,INDEX('2.2 Daten'!I$9:I$859,MATCH('2.2'!$A59,'2.2 Daten'!$B$9:$B$859,0))) -> 432 | H59: =IF($A59<>0,INDEX('2.2 Daten'!K$9:K$859,MATCH('2.2'!$A59,'2.2 Daten'!$B$9:$B$859,0))) -> -2.016645327 | I59: =IF($A59<>0,INDEX('2.2 Daten'!L$9:L$859,MATCH('2.2'!$A59,'2.2 Daten'!$B$9:$B$859,0))) -> -9.302325581 | J59: =IF($A59<>0,INDEX('2.2 Daten'!M$9:M$859,MATCH('2.2'!$A59,'2.2 Daten'!$B$9:$B$859,0))) -> -2.941176471 | K59: =IF($A59<>0,INDEX('2.2 Daten'!N$9:N$859,MATCH('2.2'!$A59,'2.2 Daten'!$B$9:$B$859,0))) -> -0.1918158568 | L59: =IF($A59<>0,INDEX('2.2 Daten'!O$9:O$859,MATCH('2.2'!$A59,'2.2 Daten'!$B$9:$B$859,0))) -> 2.127659574
A60: =CHOOSE('2.2 Daten'!$A$2,'2.2 Daten'!B482,'2.2 Daten'!B31,'2.2 Daten'!B48,'2.2 Daten'!B65,'2.2 Daten'!B68,'2.2 Daten'!B115,'2.2 Daten'!B119,'2.2 Daten'!B174,'2.2 Daten'!B202,'2.2 Daten'!B240,'2.2 Daten'!B286,'2.2 Daten'!B384,'2.2 Daten'!B392,'2.2 Daten'!B395,'2.2 Daten'!B415,'2.2 Daten'!B425,'2.2 Daten'!B440,'2.2 Daten'!B456,x) -> Dithmarschen | B60: =IF($A60<>0,INDEX('2.2 Daten'!C$9:C$859,MATCH('2.2'!$A60,'2.2 Daten'!$B$9:$B$859,0))," ") -> 01051000 | C60: =IF($A60<>0,INDEX('2.2 Daten'!E$9:E$859,MATCH('2.2'!$A60,'2.2 Daten'!$B$9:$B$859,0))) -> 3460 | D60: =IF($A60<>0,INDEX('2.2 Daten'!F$9:F$859,MATCH('2.2'!$A60,'2.2 Daten'!$B$9:$B$859,0))) -> 545 | E60: =IF($A60<>0,INDEX('2.2 Daten'!G$9:G$859,MATCH('2.2'!$A60,'2.2 Daten'!$B$9:$B$859,0))) -> 641 | F60: =IF($A60<>0,INDEX('2.2 Daten'!H$9:H$859,MATCH('2.2'!$A60,'2.2 Daten'!$B$9:$B$859,0))) -> 1820 | G60: =IF($A60<>0,INDEX('2.2 Daten'!I$9:I$859,MATCH('2.2'!$A60,'2.2 Daten'!$B$9:$B$859,0))) -> 454 | H60: =IF($A60<>0,INDEX('2.2 Daten'!K$9:K$859,MATCH('2.2'!$A60,'2.2 Daten'!$B$9:$B$859,0))) -> 0.6399069226 | I60: =IF($A60<>0,INDEX('2.2 Daten'!L$9:L$859,MATCH('2.2'!$A60,'2.2 Daten'!$B$9:$B$859,0))) -> -4.72027972 | J60: =IF($A60<>0,INDEX('2.2 Daten'!M$9:M$859,MATCH('2.2'!$A60,'2.2 Daten'!$B$9:$B$859,0))) -> -1.384615385 | K60: =IF($A60<>0,INDEX('2.2 Daten'!N$9:N$859,MATCH('2.2'!$A60,'2.2 Daten'!$B$9:$B$859,0))) -> 1.960784314 | L60: =IF($A60<>0,INDEX('2.2 Daten'!O$9:O$859,MATCH('2.2'!$A60,'2.2 Daten'!$B$9:$B$859,0))) -> 5.336426914
A61: =CHOOSE('2.2 Daten'!$A$2,'2.2 Daten'!B483,'2.2 Daten'!B32,'2.2 Daten'!B49,'2.2 Daten'!B66,'2.2 Daten'!B69,'2.2 Daten'!B116,'2.2 Daten'!B120,'2.2 Daten'!B175,'2.2 Daten'!B203,'2.2 Daten'!B241,'2.2 Daten'!B287,'2.2 Daten'!B385,'2.2 Daten'!B393,'2.2 Daten'!B396,'2.2 Daten'!B416,'2.2 Daten'!B426,'2.2 Daten'!B441,'2.2 Daten'!B457,x) -> Herzogtum Lauenburg | B61: =IF($A61<>0,INDEX('2.2 Daten'!C$9:C$859,MATCH('2.2'!$A61,'2.2 Daten'!$B$9:$B$859,0))," ") -> 01053000 | C61: =IF($A61<>0,INDEX('2.2 Daten'!E$9:E$859,MATCH('2.2'!$A61,'2.2 Daten'!$B$9:$B$859,0))) -> 4563 | D61: =IF($A61<>0,INDEX('2.2 Daten'!F$9:F$859,MATCH('2.2'!$A61,'2.2 Daten'!$B$9:$B$859,0))) -> 721 | E61: =IF($A61<>0,INDEX('2.2 Daten'!G$9:G$859,MATCH('2.2'!$A61,'2.2 Daten'!$B$9:$B$859,0))) -> 912 | F61: =IF($A61<>0,INDEX('2.2 Daten'!H$9:H$859,MATCH('2.2'!$A61,'2.2 Daten'!$B$9:$B$859,0))) -> 2300 | G61: =IF($A61<>0,INDEX('2.2 Daten'!I$9:I$859,MATCH('2.2'!$A61,'2.2 Daten'!$B$9:$B$859,0))) -> 630 | H61: =IF($A61<>0,INDEX('2.2 Daten'!K$9:K$859,MATCH('2.2'!$A61,'2.2 Daten'!$B$9:$B$859,0))) -> 6.239813737 | I61: =IF($A61<>0,INDEX('2.2 Daten'!L$9:L$859,MATCH('2.2'!$A61,'2.2 Daten'!$B$9:$B$859,0))) -> -7.326478149 | J61: =IF($A61<>0,INDEX('2.2 Daten'!M$9:M$859,MATCH('2.2'!$A61,'2.2 Daten'!$B$9:$B$859,0))) -> 7.80141844 | K61: =IF($A61<>0,INDEX('2.2 Daten'!N$9:N$859,MATCH('2.2'!$A61,'2.2 Daten'!$B$9:$B$859,0))) -> 8.490566038 | L61: =IF($A61<>0,INDEX('2.2 Daten'!O$9:O$859,MATCH('2.2'!$A61,'2.2 Daten'!$B$9:$B$859,0))) -> 14.33756806
A62: =CHOOSE('2.2 Daten'!$A$2,'2.2 Daten'!B484,'2.2 Daten'!B33,'2.2 Daten'!B50,'2.2 Daten'!B67,'2.2 Daten'!B70,'2.2 Daten'!B117,'2.2 Daten'!B121,'2.2 Daten'!B176,'2.2 Daten'!B204,'2.2 Daten'!B242,'2.2 Daten'!B288,'2.2 Daten'!B386,'2.2 Daten'!B394,'2.2 Daten'!B397,'2.2 Daten'!B417,'2.2 Daten'!B427,'2.2 Daten'!B442,'2.2 Daten'!B458,x) -> Nordfriesland | B62: =IF($A62<>0,INDEX('2.2 Daten'!C$9:C$859,MATCH('2.2'!$A62,'2.2 Daten'!$B$9:$B$859,0))," ") -> 01054000 | C62: =IF($A62<>0,INDEX('2.2 Daten'!E$9:E$859,MATCH('2.2'!$A62,'2.2 Daten'!$B$9:$B$859,0))) -> 2795 | D62: =IF($A62<>0,INDEX('2.2 Daten'!F$9:F$859,MATCH('2.2'!$A62,'2.2 Daten'!$B$9:$B$859,0))) -> 472 | E62: =IF($A62<>0,INDEX('2.2 Daten'!G$9:G$859,MATCH('2.2'!$A62,'2.2 Daten'!$B$9:$B$859,0))) -> 529 | F62: =IF($A62<>0,INDEX('2.2 Daten'!H$9:H$859,MATCH('2.2'!$A62,'2.2 Daten'!$B$9:$B$859,0))) -> 1434 | G62: =IF($A62<>0,INDEX('2.2 Daten'!I$9:I$859,MATCH('2.2'!$A62,'2.2 Daten'!$B$9:$B$859,0))) -> 360 | H62: =IF($A62<>0,INDEX('2.2 Daten'!K$9:K$859,MATCH('2.2'!$A62,'2.2 Daten'!$B$9:$B$859,0))) -> 6.152677554 | I62: =IF($A62<>0,INDEX('2.2 Daten'!L$9:L$859,MATCH('2.2'!$A62,'2.2 Daten'!$B$9:$B$859,0))) -> 4.194260486 | J62: =IF($A62<>0,INDEX('2.2 Daten'!M$9:M$859,MATCH('2.2'!$A62,'2.2 Daten'!$B$9:$B$859,0))) -> -1.305970149 | K62: =IF($A62<>0,INDEX('2.2 Daten'!N$9:N$859,MATCH('2.2'!$A62,'2.2 Daten'!$B$9:$B$859,0))) -> 9.132420091 | L62: =IF($A62<>0,INDEX('2.2 Daten'!O$9:O$859,MATCH('2.2'!$A62,'2.2 Daten'!$B$9:$B$859,0))) -> 9.090909091
A63: =CHOOSE('2.2 Daten'!$A$2,'2.2 Daten'!B485,'2.2 Daten'!B34,'2.2 Daten'!B51,'2.2 Daten'!B68,'2.2 Daten'!B71,'2.2 Daten'!B118,'2.2 Daten'!B122,'2.2 Daten'!B177,'2.2 Daten'!B205,'2.2 Daten'!B243,'2.2 Daten'!B289,'2.2 Daten'!B387,'2.2 Daten'!B395,'2.2 Daten'!B398,'2.2 Daten'!B418,'2.2 Daten'!B428,'2.2 Daten'!B443,'2.2 Daten'!B459,x) -> Ostholstein | B63: =IF($A63<>0,INDEX('2.2 Daten'!C$9:C$859,MATCH('2.2'!$A63,'2.2 Daten'!$B$9:$B$859,0))," ") -> 01055000 | C63: =IF($A63<>0,INDEX('2.2 Daten'!E$9:E$859,MATCH('2.2'!$A63,'2.2 Daten'!$B$9:$B$859,0))) -> 3124 | D63: =IF($A63<>0,INDEX('2.2 Daten'!F$9:F$859,MATCH('2.2'!$A63,'2.2 Daten'!$B$9:$B$859,0))) -> 469 | E63: =IF($A63<>0,INDEX('2.2 Daten'!G$9:G$859,MATCH('2.2'!$A63,'2.2 Daten'!$B$9:$B$859,0))) -> 581 | F63: =IF($A63<>0,INDEX('2.2 Daten'!H$9:H$859,MATCH('2.2'!$A63,'2.2 Daten'!$B$9:$B$859,0))) -> 1607 | G63: =IF($A63<>0,INDEX('2.2 Daten'!I$9:I$859,MATCH('2.2'!$A63,'2.2 Daten'!$B$9:$B$859,0))) -> 467 | H63: =IF($A63<>0,INDEX('2.2 Daten'!K$9:K$859,MATCH('2.2'!$A63,'2.2 Daten'!$B$9:$B$859,0))) -> -0.1597954618 | I63: =IF($A63<>0,INDEX('2.2 Daten'!L$9:L$859,MATCH('2.2'!$A63,'2.2 Daten'!$B$9:$B$859,0))) -> -9.108527132 | J63: =IF($A63<>0,INDEX('2.2 Daten'!M$9:M$859,MATCH('2.2'!$A63,'2.2 Daten'!$B$9:$B$859,0))) -> 2.831858407 | K63: =IF($A63<>0,INDEX('2.2 Daten'!N$9:N$859,MATCH('2.2'!$A63,'2.2 Daten'!$B$9:$B$859,0))) -> -0.6798516687 | L63: =IF($A63<>0,INDEX('2.2 Daten'!O$9:O$859,MATCH('2.2'!$A63,'2.2 Daten'!$B$9:$B$859,0))) -> 8.604651163
A64: =CHOOSE('2.2 Daten'!$A$2,'2.2 Daten'!B486,'2.2 Daten'!B35,'2.2 Daten'!B52,'2.2 Daten'!B69,'2.2 Daten'!B72,'2.2 Daten'!B119,'2.2 Daten'!B123,'2.2 Daten'!B178,'2.2 Daten'!B206,'2.2 Daten'!B244,'2.2 Daten'!B290,'2.2 Daten'!B388,'2.2 Daten'!B396,'2.2 Daten'!B399,'2.2 Daten'!B419,'2.2 Daten'!B429,'2.2 Daten'!B444,'2.2 Daten'!B460,x) -> Pinneberg | B64: =IF($A64<>0,INDEX('2.2 Daten'!C$9:C$859,MATCH('2.2'!$A64,'2.2 Daten'!$B$9:$B$859,0))," ") -> 01056000 | C64: =IF($A64<>0,INDEX('2.2 Daten'!E$9:E$859,MATCH('2.2'!$A64,'2.2 Daten'!$B$9:$B$859,0))) -> 7662 | D64: =IF($A64<>0,INDEX('2.2 Daten'!F$9:F$859,MATCH('2.2'!$A64,'2.2 Daten'!$B$9:$B$859,0))) -> 1261 | E64: =IF($A64<>0,INDEX('2.2 Daten'!G$9:G$859,MATCH('2.2'!$A64,'2.2 Daten'!$B$9:$B$859,0))) -> 1512 | F64: =IF($A64<>0,INDEX('2.2 Daten'!H$9:H$859,MATCH('2.2'!$A64,'2.2 Daten'!$B$9:$B$859,0))) -> 3866 | G64: =IF($A64<>0,INDEX('2.2 Daten'!I$9:I$859,MATCH('2.2'!$A64,'2.2 Daten'!$B$9:$B$859,0))) -> 1023 | H64: =IF($A64<>0,INDEX('2.2 Daten'!K$9:K$859,MATCH('2.2'!$A64,'2.2 Daten'!$B$9:$B$859,0))) -> 3.877440347 | I64: =IF($A64<>0,INDEX('2.2 Daten'!L$9:L$859,MATCH('2.2'!$A64,'2.2 Daten'!$B$9:$B$859,0))) -> -3.223330775 | J64: =IF($A64<>0,INDEX('2.2 Daten'!M$9:M$859,MATCH('2.2'!$A64,'2.2 Daten'!$B$9:$B$859,0))) -> 1.955495617 | K64: =IF($A64<>0,INDEX('2.2 Daten'!N$9:N$859,MATCH('2.2'!$A64,'2.2 Daten'!$B$9:$B$859,0))) -> 6.85461581 | L64: =IF($A64<>0,INDEX('2.2 Daten'!O$9:O$859,MATCH('2.2'!$A64,'2.2 Daten'!$B$9:$B$859,0))) -> 5.24691358
A65: =CHOOSE('2.2 Daten'!$A$2,'2.2 Daten'!B487,'2.2 Daten'!B36,'2.2 Daten'!B53,'2.2 Daten'!B70,'2.2 Daten'!B73,'2.2 Daten'!B120,'2.2 Daten'!B124,'2.2 Daten'!B179,'2.2 Daten'!B207,'2.2 Daten'!B245,'2.2 Daten'!B291,'2.2 Daten'!B389,'2.2 Daten'!B397,'2.2 Daten'!B400,'2.2 Daten'!B420,'2.2 Daten'!B430,'2.2 Daten'!B445,'2.2 Daten'!B461,x) -> Plön | B65: =IF($A65<>0,INDEX('2.2 Daten'!C$9:C$859,MATCH('2.2'!$A65,'2.2 Daten'!$B$9:$B$859,0))," ") -> 01057000 | C65: =IF($A65<>0,INDEX('2.2 Daten'!E$9:E$859,MATCH('2.2'!$A65,'2.2 Daten'!$B$9:$B$859,0))) -> 2186 | D65: =IF($A65<>0,INDEX('2.2 Daten'!F$9:F$859,MATCH('2.2'!$A65,'2.2 Daten'!$B$9:$B$859,0))) -> 338 | E65: =IF($A65<>0,INDEX('2.2 Daten'!G$9:G$859,MATCH('2.2'!$A65,'2.2 Daten'!$B$9:$B$859,0))) -> 430 | F65: =IF($A65<>0,INDEX('2.2 Daten'!H$9:H$859,MATCH('2.2'!$A65,'2.2 Daten'!$B$9:$B$859,0))) -> 1101 | G65: =IF($A65<>0,INDEX('2.2 Daten'!I$9:I$859,MATCH('2.2'!$A65,'2.2 Daten'!$B$9:$B$859,0))) -> 317 | H65: =IF($A65<>0,INDEX('2.2 Daten'!K$9:K$859,MATCH('2.2'!$A65,'2.2 Daten'!$B$9:$B$859,0))) -> -5.816458423 | I65: =IF($A65<>0,INDEX('2.2 Daten'!L$9:L$859,MATCH('2.2'!$A65,'2.2 Daten'!$B$9:$B$859,0))) -> -11.05263158 | J65: =IF($A65<>0,INDEX('2.2 Daten'!M$9:M$859,MATCH('2.2'!$A65,'2.2 Daten'!$B$9:$B$859,0))) -> 2.137767221 | K65: =IF($A65<>0,INDEX('2.2 Daten'!N$9:N$859,MATCH('2.2'!$A65,'2.2 Daten'!$B$9:$B$859,0))) -> -6.773920406 | L65: =IF($A65<>0,INDEX('2.2 Daten'!O$9:O$859,MATCH('2.2'!$A65,'2.2 Daten'!$B$9:$B$859,0))) -> -6.489675516
A66: =CHOOSE('2.2 Daten'!$A$2,'2.2 Daten'!B488,'2.2 Daten'!B37,'2.2 Daten'!B54,'2.2 Daten'!B71,'2.2 Daten'!B74,'2.2 Daten'!B121,'2.2 Daten'!B125,'2.2 Daten'!B180,'2.2 Daten'!B208,'2.2 Daten'!B246,'2.2 Daten'!B292,'2.2 Daten'!B390,'2.2 Daten'!B398,'2.2 Daten'!B401,'2.2 Daten'!B421,'2.2 Daten'!B431,'2.2 Daten'!B446,'2.2 Daten'!B462,x) -> Rendsburg-Eckernförde | B66: =IF($A66<>0,INDEX('2.2 Daten'!C$9:C$859,MATCH('2.2'!$A66,'2.2 Daten'!$B$9:$B$859,0))," ") -> 01058000 | C66: =IF($A66<>0,INDEX('2.2 Daten'!E$9:E$859,MATCH('2.2'!$A66,'2.2 Daten'!$B$9:$B$859,0))) -> 5058 | D66: =IF($A66<>0,INDEX('2.2 Daten'!F$9:F$859,MATCH('2.2'!$A66,'2.2 Daten'!$B$9:$B$859,0))) -> 745 | E66: =IF($A66<>0,INDEX('2.2 Daten'!G$9:G$859,MATCH('2.2'!$A66,'2.2 Daten'!$B$9:$B$859,0))) -> 993 | F66: =IF($A66<>0,INDEX('2.2 Daten'!H$9:H$859,MATCH('2.2'!$A66,'2.2 Daten'!$B$9:$B$859,0))) -> 2625 | G66: =IF($A66<>0,INDEX('2.2 Daten'!I$9:I$859,MATCH('2.2'!$A66,'2.2 Daten'!$B$9:$B$859,0))) -> 695 | H66: =IF($A66<>0,INDEX('2.2 Daten'!K$9:K$859,MATCH('2.2'!$A66,'2.2 Daten'!$B$9:$B$859,0))) -> 1.729686243 | I66: =IF($A66<>0,INDEX('2.2 Daten'!L$9:L$859,MATCH('2.2'!$A66,'2.2 Daten'!$B$9:$B$859,0))) -> -7.568238213 | J66: =IF($A66<>0,INDEX('2.2 Daten'!M$9:M$859,MATCH('2.2'!$A66,'2.2 Daten'!$B$9:$B$859,0))) -> 0.1008064516 | K66: =IF($A66<>0,INDEX('2.2 Daten'!N$9:N$859,MATCH('2.2'!$A66,'2.2 Daten'!$B$9:$B$859,0))) -> 4.706820901 | L66: =IF($A66<>0,INDEX('2.2 Daten'!O$9:O$859,MATCH('2.2'!$A66,'2.2 Daten'!$B$9:$B$859,0))) -> 4.197901049
A67: =CHOOSE('2.2 Daten'!$A$2,'2.2 Daten'!B489,'2.2 Daten'!B38,'2.2 Daten'!B55,'2.2 Daten'!B72,'2.2 Daten'!B75,'2.2 Daten'!B122,'2.2 Daten'!B126,'2.2 Daten'!B181,'2.2 Daten'!B209,'2.2 Daten'!B247,'2.2 Daten'!B293,'2.2 Daten'!B391,'2.2 Daten'!B399,'2.2 Daten'!B402,'2.2 Daten'!B422,'2.2 Daten'!B432,'2.2 Daten'!B447,'2.2 Daten'!B463,x) -> Schleswig-Flensburg | B67: =IF($A67<>0,INDEX('2.2 Daten'!C$9:C$859,MATCH('2.2'!$A67,'2.2 Daten'!$B$9:$B$859,0))," ") -> 01059000 | C67: =IF($A67<>0,INDEX('2.2 Daten'!E$9:E$859,MATCH('2.2'!$A67,'2.2 Daten'!$B$9:$B$859,0))) -> 3439 | D67: =IF($A67<>0,INDEX('2.2 Daten'!F$9:F$859,MATCH('2.2'!$A67,'2.2 Daten'!$B$9:$B$859,0))) -> 532 | E67: =IF($A67<>0,INDEX('2.2 Daten'!G$9:G$859,MATCH('2.2'!$A67,'2.2 Daten'!$B$9:$B$859,0))) -> 631 | F67: =IF($A67<>0,INDEX('2.2 Daten'!H$9:H$859,MATCH('2.2'!$A67,'2.2 Daten'!$B$9:$B$859,0))) -> 1779 | G67: =IF($A67<>0,INDEX('2.2 Daten'!I$9:I$859,MATCH('2.2'!$A67,'2.2 Daten'!$B$9:$B$859,0))) -> 497 | H67: =IF($A67<>0,INDEX('2.2 Daten'!K$9:K$859,MATCH('2.2'!$A67,'2.2 Daten'!$B$9:$B$859,0))) -> -6.345315904 | I67: =IF($A67<>0,INDEX('2.2 Daten'!L$9:L$859,MATCH('2.2'!$A67,'2.2 Daten'!$B$9:$B$859,0))) -> -5.338078292 | J67: =IF($A67<>0,INDEX('2.2 Daten'!M$9:M$859,MATCH('2.2'!$A67,'2.2 Daten'!$B$9:$B$859,0))) -> -9.598853868 | K67: =IF($A67<>0,INDEX('2.2 Daten'!N$9:N$859,MATCH('2.2'!$A67,'2.2 Daten'!$B$9:$B$859,0))) -> -7.966890843 | L67: =IF($A67<>0,INDEX('2.2 Daten'!O$9:O$859,MATCH('2.2'!$A67,'2.2 Daten'!$B$9:$B$859,0))) -> 3.75782881
A68: =CHOOSE('2.2 Daten'!$A$2,'2.2 Daten'!B490,'2.2 Daten'!B39,'2.2 Daten'!B56,'2.2 Daten'!B73,'2.2 Daten'!B76,'2.2 Daten'!B123,'2.2 Daten'!B127,'2.2 Daten'!B182,'2.2 Daten'!B210,'2.2 Daten'!B248,'2.2 Daten'!B294,'2.2 Daten'!B392,'2.2 Daten'!B400,'2.2 Daten'!B403,'2.2 Daten'!B423,'2.2 Daten'!B433,'2.2 Daten'!B448,'2.2 Daten'!B464,x) -> Segeberg | B68: =IF($A68<>0,INDEX('2.2 Daten'!C$9:C$859,MATCH('2.2'!$A68,'2.2 Daten'!$B$9:$B$859,0))," ") -> 01060000 | C68: =IF($A68<>0,INDEX('2.2 Daten'!E$9:E$859,MATCH('2.2'!$A68,'2.2 Daten'!$B$9:$B$859,0))) -> 4688 | D68: =IF($A68<>0,INDEX('2.2 Daten'!F$9:F$859,MATCH('2.2'!$A68,'2.2 Daten'!$B$9:$B$859,0))) -> 721 | E68: =IF($A68<>0,INDEX('2.2 Daten'!G$9:G$859,MATCH('2.2'!$A68,'2.2 Daten'!$B$9:$B$859,0))) -> 874 | F68: =IF($A68<>0,INDEX('2.2 Daten'!H$9:H$859,MATCH('2.2'!$A68,'2.2 Daten'!$B$9:$B$859,0))) -> 2428 | G68: =IF($A68<>0,INDEX('2.2 Daten'!I$9:I$859,MATCH('2.2'!$A68,'2.2 Daten'!$B$9:$B$859,0))) -> 665 | H68: =IF($A68<>0,INDEX('2.2 Daten'!K$9:K$859,MATCH('2.2'!$A68,'2.2 Daten'!$B$9:$B$859,0))) -> -3.419859909 | I68: =IF($A68<>0,INDEX('2.2 Daten'!L$9:L$859,MATCH('2.2'!$A68,'2.2 Daten'!$B$9:$B$859,0))) -> -11.31611316 | J68: =IF($A68<>0,INDEX('2.2 Daten'!M$9:M$859,MATCH('2.2'!$A68,'2.2 Daten'!$B$9:$B$859,0))) -> 0 | K68: =IF($A68<>0,INDEX('2.2 Daten'!N$9:N$859,MATCH('2.2'!$A68,'2.2 Daten'!$B$9:$B$859,0))) -> -1.859337106 | L68: =IF($A68<>0,INDEX('2.2 Daten'!O$9:O$859,MATCH('2.2'!$A68,'2.2 Daten'!$B$9:$B$859,0))) -> -4.04040404
A69: =CHOOSE('2.2 Daten'!$A$2,'2.2 Daten'!B491,'2.2 Daten'!B40,'2.2 Daten'!B57,'2.2 Daten'!B74,'2.2 Daten'!B77,'2.2 Daten'!B124,'2.2 Daten'!B128,'2.2 Daten'!B183,'2.2 Daten'!B211,'2.2 Daten'!B249,'2.2 Daten'!B295,'2.2 Daten'!B393,'2.2 Daten'!B401,'2.2 Daten'!B404,'2.2 Daten'!B424,'2.2 Daten'!B434,'2.2 Daten'!B449,'2.2 Daten'!B465,x) -> Steinburg | B69: =IF($A69<>0,INDEX('2.2 Daten'!C$9:C$859,MATCH('2.2'!$A69,'2.2 Daten'!$B$9:$B$859,0))," ") -> 01061000 | C69: =IF($A69<>0,INDEX('2.2 Daten'!E$9:E$859,MATCH('2.2'!$A69,'2.2 Daten'!$B$9:$B$859,0))) -> 2870 | D69: =IF($A69<>0,INDEX('2.2 Daten'!F$9:F$859,MATCH('2.2'!$A69,'2.2 Daten'!$B$9:$B$859,0))) -> 460 | E69: =IF($A69<>0,INDEX('2.2 Daten'!G$9:G$859,MATCH('2.2'!$A69,'2.2 Daten'!$B$9:$B$859,0))) -> 513 | F69: =IF($A69<>0,INDEX('2.2 Daten'!H$9:H$859,MATCH('2.2'!$A69,'2.2 Daten'!$B$9:$B$859,0))) -> 1482 | G69: =IF($A69<>0,INDEX('2.2 Daten'!I$9:I$859,MATCH('2.2'!$A69,'2.2 Daten'!$B$9:$B$859,0))) -> 415 | H69: =IF($A69<>0,INDEX('2.2 Daten'!K$9:K$859,MATCH('2.2'!$A69,'2.2 Daten'!$B$9:$B$859,0))) -> -0.795022468 | I69: =IF($A69<>0,INDEX('2.2 Daten'!L$9:L$859,MATCH('2.2'!$A69,'2.2 Daten'!$B$9:$B$859,0))) -> 2.222222222 | J69: =IF($A69<>0,INDEX('2.2 Daten'!M$9:M$859,MATCH('2.2'!$A69,'2.2 Daten'!$B$9:$B$859,0))) -> -10.7826087 | K69: =IF($A69<>0,INDEX('2.2 Daten'!N$9:N$859,MATCH('2.2'!$A69,'2.2 Daten'!$B$9:$B$859,0))) -> -0.6702412869 | L69: =IF($A69<>0,INDEX('2.2 Daten'!O$9:O$859,MATCH('2.2'!$A69,'2.2 Daten'!$B$9:$B$859,0))) -> 10.37234043
A70: =CHOOSE('2.2 Daten'!$A$2,'2.2 Daten'!B492,'2.2 Daten'!B41,'2.2 Daten'!B58,'2.2 Daten'!B75,'2.2 Daten'!B78,'2.2 Daten'!B125,'2.2 Daten'!B129,'2.2 Daten'!B184,'2.2 Daten'!B212,'2.2 Daten'!B250,'2.2 Daten'!B296,'2.2 Daten'!B394,'2.2 Daten'!B402,'2.2 Daten'!B405,'2.2 Daten'!B425,'2.2 Daten'!B435,'2.2 Daten'!B450,'2.2 Daten'!B466,x) -> Stormarn | B70: =IF($A70<>0,INDEX('2.2 Daten'!C$9:C$859,MATCH('2.2'!$A70,'2.2 Daten'!$B$9:$B$859,0))," ") -> 01062000 | C70: =IF($A70<>0,INDEX('2.2 Daten'!E$9:E$859,MATCH('2.2'!$A70,'2.2 Daten'!$B$9:$B$859,0))) -> 4117 | D70: =IF($A70<>0,INDEX('2.2 Daten'!F$9:F$859,MATCH('2.2'!$A70,'2.2 Daten'!$B$9:$B$859,0))) -> 637 | E70: =IF($A70<>0,INDEX('2.2 Daten'!G$9:G$859,MATCH('2.2'!$A70,'2.2 Daten'!$B$9:$B$859,0))) -> 748 | F70: =IF($A70<>0,INDEX('2.2 Daten'!H$9:H$859,MATCH('2.2'!$A70,'2.2 Daten'!$B$9:$B$859,0))) -> 2109 | G70: =IF($A70<>0,INDEX('2.2 Daten'!I$9:I$859,MATCH('2.2'!$A70,'2.2 Daten'!$B$9:$B$859,0))) -> 623 | H70: =IF($A70<>0,INDEX('2.2 Daten'!K$9:K$859,MATCH('2.2'!$A70,'2.2 Daten'!$B$9:$B$859,0))) -> 9.349269588 | I70: =IF($A70<>0,INDEX('2.2 Daten'!L$9:L$859,MATCH('2.2'!$A70,'2.2 Daten'!$B$9:$B$859,0))) -> -0.933125972 | J70: =IF($A70<>0,INDEX('2.2 Daten'!M$9:M$859,MATCH('2.2'!$A70,'2.2 Daten'!$B$9:$B$859,0))) -> 10.81481481 | K70: =IF($A70<>0,INDEX('2.2 Daten'!N$9:N$859,MATCH('2.2'!$A70,'2.2 Daten'!$B$9:$B$859,0))) -> 10.3610675 | L70: =IF($A70<>0,INDEX('2.2 Daten'!O$9:O$859,MATCH('2.2'!$A70,'2.2 Daten'!$B$9:$B$859,0))) -> 16.23134328
A71: =CHOOSE('2.2 Daten'!$A$2,'2.2 Daten'!B493,'2.2 Daten'!B42,'2.2 Daten'!B59,'2.2 Daten'!B76,'2.2 Daten'!B79,'2.2 Daten'!B126,'2.2 Daten'!B130,'2.2 Daten'!B185,'2.2 Daten'!B213,'2.2 Daten'!B251,'2.2 Daten'!B297,'2.2 Daten'!B395,'2.2 Daten'!B403,'2.2 Daten'!B406,'2.2 Daten'!B426,'2.2 Daten'!B436,'2.2 Daten'!B451,'2.2 Daten'!B467,x) -> 0 | B71: =IF($A71<>0,INDEX('2.2 Daten'!C$9:C$859,MATCH('2.2'!$A71,'2.2 Daten'!$B$9:$B$859,0))," ") ->  | C71: =IF($A71<>0,INDEX('2.2 Daten'!E$9:E$859,MATCH('2.2'!$A71,'2.2 Daten'!$B$9:$B$859,0))) -> FALSE | D71: =IF($A71<>0,INDEX('2.2 Daten'!F$9:F$859,MATCH('2.2'!$A71,'2.2 Daten'!$B$9:$B$859,0))) -> FALSE | E71: =IF($A71<>0,INDEX('2.2 Daten'!G$9:G$859,MATCH('2.2'!$A71,'2.2 Daten'!$B$9:$B$859,0))) -> FALSE | F71: =IF($A71<>0,INDEX('2.2 Daten'!H$9:H$859,MATCH('2.2'!$A71,'2.2 Daten'!$B$9:$B$859,0))) -> FALSE | G71: =IF($A71<>0,INDEX('2.2 Daten'!I$9:I$859,MATCH('2.2'!$A71,'2.2 Daten'!$B$9:$B$859,0))) -> FALSE | H71: =IF($A71<>0,INDEX('2.2 Daten'!K$9:K$859,MATCH('2.2'!$A71,'2.2 Daten'!$B$9:$B$859,0))) -> FALSE | I71: =IF($A71<>0,INDEX('2.2 Daten'!L$9:L$859,MATCH('2.2'!$A71,'2.2 Daten'!$B$9:$B$859,0))) -> FALSE | J71: =IF($A71<>0,INDEX('2.2 Daten'!M$9:M$859,MATCH('2.2'!$A71,'2.2 Daten'!$B$9:$B$859,0))) -> FALSE | K71: =IF($A71<>0,INDEX('2.2 Daten'!N$9:N$859,MATCH('2.2'!$A71,'2.2 Daten'!$B$9:$B$859,0))) -> FALSE | L71: =IF($A71<>0,INDEX('2.2 Daten'!O$9:O$859,MATCH('2.2'!$A71,'2.2 Daten'!$B$9:$B$859,0))) -> FALSE
A72: =CHOOSE('2.2 Daten'!$A$2,'2.2 Daten'!B494,'2.2 Daten'!B43,'2.2 Daten'!B60,'2.2 Daten'!B77,'2.2 Daten'!B80,'2.2 Daten'!B127,'2.2 Daten'!B131,'2.2 Daten'!B186,'2.2 Daten'!B214,'2.2 Daten'!B252,'2.2 Daten'!B298,'2.2 Daten'!B396,'2.2 Daten'!B404,'2.2 Daten'!B407,'2.2 Daten'!B427,'2.2 Daten'!B437,'2.2 Daten'!B452,'2.2 Daten'!B468,x) -> Hamburg | B72: =IF($A72<>0,INDEX('2.2 Daten'!C$9:C$859,MATCH('2.2'!$A72,'2.2 Daten'!$B$9:$B$859,0))," ") -> 02 | C72: =IF($A72<>0,INDEX('2.2 Daten'!E$9:E$859,MATCH('2.2'!$A72,'2.2 Daten'!$B$9:$B$859,0))) -> 63212 | D72: =IF($A72<>0,INDEX('2.2 Daten'!F$9:F$859,MATCH('2.2'!$A72,'2.2 Daten'!$B$9:$B$859,0))) -> 10668 | E72: =IF($A72<>0,INDEX('2.2 Daten'!G$9:G$859,MATCH('2.2'!$A72,'2.2 Daten'!$B$9:$B$859,0))) -> 11979 | F72: =IF($A72<>0,INDEX('2.2 Daten'!H$9:H$859,MATCH('2.2'!$A72,'2.2 Daten'!$B$9:$B$859,0))) -> 31575 | G72: =IF($A72<>0,INDEX('2.2 Daten'!I$9:I$859,MATCH('2.2'!$A72,'2.2 Daten'!$B$9:$B$859,0))) -> 8990 | H72: =IF($A72<>0,INDEX('2.2 Daten'!K$9:K$859,MATCH('2.2'!$A72,'2.2 Daten'!$B$9:$B$859,0))) -> 1.761164236 | I72: =IF($A72<>0,INDEX('2.2 Daten'!L$9:L$859,MATCH('2.2'!$A72,'2.2 Daten'!$B$9:$B$859,0))) -> -3.395816354 | J72: =IF($A72<>0,INDEX('2.2 Daten'!M$9:M$859,MATCH('2.2'!$A72,'2.2 Daten'!$B$9:$B$859,0))) -> 0.1002757583 | K72: =IF($A72<>0,INDEX('2.2 Daten'!N$9:N$859,MATCH('2.2'!$A72,'2.2 Daten'!$B$9:$B$859,0))) -> 3.848051307 | L72: =IF($A72<>0,INDEX('2.2 Daten'!O$9:O$859,MATCH('2.2'!$A72,'2.2 Daten'!$B$9:$B$859,0))) -> 3.297713432
A73: =CHOOSE('2.2 Daten'!$A$2,'2.2 Daten'!B495,'2.2 Daten'!B44,'2.2 Daten'!B61,'2.2 Daten'!B78,'2.2 Daten'!B81,'2.2 Daten'!B128,'2.2 Daten'!B132,'2.2 Daten'!B187,'2.2 Daten'!B215,'2.2 Daten'!B253,'2.2 Daten'!B299,'2.2 Daten'!B397,'2.2 Daten'!B405,'2.2 Daten'!B408,'2.2 Daten'!B428,'2.2 Daten'!B438,'2.2 Daten'!B453,'2.2 Daten'!B469,x) -> Hamburg, Freie und Hansestadt | B73: =IF($A73<>0,INDEX('2.2 Daten'!C$9:C$859,MATCH('2.2'!$A73,'2.2 Daten'!$B$9:$B$859,0))," ") -> 02000000 | C73: =IF($A73<>0,INDEX('2.2 Daten'!E$9:E$859,MATCH('2.2'!$A73,'2.2 Daten'!$B$9:$B$859,0))) -> 63212 | D73: =IF($A73<>0,INDEX('2.2 Daten'!F$9:F$859,MATCH('2.2'!$A73,'2.2 Daten'!$B$9:$B$859,0))) -> 10668 | E73: =IF($A73<>0,INDEX('2.2 Daten'!G$9:G$859,MATCH('2.2'!$A73,'2.2 Daten'!$B$9:$B$859,0))) -> 11979 | F73: =IF($A73<>0,INDEX('2.2 Daten'!H$9:H$859,MATCH('2.2'!$A73,'2.2 Daten'!$B$9:$B$859,0))) -> 31575 | G73: =IF($A73<>0,INDEX('2.2 Daten'!I$9:I$859,MATCH('2.2'!$A73,'2.2 Daten'!$B$9:$B$859,0))) -> 8990 | H73: =IF($A73<>0,INDEX('2.2 Daten'!K$9:K$859,MATCH('2.2'!$A73,'2.2 Daten'!$B$9:$B$859,0))) -> 1.761164236 | I73: =IF($A73<>0,INDEX('2.2 Daten'!L$9:L$859,MATCH('2.2'!$A73,'2.2 Daten'!$B$9:$B$859,0))) -> -3.395816354 | J73: =IF($A73<>0,INDEX('2.2 Daten'!M$9:M$859,MATCH('2.2'!$A73,'2.2 Daten'!$B$9:$B$859,0))) -> 0.1002757583 | K73: =IF($A73<>0,INDEX('2.2 Daten'!N$9:N$859,MATCH('2.2'!$A73,'2.2 Daten'!$B$9:$B$859,0))) -> 3.848051307 | L73: =IF($A73<>0,INDEX('2.2 Daten'!O$9:O$859,MATCH('2.2'!$A73,'2.2 Daten'!$B$9:$B$859,0))) -> 3.297713432
A74: =CHOOSE('2.2 Daten'!$A$2,'2.2 Daten'!B496,'2.2 Daten'!B45,'2.2 Daten'!B62,'2.2 Daten'!B79,'2.2 Daten'!B82,'2.2 Daten'!B129,'2.2 Daten'!B133,'2.2 Daten'!B188,'2.2 Daten'!B216,'2.2 Daten'!B254,'2.2 Daten'!B300,'2.2 Daten'!B398,'2.2 Daten'!B406,'2.2 Daten'!B409,'2.2 Daten'!B429,'2.2 Daten'!B439,'2.2 Daten'!B454,'2.2 Daten'!B470,x) -> 0 | B74: =IF($A74<>0,INDEX('2.2 Daten'!C$9:C$859,MATCH('2.2'!$A74,'2.2 Daten'!$B$9:$B$859,0))," ") ->  | C74: =IF($A74<>0,INDEX('2.2 Daten'!E$9:E$859,MATCH('2.2'!$A74,'2.2 Daten'!$B$9:$B$859,0))) -> FALSE | D74: =IF($A74<>0,INDEX('2.2 Daten'!F$9:F$859,MATCH('2.2'!$A74,'2.2 Daten'!$B$9:$B$859,0))) -> FALSE | E74: =IF($A74<>0,INDEX('2.2 Daten'!G$9:G$859,MATCH('2.2'!$A74,'2.2 Daten'!$B$9:$B$859,0))) -> FALSE | F74: =IF($A74<>0,INDEX('2.2 Daten'!H$9:H$859,MATCH('2.2'!$A74,'2.2 Daten'!$B$9:$B$859,0))) -> FALSE | G74: =IF($A74<>0,INDEX('2.2 Daten'!I$9:I$859,MATCH('2.2'!$A74,'2.2 Daten'!$B$9:$B$859,0))) -> FALSE | H74: =IF($A74<>0,INDEX('2.2 Daten'!K$9:K$859,MATCH('2.2'!$A74,'2.2 Daten'!$B$9:$B$859,0))) -> FALSE | I74: =IF($A74<>0,INDEX('2.2 Daten'!L$9:L$859,MATCH('2.2'!$A74,'2.2 Daten'!$B$9:$B$859,0))) -> FALSE | J74: =IF($A74<>0,INDEX('2.2 Daten'!M$9:M$859,MATCH('2.2'!$A74,'2.2 Daten'!$B$9:$B$859,0))) -> FALSE | K74: =IF($A74<>0,INDEX('2.2 Daten'!N$9:N$859,MATCH('2.2'!$A74,'2.2 Daten'!$B$9:$B$859,0))) -> FALSE | L74: =IF($A74<>0,INDEX('2.2 Daten'!O$9:O$859,MATCH('2.2'!$A74,'2.2 Daten'!$B$9:$B$859,0))) -> FALSE
A75: =CHOOSE('2.2 Daten'!$A$2,'2.2 Daten'!B497,'2.2 Daten'!B46,'2.2 Daten'!B63,'2.2 Daten'!B80,'2.2 Daten'!B83,'2.2 Daten'!B130,'2.2 Daten'!B134,'2.2 Daten'!B189,'2.2 Daten'!B217,'2.2 Daten'!B255,'2.2 Daten'!B301,'2.2 Daten'!B399,'2.2 Daten'!B407,'2.2 Daten'!B410,'2.2 Daten'!B430,'2.2 Daten'!B440,'2.2 Daten'!B455,'2.2 Daten'!B471,x) -> Niedersachsen | B75: =IF($A75<>0,INDEX('2.2 Daten'!C$9:C$859,MATCH('2.2'!$A75,'2.2 Daten'!$B$9:$B$859,0))," ") -> 03 | C75: =IF($A75<>0,INDEX('2.2 Daten'!E$9:E$859,MATCH('2.2'!$A75,'2.2 Daten'!$B$9:$B$859,0))) -> 189164 | D75: =IF($A75<>0,INDEX('2.2 Daten'!F$9:F$859,MATCH('2.2'!$A75,'2.2 Daten'!$B$9:$B$859,0))) -> 30837 | E75: =IF($A75<>0,INDEX('2.2 Daten'!G$9:G$859,MATCH('2.2'!$A75,'2.2 Daten'!$B$9:$B$859,0))) -> 35356 | F75: =IF($A75<>0,INDEX('2.2 Daten'!H$9:H$859,MATCH('2.2'!$A75,'2.2 Daten'!$B$9:$B$859,0))) -> 95986 | G75: =IF($A75<>0,INDEX('2.2 Daten'!I$9:I$859,MATCH('2.2'!$A75,'2.2 Daten'!$B$9:$B$859,0))) -> 26985 | H75: =IF($A75<>0,INDEX('2.2 Daten'!K$9:K$859,MATCH('2.2'!$A75,'2.2 Daten'!$B$9:$B$859,0))) -> 2.275135708 | I75: =IF($A75<>0,INDEX('2.2 Daten'!L$9:L$859,MATCH('2.2'!$A75,'2.2 Daten'!$B$9:$B$859,0))) -> -2.985591141 | J75: =IF($A75<>0,INDEX('2.2 Daten'!M$9:M$859,MATCH('2.2'!$A75,'2.2 Daten'!$B$9:$B$859,0))) -> 0.6977870183 | K75: =IF($A75<>0,INDEX('2.2 Daten'!N$9:N$859,MATCH('2.2'!$A75,'2.2 Daten'!$B$9:$B$859,0))) -> 4.060016695 | L75: =IF($A75<>0,INDEX('2.2 Daten'!O$9:O$859,MATCH('2.2'!$A75,'2.2 Daten'!$B$9:$B$859,0))) -> 4.520102254
A76: =CHOOSE('2.2 Daten'!$A$2,'2.2 Daten'!B498,'2.2 Daten'!B47,'2.2 Daten'!B64,'2.2 Daten'!B81,'2.2 Daten'!B84,'2.2 Daten'!B131,'2.2 Daten'!B135,'2.2 Daten'!B190,'2.2 Daten'!B218,'2.2 Daten'!B256,'2.2 Daten'!B302,'2.2 Daten'!B400,'2.2 Daten'!B408,'2.2 Daten'!B411,'2.2 Daten'!B431,'2.2 Daten'!B441,'2.2 Daten'!B456,'2.2 Daten'!B472,x) -> Braunschweig, Stadt | B76: =IF($A76<>0,INDEX('2.2 Daten'!C$9:C$859,MATCH('2.2'!$A76,'2.2 Daten'!$B$9:$B$859,0))," ") -> 03101000 | C76: =IF($A76<>0,INDEX('2.2 Daten'!E$9:E$859,MATCH('2.2'!$A76,'2.2 Daten'!$B$9:$B$859,0))) -> 5363 | D76: =IF($A76<>0,INDEX('2.2 Daten'!F$9:F$859,MATCH('2.2'!$A76,'2.2 Daten'!$B$9:$B$859,0))) -> 847 | E76: =IF($A76<>0,INDEX('2.2 Daten'!G$9:G$859,MATCH('2.2'!$A76,'2.2 Daten'!$B$9:$B$859,0))) -> 1041 | F76: =IF($A76<>0,INDEX('2.2 Daten'!H$9:H$859,MATCH('2.2'!$A76,'2.2 Daten'!$B$9:$B$859,0))) -> 2708 | G76: =IF($A76<>0,INDEX('2.2 Daten'!I$9:I$859,MATCH('2.2'!$A76,'2.2 Daten'!$B$9:$B$859,0))) -> 767 | H76: =IF($A76<>0,INDEX('2.2 Daten'!K$9:K$859,MATCH('2.2'!$A76,'2.2 Daten'!$B$9:$B$859,0))) -> 3.373168851 | I76: =IF($A76<>0,INDEX('2.2 Daten'!L$9:L$859,MATCH('2.2'!$A76,'2.2 Daten'!$B$9:$B$859,0))) -> -6.305309735 | J76: =IF($A76<>0,INDEX('2.2 Daten'!M$9:M$859,MATCH('2.2'!$A76,'2.2 Daten'!$B$9:$B$859,0))) -> 3.996003996 | K76: =IF($A76<>0,INDEX('2.2 Daten'!N$9:N$859,MATCH('2.2'!$A76,'2.2 Daten'!$B$9:$B$859,0))) -> 6.740244383 | L76: =IF($A76<>0,INDEX('2.2 Daten'!O$9:O$859,MATCH('2.2'!$A76,'2.2 Daten'!$B$9:$B$859,0))) -> 2.815013405
A77: =CHOOSE('2.2 Daten'!$A$2,'2.2 Daten'!B499,'2.2 Daten'!B48,'2.2 Daten'!B65,'2.2 Daten'!B82,'2.2 Daten'!B85,'2.2 Daten'!B132,'2.2 Daten'!B136,'2.2 Daten'!B191,'2.2 Daten'!B219,'2.2 Daten'!B257,'2.2 Daten'!B303,'2.2 Daten'!B401,'2.2 Daten'!B409,'2.2 Daten'!B412,'2.2 Daten'!B432,'2.2 Daten'!B442,'2.2 Daten'!B457,'2.2 Daten'!B473,x) -> Salzgitter, Stadt | B77: =IF($A77<>0,INDEX('2.2 Daten'!C$9:C$859,MATCH('2.2'!$A77,'2.2 Daten'!$B$9:$B$859,0))," ") -> 03102000 | C77: =IF($A77<>0,INDEX('2.2 Daten'!E$9:E$859,MATCH('2.2'!$A77,'2.2 Daten'!$B$9:$B$859,0))) -> 4968 | D77: =IF($A77<>0,INDEX('2.2 Daten'!F$9:F$859,MATCH('2.2'!$A77,'2.2 Daten'!$B$9:$B$859,0))) -> 841 | E77: =IF($A77<>0,INDEX('2.2 Daten'!G$9:G$859,MATCH('2.2'!$A77,'2.2 Daten'!$B$9:$B$859,0))) -> 1011 | F77: =IF($A77<>0,INDEX('2.2 Daten'!H$9:H$859,MATCH('2.2'!$A77,'2.2 Daten'!$B$9:$B$859,0))) -> 2443 | G77: =IF($A77<>0,INDEX('2.2 Daten'!I$9:I$859,MATCH('2.2'!$A77,'2.2 Daten'!$B$9:$B$859,0))) -> 673 | H77: =IF($A77<>0,INDEX('2.2 Daten'!K$9:K$859,MATCH('2.2'!$A77,'2.2 Daten'!$B$9:$B$859,0))) -> -5.998107852 | I77: =IF($A77<>0,INDEX('2.2 Daten'!L$9:L$859,MATCH('2.2'!$A77,'2.2 Daten'!$B$9:$B$859,0))) -> -12.84974093 | J77: =IF($A77<>0,INDEX('2.2 Daten'!M$9:M$859,MATCH('2.2'!$A77,'2.2 Daten'!$B$9:$B$859,0))) -> -0.2958579882 | K77: =IF($A77<>0,INDEX('2.2 Daten'!N$9:N$859,MATCH('2.2'!$A77,'2.2 Daten'!$B$9:$B$859,0))) -> -5.383423703 | L77: =IF($A77<>0,INDEX('2.2 Daten'!O$9:O$859,MATCH('2.2'!$A77,'2.2 Daten'!$B$9:$B$859,0))) -> -7.044198895
A78: =CHOOSE('2.2 Daten'!$A$2,'2.2 Daten'!B500,'2.2 Daten'!B49,'2.2 Daten'!B66,'2.2 Daten'!B83,'2.2 Daten'!B86,'2.2 Daten'!B133,'2.2 Daten'!B137,'2.2 Daten'!B192,'2.2 Daten'!B220,'2.2 Daten'!B258,'2.2 Daten'!B304,'2.2 Daten'!B402,'2.2 Daten'!B410,'2.2 Daten'!B413,'2.2 Daten'!B433,'2.2 Daten'!B443,'2.2 Daten'!B458,'2.2 Daten'!B474,x) -> Wolfsburg, Stadt | B78: =IF($A78<>0,INDEX('2.2 Daten'!C$9:C$859,MATCH('2.2'!$A78,'2.2 Daten'!$B$9:$B$859,0))," ") -> 03103000 | C78: =IF($A78<>0,INDEX('2.2 Daten'!E$9:E$859,MATCH('2.2'!$A78,'2.2 Daten'!$B$9:$B$859,0))) -> 3727 | D78: =IF($A78<>0,INDEX('2.2 Daten'!F$9:F$859,MATCH('2.2'!$A78,'2.2 Daten'!$B$9:$B$859,0))) -> 661 | E78: =IF($A78<>0,INDEX('2.2 Daten'!G$9:G$859,MATCH('2.2'!$A78,'2.2 Daten'!$B$9:$B$859,0))) -> 728 | F78: =IF($A78<>0,INDEX('2.2 Daten'!H$9:H$859,MATCH('2.2'!$A78,'2.2 Daten'!$B$9:$B$859,0))) -> 1844 | G78: =IF($A78<>0,INDEX('2.2 Daten'!I$9:I$859,MATCH('2.2'!$A78,'2.2 Daten'!$B$9:$B$859,0))) -> 494 | H78: =IF($A78<>0,INDEX('2.2 Daten'!K$9:K$859,MATCH('2.2'!$A78,'2.2 Daten'!$B$9:$B$859,0))) -> 22.23679895 | I78: =IF($A78<>0,INDEX('2.2 Daten'!L$9:L$859,MATCH('2.2'!$A78,'2.2 Daten'!$B$9:$B$859,0))) -> 11.65540541 | J78: =IF($A78<>0,INDEX('2.2 Daten'!M$9:M$859,MATCH('2.2'!$A78,'2.2 Daten'!$B$9:$B$859,0))) -> 16.10845295 | K78: =IF($A78<>0,INDEX('2.2 Daten'!N$9:N$859,MATCH('2.2'!$A78,'2.2 Daten'!$B$9:$B$859,0))) -> 28.05555556 | L78: =IF($A78<>0,INDEX('2.2 Daten'!O$9:O$859,MATCH('2.2'!$A78,'2.2 Daten'!$B$9:$B$859,0))) -> 26.66666667
A79: =CHOOSE('2.2 Daten'!$A$2,'2.2 Daten'!B501,'2.2 Daten'!B50,'2.2 Daten'!B67,'2.2 Daten'!B84,'2.2 Daten'!B87,'2.2 Daten'!B134,'2.2 Daten'!B138,'2.2 Daten'!B193,'2.2 Daten'!B221,'2.2 Daten'!B259,'2.2 Daten'!B305,'2.2 Daten'!B403,'2.2 Daten'!B411,'2.2 Daten'!B414,'2.2 Daten'!B434,'2.2 Daten'!B444,'2.2 Daten'!B459,'2.2 Daten'!B475,x) -> Gifhorn | B79: =IF($A79<>0,INDEX('2.2 Daten'!C$9:C$859,MATCH('2.2'!$A79,'2.2 Daten'!$B$9:$B$859,0))," ") -> 03151000 | C79: =IF($A79<>0,INDEX('2.2 Daten'!E$9:E$859,MATCH('2.2'!$A79,'2.2 Daten'!$B$9:$B$859,0))) -> 3254 | D79: =IF($A79<>0,INDEX('2.2 Daten'!F$9:F$859,MATCH('2.2'!$A79,'2.2 Daten'!$B$9:$B$859,0))) -> 513 | E79: =IF($A79<>0,INDEX('2.2 Daten'!G$9:G$859,MATCH('2.2'!$A79,'2.2 Daten'!$B$9:$B$859,0))) -> 596 | F79: =IF($A79<>0,INDEX('2.2 Daten'!H$9:H$859,MATCH('2.2'!$A79,'2.2 Daten'!$B$9:$B$859,0))) -> 1708 | G79: =IF($A79<>0,INDEX('2.2 Daten'!I$9:I$859,MATCH('2.2'!$A79,'2.2 Daten'!$B$9:$B$859,0))) -> 437 | H79: =IF($A79<>0,INDEX('2.2 Daten'!K$9:K$859,MATCH('2.2'!$A79,'2.2 Daten'!$B$9:$B$859,0))) -> 14.41631505 | I79: =IF($A79<>0,INDEX('2.2 Daten'!L$9:L$859,MATCH('2.2'!$A79,'2.2 Daten'!$B$9:$B$859,0))) -> 0 | J79: =IF($A79<>0,INDEX('2.2 Daten'!M$9:M$859,MATCH('2.2'!$A79,'2.2 Daten'!$B$9:$B$859,0))) -> 12.66540643 | K79: =IF($A79<>0,INDEX('2.2 Daten'!N$9:N$859,MATCH('2.2'!$A79,'2.2 Daten'!$B$9:$B$859,0))) -> 19.02439024 | L79: =IF($A79<>0,INDEX('2.2 Daten'!O$9:O$859,MATCH('2.2'!$A79,'2.2 Daten'!$B$9:$B$859,0))) -> 19.07356948
A80: =CHOOSE('2.2 Daten'!$A$2,'2.2 Daten'!B502,'2.2 Daten'!B51,'2.2 Daten'!B68,'2.2 Daten'!B85,'2.2 Daten'!B88,'2.2 Daten'!B135,'2.2 Daten'!B139,'2.2 Daten'!B194,'2.2 Daten'!B222,'2.2 Daten'!B260,'2.2 Daten'!B306,'2.2 Daten'!B404,'2.2 Daten'!B412,'2.2 Daten'!B415,'2.2 Daten'!B435,'2.2 Daten'!B445,'2.2 Daten'!B460,'2.2 Daten'!B476,x) -> Goslar | B80: =IF($A80<>0,INDEX('2.2 Daten'!C$9:C$859,MATCH('2.2'!$A80,'2.2 Daten'!$B$9:$B$859,0))," ") -> 03153000 | C80: =IF($A80<>0,INDEX('2.2 Daten'!E$9:E$859,MATCH('2.2'!$A80,'2.2 Daten'!$B$9:$B$859,0))) -> 3392 | D80: =IF($A80<>0,INDEX('2.2 Daten'!F$9:F$859,MATCH('2.2'!$A80,'2.2 Daten'!$B$9:$B$859,0))) -> 554 | E80: =IF($A80<>0,INDEX('2.2 Daten'!G$9:G$859,MATCH('2.2'!$A80,'2.2 Daten'!$B$9:$B$859,0))) -> 639 | F80: =IF($A80<>0,INDEX('2.2 Daten'!H$9:H$859,MATCH('2.2'!$A80,'2.2 Daten'!$B$9:$B$859,0))) -> 1699 | G80: =IF($A80<>0,INDEX('2.2 Daten'!I$9:I$859,MATCH('2.2'!$A80,'2.2 Daten'!$B$9:$B$859,0))) -> 500 | H80: =IF($A80<>0,INDEX('2.2 Daten'!K$9:K$859,MATCH('2.2'!$A80,'2.2 Daten'!$B$9:$B$859,0))) -> 0.4739336493 | I80: =IF($A80<>0,INDEX('2.2 Daten'!L$9:L$859,MATCH('2.2'!$A80,'2.2 Daten'!$B$9:$B$859,0))) -> -2.636203866 | J80: =IF($A80<>0,INDEX('2.2 Daten'!M$9:M$859,MATCH('2.2'!$A80,'2.2 Daten'!$B$9:$B$859,0))) -> -4.197901049 | K80: =IF($A80<>0,INDEX('2.2 Daten'!N$9:N$859,MATCH('2.2'!$A80,'2.2 Daten'!$B$9:$B$859,0))) -> 1.736526946 | L80: =IF($A80<>0,INDEX('2.2 Daten'!O$9:O$859,MATCH('2.2'!$A80,'2.2 Daten'!$B$9:$B$859,0))) -> 6.382978723
A81: =CHOOSE('2.2 Daten'!$A$2,'2.2 Daten'!B503,'2.2 Daten'!B52,'2.2 Daten'!B69,'2.2 Daten'!B86,'2.2 Daten'!B89,'2.2 Daten'!B136,'2.2 Daten'!B140,'2.2 Daten'!B195,'2.2 Daten'!B223,'2.2 Daten'!B261,'2.2 Daten'!B307,'2.2 Daten'!B405,'2.2 Daten'!B413,'2.2 Daten'!B416,'2.2 Daten'!B436,'2.2 Daten'!B446,'2.2 Daten'!B461,'2.2 Daten'!B477,x) -> Helmstedt | B81: =IF($A81<>0,INDEX('2.2 Daten'!C$9:C$859,MATCH('2.2'!$A81,'2.2 Daten'!$B$9:$B$859,0))," ") -> 03154000 | C81: =IF($A81<>0,INDEX('2.2 Daten'!E$9:E$859,MATCH('2.2'!$A81,'2.2 Daten'!$B$9:$B$859,0))) -> 2164 | D81: =IF($A81<>0,INDEX('2.2 Daten'!F$9:F$859,MATCH('2.2'!$A81,'2.2 Daten'!$B$9:$B$859,0))) -> 375 | E81: =IF($A81<>0,INDEX('2.2 Daten'!G$9:G$859,MATCH('2.2'!$A81,'2.2 Daten'!$B$9:$B$859,0))) -> 398 | F81: =IF($A81<>0,INDEX('2.2 Daten'!H$9:H$859,MATCH('2.2'!$A81,'2.2 Daten'!$B$9:$B$859,0))) -> 1102 | G81: =IF($A81<>0,INDEX('2.2 Daten'!I$9:I$859,MATCH('2.2'!$A81,'2.2 Daten'!$B$9:$B$859,0))) -> 289 | H81: =IF($A81<>0,INDEX('2.2 Daten'!K$9:K$859,MATCH('2.2'!$A81,'2.2 Daten'!$B$9:$B$859,0))) -> 8.145927036 | I81: =IF($A81<>0,INDEX('2.2 Daten'!L$9:L$859,MATCH('2.2'!$A81,'2.2 Daten'!$B$9:$B$859,0))) -> 6.534090909 | J81: =IF($A81<>0,INDEX('2.2 Daten'!M$9:M$859,MATCH('2.2'!$A81,'2.2 Daten'!$B$9:$B$859,0))) -> -0.2506265664 | K81: =IF($A81<>0,INDEX('2.2 Daten'!N$9:N$859,MATCH('2.2'!$A81,'2.2 Daten'!$B$9:$B$859,0))) -> 12.21995927 | L81: =IF($A81<>0,INDEX('2.2 Daten'!O$9:O$859,MATCH('2.2'!$A81,'2.2 Daten'!$B$9:$B$859,0))) -> 7.835820896
A82: =CHOOSE('2.2 Daten'!$A$2,'2.2 Daten'!B504,'2.2 Daten'!B53,'2.2 Daten'!B70,'2.2 Daten'!B87,'2.2 Daten'!B90,'2.2 Daten'!B137,'2.2 Daten'!B141,'2.2 Daten'!B196,'2.2 Daten'!B224,'2.2 Daten'!B262,'2.2 Daten'!B308,'2.2 Daten'!B406,'2.2 Daten'!B414,'2.2 Daten'!B417,'2.2 Daten'!B437,'2.2 Daten'!B447,'2.2 Daten'!B462,'2.2 Daten'!B478,x) -> Northeim | B82: =IF($A82<>0,INDEX('2.2 Daten'!C$9:C$859,MATCH('2.2'!$A82,'2.2 Daten'!$B$9:$B$859,0))," ") -> 03155000 | C82: =IF($A82<>0,INDEX('2.2 Daten'!E$9:E$859,MATCH('2.2'!$A82,'2.2 Daten'!$B$9:$B$859,0))) -> 3010 | D82: =IF($A82<>0,INDEX('2.2 Daten'!F$9:F$859,MATCH('2.2'!$A82,'2.2 Daten'!$B$9:$B$859,0))) -> 493 | E82: =IF($A82<>0,INDEX('2.2 Daten'!G$9:G$859,MATCH('2.2'!$A82,'2.2 Daten'!$B$9:$B$859,0))) -> 598 | F82: =IF($A82<>0,INDEX('2.2 Daten'!H$9:H$859,MATCH('2.2'!$A82,'2.2 Daten'!$B$9:$B$859,0))) -> 1485 | G82: =IF($A82<>0,INDEX('2.2 Daten'!I$9:I$859,MATCH('2.2'!$A82,'2.2 Daten'!$B$9:$B$859,0))) -> 434 | H82: =IF($A82<>0,INDEX('2.2 Daten'!K$9:K$859,MATCH('2.2'!$A82,'2.2 Daten'!$B$9:$B$859,0))) -> 9.018471568 | I82: =IF($A82<>0,INDEX('2.2 Daten'!L$9:L$859,MATCH('2.2'!$A82,'2.2 Daten'!$B$9:$B$859,0))) -> -2.56916996 | J82: =IF($A82<>0,INDEX('2.2 Daten'!M$9:M$859,MATCH('2.2'!$A82,'2.2 Daten'!$B$9:$B$859,0))) -> 5.281690141 | K82: =IF($A82<>0,INDEX('2.2 Daten'!N$9:N$859,MATCH('2.2'!$A82,'2.2 Daten'!$B$9:$B$859,0))) -> 12.24489796 | L82: =IF($A82<>0,INDEX('2.2 Daten'!O$9:O$859,MATCH('2.2'!$A82,'2.2 Daten'!$B$9:$B$859,0))) -> 19.23076923
A83: =CHOOSE('2.2 Daten'!$A$2,'2.2 Daten'!B505,'2.2 Daten'!B54,'2.2 Daten'!B71,'2.2 Daten'!B88,'2.2 Daten'!B91,'2.2 Daten'!B138,'2.2 Daten'!B142,'2.2 Daten'!B197,'2.2 Daten'!B225,'2.2 Daten'!B263,'2.2 Daten'!B309,'2.2 Daten'!B407,'2.2 Daten'!B415,'2.2 Daten'!B418,'2.2 Daten'!B438,'2.2 Daten'!B448,'2.2 Daten'!B463,'2.2 Daten'!B479,x) -> Peine | B83: =IF($A83<>0,INDEX('2.2 Daten'!C$9:C$859,MATCH('2.2'!$A83,'2.2 Daten'!$B$9:$B$859,0))," ") -> 03157000 | C83: =IF($A83<>0,INDEX('2.2 Daten'!E$9:E$859,MATCH('2.2'!$A83,'2.2 Daten'!$B$9:$B$859,0))) -> 3912 | D83: =IF($A83<>0,INDEX('2.2 Daten'!F$9:F$859,MATCH('2.2'!$A83,'2.2 Daten'!$B$9:$B$859,0))) -> 611 | E83: =IF($A83<>0,INDEX('2.2 Daten'!G$9:G$859,MATCH('2.2'!$A83,'2.2 Daten'!$B$9:$B$859,0))) -> 687 | F83: =IF($A83<>0,INDEX('2.2 Daten'!H$9:H$859,MATCH('2.2'!$A83,'2.2 Daten'!$B$9:$B$859,0))) -> 2037 | G83: =IF($A83<>0,INDEX('2.2 Daten'!I$9:I$859,MATCH('2.2'!$A83,'2.2 Daten'!$B$9:$B$859,0))) -> 577 | H83: =IF($A83<>0,INDEX('2.2 Daten'!K$9:K$859,MATCH('2.2'!$A83,'2.2 Daten'!$B$9:$B$859,0))) -> 11.07325383 | I83: =IF($A83<>0,INDEX('2.2 Daten'!L$9:L$859,MATCH('2.2'!$A83,'2.2 Daten'!$B$9:$B$859,0))) -> 7.760141093 | J83: =IF($A83<>0,INDEX('2.2 Daten'!M$9:M$859,MATCH('2.2'!$A83,'2.2 Daten'!$B$9:$B$859,0))) -> 10.98546042 | K83: =IF($A83<>0,INDEX('2.2 Daten'!N$9:N$859,MATCH('2.2'!$A83,'2.2 Daten'!$B$9:$B$859,0))) -> 14.37394722 | L83: =IF($A83<>0,INDEX('2.2 Daten'!O$9:O$859,MATCH('2.2'!$A83,'2.2 Daten'!$B$9:$B$859,0))) -> 3.963963964
A84: =CHOOSE('2.2 Daten'!$A$2,'2.2 Daten'!B506,'2.2 Daten'!B55,'2.2 Daten'!B72,'2.2 Daten'!B89,'2.2 Daten'!B92,'2.2 Daten'!B139,'2.2 Daten'!B143,'2.2 Daten'!B198,'2.2 Daten'!B226,'2.2 Daten'!B264,'2.2 Daten'!B310,'2.2 Daten'!B408,'2.2 Daten'!B416,'2.2 Daten'!B419,'2.2 Daten'!B439,'2.2 Daten'!B449,'2.2 Daten'!B464,'2.2 Daten'!B480,x) -> Wolfenbüttel | B84: =IF($A84<>0,INDEX('2.2 Daten'!C$9:C$859,MATCH('2.2'!$A84,'2.2 Daten'!$B$9:$B$859,0))," ") -> 03158000 | C84: =IF($A84<>0,INDEX('2.2 Daten'!E$9:E$859,MATCH('2.2'!$A84,'2.2 Daten'!$B$9:$B$859,0))) -> 2550 | D84: =IF($A84<>0,INDEX('2.2 Daten'!F$9:F$859,MATCH('2.2'!$A84,'2.2 Daten'!$B$9:$B$859,0))) -> 423 | E84: =IF($A84<>0,INDEX('2.2 Daten'!G$9:G$859,MATCH('2.2'!$A84,'2.2 Daten'!$B$9:$B$859,0))) -> 447 | F84: =IF($A84<>0,INDEX('2.2 Daten'!H$9:H$859,MATCH('2.2'!$A84,'2.2 Daten'!$B$9:$B$859,0))) -> 1316 | G84: =IF($A84<>0,INDEX('2.2 Daten'!I$9:I$859,MATCH('2.2'!$A84,'2.2 Daten'!$B$9:$B$859,0))) -> 364 | H84: =IF($A84<>0,INDEX('2.2 Daten'!K$9:K$859,MATCH('2.2'!$A84,'2.2 Daten'!$B$9:$B$859,0))) -> 13.23268206 | I84: =IF($A84<>0,INDEX('2.2 Daten'!L$9:L$859,MATCH('2.2'!$A84,'2.2 Daten'!$B$9:$B$859,0))) -> 9.302325581 | J84: =IF($A84<>0,INDEX('2.2 Daten'!M$9:M$859,MATCH('2.2'!$A84,'2.2 Daten'!$B$9:$B$859,0))) -> 12.03007519 | K84: =IF($A84<>0,INDEX('2.2 Daten'!N$9:N$859,MATCH('2.2'!$A84,'2.2 Daten'!$B$9:$B$859,0))) -> 14.93449782 | L84: =IF($A84<>0,INDEX('2.2 Daten'!O$9:O$859,MATCH('2.2'!$A84,'2.2 Daten'!$B$9:$B$859,0))) -> 13.39563863
A85: =CHOOSE('2.2 Daten'!$A$2,'2.2 Daten'!B507,'2.2 Daten'!B56,'2.2 Daten'!B73,'2.2 Daten'!B90,'2.2 Daten'!B93,'2.2 Daten'!B140,'2.2 Daten'!B144,'2.2 Daten'!B199,'2.2 Daten'!B227,'2.2 Daten'!B265,'2.2 Daten'!B311,'2.2 Daten'!B409,'2.2 Daten'!B417,'2.2 Daten'!B420,'2.2 Daten'!B440,'2.2 Daten'!B450,'2.2 Daten'!B465,'2.2 Daten'!B481,x) -> Göttingen | B85: =IF($A85<>0,INDEX('2.2 Daten'!C$9:C$859,MATCH('2.2'!$A85,'2.2 Daten'!$B$9:$B$859,0))," ") -> 03159000 | C85: =IF($A85<>0,INDEX('2.2 Daten'!E$9:E$859,MATCH('2.2'!$A85,'2.2 Daten'!$B$9:$B$859,0))) -> 6561 | D85: =IF($A85<>0,INDEX('2.2 Daten'!F$9:F$859,MATCH('2.2'!$A85,'2.2 Daten'!$B$9:$B$859,0))) -> 1109 | E85: =IF($A85<>0,INDEX('2.2 Daten'!G$9:G$859,MATCH('2.2'!$A85,'2.2 Daten'!$B$9:$B$859,0))) -> 1320 | F85: =IF($A85<>0,INDEX('2.2 Daten'!H$9:H$859,MATCH('2.2'!$A85,'2.2 Daten'!$B$9:$B$859,0))) -> 3187 | G85: =IF($A85<>0,INDEX('2.2 Daten'!I$9:I$859,MATCH('2.2'!$A85,'2.2 Daten'!$B$9:$B$859,0))) -> 945 | H85: =IF($A85<>0,INDEX('2.2 Daten'!K$9:K$859,MATCH('2.2'!$A85,'2.2 Daten'!$B$9:$B$859,0))) -> 7.346204188 | I85: =IF($A85<>0,INDEX('2.2 Daten'!L$9:L$859,MATCH('2.2'!$A85,'2.2 Daten'!$B$9:$B$859,0))) -> -0.6272401434 | J85: =IF($A85<>0,INDEX('2.2 Daten'!M$9:M$859,MATCH('2.2'!$A85,'2.2 Daten'!$B$9:$B$859,0))) -> 9.090909091 | K85: =IF($A85<>0,INDEX('2.2 Daten'!N$9:N$859,MATCH('2.2'!$A85,'2.2 Daten'!$B$9:$B$859,0))) -> 8.143875127 | L85: =IF($A85<>0,INDEX('2.2 Daten'!O$9:O$859,MATCH('2.2'!$A85,'2.2 Daten'!$B$9:$B$859,0))) -> 12.6340882
A86: =CHOOSE('2.2 Daten'!$A$2,'2.2 Daten'!B508,'2.2 Daten'!B57,'2.2 Daten'!B74,'2.2 Daten'!B91,'2.2 Daten'!B94,'2.2 Daten'!B141,'2.2 Daten'!B145,'2.2 Daten'!B200,'2.2 Daten'!B228,'2.2 Daten'!B266,'2.2 Daten'!B312,'2.2 Daten'!B410,'2.2 Daten'!B418,'2.2 Daten'!B421,'2.2 Daten'!B441,'2.2 Daten'!B451,'2.2 Daten'!B466,'2.2 Daten'!B482,x) -> Region Hannover | B86: =IF($A86<>0,INDEX('2.2 Daten'!C$9:C$859,MATCH('2.2'!$A86,'2.2 Daten'!$B$9:$B$859,0))," ") -> 03241000 | C86: =IF($A86<>0,INDEX('2.2 Daten'!E$9:E$859,MATCH('2.2'!$A86,'2.2 Daten'!$B$9:$B$859,0))) -> 36563 | D86: =IF($A86<>0,INDEX('2.2 Daten'!F$9:F$859,MATCH('2.2'!$A86,'2.2 Daten'!$B$9:$B$859,0))) -> 6041 | E86: =IF($A86<>0,INDEX('2.2 Daten'!G$9:G$859,MATCH('2.2'!$A86,'2.2 Daten'!$B$9:$B$859,0))) -> 6799 | F86: =IF($A86<>0,INDEX('2.2 Daten'!H$9:H$859,MATCH('2.2'!$A86,'2.2 Daten'!$B$9:$B$859,0))) -> 18510 | G86: =IF($A86<>0,INDEX('2.2 Daten'!I$9:I$859,MATCH('2.2'!$A86,'2.2 Daten'!$B$9:$B$859,0))) -> 5213 | H86: =IF($A86<>0,INDEX('2.2 Daten'!K$9:K$859,MATCH('2.2'!$A86,'2.2 Daten'!$B$9:$B$859,0))) -> -5.389949801 | I86: =IF($A86<>0,INDEX('2.2 Daten'!L$9:L$859,MATCH('2.2'!$A86,'2.2 Daten'!$B$9:$B$859,0))) -> -8.883861237 | J86: =IF($A86<>0,INDEX('2.2 Daten'!M$9:M$859,MATCH('2.2'!$A86,'2.2 Daten'!$B$9:$B$859,0))) -> -6.517255603 | K86: =IF($A86<>0,INDEX('2.2 Daten'!N$9:N$859,MATCH('2.2'!$A86,'2.2 Daten'!$B$9:$B$859,0))) -> -4.754553875 | L86: =IF($A86<>0,INDEX('2.2 Daten'!O$9:O$859,MATCH('2.2'!$A86,'2.2 Daten'!$B$9:$B$859,0))) -> -1.808250141
A87: =CHOOSE('2.2 Daten'!$A$2,'2.2 Daten'!B509,'2.2 Daten'!B58,'2.2 Daten'!B75,'2.2 Daten'!B92,'2.2 Daten'!B95,'2.2 Daten'!B142,'2.2 Daten'!B146,'2.2 Daten'!B201,'2.2 Daten'!B229,'2.2 Daten'!B267,'2.2 Daten'!B313,'2.2 Daten'!B411,'2.2 Daten'!B419,'2.2 Daten'!B422,'2.2 Daten'!B442,'2.2 Daten'!B452,'2.2 Daten'!B467,'2.2 Daten'!B483,x) -> Diepholz | B87: =IF($A87<>0,INDEX('2.2 Daten'!C$9:C$859,MATCH('2.2'!$A87,'2.2 Daten'!$B$9:$B$859,0))," ") -> 03251000 | C87: =IF($A87<>0,INDEX('2.2 Daten'!E$9:E$859,MATCH('2.2'!$A87,'2.2 Daten'!$B$9:$B$859,0))) -> 4602 | D87: =IF($A87<>0,INDEX('2.2 Daten'!F$9:F$859,MATCH('2.2'!$A87,'2.2 Daten'!$B$9:$B$859,0))) -> 736 | E87: =IF($A87<>0,INDEX('2.2 Daten'!G$9:G$859,MATCH('2.2'!$A87,'2.2 Daten'!$B$9:$B$859,0))) -> 837 | F87: =IF($A87<>0,INDEX('2.2 Daten'!H$9:H$859,MATCH('2.2'!$A87,'2.2 Daten'!$B$9:$B$859,0))) -> 2373 | G87: =IF($A87<>0,INDEX('2.2 Daten'!I$9:I$859,MATCH('2.2'!$A87,'2.2 Daten'!$B$9:$B$859,0))) -> 656 | H87: =IF($A87<>0,INDEX('2.2 Daten'!K$9:K$859,MATCH('2.2'!$A87,'2.2 Daten'!$B$9:$B$859,0))) -> 11.37463698 | I87: =IF($A87<>0,INDEX('2.2 Daten'!L$9:L$859,MATCH('2.2'!$A87,'2.2 Daten'!$B$9:$B$859,0))) -> 6.666666667 | J87: =IF($A87<>0,INDEX('2.2 Daten'!M$9:M$859,MATCH('2.2'!$A87,'2.2 Daten'!$B$9:$B$859,0))) -> 5.415617128 | K87: =IF($A87<>0,INDEX('2.2 Daten'!N$9:N$859,MATCH('2.2'!$A87,'2.2 Daten'!$B$9:$B$859,0))) -> 14.30635838 | L87: =IF($A87<>0,INDEX('2.2 Daten'!O$9:O$859,MATCH('2.2'!$A87,'2.2 Daten'!$B$9:$B$859,0))) -> 14.68531469
A88: =CHOOSE('2.2 Daten'!$A$2,'2.2 Daten'!B510,'2.2 Daten'!B59,'2.2 Daten'!B76,'2.2 Daten'!B93,'2.2 Daten'!B96,'2.2 Daten'!B143,'2.2 Daten'!B147,'2.2 Daten'!B202,'2.2 Daten'!B230,'2.2 Daten'!B268,'2.2 Daten'!B314,'2.2 Daten'!B412,'2.2 Daten'!B420,'2.2 Daten'!B423,'2.2 Daten'!B443,'2.2 Daten'!B453,'2.2 Daten'!B468,'2.2 Daten'!B484,x) -> Hameln-Pyrmont | B88: =IF($A88<>0,INDEX('2.2 Daten'!C$9:C$859,MATCH('2.2'!$A88,'2.2 Daten'!$B$9:$B$859,0))," ") -> 03252000 | C88: =IF($A88<>0,INDEX('2.2 Daten'!E$9:E$859,MATCH('2.2'!$A88,'2.2 Daten'!$B$9:$B$859,0))) -> 4910 | D88: =IF($A88<>0,INDEX('2.2 Daten'!F$9:F$859,MATCH('2.2'!$A88,'2.2 Daten'!$B$9:$B$859,0))) -> 818 | E88: =IF($A88<>0,INDEX('2.2 Daten'!G$9:G$859,MATCH('2.2'!$A88,'2.2 Daten'!$B$9:$B$859,0))) -> 953 | F88: =IF($A88<>0,INDEX('2.2 Daten'!H$9:H$859,MATCH('2.2'!$A88,'2.2 Daten'!$B$9:$B$859,0))) -> 2443 | G88: =IF($A88<>0,INDEX('2.2 Daten'!I$9:I$859,MATCH('2.2'!$A88,'2.2 Daten'!$B$9:$B$859,0))) -> 696 | H88: =IF($A88<>0,INDEX('2.2 Daten'!K$9:K$859,MATCH('2.2'!$A88,'2.2 Daten'!$B$9:$B$859,0))) -> 9.573755858 | I88: =IF($A88<>0,INDEX('2.2 Daten'!L$9:L$859,MATCH('2.2'!$A88,'2.2 Daten'!$B$9:$B$859,0))) -> 2.763819095 | J88: =IF($A88<>0,INDEX('2.2 Daten'!M$9:M$859,MATCH('2.2'!$A88,'2.2 Daten'!$B$9:$B$859,0))) -> 10.55684455 | K88: =IF($A88<>0,INDEX('2.2 Daten'!N$9:N$859,MATCH('2.2'!$A88,'2.2 Daten'!$B$9:$B$859,0))) -> 11.3999088 | L88: =IF($A88<>0,INDEX('2.2 Daten'!O$9:O$859,MATCH('2.2'!$A88,'2.2 Daten'!$B$9:$B$859,0))) -> 10.47619048
A89: =CHOOSE('2.2 Daten'!$A$2,'2.2 Daten'!B511,'2.2 Daten'!B60,'2.2 Daten'!B77,'2.2 Daten'!B94,'2.2 Daten'!B97,'2.2 Daten'!B144,'2.2 Daten'!B148,'2.2 Daten'!B203,'2.2 Daten'!B231,'2.2 Daten'!B269,'2.2 Daten'!B315,'2.2 Daten'!B413,'2.2 Daten'!B421,'2.2 Daten'!B424,'2.2 Daten'!B444,'2.2 Daten'!B454,'2.2 Daten'!B469,'2.2 Daten'!B485,x) -> Hildesheim | B89: =IF($A89<>0,INDEX('2.2 Daten'!C$9:C$859,MATCH('2.2'!$A89,'2.2 Daten'!$B$9:$B$859,0))," ") -> 03254000 | C89: =IF($A89<>0,INDEX('2.2 Daten'!E$9:E$859,MATCH('2.2'!$A89,'2.2 Daten'!$B$9:$B$859,0))) -> 6550 | D89: =IF($A89<>0,INDEX('2.2 Daten'!F$9:F$859,MATCH('2.2'!$A89,'2.2 Daten'!$B$9:$B$859,0))) -> 1109 | E89: =IF($A89<>0,INDEX('2.2 Daten'!G$9:G$859,MATCH('2.2'!$A89,'2.2 Daten'!$B$9:$B$859,0))) -> 1169 | F89: =IF($A89<>0,INDEX('2.2 Daten'!H$9:H$859,MATCH('2.2'!$A89,'2.2 Daten'!$B$9:$B$859,0))) -> 3307 | G89: =IF($A89<>0,INDEX('2.2 Daten'!I$9:I$859,MATCH('2.2'!$A89,'2.2 Daten'!$B$9:$B$859,0))) -> 965 | H89: =IF($A89<>0,INDEX('2.2 Daten'!K$9:K$859,MATCH('2.2'!$A89,'2.2 Daten'!$B$9:$B$859,0))) -> -1.887357699 | I89: =IF($A89<>0,INDEX('2.2 Daten'!L$9:L$859,MATCH('2.2'!$A89,'2.2 Daten'!$B$9:$B$859,0))) -> -8.94909688 | J89: =IF($A89<>0,INDEX('2.2 Daten'!M$9:M$859,MATCH('2.2'!$A89,'2.2 Daten'!$B$9:$B$859,0))) -> -4.571428571 | K89: =IF($A89<>0,INDEX('2.2 Daten'!N$9:N$859,MATCH('2.2'!$A89,'2.2 Daten'!$B$9:$B$859,0))) -> 0.09079903148 | L89: =IF($A89<>0,INDEX('2.2 Daten'!O$9:O$859,MATCH('2.2'!$A89,'2.2 Daten'!$B$9:$B$859,0))) -> 3.875134553
A90: =CHOOSE('2.2 Daten'!$A$2,'2.2 Daten'!B512,'2.2 Daten'!B61,'2.2 Daten'!B78,'2.2 Daten'!B95,'2.2 Daten'!B98,'2.2 Daten'!B145,'2.2 Daten'!B149,'2.2 Daten'!B204,'2.2 Daten'!B232,'2.2 Daten'!B270,'2.2 Daten'!B316,'2.2 Daten'!B414,'2.2 Daten'!B422,'2.2 Daten'!B425,'2.2 Daten'!B445,'2.2 Daten'!B455,'2.2 Daten'!B470,'2.2 Daten'!B486,x) -> Holzminden | B90: =IF($A90<>0,INDEX('2.2 Daten'!C$9:C$859,MATCH('2.2'!$A90,'2.2 Daten'!$B$9:$B$859,0))," ") -> 03255000 | C90: =IF($A90<>0,INDEX('2.2 Daten'!E$9:E$859,MATCH('2.2'!$A90,'2.2 Daten'!$B$9:$B$859,0))) -> 1584 | D90: =IF($A90<>0,INDEX('2.2 Daten'!F$9:F$859,MATCH('2.2'!$A90,'2.2 Daten'!$B$9:$B$859,0))) -> 274 | E90: =IF($A90<>0,INDEX('2.2 Daten'!G$9:G$859,MATCH('2.2'!$A90,'2.2 Daten'!$B$9:$B$859,0))) -> 290 | F90: =IF($A90<>0,INDEX('2.2 Daten'!H$9:H$859,MATCH('2.2'!$A90,'2.2 Daten'!$B$9:$B$859,0))) -> 816 | G90: =IF($A90<>0,INDEX('2.2 Daten'!I$9:I$859,MATCH('2.2'!$A90,'2.2 Daten'!$B$9:$B$859,0))) -> 204 | H90: =IF($A90<>0,INDEX('2.2 Daten'!K$9:K$859,MATCH('2.2'!$A90,'2.2 Daten'!$B$9:$B$859,0))) -> -0.5025125628 | I90: =IF($A90<>0,INDEX('2.2 Daten'!L$9:L$859,MATCH('2.2'!$A90,'2.2 Daten'!$B$9:$B$859,0))) -> -1.438848921 | J90: =IF($A90<>0,INDEX('2.2 Daten'!M$9:M$859,MATCH('2.2'!$A90,'2.2 Daten'!$B$9:$B$859,0))) -> -0.6849315068 | K90: =IF($A90<>0,INDEX('2.2 Daten'!N$9:N$859,MATCH('2.2'!$A90,'2.2 Daten'!$B$9:$B$859,0))) -> -0.487804878 | L90: =IF($A90<>0,INDEX('2.2 Daten'!O$9:O$859,MATCH('2.2'!$A90,'2.2 Daten'!$B$9:$B$859,0))) -> 0.9900990099
A91: =CHOOSE('2.2 Daten'!$A$2,'2.2 Daten'!B513,'2.2 Daten'!B62,'2.2 Daten'!B79,'2.2 Daten'!B96,'2.2 Daten'!B99,'2.2 Daten'!B146,'2.2 Daten'!B150,'2.2 Daten'!B205,'2.2 Daten'!B233,'2.2 Daten'!B271,'2.2 Daten'!B317,'2.2 Daten'!B415,'2.2 Daten'!B423,'2.2 Daten'!B426,'2.2 Daten'!B446,'2.2 Daten'!B456,'2.2 Daten'!B471,'2.2 Daten'!B487,x) -> Nienburg (Weser) | B91: =IF($A91<>0,INDEX('2.2 Daten'!C$9:C$859,MATCH('2.2'!$A91,'2.2 Daten'!$B$9:$B$859,0))," ") -> 03256000 | C91: =IF($A91<>0,INDEX('2.2 Daten'!E$9:E$859,MATCH('2.2'!$A91,'2.2 Daten'!$B$9:$B$859,0))) -> 3683 | D91: =IF($A91<>0,INDEX('2.2 Daten'!F$9:F$859,MATCH('2.2'!$A91,'2.2 Daten'!$B$9:$B$859,0))) -> 565 | E91: =IF($A91<>0,INDEX('2.2 Daten'!G$9:G$859,MATCH('2.2'!$A91,'2.2 Daten'!$B$9:$B$859,0))) -> 627 | F91: =IF($A91<>0,INDEX('2.2 Daten'!H$9:H$859,MATCH('2.2'!$A91,'2.2 Daten'!$B$9:$B$859,0))) -> 1963 | G91: =IF($A91<>0,INDEX('2.2 Daten'!I$9:I$859,MATCH('2.2'!$A91,'2.2 Daten'!$B$9:$B$859,0))) -> 528 | H91: =IF($A91<>0,INDEX('2.2 Daten'!K$9:K$859,MATCH('2.2'!$A91,'2.2 Daten'!$B$9:$B$859,0))) -> 8.900059137 | I91: =IF($A91<>0,INDEX('2.2 Daten'!L$9:L$859,MATCH('2.2'!$A91,'2.2 Daten'!$B$9:$B$859,0))) -> 5.607476636 | J91: =IF($A91<>0,INDEX('2.2 Daten'!M$9:M$859,MATCH('2.2'!$A91,'2.2 Daten'!$B$9:$B$859,0))) -> 2.618657938 | K91: =IF($A91<>0,INDEX('2.2 Daten'!N$9:N$859,MATCH('2.2'!$A91,'2.2 Daten'!$B$9:$B$859,0))) -> 9.116175653 | L91: =IF($A91<>0,INDEX('2.2 Daten'!O$9:O$859,MATCH('2.2'!$A91,'2.2 Daten'!$B$9:$B$859,0))) -> 20.82379863
A92: =CHOOSE('2.2 Daten'!$A$2,'2.2 Daten'!B514,'2.2 Daten'!B63,'2.2 Daten'!B80,'2.2 Daten'!B97,'2.2 Daten'!B100,'2.2 Daten'!B147,'2.2 Daten'!B151,'2.2 Daten'!B206,'2.2 Daten'!B234,'2.2 Daten'!B272,'2.2 Daten'!B318,'2.2 Daten'!B416,'2.2 Daten'!B424,'2.2 Daten'!B427,'2.2 Daten'!B447,'2.2 Daten'!B457,'2.2 Daten'!B472,'2.2 Daten'!B488,x) -> Schaumburg | B92: =IF($A92<>0,INDEX('2.2 Daten'!C$9:C$859,MATCH('2.2'!$A92,'2.2 Daten'!$B$9:$B$859,0))," ") -> 03257000 | C92: =IF($A92<>0,INDEX('2.2 Daten'!E$9:E$859,MATCH('2.2'!$A92,'2.2 Daten'!$B$9:$B$859,0))) -> 3298 | D92: =IF($A92<>0,INDEX('2.2 Daten'!F$9:F$859,MATCH('2.2'!$A92,'2.2 Daten'!$B$9:$B$859,0))) -> 523 | E92: =IF($A92<>0,INDEX('2.2 Daten'!G$9:G$859,MATCH('2.2'!$A92,'2.2 Daten'!$B$9:$B$859,0))) -> 630 | F92: =IF($A92<>0,INDEX('2.2 Daten'!H$9:H$859,MATCH('2.2'!$A92,'2.2 Daten'!$B$9:$B$859,0))) -> 1624 | G92: =IF($A92<>0,INDEX('2.2 Daten'!I$9:I$859,MATCH('2.2'!$A92,'2.2 Daten'!$B$9:$B$859,0))) -> 521 | H92: =IF($A92<>0,INDEX('2.2 Daten'!K$9:K$859,MATCH('2.2'!$A92,'2.2 Daten'!$B$9:$B$859,0))) -> 1.476923077 | I92: =IF($A92<>0,INDEX('2.2 Daten'!L$9:L$859,MATCH('2.2'!$A92,'2.2 Daten'!$B$9:$B$859,0))) -> -9.043478261 | J92: =IF($A92<>0,INDEX('2.2 Daten'!M$9:M$859,MATCH('2.2'!$A92,'2.2 Daten'!$B$9:$B$859,0))) -> -1.869158879 | K92: =IF($A92<>0,INDEX('2.2 Daten'!N$9:N$859,MATCH('2.2'!$A92,'2.2 Daten'!$B$9:$B$859,0))) -> 3.111111111 | L92: =IF($A92<>0,INDEX('2.2 Daten'!O$9:O$859,MATCH('2.2'!$A92,'2.2 Daten'!$B$9:$B$859,0))) -> 13.75545852
A93: =CHOOSE('2.2 Daten'!$A$2,'2.2 Daten'!B515,'2.2 Daten'!B64,'2.2 Daten'!B81,'2.2 Daten'!B98,'2.2 Daten'!B101,'2.2 Daten'!B148,'2.2 Daten'!B152,'2.2 Daten'!B207,'2.2 Daten'!B235,'2.2 Daten'!B273,'2.2 Daten'!B319,'2.2 Daten'!B417,'2.2 Daten'!B425,'2.2 Daten'!B428,'2.2 Daten'!B448,'2.2 Daten'!B458,'2.2 Daten'!B473,'2.2 Daten'!B489,x) -> Celle | B93: =IF($A93<>0,INDEX('2.2 Daten'!C$9:C$859,MATCH('2.2'!$A93,'2.2 Daten'!$B$9:$B$859,0))," ") -> 03351000 | C93: =IF($A93<>0,INDEX('2.2 Daten'!E$9:E$859,MATCH('2.2'!$A93,'2.2 Daten'!$B$9:$B$859,0))) -> 4553 | D93: =IF($A93<>0,INDEX('2.2 Daten'!F$9:F$859,MATCH('2.2'!$A93,'2.2 Daten'!$B$9:$B$859,0))) -> 706 | E93: =IF($A93<>0,INDEX('2.2 Daten'!G$9:G$859,MATCH('2.2'!$A93,'2.2 Daten'!$B$9:$B$859,0))) -> 802 | F93: =IF($A93<>0,INDEX('2.2 Daten'!H$9:H$859,MATCH('2.2'!$A93,'2.2 Daten'!$B$9:$B$859,0))) -> 2364 | G93: =IF($A93<>0,INDEX('2.2 Daten'!I$9:I$859,MATCH('2.2'!$A93,'2.2 Daten'!$B$9:$B$859,0))) -> 681 | H93: =IF($A93<>0,INDEX('2.2 Daten'!K$9:K$859,MATCH('2.2'!$A93,'2.2 Daten'!$B$9:$B$859,0))) -> -3.619813717 | I93: =IF($A93<>0,INDEX('2.2 Daten'!L$9:L$859,MATCH('2.2'!$A93,'2.2 Daten'!$B$9:$B$859,0))) -> -5.992010652 | J93: =IF($A93<>0,INDEX('2.2 Daten'!M$9:M$859,MATCH('2.2'!$A93,'2.2 Daten'!$B$9:$B$859,0))) -> -8.656036446 | K93: =IF($A93<>0,INDEX('2.2 Daten'!N$9:N$859,MATCH('2.2'!$A93,'2.2 Daten'!$B$9:$B$859,0))) -> -2.273666804 | L93: =IF($A93<>0,INDEX('2.2 Daten'!O$9:O$859,MATCH('2.2'!$A93,'2.2 Daten'!$B$9:$B$859,0))) -> 0.7396449704
A94: =CHOOSE('2.2 Daten'!$A$2,'2.2 Daten'!B516,'2.2 Daten'!B65,'2.2 Daten'!B82,'2.2 Daten'!B99,'2.2 Daten'!B102,'2.2 Daten'!B149,'2.2 Daten'!B153,'2.2 Daten'!B208,'2.2 Daten'!B236,'2.2 Daten'!B274,'2.2 Daten'!B320,'2.2 Daten'!B418,'2.2 Daten'!B426,'2.2 Daten'!B429,'2.2 Daten'!B449,'2.2 Daten'!B459,'2.2 Daten'!B474,'2.2 Daten'!B490,x) -> Cuxhaven | B94: =IF($A94<>0,INDEX('2.2 Daten'!C$9:C$859,MATCH('2.2'!$A94,'2.2 Daten'!$B$9:$B$859,0))," ") -> 03352000 | C94: =IF($A94<>0,INDEX('2.2 Daten'!E$9:E$859,MATCH('2.2'!$A94,'2.2 Daten'!$B$9:$B$859,0))) -> 3979 | D94: =IF($A94<>0,INDEX('2.2 Daten'!F$9:F$859,MATCH('2.2'!$A94,'2.2 Daten'!$B$9:$B$859,0))) -> 649 | E94: =IF($A94<>0,INDEX('2.2 Daten'!G$9:G$859,MATCH('2.2'!$A94,'2.2 Daten'!$B$9:$B$859,0))) -> 782 | F94: =IF($A94<>0,INDEX('2.2 Daten'!H$9:H$859,MATCH('2.2'!$A94,'2.2 Daten'!$B$9:$B$859,0))) -> 2017 | G94: =IF($A94<>0,INDEX('2.2 Daten'!I$9:I$859,MATCH('2.2'!$A94,'2.2 Daten'!$B$9:$B$859,0))) -> 531 | H94: =IF($A94<>0,INDEX('2.2 Daten'!K$9:K$859,MATCH('2.2'!$A94,'2.2 Daten'!$B$9:$B$859,0))) -> -4.074252652 | I94: =IF($A94<>0,INDEX('2.2 Daten'!L$9:L$859,MATCH('2.2'!$A94,'2.2 Daten'!$B$9:$B$859,0))) -> -6.618705036 | J94: =IF($A94<>0,INDEX('2.2 Daten'!M$9:M$859,MATCH('2.2'!$A94,'2.2 Daten'!$B$9:$B$859,0))) -> -6.459330144 | K94: =IF($A94<>0,INDEX('2.2 Daten'!N$9:N$859,MATCH('2.2'!$A94,'2.2 Daten'!$B$9:$B$859,0))) -> -2.277131783 | L94: =IF($A94<>0,INDEX('2.2 Daten'!O$9:O$859,MATCH('2.2'!$A94,'2.2 Daten'!$B$9:$B$859,0))) -> -3.978300181
A95: =CHOOSE('2.2 Daten'!$A$2,'2.2 Daten'!B517,'2.2 Daten'!B66,'2.2 Daten'!B83,'2.2 Daten'!B100,'2.2 Daten'!B103,'2.2 Daten'!B150,'2.2 Daten'!B154,'2.2 Daten'!B209,'2.2 Daten'!B237,'2.2 Daten'!B275,'2.2 Daten'!B321,'2.2 Daten'!B419,'2.2 Daten'!B427,'2.2 Daten'!B430,'2.2 Daten'!B450,'2.2 Daten'!B460,'2.2 Daten'!B475,'2.2 Daten'!B491,x) -> Harburg | B95: =IF($A95<>0,INDEX('2.2 Daten'!C$9:C$859,MATCH('2.2'!$A95,'2.2 Daten'!$B$9:$B$859,0))," ") -> 03353000 | C95: =IF($A95<>0,INDEX('2.2 Daten'!E$9:E$859,MATCH('2.2'!$A95,'2.2 Daten'!$B$9:$B$859,0))) -> 3895 | D95: =IF($A95<>0,INDEX('2.2 Daten'!F$9:F$859,MATCH('2.2'!$A95,'2.2 Daten'!$B$9:$B$859,0))) -> 621 | E95: =IF($A95<>0,INDEX('2.2 Daten'!G$9:G$859,MATCH('2.2'!$A95,'2.2 Daten'!$B$9:$B$859,0))) -> 705 | F95: =IF($A95<>0,INDEX('2.2 Daten'!H$9:H$859,MATCH('2.2'!$A95,'2.2 Daten'!$B$9:$B$859,0))) -> 1978 | G95: =IF($A95<>0,INDEX('2.2 Daten'!I$9:I$859,MATCH('2.2'!$A95,'2.2 Daten'!$B$9:$B$859,0))) -> 591 | H95: =IF($A95<>0,INDEX('2.2 Daten'!K$9:K$859,MATCH('2.2'!$A95,'2.2 Daten'!$B$9:$B$859,0))) -> 0.3865979381 | I95: =IF($A95<>0,INDEX('2.2 Daten'!L$9:L$859,MATCH('2.2'!$A95,'2.2 Daten'!$B$9:$B$859,0))) -> -1.428571429 | J95: =IF($A95<>0,INDEX('2.2 Daten'!M$9:M$859,MATCH('2.2'!$A95,'2.2 Daten'!$B$9:$B$859,0))) -> 2.322206096 | K95: =IF($A95<>0,INDEX('2.2 Daten'!N$9:N$859,MATCH('2.2'!$A95,'2.2 Daten'!$B$9:$B$859,0))) -> 0.05058168943 | L95: =IF($A95<>0,INDEX('2.2 Daten'!O$9:O$859,MATCH('2.2'!$A95,'2.2 Daten'!$B$9:$B$859,0))) -> 1.198630137
A96: =CHOOSE('2.2 Daten'!$A$2,'2.2 Daten'!B518,'2.2 Daten'!B67,'2.2 Daten'!B84,'2.2 Daten'!B101,'2.2 Daten'!B104,'2.2 Daten'!B151,'2.2 Daten'!B155,'2.2 Daten'!B210,'2.2 Daten'!B238,'2.2 Daten'!B276,'2.2 Daten'!B322,'2.2 Daten'!B420,'2.2 Daten'!B428,'2.2 Daten'!B431,'2.2 Daten'!B451,'2.2 Daten'!B461,'2.2 Daten'!B476,'2.2 Daten'!B492,x) -> Lüchow-Dannenberg | B96: =IF($A96<>0,INDEX('2.2 Daten'!C$9:C$859,MATCH('2.2'!$A96,'2.2 Daten'!$B$9:$B$859,0))," ") -> 03354000 | C96: =IF($A96<>0,INDEX('2.2 Daten'!E$9:E$859,MATCH('2.2'!$A96,'2.2 Daten'!$B$9:$B$859,0))) -> 1061 | D96: =IF($A96<>0,INDEX('2.2 Daten'!F$9:F$859,MATCH('2.2'!$A96,'2.2 Daten'!$B$9:$B$859,0))) -> 140 | E96: =IF($A96<>0,INDEX('2.2 Daten'!G$9:G$859,MATCH('2.2'!$A96,'2.2 Daten'!$B$9:$B$859,0))) -> 196 | F96: =IF($A96<>0,INDEX('2.2 Daten'!H$9:H$859,MATCH('2.2'!$A96,'2.2 Daten'!$B$9:$B$859,0))) -> 569 | G96: =IF($A96<>0,INDEX('2.2 Daten'!I$9:I$859,MATCH('2.2'!$A96,'2.2 Daten'!$B$9:$B$859,0))) -> 156 | H96: =IF($A96<>0,INDEX('2.2 Daten'!K$9:K$859,MATCH('2.2'!$A96,'2.2 Daten'!$B$9:$B$859,0))) -> 3.512195122 | I96: =IF($A96<>0,INDEX('2.2 Daten'!L$9:L$859,MATCH('2.2'!$A96,'2.2 Daten'!$B$9:$B$859,0))) -> -13.04347826 | J96: =IF($A96<>0,INDEX('2.2 Daten'!M$9:M$859,MATCH('2.2'!$A96,'2.2 Daten'!$B$9:$B$859,0))) -> -5.769230769 | K96: =IF($A96<>0,INDEX('2.2 Daten'!N$9:N$859,MATCH('2.2'!$A96,'2.2 Daten'!$B$9:$B$859,0))) -> 10.05802708 | L96: =IF($A96<>0,INDEX('2.2 Daten'!O$9:O$859,MATCH('2.2'!$A96,'2.2 Daten'!$B$9:$B$859,0))) -> 12.23021583
A97: =CHOOSE('2.2 Daten'!$A$2,'2.2 Daten'!B519,'2.2 Daten'!B68,'2.2 Daten'!B85,'2.2 Daten'!B102,'2.2 Daten'!B105,'2.2 Daten'!B152,'2.2 Daten'!B156,'2.2 Daten'!B211,'2.2 Daten'!B239,'2.2 Daten'!B277,'2.2 Daten'!B323,'2.2 Daten'!B421,'2.2 Daten'!B429,'2.2 Daten'!B432,'2.2 Daten'!B452,'2.2 Daten'!B462,'2.2 Daten'!B477,'2.2 Daten'!B493,x) -> Lüneburg | B97: =IF($A97<>0,INDEX('2.2 Daten'!C$9:C$859,MATCH('2.2'!$A97,'2.2 Daten'!$B$9:$B$859,0))," ") -> 03355000 | C97: =IF($A97<>0,INDEX('2.2 Daten'!E$9:E$859,MATCH('2.2'!$A97,'2.2 Daten'!$B$9:$B$859,0))) -> 3938 | D97: =IF($A97<>0,INDEX('2.2 Daten'!F$9:F$859,MATCH('2.2'!$A97,'2.2 Daten'!$B$9:$B$859,0))) -> 626 | E97: =IF($A97<>0,INDEX('2.2 Daten'!G$9:G$859,MATCH('2.2'!$A97,'2.2 Daten'!$B$9:$B$859,0))) -> 710 | F97: =IF($A97<>0,INDEX('2.2 Daten'!H$9:H$859,MATCH('2.2'!$A97,'2.2 Daten'!$B$9:$B$859,0))) -> 2034 | G97: =IF($A97<>0,INDEX('2.2 Daten'!I$9:I$859,MATCH('2.2'!$A97,'2.2 Daten'!$B$9:$B$859,0))) -> 568 | H97: =IF($A97<>0,INDEX('2.2 Daten'!K$9:K$859,MATCH('2.2'!$A97,'2.2 Daten'!$B$9:$B$859,0))) -> 0.7418777181 | I97: =IF($A97<>0,INDEX('2.2 Daten'!L$9:L$859,MATCH('2.2'!$A97,'2.2 Daten'!$B$9:$B$859,0))) -> -3.095975232 | J97: =IF($A97<>0,INDEX('2.2 Daten'!M$9:M$859,MATCH('2.2'!$A97,'2.2 Daten'!$B$9:$B$859,0))) -> -0.5602240896 | K97: =IF($A97<>0,INDEX('2.2 Daten'!N$9:N$859,MATCH('2.2'!$A97,'2.2 Daten'!$B$9:$B$859,0))) -> 3.091738469 | L97: =IF($A97<>0,INDEX('2.2 Daten'!O$9:O$859,MATCH('2.2'!$A97,'2.2 Daten'!$B$9:$B$859,0))) -> -1.388888889
A98: =CHOOSE('2.2 Daten'!$A$2,'2.2 Daten'!B520,'2.2 Daten'!B69,'2.2 Daten'!B86,'2.2 Daten'!B103,'2.2 Daten'!B106,'2.2 Daten'!B153,'2.2 Daten'!B157,'2.2 Daten'!B212,'2.2 Daten'!B240,'2.2 Daten'!B278,'2.2 Daten'!B324,'2.2 Daten'!B422,'2.2 Daten'!B430,'2.2 Daten'!B433,'2.2 Daten'!B453,'2.2 Daten'!B463,'2.2 Daten'!B478,'2.2 Daten'!B494,x) -> Osterholz | B98: =IF($A98<>0,INDEX('2.2 Daten'!C$9:C$859,MATCH('2.2'!$A98,'2.2 Daten'!$B$9:$B$859,0))," ") -> 03356000 | C98: =IF($A98<>0,INDEX('2.2 Daten'!E$9:E$859,MATCH('2.2'!$A98,'2.2 Daten'!$B$9:$B$859,0))) -> 1694 | D98: =IF($A98<>0,INDEX('2.2 Daten'!F$9:F$859,MATCH('2.2'!$A98,'2.2 Daten'!$B$9:$B$859,0))) -> 261 | E98: =IF($A98<>0,INDEX('2.2 Daten'!G$9:G$859,MATCH('2.2'!$A98,'2.2 Daten'!$B$9:$B$859,0))) -> 333 | F98: =IF($A98<>0,INDEX('2.2 Daten'!H$9:H$859,MATCH('2.2'!$A98,'2.2 Daten'!$B$9:$B$859,0))) -> 859 | G98: =IF($A98<>0,INDEX('2.2 Daten'!I$9:I$859,MATCH('2.2'!$A98,'2.2 Daten'!$B$9:$B$859,0))) -> 241 | H98: =IF($A98<>0,INDEX('2.2 Daten'!K$9:K$859,MATCH('2.2'!$A98,'2.2 Daten'!$B$9:$B$859,0))) -> 5.086848635 | I98: =IF($A98<>0,INDEX('2.2 Daten'!L$9:L$859,MATCH('2.2'!$A98,'2.2 Daten'!$B$9:$B$859,0))) -> -13.28903654 | J98: =IF($A98<>0,INDEX('2.2 Daten'!M$9:M$859,MATCH('2.2'!$A98,'2.2 Daten'!$B$9:$B$859,0))) -> 6.730769231 | K98: =IF($A98<>0,INDEX('2.2 Daten'!N$9:N$859,MATCH('2.2'!$A98,'2.2 Daten'!$B$9:$B$859,0))) -> 8.734177215 | L98: =IF($A98<>0,INDEX('2.2 Daten'!O$9:O$859,MATCH('2.2'!$A98,'2.2 Daten'!$B$9:$B$859,0))) -> 15.31100478
A99: =CHOOSE('2.2 Daten'!$A$2,'2.2 Daten'!B521,'2.2 Daten'!B70,'2.2 Daten'!B87,'2.2 Daten'!B104,'2.2 Daten'!B107,'2.2 Daten'!B154,'2.2 Daten'!B158,'2.2 Daten'!B213,'2.2 Daten'!B241,'2.2 Daten'!B279,'2.2 Daten'!B325,'2.2 Daten'!B423,'2.2 Daten'!B431,'2.2 Daten'!B434,'2.2 Daten'!B454,'2.2 Daten'!B464,'2.2 Daten'!B479,'2.2 Daten'!B495,x) -> Rotenburg (Wümme) | B99: =IF($A99<>0,INDEX('2.2 Daten'!C$9:C$859,MATCH('2.2'!$A99,'2.2 Daten'!$B$9:$B$859,0))," ") -> 03357000 | C99: =IF($A99<>0,INDEX('2.2 Daten'!E$9:E$859,MATCH('2.2'!$A99,'2.2 Daten'!$B$9:$B$859,0))) -> 2321 | D99: =IF($A99<>0,INDEX('2.2 Daten'!F$9:F$859,MATCH('2.2'!$A99,'2.2 Daten'!$B$9:$B$859,0))) -> 406 | E99: =IF($A99<>0,INDEX('2.2 Daten'!G$9:G$859,MATCH('2.2'!$A99,'2.2 Daten'!$B$9:$B$859,0))) -> 428 | F99: =IF($A99<>0,INDEX('2.2 Daten'!H$9:H$859,MATCH('2.2'!$A99,'2.2 Daten'!$B$9:$B$859,0))) -> 1196 | G99: =IF($A99<>0,INDEX('2.2 Daten'!I$9:I$859,MATCH('2.2'!$A99,'2.2 Daten'!$B$9:$B$859,0))) -> 291 | H99: =IF($A99<>0,INDEX('2.2 Daten'!K$9:K$859,MATCH('2.2'!$A99,'2.2 Daten'!$B$9:$B$859,0))) -> 8.96713615 | I99: =IF($A99<>0,INDEX('2.2 Daten'!L$9:L$859,MATCH('2.2'!$A99,'2.2 Daten'!$B$9:$B$859,0))) -> 4.370179949 | J99: =IF($A99<>0,INDEX('2.2 Daten'!M$9:M$859,MATCH('2.2'!$A99,'2.2 Daten'!$B$9:$B$859,0))) -> 2.392344498 | K99: =IF($A99<>0,INDEX('2.2 Daten'!N$9:N$859,MATCH('2.2'!$A99,'2.2 Daten'!$B$9:$B$859,0))) -> 14.77927063 | L99: =IF($A99<>0,INDEX('2.2 Daten'!O$9:O$859,MATCH('2.2'!$A99,'2.2 Daten'!$B$9:$B$859,0))) -> 3.558718861
A100: =CHOOSE('2.2 Daten'!$A$2,'2.2 Daten'!B522,'2.2 Daten'!B71,'2.2 Daten'!B88,'2.2 Daten'!B105,'2.2 Daten'!B108,'2.2 Daten'!B155,'2.2 Daten'!B159,'2.2 Daten'!B214,'2.2 Daten'!B242,'2.2 Daten'!B280,'2.2 Daten'!B326,'2.2 Daten'!B424,'2.2 Daten'!B432,'2.2 Daten'!B435,'2.2 Daten'!B455,'2.2 Daten'!B465,'2.2 Daten'!B480,'2.2 Daten'!B496,x) -> Heidekreis | B100: =IF($A100<>0,INDEX('2.2 Daten'!C$9:C$859,MATCH('2.2'!$A100,'2.2 Daten'!$B$9:$B$859,0))," ") -> 03358000 | C100: =IF($A100<>0,INDEX('2.2 Daten'!E$9:E$859,MATCH('2.2'!$A100,'2.2 Daten'!$B$9:$B$859,0))) -> 3246 | D100: =IF($A100<>0,INDEX('2.2 Daten'!F$9:F$859,MATCH('2.2'!$A100,'2.2 Daten'!$B$9:$B$859,0))) -> 503 | E100: =IF($A100<>0,INDEX('2.2 Daten'!G$9:G$859,MATCH('2.2'!$A100,'2.2 Daten'!$B$9:$B$859,0))) -> 604 | F100: =IF($A100<>0,INDEX('2.2 Daten'!H$9:H$859,MATCH('2.2'!$A100,'2.2 Daten'!$B$9:$B$859,0))) -> 1664 | G100: =IF($A100<>0,INDEX('2.2 Daten'!I$9:I$859,MATCH('2.2'!$A100,'2.2 Daten'!$B$9:$B$859,0))) -> 475 | H100: =IF($A100<>0,INDEX('2.2 Daten'!K$9:K$859,MATCH('2.2'!$A100,'2.2 Daten'!$B$9:$B$859,0))) -> 8.670907265 | I100: =IF($A100<>0,INDEX('2.2 Daten'!L$9:L$859,MATCH('2.2'!$A100,'2.2 Daten'!$B$9:$B$859,0))) -> 1.411290323 | J100: =IF($A100<>0,INDEX('2.2 Daten'!M$9:M$859,MATCH('2.2'!$A100,'2.2 Daten'!$B$9:$B$859,0))) -> 3.780068729 | K100: =IF($A100<>0,INDEX('2.2 Daten'!N$9:N$859,MATCH('2.2'!$A100,'2.2 Daten'!$B$9:$B$859,0))) -> 11.97846568 | L100: =IF($A100<>0,INDEX('2.2 Daten'!O$9:O$859,MATCH('2.2'!$A100,'2.2 Daten'!$B$9:$B$859,0))) -> 12.29314421
A101: =CHOOSE('2.2 Daten'!$A$2,'2.2 Daten'!B523,'2.2 Daten'!B72,'2.2 Daten'!B89,'2.2 Daten'!B106,'2.2 Daten'!B109,'2.2 Daten'!B156,'2.2 Daten'!B160,'2.2 Daten'!B215,'2.2 Daten'!B243,'2.2 Daten'!B281,'2.2 Daten'!B327,'2.2 Daten'!B425,'2.2 Daten'!B433,'2.2 Daten'!B436,'2.2 Daten'!B456,'2.2 Daten'!B466,'2.2 Daten'!B481,'2.2 Daten'!B497,x) -> Stade | B101: =IF($A101<>0,INDEX('2.2 Daten'!C$9:C$859,MATCH('2.2'!$A101,'2.2 Daten'!$B$9:$B$859,0))," ") -> 03359000 | C101: =IF($A101<>0,INDEX('2.2 Daten'!E$9:E$859,MATCH('2.2'!$A101,'2.2 Daten'!$B$9:$B$859,0))) -> 5591 | D101: =IF($A101<>0,INDEX('2.2 Daten'!F$9:F$859,MATCH('2.2'!$A101,'2.2 Daten'!$B$9:$B$859,0))) -> 905 | E101: =IF($A101<>0,INDEX('2.2 Daten'!G$9:G$859,MATCH('2.2'!$A101,'2.2 Daten'!$B$9:$B$859,0))) -> 1068 | F101: =IF($A101<>0,INDEX('2.2 Daten'!H$9:H$859,MATCH('2.2'!$A101,'2.2 Daten'!$B$9:$B$859,0))) -> 2829 | G101: =IF($A101<>0,INDEX('2.2 Daten'!I$9:I$859,MATCH('2.2'!$A101,'2.2 Daten'!$B$9:$B$859,0))) -> 789 | H101: =IF($A101<>0,INDEX('2.2 Daten'!K$9:K$859,MATCH('2.2'!$A101,'2.2 Daten'!$B$9:$B$859,0))) -> 6.373668189 | I101: =IF($A101<>0,INDEX('2.2 Daten'!L$9:L$859,MATCH('2.2'!$A101,'2.2 Daten'!$B$9:$B$859,0))) -> 4.74537037 | J101: =IF($A101<>0,INDEX('2.2 Daten'!M$9:M$859,MATCH('2.2'!$A101,'2.2 Daten'!$B$9:$B$859,0))) -> 4.093567251 | K101: =IF($A101<>0,INDEX('2.2 Daten'!N$9:N$859,MATCH('2.2'!$A101,'2.2 Daten'!$B$9:$B$859,0))) -> 7.68937952 | L101: =IF($A101<>0,INDEX('2.2 Daten'!O$9:O$859,MATCH('2.2'!$A101,'2.2 Daten'!$B$9:$B$859,0))) -> 6.765899865
A102: =CHOOSE('2.2 Daten'!$A$2,'2.2 Daten'!B524,'2.2 Daten'!B73,'2.2 Daten'!B90,'2.2 Daten'!B107,'2.2 Daten'!B110,'2.2 Daten'!B157,'2.2 Daten'!B161,'2.2 Daten'!B216,'2.2 Daten'!B244,'2.2 Daten'!B282,'2.2 Daten'!B328,'2.2 Daten'!B426,'2.2 Daten'!B434,'2.2 Daten'!B437,'2.2 Daten'!B457,'2.2 Daten'!B467,'2.2 Daten'!B482,'2.2 Daten'!B498,x) -> Uelzen | B102: =IF($A102<>0,INDEX('2.2 Daten'!C$9:C$859,MATCH('2.2'!$A102,'2.2 Daten'!$B$9:$B$859,0))," ") -> 03360000 | C102: =IF($A102<>0,INDEX('2.2 Daten'!E$9:E$859,MATCH('2.2'!$A102,'2.2 Daten'!$B$9:$B$859,0))) -> 1995 | D102: =IF($A102<>0,INDEX('2.2 Daten'!F$9:F$859,MATCH('2.2'!$A102,'2.2 Daten'!$B$9:$B$859,0))) -> 345 | E102: =IF($A102<>0,INDEX('2.2 Daten'!G$9:G$859,MATCH('2.2'!$A102,'2.2 Daten'!$B$9:$B$859,0))) -> 356 | F102: =IF($A102<>0,INDEX('2.2 Daten'!H$9:H$859,MATCH('2.2'!$A102,'2.2 Daten'!$B$9:$B$859,0))) -> 1017 | G102: =IF($A102<>0,INDEX('2.2 Daten'!I$9:I$859,MATCH('2.2'!$A102,'2.2 Daten'!$B$9:$B$859,0))) -> 277 | H102: =IF($A102<>0,INDEX('2.2 Daten'!K$9:K$859,MATCH('2.2'!$A102,'2.2 Daten'!$B$9:$B$859,0))) -> 16.32653061 | I102: =IF($A102<>0,INDEX('2.2 Daten'!L$9:L$859,MATCH('2.2'!$A102,'2.2 Daten'!$B$9:$B$859,0))) -> 12.01298701 | J102: =IF($A102<>0,INDEX('2.2 Daten'!M$9:M$859,MATCH('2.2'!$A102,'2.2 Daten'!$B$9:$B$859,0))) -> 4.093567251 | K102: =IF($A102<>0,INDEX('2.2 Daten'!N$9:N$859,MATCH('2.2'!$A102,'2.2 Daten'!$B$9:$B$859,0))) -> 22.67792521 | L102: =IF($A102<>0,INDEX('2.2 Daten'!O$9:O$859,MATCH('2.2'!$A102,'2.2 Daten'!$B$9:$B$859,0))) -> 17.37288136
A103: =CHOOSE('2.2 Daten'!$A$2,'2.2 Daten'!B525,'2.2 Daten'!B74,'2.2 Daten'!B91,'2.2 Daten'!B108,'2.2 Daten'!B111,'2.2 Daten'!B158,'2.2 Daten'!B162,'2.2 Daten'!B217,'2.2 Daten'!B245,'2.2 Daten'!B283,'2.2 Daten'!B329,'2.2 Daten'!B427,'2.2 Daten'!B435,'2.2 Daten'!B438,'2.2 Daten'!B458,'2.2 Daten'!B468,'2.2 Daten'!B483,'2.2 Daten'!B499,x) -> Verden | B103: =IF($A103<>0,INDEX('2.2 Daten'!C$9:C$859,MATCH('2.2'!$A103,'2.2 Daten'!$B$9:$B$859,0))," ") -> 03361000 | C103: =IF($A103<>0,INDEX('2.2 Daten'!E$9:E$859,MATCH('2.2'!$A103,'2.2 Daten'!$B$9:$B$859,0))) -> 2705 | D103: =IF($A103<>0,INDEX('2.2 Daten'!F$9:F$859,MATCH('2.2'!$A103,'2.2 Daten'!$B$9:$B$859,0))) -> 444 | E103: =IF($A103<>0,INDEX('2.2 Daten'!G$9:G$859,MATCH('2.2'!$A103,'2.2 Daten'!$B$9:$B$859,0))) -> 482 | F103: =IF($A103<>0,INDEX('2.2 Daten'!H$9:H$859,MATCH('2.2'!$A103,'2.2 Daten'!$B$9:$B$859,0))) -> 1404 | G103: =IF($A103<>0,INDEX('2.2 Daten'!I$9:I$859,MATCH('2.2'!$A103,'2.2 Daten'!$B$9:$B$859,0))) -> 375 | H103: =IF($A103<>0,INDEX('2.2 Daten'!K$9:K$859,MATCH('2.2'!$A103,'2.2 Daten'!$B$9:$B$859,0))) -> 8.113509193 | I103: =IF($A103<>0,INDEX('2.2 Daten'!L$9:L$859,MATCH('2.2'!$A103,'2.2 Daten'!$B$9:$B$859,0))) -> 6.474820144 | J103: =IF($A103<>0,INDEX('2.2 Daten'!M$9:M$859,MATCH('2.2'!$A103,'2.2 Daten'!$B$9:$B$859,0))) -> -2.032520325 | K103: =IF($A103<>0,INDEX('2.2 Daten'!N$9:N$859,MATCH('2.2'!$A103,'2.2 Daten'!$B$9:$B$859,0))) -> 14.05361495 | L103: =IF($A103<>0,INDEX('2.2 Daten'!O$9:O$859,MATCH('2.2'!$A103,'2.2 Daten'!$B$9:$B$859,0))) -> 3.591160221
A104: =CHOOSE('2.2 Daten'!$A$2,'2.2 Daten'!B526,'2.2 Daten'!B75,'2.2 Daten'!B92,'2.2 Daten'!B109,'2.2 Daten'!B112,'2.2 Daten'!B159,'2.2 Daten'!B163,'2.2 Daten'!B218,'2.2 Daten'!B246,'2.2 Daten'!B284,'2.2 Daten'!B330,'2.2 Daten'!B428,'2.2 Daten'!B436,'2.2 Daten'!B439,'2.2 Daten'!B459,'2.2 Daten'!B469,'2.2 Daten'!B484,'2.2 Daten'!B500,x) -> Delmenhorst, Stadt | B104: =IF($A104<>0,INDEX('2.2 Daten'!C$9:C$859,MATCH('2.2'!$A104,'2.2 Daten'!$B$9:$B$859,0))," ") -> 03401000 | C104: =IF($A104<>0,INDEX('2.2 Daten'!E$9:E$859,MATCH('2.2'!$A104,'2.2 Daten'!$B$9:$B$859,0))) -> 3665 | D104: =IF($A104<>0,INDEX('2.2 Daten'!F$9:F$859,MATCH('2.2'!$A104,'2.2 Daten'!$B$9:$B$859,0))) -> 589 | E104: =IF($A104<>0,INDEX('2.2 Daten'!G$9:G$859,MATCH('2.2'!$A104,'2.2 Daten'!$B$9:$B$859,0))) -> 650 | F104: =IF($A104<>0,INDEX('2.2 Daten'!H$9:H$859,MATCH('2.2'!$A104,'2.2 Daten'!$B$9:$B$859,0))) -> 1891 | G104: =IF($A104<>0,INDEX('2.2 Daten'!I$9:I$859,MATCH('2.2'!$A104,'2.2 Daten'!$B$9:$B$859,0))) -> 535 | H104: =IF($A104<>0,INDEX('2.2 Daten'!K$9:K$859,MATCH('2.2'!$A104,'2.2 Daten'!$B$9:$B$859,0))) -> -4.132879937 | I104: =IF($A104<>0,INDEX('2.2 Daten'!L$9:L$859,MATCH('2.2'!$A104,'2.2 Daten'!$B$9:$B$859,0))) -> -6.507936508 | J104: =IF($A104<>0,INDEX('2.2 Daten'!M$9:M$859,MATCH('2.2'!$A104,'2.2 Daten'!$B$9:$B$859,0))) -> -12.51682369 | K104: =IF($A104<>0,INDEX('2.2 Daten'!N$9:N$859,MATCH('2.2'!$A104,'2.2 Daten'!$B$9:$B$859,0))) -> -0.3688092729 | L104: =IF($A104<>0,INDEX('2.2 Daten'!O$9:O$859,MATCH('2.2'!$A104,'2.2 Daten'!$B$9:$B$859,0))) -> -3.079710145
A105: =CHOOSE('2.2 Daten'!$A$2,'2.2 Daten'!B527,'2.2 Daten'!B76,'2.2 Daten'!B93,'2.2 Daten'!B110,'2.2 Daten'!B113,'2.2 Daten'!B160,'2.2 Daten'!B164,'2.2 Daten'!B219,'2.2 Daten'!B247,'2.2 Daten'!B285,'2.2 Daten'!B331,'2.2 Daten'!B429,'2.2 Daten'!B437,'2.2 Daten'!B440,'2.2 Daten'!B460,'2.2 Daten'!B470,'2.2 Daten'!B485,'2.2 Daten'!B501,x) -> Emden, Stadt | B105: =IF($A105<>0,INDEX('2.2 Daten'!C$9:C$859,MATCH('2.2'!$A105,'2.2 Daten'!$B$9:$B$859,0))," ") -> 03402000 | C105: =IF($A105<>0,INDEX('2.2 Daten'!E$9:E$859,MATCH('2.2'!$A105,'2.2 Daten'!$B$9:$B$859,0))) -> 2040 | D105: =IF($A105<>0,INDEX('2.2 Daten'!F$9:F$859,MATCH('2.2'!$A105,'2.2 Daten'!$B$9:$B$859,0))) -> 360 | E105: =IF($A105<>0,INDEX('2.2 Daten'!G$9:G$859,MATCH('2.2'!$A105,'2.2 Daten'!$B$9:$B$859,0))) -> 397 | F105: =IF($A105<>0,INDEX('2.2 Daten'!H$9:H$859,MATCH('2.2'!$A105,'2.2 Daten'!$B$9:$B$859,0))) -> 1021 | G105: =IF($A105<>0,INDEX('2.2 Daten'!I$9:I$859,MATCH('2.2'!$A105,'2.2 Daten'!$B$9:$B$859,0))) -> 262 | H105: =IF($A105<>0,INDEX('2.2 Daten'!K$9:K$859,MATCH('2.2'!$A105,'2.2 Daten'!$B$9:$B$859,0))) -> 6.194690265 | I105: =IF($A105<>0,INDEX('2.2 Daten'!L$9:L$859,MATCH('2.2'!$A105,'2.2 Daten'!$B$9:$B$859,0))) -> 5.571847507 | J105: =IF($A105<>0,INDEX('2.2 Daten'!M$9:M$859,MATCH('2.2'!$A105,'2.2 Daten'!$B$9:$B$859,0))) -> 0.5063291139 | K105: =IF($A105<>0,INDEX('2.2 Daten'!N$9:N$859,MATCH('2.2'!$A105,'2.2 Daten'!$B$9:$B$859,0))) -> 7.928118393 | L105: =IF($A105<>0,INDEX('2.2 Daten'!O$9:O$859,MATCH('2.2'!$A105,'2.2 Daten'!$B$9:$B$859,0))) -> 9.623430962
A106: =CHOOSE('2.2 Daten'!$A$2,'2.2 Daten'!B528,'2.2 Daten'!B77,'2.2 Daten'!B94,'2.2 Daten'!B111,'2.2 Daten'!B114,'2.2 Daten'!B161,'2.2 Daten'!B165,'2.2 Daten'!B220,'2.2 Daten'!B248,'2.2 Daten'!B286,'2.2 Daten'!B332,'2.2 Daten'!B430,'2.2 Daten'!B438,'2.2 Daten'!B441,'2.2 Daten'!B461,'2.2 Daten'!B471,'2.2 Daten'!B486,'2.2 Daten'!B502,x) -> Oldenburg (Oldenburg), Stadt | B106: =IF($A106<>0,INDEX('2.2 Daten'!C$9:C$859,MATCH('2.2'!$A106,'2.2 Daten'!$B$9:$B$859,0))," ") -> 03403000 | C106: =IF($A106<>0,INDEX('2.2 Daten'!E$9:E$859,MATCH('2.2'!$A106,'2.2 Daten'!$B$9:$B$859,0))) -> 5336 | D106: =IF($A106<>0,INDEX('2.2 Daten'!F$9:F$859,MATCH('2.2'!$A106,'2.2 Daten'!$B$9:$B$859,0))) -> 913 | E106: =IF($A106<>0,INDEX('2.2 Daten'!G$9:G$859,MATCH('2.2'!$A106,'2.2 Daten'!$B$9:$B$859,0))) -> 972 | F106: =IF($A106<>0,INDEX('2.2 Daten'!H$9:H$859,MATCH('2.2'!$A106,'2.2 Daten'!$B$9:$B$859,0))) -> 2665 | G106: =IF($A106<>0,INDEX('2.2 Daten'!I$9:I$859,MATCH('2.2'!$A106,'2.2 Daten'!$B$9:$B$859,0))) -> 786 | H106: =IF($A106<>0,INDEX('2.2 Daten'!K$9:K$859,MATCH('2.2'!$A106,'2.2 Daten'!$B$9:$B$859,0))) -> -0.5034495618 | I106: =IF($A106<>0,INDEX('2.2 Daten'!L$9:L$859,MATCH('2.2'!$A106,'2.2 Daten'!$B$9:$B$859,0))) -> -5.584281282 | J106: =IF($A106<>0,INDEX('2.2 Daten'!M$9:M$859,MATCH('2.2'!$A106,'2.2 Daten'!$B$9:$B$859,0))) -> -0.3076923077 | K106: =IF($A106<>0,INDEX('2.2 Daten'!N$9:N$859,MATCH('2.2'!$A106,'2.2 Daten'!$B$9:$B$859,0))) -> 0.4144687265 | L106: =IF($A106<>0,INDEX('2.2 Daten'!O$9:O$859,MATCH('2.2'!$A106,'2.2 Daten'!$B$9:$B$859,0))) -> 2.477183833
A107: =CHOOSE('2.2 Daten'!$A$2,'2.2 Daten'!B529,'2.2 Daten'!B78,'2.2 Daten'!B95,'2.2 Daten'!B112,'2.2 Daten'!B115,'2.2 Daten'!B162,'2.2 Daten'!B166,'2.2 Daten'!B221,'2.2 Daten'!B249,'2.2 Daten'!B287,'2.2 Daten'!B333,'2.2 Daten'!B431,'2.2 Daten'!B439,'2.2 Daten'!B442,'2.2 Daten'!B462,'2.2 Daten'!B472,'2.2 Daten'!B487,'2.2 Daten'!B503,x) -> Osnabrück, Stadt | B107: =IF($A107<>0,INDEX('2.2 Daten'!C$9:C$859,MATCH('2.2'!$A107,'2.2 Daten'!$B$9:$B$859,0))," ") -> 03404000 | C107: =IF($A107<>0,INDEX('2.2 Daten'!E$9:E$859,MATCH('2.2'!$A107,'2.2 Daten'!$B$9:$B$859,0))) -> 4913 | D107: =IF($A107<>0,INDEX('2.2 Daten'!F$9:F$859,MATCH('2.2'!$A107,'2.2 Daten'!$B$9:$B$859,0))) -> 804 | E107: =IF($A107<>0,INDEX('2.2 Daten'!G$9:G$859,MATCH('2.2'!$A107,'2.2 Daten'!$B$9:$B$859,0))) -> 945 | F107: =IF($A107<>0,INDEX('2.2 Daten'!H$9:H$859,MATCH('2.2'!$A107,'2.2 Daten'!$B$9:$B$859,0))) -> 2464 | G107: =IF($A107<>0,INDEX('2.2 Daten'!I$9:I$859,MATCH('2.2'!$A107,'2.2 Daten'!$B$9:$B$859,0))) -> 700 | H107: =IF($A107<>0,INDEX('2.2 Daten'!K$9:K$859,MATCH('2.2'!$A107,'2.2 Daten'!$B$9:$B$859,0))) -> 1.382583574 | I107: =IF($A107<>0,INDEX('2.2 Daten'!L$9:L$859,MATCH('2.2'!$A107,'2.2 Daten'!$B$9:$B$859,0))) -> -6.402793946 | J107: =IF($A107<>0,INDEX('2.2 Daten'!M$9:M$859,MATCH('2.2'!$A107,'2.2 Daten'!$B$9:$B$859,0))) -> 5.704697987 | K107: =IF($A107<>0,INDEX('2.2 Daten'!N$9:N$859,MATCH('2.2'!$A107,'2.2 Daten'!$B$9:$B$859,0))) -> 2.198257984 | L107: =IF($A107<>0,INDEX('2.2 Daten'!O$9:O$859,MATCH('2.2'!$A107,'2.2 Daten'!$B$9:$B$859,0))) -> 2.639296188
A108: =CHOOSE('2.2 Daten'!$A$2,'2.2 Daten'!B530,'2.2 Daten'!B79,'2.2 Daten'!B96,'2.2 Daten'!B113,'2.2 Daten'!B116,'2.2 Daten'!B163,'2.2 Daten'!B167,'2.2 Daten'!B222,'2.2 Daten'!B250,'2.2 Daten'!B288,'2.2 Daten'!B334,'2.2 Daten'!B432,'2.2 Daten'!B440,'2.2 Daten'!B443,'2.2 Daten'!B463,'2.2 Daten'!B473,'2.2 Daten'!B488,'2.2 Daten'!B504,x) -> Wilhelmshaven, Stadt | B108: =IF($A108<>0,INDEX('2.2 Daten'!C$9:C$859,MATCH('2.2'!$A108,'2.2 Daten'!$B$9:$B$859,0))," ") -> 03405000 | C108: =IF($A108<>0,INDEX('2.2 Daten'!E$9:E$859,MATCH('2.2'!$A108,'2.2 Daten'!$B$9:$B$859,0))) -> 3578 | D108: =IF($A108<>0,INDEX('2.2 Daten'!F$9:F$859,MATCH('2.2'!$A108,'2.2 Daten'!$B$9:$B$859,0))) -> 612 | E108: =IF($A108<>0,INDEX('2.2 Daten'!G$9:G$859,MATCH('2.2'!$A108,'2.2 Daten'!$B$9:$B$859,0))) -> 741 | F108: =IF($A108<>0,INDEX('2.2 Daten'!H$9:H$859,MATCH('2.2'!$A108,'2.2 Daten'!$B$9:$B$859,0))) -> 1727 | G108: =IF($A108<>0,INDEX('2.2 Daten'!I$9:I$859,MATCH('2.2'!$A108,'2.2 Daten'!$B$9:$B$859,0))) -> 498 | H108: =IF($A108<>0,INDEX('2.2 Daten'!K$9:K$859,MATCH('2.2'!$A108,'2.2 Daten'!$B$9:$B$859,0))) -> -0.9413067553 | I108: =IF($A108<>0,INDEX('2.2 Daten'!L$9:L$859,MATCH('2.2'!$A108,'2.2 Daten'!$B$9:$B$859,0))) -> -6.849315068 | J108: =IF($A108<>0,INDEX('2.2 Daten'!M$9:M$859,MATCH('2.2'!$A108,'2.2 Daten'!$B$9:$B$859,0))) -> 2.916666667 | K108: =IF($A108<>0,INDEX('2.2 Daten'!N$9:N$859,MATCH('2.2'!$A108,'2.2 Daten'!$B$9:$B$859,0))) -> -0.9179575445 | L108: =IF($A108<>0,INDEX('2.2 Daten'!O$9:O$859,MATCH('2.2'!$A108,'2.2 Daten'!$B$9:$B$859,0))) -> 1.219512195
A109: =CHOOSE('2.2 Daten'!$A$2,'2.2 Daten'!B531,'2.2 Daten'!B80,'2.2 Daten'!B97,'2.2 Daten'!B114,'2.2 Daten'!B117,'2.2 Daten'!B164,'2.2 Daten'!B168,'2.2 Daten'!B223,'2.2 Daten'!B251,'2.2 Daten'!B289,'2.2 Daten'!B335,'2.2 Daten'!B433,'2.2 Daten'!B441,'2.2 Daten'!B444,'2.2 Daten'!B464,'2.2 Daten'!B474,'2.2 Daten'!B489,'2.2 Daten'!B505,x) -> Ammerland | B109: =IF($A109<>0,INDEX('2.2 Daten'!C$9:C$859,MATCH('2.2'!$A109,'2.2 Daten'!$B$9:$B$859,0))," ") -> 03451000 | C109: =IF($A109<>0,INDEX('2.2 Daten'!E$9:E$859,MATCH('2.2'!$A109,'2.2 Daten'!$B$9:$B$859,0))) -> 2189 | D109: =IF($A109<>0,INDEX('2.2 Daten'!F$9:F$859,MATCH('2.2'!$A109,'2.2 Daten'!$B$9:$B$859,0))) -> 268 | E109: =IF($A109<>0,INDEX('2.2 Daten'!G$9:G$859,MATCH('2.2'!$A109,'2.2 Daten'!$B$9:$B$859,0))) -> 389 | F109: =IF($A109<>0,INDEX('2.2 Daten'!H$9:H$859,MATCH('2.2'!$A109,'2.2 Daten'!$B$9:$B$859,0))) -> 1201 | G109: =IF($A109<>0,INDEX('2.2 Daten'!I$9:I$859,MATCH('2.2'!$A109,'2.2 Daten'!$B$9:$B$859,0))) -> 331 | H109: =IF($A109<>0,INDEX('2.2 Daten'!K$9:K$859,MATCH('2.2'!$A109,'2.2 Daten'!$B$9:$B$859,0))) -> 6.365403304 | I109: =IF($A109<>0,INDEX('2.2 Daten'!L$9:L$859,MATCH('2.2'!$A109,'2.2 Daten'!$B$9:$B$859,0))) -> -3.94265233 | J109: =IF($A109<>0,INDEX('2.2 Daten'!M$9:M$859,MATCH('2.2'!$A109,'2.2 Daten'!$B$9:$B$859,0))) -> 9.269662921 | K109: =IF($A109<>0,INDEX('2.2 Daten'!N$9:N$859,MATCH('2.2'!$A109,'2.2 Daten'!$B$9:$B$859,0))) -> 7.713004484 | L109: =IF($A109<>0,INDEX('2.2 Daten'!O$9:O$859,MATCH('2.2'!$A109,'2.2 Daten'!$B$9:$B$859,0))) -> 7.467532468
A110: =CHOOSE('2.2 Daten'!$A$2,'2.2 Daten'!B532,'2.2 Daten'!B81,'2.2 Daten'!B98,'2.2 Daten'!B115,'2.2 Daten'!B118,'2.2 Daten'!B165,'2.2 Daten'!B169,'2.2 Daten'!B224,'2.2 Daten'!B252,'2.2 Daten'!B290,'2.2 Daten'!B336,'2.2 Daten'!B434,'2.2 Daten'!B442,'2.2 Daten'!B445,'2.2 Daten'!B465,'2.2 Daten'!B475,'2.2 Daten'!B490,'2.2 Daten'!B506,x) -> Aurich | B110: =IF($A110<>0,INDEX('2.2 Daten'!C$9:C$859,MATCH('2.2'!$A110,'2.2 Daten'!$B$9:$B$859,0))," ") -> 03452000 | C110: =IF($A110<>0,INDEX('2.2 Daten'!E$9:E$859,MATCH('2.2'!$A110,'2.2 Daten'!$B$9:$B$859,0))) -> 4450 | D110: =IF($A110<>0,INDEX('2.2 Daten'!F$9:F$859,MATCH('2.2'!$A110,'2.2 Daten'!$B$9:$B$859,0))) -> 743 | E110: =IF($A110<>0,INDEX('2.2 Daten'!G$9:G$859,MATCH('2.2'!$A110,'2.2 Daten'!$B$9:$B$859,0))) -> 858 | F110: =IF($A110<>0,INDEX('2.2 Daten'!H$9:H$859,MATCH('2.2'!$A110,'2.2 Daten'!$B$9:$B$859,0))) -> 2208 | G110: =IF($A110<>0,INDEX('2.2 Daten'!I$9:I$859,MATCH('2.2'!$A110,'2.2 Daten'!$B$9:$B$859,0))) -> 641 | H110: =IF($A110<>0,INDEX('2.2 Daten'!K$9:K$859,MATCH('2.2'!$A110,'2.2 Daten'!$B$9:$B$859,0))) -> -2.476440938 | I110: =IF($A110<>0,INDEX('2.2 Daten'!L$9:L$859,MATCH('2.2'!$A110,'2.2 Daten'!$B$9:$B$859,0))) -> -5.350318471 | J110: =IF($A110<>0,INDEX('2.2 Daten'!M$9:M$859,MATCH('2.2'!$A110,'2.2 Daten'!$B$9:$B$859,0))) -> -3.487064117 | K110: =IF($A110<>0,INDEX('2.2 Daten'!N$9:N$859,MATCH('2.2'!$A110,'2.2 Daten'!$B$9:$B$859,0))) -> -1.560410165 | L110: =IF($A110<>0,INDEX('2.2 Daten'!O$9:O$859,MATCH('2.2'!$A110,'2.2 Daten'!$B$9:$B$859,0))) -> -0.773993808
A111: =CHOOSE('2.2 Daten'!$A$2,'2.2 Daten'!B533,'2.2 Daten'!B82,'2.2 Daten'!B99,'2.2 Daten'!B116,'2.2 Daten'!B119,'2.2 Daten'!B166,'2.2 Daten'!B170,'2.2 Daten'!B225,'2.2 Daten'!B253,'2.2 Daten'!B291,'2.2 Daten'!B337,'2.2 Daten'!B435,'2.2 Daten'!B443,'2.2 Daten'!B446,'2.2 Daten'!B466,'2.2 Daten'!B476,'2.2 Daten'!B491,'2.2 Daten'!B507,x) -> Cloppenburg | B111: =IF($A111<>0,INDEX('2.2 Daten'!C$9:C$859,MATCH('2.2'!$A111,'2.2 Daten'!$B$9:$B$859,0))," ") -> 03453000 | C111: =IF($A111<>0,INDEX('2.2 Daten'!E$9:E$859,MATCH('2.2'!$A111,'2.2 Daten'!$B$9:$B$859,0))) -> 3178 | D111: =IF($A111<>0,INDEX('2.2 Daten'!F$9:F$859,MATCH('2.2'!$A111,'2.2 Daten'!$B$9:$B$859,0))) -> 523 | E111: =IF($A111<>0,INDEX('2.2 Daten'!G$9:G$859,MATCH('2.2'!$A111,'2.2 Daten'!$B$9:$B$859,0))) -> 575 | F111: =IF($A111<>0,INDEX('2.2 Daten'!H$9:H$859,MATCH('2.2'!$A111,'2.2 Daten'!$B$9:$B$859,0))) -> 1641 | G111: =IF($A111<>0,INDEX('2.2 Daten'!I$9:I$859,MATCH('2.2'!$A111,'2.2 Daten'!$B$9:$B$859,0))) -> 439 | H111: =IF($A111<>0,INDEX('2.2 Daten'!K$9:K$859,MATCH('2.2'!$A111,'2.2 Daten'!$B$9:$B$859,0))) -> 5.757071547 | I111: =IF($A111<>0,INDEX('2.2 Daten'!L$9:L$859,MATCH('2.2'!$A111,'2.2 Daten'!$B$9:$B$859,0))) -> 0.7707129094 | J111: =IF($A111<>0,INDEX('2.2 Daten'!M$9:M$859,MATCH('2.2'!$A111,'2.2 Daten'!$B$9:$B$859,0))) -> -1.372212693 | K111: =IF($A111<>0,INDEX('2.2 Daten'!N$9:N$859,MATCH('2.2'!$A111,'2.2 Daten'!$B$9:$B$859,0))) -> 11.17886179 | L111: =IF($A111<>0,INDEX('2.2 Daten'!O$9:O$859,MATCH('2.2'!$A111,'2.2 Daten'!$B$9:$B$859,0))) -> 2.81030445
A112: =CHOOSE('2.2 Daten'!$A$2,'2.2 Daten'!B534,'2.2 Daten'!B83,'2.2 Daten'!B100,'2.2 Daten'!B117,'2.2 Daten'!B120,'2.2 Daten'!B167,'2.2 Daten'!B171,'2.2 Daten'!B226,'2.2 Daten'!B254,'2.2 Daten'!B292,'2.2 Daten'!B338,'2.2 Daten'!B436,'2.2 Daten'!B444,'2.2 Daten'!B447,'2.2 Daten'!B467,'2.2 Daten'!B477,'2.2 Daten'!B492,'2.2 Daten'!B508,x) -> Emsland | B112: =IF($A112<>0,INDEX('2.2 Daten'!C$9:C$859,MATCH('2.2'!$A112,'2.2 Daten'!$B$9:$B$859,0))," ") -> 03454000 | C112: =IF($A112<>0,INDEX('2.2 Daten'!E$9:E$859,MATCH('2.2'!$A112,'2.2 Daten'!$B$9:$B$859,0))) -> 4595 | D112: =IF($A112<>0,INDEX('2.2 Daten'!F$9:F$859,MATCH('2.2'!$A112,'2.2 Daten'!$B$9:$B$859,0))) -> 688 | E112: =IF($A112<>0,INDEX('2.2 Daten'!G$9:G$859,MATCH('2.2'!$A112,'2.2 Daten'!$B$9:$B$859,0))) -> 830 | F112: =IF($A112<>0,INDEX('2.2 Daten'!H$9:H$859,MATCH('2.2'!$A112,'2.2 Daten'!$B$9:$B$859,0))) -> 2347 | G112: =IF($A112<>0,INDEX('2.2 Daten'!I$9:I$859,MATCH('2.2'!$A112,'2.2 Daten'!$B$9:$B$859,0))) -> 730 | H112: =IF($A112<>0,INDEX('2.2 Daten'!K$9:K$859,MATCH('2.2'!$A112,'2.2 Daten'!$B$9:$B$859,0))) -> 3.119389587 | I112: =IF($A112<>0,INDEX('2.2 Daten'!L$9:L$859,MATCH('2.2'!$A112,'2.2 Daten'!$B$9:$B$859,0))) -> -3.776223776 | J112: =IF($A112<>0,INDEX('2.2 Daten'!M$9:M$859,MATCH('2.2'!$A112,'2.2 Daten'!$B$9:$B$859,0))) -> -1.307966706 | K112: =IF($A112<>0,INDEX('2.2 Daten'!N$9:N$859,MATCH('2.2'!$A112,'2.2 Daten'!$B$9:$B$859,0))) -> 6.295289855 | L112: =IF($A112<>0,INDEX('2.2 Daten'!O$9:O$859,MATCH('2.2'!$A112,'2.2 Daten'!$B$9:$B$859,0))) -> 5.49132948
A113: =CHOOSE('2.2 Daten'!$A$2,'2.2 Daten'!B535,'2.2 Daten'!B84,'2.2 Daten'!B101,'2.2 Daten'!B118,'2.2 Daten'!B121,'2.2 Daten'!B168,'2.2 Daten'!B172,'2.2 Daten'!B227,'2.2 Daten'!B255,'2.2 Daten'!B293,'2.2 Daten'!B339,'2.2 Daten'!B437,'2.2 Daten'!B445,'2.2 Daten'!B448,'2.2 Daten'!B468,'2.2 Daten'!B478,'2.2 Daten'!B493,'2.2 Daten'!B509,x) -> Friesland | B113: =IF($A113<>0,INDEX('2.2 Daten'!C$9:C$859,MATCH('2.2'!$A113,'2.2 Daten'!$B$9:$B$859,0))," ") -> 03455000 | C113: =IF($A113<>0,INDEX('2.2 Daten'!E$9:E$859,MATCH('2.2'!$A113,'2.2 Daten'!$B$9:$B$859,0))) -> 1673 | D113: =IF($A113<>0,INDEX('2.2 Daten'!F$9:F$859,MATCH('2.2'!$A113,'2.2 Daten'!$B$9:$B$859,0))) -> 248 | E113: =IF($A113<>0,INDEX('2.2 Daten'!G$9:G$859,MATCH('2.2'!$A113,'2.2 Daten'!$B$9:$B$859,0))) -> 334 | F113: =IF($A113<>0,INDEX('2.2 Daten'!H$9:H$859,MATCH('2.2'!$A113,'2.2 Daten'!$B$9:$B$859,0))) -> 863 | G113: =IF($A113<>0,INDEX('2.2 Daten'!I$9:I$859,MATCH('2.2'!$A113,'2.2 Daten'!$B$9:$B$859,0))) -> 228 | H113: =IF($A113<>0,INDEX('2.2 Daten'!K$9:K$859,MATCH('2.2'!$A113,'2.2 Daten'!$B$9:$B$859,0))) -> 4.497189257 | I113: =IF($A113<>0,INDEX('2.2 Daten'!L$9:L$859,MATCH('2.2'!$A113,'2.2 Daten'!$B$9:$B$859,0))) -> 0.4048582996 | J113: =IF($A113<>0,INDEX('2.2 Daten'!M$9:M$859,MATCH('2.2'!$A113,'2.2 Daten'!$B$9:$B$859,0))) -> 4.049844237 | K113: =IF($A113<>0,INDEX('2.2 Daten'!N$9:N$859,MATCH('2.2'!$A113,'2.2 Daten'!$B$9:$B$859,0))) -> 7.071960298 | L113: =IF($A113<>0,INDEX('2.2 Daten'!O$9:O$859,MATCH('2.2'!$A113,'2.2 Daten'!$B$9:$B$859,0))) -> 0.4405286344
A114: =CHOOSE('2.2 Daten'!$A$2,'2.2 Daten'!B536,'2.2 Daten'!B85,'2.2 Daten'!B102,'2.2 Daten'!B119,'2.2 Daten'!B122,'2.2 Daten'!B169,'2.2 Daten'!B173,'2.2 Daten'!B228,'2.2 Daten'!B256,'2.2 Daten'!B294,'2.2 Daten'!B340,'2.2 Daten'!B438,'2.2 Daten'!B446,'2.2 Daten'!B449,'2.2 Daten'!B469,'2.2 Daten'!B479,'2.2 Daten'!B494,'2.2 Daten'!B510,x) -> Grafschaft Bentheim | B114: =IF($A114<>0,INDEX('2.2 Daten'!C$9:C$859,MATCH('2.2'!$A114,'2.2 Daten'!$B$9:$B$859,0))," ") -> 03456000 | C114: =IF($A114<>0,INDEX('2.2 Daten'!E$9:E$859,MATCH('2.2'!$A114,'2.2 Daten'!$B$9:$B$859,0))) -> 2101 | D114: =IF($A114<>0,INDEX('2.2 Daten'!F$9:F$859,MATCH('2.2'!$A114,'2.2 Daten'!$B$9:$B$859,0))) -> 359 | E114: =IF($A114<>0,INDEX('2.2 Daten'!G$9:G$859,MATCH('2.2'!$A114,'2.2 Daten'!$B$9:$B$859,0))) -> 394 | F114: =IF($A114<>0,INDEX('2.2 Daten'!H$9:H$859,MATCH('2.2'!$A114,'2.2 Daten'!$B$9:$B$859,0))) -> 1033 | G114: =IF($A114<>0,INDEX('2.2 Daten'!I$9:I$859,MATCH('2.2'!$A114,'2.2 Daten'!$B$9:$B$859,0))) -> 315 | H114: =IF($A114<>0,INDEX('2.2 Daten'!K$9:K$859,MATCH('2.2'!$A114,'2.2 Daten'!$B$9:$B$859,0))) -> 1.940805434 | I114: =IF($A114<>0,INDEX('2.2 Daten'!L$9:L$859,MATCH('2.2'!$A114,'2.2 Daten'!$B$9:$B$859,0))) -> -4.266666667 | J114: =IF($A114<>0,INDEX('2.2 Daten'!M$9:M$859,MATCH('2.2'!$A114,'2.2 Daten'!$B$9:$B$859,0))) -> 12.57142857 | K114: =IF($A114<>0,INDEX('2.2 Daten'!N$9:N$859,MATCH('2.2'!$A114,'2.2 Daten'!$B$9:$B$859,0))) -> -0.09671179884 | L114: =IF($A114<>0,INDEX('2.2 Daten'!O$9:O$859,MATCH('2.2'!$A114,'2.2 Daten'!$B$9:$B$859,0))) -> 4.304635762
A115: =CHOOSE('2.2 Daten'!$A$2,'2.2 Daten'!B537,'2.2 Daten'!B86,'2.2 Daten'!B103,'2.2 Daten'!B120,'2.2 Daten'!B123,'2.2 Daten'!B170,'2.2 Daten'!B174,'2.2 Daten'!B229,'2.2 Daten'!B257,'2.2 Daten'!B295,'2.2 Daten'!B341,'2.2 Daten'!B439,'2.2 Daten'!B447,'2.2 Daten'!B450,'2.2 Daten'!B470,'2.2 Daten'!B480,'2.2 Daten'!B495,'2.2 Daten'!B511,x) -> Leer | B115: =IF($A115<>0,INDEX('2.2 Daten'!C$9:C$859,MATCH('2.2'!$A115,'2.2 Daten'!$B$9:$B$859,0))," ") -> 03457000 | C115: =IF($A115<>0,INDEX('2.2 Daten'!E$9:E$859,MATCH('2.2'!$A115,'2.2 Daten'!$B$9:$B$859,0))) -> 3310 | D115: =IF($A115<>0,INDEX('2.2 Daten'!F$9:F$859,MATCH('2.2'!$A115,'2.2 Daten'!$B$9:$B$859,0))) -> 551 | E115: =IF($A115<>0,INDEX('2.2 Daten'!G$9:G$859,MATCH('2.2'!$A115,'2.2 Daten'!$B$9:$B$859,0))) -> 641 | F115: =IF($A115<>0,INDEX('2.2 Daten'!H$9:H$859,MATCH('2.2'!$A115,'2.2 Daten'!$B$9:$B$859,0))) -> 1649 | G115: =IF($A115<>0,INDEX('2.2 Daten'!I$9:I$859,MATCH('2.2'!$A115,'2.2 Daten'!$B$9:$B$859,0))) -> 469 | H115: =IF($A115<>0,INDEX('2.2 Daten'!K$9:K$859,MATCH('2.2'!$A115,'2.2 Daten'!$B$9:$B$859,0))) -> 4.482323232 | I115: =IF($A115<>0,INDEX('2.2 Daten'!L$9:L$859,MATCH('2.2'!$A115,'2.2 Daten'!$B$9:$B$859,0))) -> -3.50262697 | J115: =IF($A115<>0,INDEX('2.2 Daten'!M$9:M$859,MATCH('2.2'!$A115,'2.2 Daten'!$B$9:$B$859,0))) -> 6.833333333 | K115: =IF($A115<>0,INDEX('2.2 Daten'!N$9:N$859,MATCH('2.2'!$A115,'2.2 Daten'!$B$9:$B$859,0))) -> 6.731391586 | L115: =IF($A115<>0,INDEX('2.2 Daten'!O$9:O$859,MATCH('2.2'!$A115,'2.2 Daten'!$B$9:$B$859,0))) -> 3.761061947
A116: =CHOOSE('2.2 Daten'!$A$2,'2.2 Daten'!B538,'2.2 Daten'!B87,'2.2 Daten'!B104,'2.2 Daten'!B121,'2.2 Daten'!B124,'2.2 Daten'!B171,'2.2 Daten'!B175,'2.2 Daten'!B230,'2.2 Daten'!B258,'2.2 Daten'!B296,'2.2 Daten'!B342,'2.2 Daten'!B440,'2.2 Daten'!B448,'2.2 Daten'!B451,'2.2 Daten'!B471,'2.2 Daten'!B481,'2.2 Daten'!B496,'2.2 Daten'!B512,x) -> Oldenburg | B116: =IF($A116<>0,INDEX('2.2 Daten'!C$9:C$859,MATCH('2.2'!$A116,'2.2 Daten'!$B$9:$B$859,0))," ") -> 03458000 | C116: =IF($A116<>0,INDEX('2.2 Daten'!E$9:E$859,MATCH('2.2'!$A116,'2.2 Daten'!$B$9:$B$859,0))) -> 1964 | D116: =IF($A116<>0,INDEX('2.2 Daten'!F$9:F$859,MATCH('2.2'!$A116,'2.2 Daten'!$B$9:$B$859,0))) -> 289 | E116: =IF($A116<>0,INDEX('2.2 Daten'!G$9:G$859,MATCH('2.2'!$A116,'2.2 Daten'!$B$9:$B$859,0))) -> 356 | F116: =IF($A116<>0,INDEX('2.2 Daten'!H$9:H$859,MATCH('2.2'!$A116,'2.2 Daten'!$B$9:$B$859,0))) -> 1005 | G116: =IF($A116<>0,INDEX('2.2 Daten'!I$9:I$859,MATCH('2.2'!$A116,'2.2 Daten'!$B$9:$B$859,0))) -> 314 | H116: =IF($A116<>0,INDEX('2.2 Daten'!K$9:K$859,MATCH('2.2'!$A116,'2.2 Daten'!$B$9:$B$859,0))) -> 1.289324394 | I116: =IF($A116<>0,INDEX('2.2 Daten'!L$9:L$859,MATCH('2.2'!$A116,'2.2 Daten'!$B$9:$B$859,0))) -> -6.472491909 | J116: =IF($A116<>0,INDEX('2.2 Daten'!M$9:M$859,MATCH('2.2'!$A116,'2.2 Daten'!$B$9:$B$859,0))) -> 2.89017341 | K116: =IF($A116<>0,INDEX('2.2 Daten'!N$9:N$859,MATCH('2.2'!$A116,'2.2 Daten'!$B$9:$B$859,0))) -> 3.288797533 | L116: =IF($A116<>0,INDEX('2.2 Daten'!O$9:O$859,MATCH('2.2'!$A116,'2.2 Daten'!$B$9:$B$859,0))) -> 0.9646302251
A117: =CHOOSE('2.2 Daten'!$A$2,'2.2 Daten'!B539,'2.2 Daten'!B88,'2.2 Daten'!B105,'2.2 Daten'!B122,'2.2 Daten'!B125,'2.2 Daten'!B172,'2.2 Daten'!B176,'2.2 Daten'!B231,'2.2 Daten'!B259,'2.2 Daten'!B297,'2.2 Daten'!B343,'2.2 Daten'!B441,'2.2 Daten'!B449,'2.2 Daten'!B452,'2.2 Daten'!B472,'2.2 Daten'!B482,'2.2 Daten'!B497,'2.2 Daten'!B513,x) -> Osnabrück | B117: =IF($A117<>0,INDEX('2.2 Daten'!C$9:C$859,MATCH('2.2'!$A117,'2.2 Daten'!$B$9:$B$859,0))," ") -> 03459000 | C117: =IF($A117<>0,INDEX('2.2 Daten'!E$9:E$859,MATCH('2.2'!$A117,'2.2 Daten'!$B$9:$B$859,0))) -> 4691 | D117: =IF($A117<>0,INDEX('2.2 Daten'!F$9:F$859,MATCH('2.2'!$A117,'2.2 Daten'!$B$9:$B$859,0))) -> 791 | E117: =IF($A117<>0,INDEX('2.2 Daten'!G$9:G$859,MATCH('2.2'!$A117,'2.2 Daten'!$B$9:$B$859,0))) -> 874 | F117: =IF($A117<>0,INDEX('2.2 Daten'!H$9:H$859,MATCH('2.2'!$A117,'2.2 Daten'!$B$9:$B$859,0))) -> 2438 | G117: =IF($A117<>0,INDEX('2.2 Daten'!I$9:I$859,MATCH('2.2'!$A117,'2.2 Daten'!$B$9:$B$859,0))) -> 588 | H117: =IF($A117<>0,INDEX('2.2 Daten'!K$9:K$859,MATCH('2.2'!$A117,'2.2 Daten'!$B$9:$B$859,0))) -> 16.57554672 | I117: =IF($A117<>0,INDEX('2.2 Daten'!L$9:L$859,MATCH('2.2'!$A117,'2.2 Daten'!$B$9:$B$859,0))) -> 16.83899557 | J117: =IF($A117<>0,INDEX('2.2 Daten'!M$9:M$859,MATCH('2.2'!$A117,'2.2 Daten'!$B$9:$B$859,0))) -> 15.30343008 | K117: =IF($A117<>0,INDEX('2.2 Daten'!N$9:N$859,MATCH('2.2'!$A117,'2.2 Daten'!$B$9:$B$859,0))) -> 17.60733237 | L117: =IF($A117<>0,INDEX('2.2 Daten'!O$9:O$859,MATCH('2.2'!$A117,'2.2 Daten'!$B$9:$B$859,0))) -> 13.95348837
A118: =CHOOSE('2.2 Daten'!$A$2,'2.2 Daten'!B540,'2.2 Daten'!B89,'2.2 Daten'!B106,'2.2 Daten'!B123,'2.2 Daten'!B126,'2.2 Daten'!B173,'2.2 Daten'!B177,'2.2 Daten'!B232,'2.2 Daten'!B260,'2.2 Daten'!B298,'2.2 Daten'!B344,'2.2 Daten'!B442,'2.2 Daten'!B450,'2.2 Daten'!B453,'2.2 Daten'!B473,'2.2 Daten'!B483,'2.2 Daten'!B498,'2.2 Daten'!B514,x) -> Vechta | B118: =IF($A118<>0,INDEX('2.2 Daten'!C$9:C$859,MATCH('2.2'!$A118,'2.2 Daten'!$B$9:$B$859,0))," ") -> 03460000 | C118: =IF($A118<>0,INDEX('2.2 Daten'!E$9:E$859,MATCH('2.2'!$A118,'2.2 Daten'!$B$9:$B$859,0))) -> 2906 | D118: =IF($A118<>0,INDEX('2.2 Daten'!F$9:F$859,MATCH('2.2'!$A118,'2.2 Daten'!$B$9:$B$859,0))) -> 450 | E118: =IF($A118<>0,INDEX('2.2 Daten'!G$9:G$859,MATCH('2.2'!$A118,'2.2 Daten'!$B$9:$B$859,0))) -> 535 | F118: =IF($A118<>0,INDEX('2.2 Daten'!H$9:H$859,MATCH('2.2'!$A118,'2.2 Daten'!$B$9:$B$859,0))) -> 1476 | G118: =IF($A118<>0,INDEX('2.2 Daten'!I$9:I$859,MATCH('2.2'!$A118,'2.2 Daten'!$B$9:$B$859,0))) -> 445 | H118: =IF($A118<>0,INDEX('2.2 Daten'!K$9:K$859,MATCH('2.2'!$A118,'2.2 Daten'!$B$9:$B$859,0))) -> 6.407909191 | I118: =IF($A118<>0,INDEX('2.2 Daten'!L$9:L$859,MATCH('2.2'!$A118,'2.2 Daten'!$B$9:$B$859,0))) -> -0.8810572687 | J118: =IF($A118<>0,INDEX('2.2 Daten'!M$9:M$859,MATCH('2.2'!$A118,'2.2 Daten'!$B$9:$B$859,0))) -> 14.31623932 | K118: =IF($A118<>0,INDEX('2.2 Daten'!N$9:N$859,MATCH('2.2'!$A118,'2.2 Daten'!$B$9:$B$859,0))) -> 4.978662873 | L118: =IF($A118<>0,INDEX('2.2 Daten'!O$9:O$859,MATCH('2.2'!$A118,'2.2 Daten'!$B$9:$B$859,0))) -> 10.42183623
A119: =CHOOSE('2.2 Daten'!$A$2,'2.2 Daten'!B541,'2.2 Daten'!B90,'2.2 Daten'!B107,'2.2 Daten'!B124,'2.2 Daten'!B127,'2.2 Daten'!B174,'2.2 Daten'!B178,'2.2 Daten'!B233,'2.2 Daten'!B261,'2.2 Daten'!B299,'2.2 Daten'!B345,'2.2 Daten'!B443,'2.2 Daten'!B451,'2.2 Daten'!B454,'2.2 Daten'!B474,'2.2 Daten'!B484,'2.2 Daten'!B499,'2.2 Daten'!B515,x) -> Wesermarsch | B119: =IF($A119<>0,INDEX('2.2 Daten'!C$9:C$859,MATCH('2.2'!$A119,'2.2 Daten'!$B$9:$B$859,0))," ") -> 03461000 | C119: =IF($A119<>0,INDEX('2.2 Daten'!E$9:E$859,MATCH('2.2'!$A119,'2.2 Daten'!$B$9:$B$859,0))) -> 2366 | D119: =IF($A119<>0,INDEX('2.2 Daten'!F$9:F$859,MATCH('2.2'!$A119,'2.2 Daten'!$B$9:$B$859,0))) -> 369 | E119: =IF($A119<>0,INDEX('2.2 Daten'!G$9:G$859,MATCH('2.2'!$A119,'2.2 Daten'!$B$9:$B$859,0))) -> 437 | F119: =IF($A119<>0,INDEX('2.2 Daten'!H$9:H$859,MATCH('2.2'!$A119,'2.2 Daten'!$B$9:$B$859,0))) -> 1252 | G119: =IF($A119<>0,INDEX('2.2 Daten'!I$9:I$859,MATCH('2.2'!$A119,'2.2 Daten'!$B$9:$B$859,0))) -> 308 | H119: =IF($A119<>0,INDEX('2.2 Daten'!K$9:K$859,MATCH('2.2'!$A119,'2.2 Daten'!$B$9:$B$859,0))) -> 3.590192644 | I119: =IF($A119<>0,INDEX('2.2 Daten'!L$9:L$859,MATCH('2.2'!$A119,'2.2 Daten'!$B$9:$B$859,0))) -> -1.861702128 | J119: =IF($A119<>0,INDEX('2.2 Daten'!M$9:M$859,MATCH('2.2'!$A119,'2.2 Daten'!$B$9:$B$859,0))) -> -0.6818181818 | K119: =IF($A119<>0,INDEX('2.2 Daten'!N$9:N$859,MATCH('2.2'!$A119,'2.2 Daten'!$B$9:$B$859,0))) -> 7.375643225 | L119: =IF($A119<>0,INDEX('2.2 Daten'!O$9:O$859,MATCH('2.2'!$A119,'2.2 Daten'!$B$9:$B$859,0))) -> 1.986754967
A120: =CHOOSE('2.2 Daten'!$A$2,'2.2 Daten'!B542,'2.2 Daten'!B91,'2.2 Daten'!B108,'2.2 Daten'!B125,'2.2 Daten'!B128,'2.2 Daten'!B175,'2.2 Daten'!B179,'2.2 Daten'!B234,'2.2 Daten'!B262,'2.2 Daten'!B300,'2.2 Daten'!B346,'2.2 Daten'!B444,'2.2 Daten'!B452,'2.2 Daten'!B455,'2.2 Daten'!B475,'2.2 Daten'!B485,'2.2 Daten'!B500,'2.2 Daten'!B516,x) -> Wittmund | B120: =IF($A120<>0,INDEX('2.2 Daten'!C$9:C$859,MATCH('2.2'!$A120,'2.2 Daten'!$B$9:$B$859,0))," ") -> 03462000 | C120: =IF($A120<>0,INDEX('2.2 Daten'!E$9:E$859,MATCH('2.2'!$A120,'2.2 Daten'!$B$9:$B$859,0))) -> 1140 | D120: =IF($A120<>0,INDEX('2.2 Daten'!F$9:F$859,MATCH('2.2'!$A120,'2.2 Daten'!$B$9:$B$859,0))) -> 181 | E120: =IF($A120<>0,INDEX('2.2 Daten'!G$9:G$859,MATCH('2.2'!$A120,'2.2 Daten'!$B$9:$B$859,0))) -> 192 | F120: =IF($A120<>0,INDEX('2.2 Daten'!H$9:H$859,MATCH('2.2'!$A120,'2.2 Daten'!$B$9:$B$859,0))) -> 609 | G120: =IF($A120<>0,INDEX('2.2 Daten'!I$9:I$859,MATCH('2.2'!$A120,'2.2 Daten'!$B$9:$B$859,0))) -> 158 | H120: =IF($A120<>0,INDEX('2.2 Daten'!K$9:K$859,MATCH('2.2'!$A120,'2.2 Daten'!$B$9:$B$859,0))) -> 7.142857143 | I120: =IF($A120<>0,INDEX('2.2 Daten'!L$9:L$859,MATCH('2.2'!$A120,'2.2 Daten'!$B$9:$B$859,0))) -> 4.022988506 | J120: =IF($A120<>0,INDEX('2.2 Daten'!M$9:M$859,MATCH('2.2'!$A120,'2.2 Daten'!$B$9:$B$859,0))) -> -5.418719212 | K120: =IF($A120<>0,INDEX('2.2 Daten'!N$9:N$859,MATCH('2.2'!$A120,'2.2 Daten'!$B$9:$B$859,0))) -> 11.53846154 | L120: =IF($A120<>0,INDEX('2.2 Daten'!O$9:O$859,MATCH('2.2'!$A120,'2.2 Daten'!$B$9:$B$859,0))) -> 12.05673759
A121: =CHOOSE('2.2 Daten'!$A$2,'2.2 Daten'!B543,'2.2 Daten'!B92,'2.2 Daten'!B109,'2.2 Daten'!B126,'2.2 Daten'!B129,'2.2 Daten'!B176,'2.2 Daten'!B180,'2.2 Daten'!B235,'2.2 Daten'!B263,'2.2 Daten'!B301,'2.2 Daten'!B347,'2.2 Daten'!B445,'2.2 Daten'!B453,'2.2 Daten'!B456,'2.2 Daten'!B476,'2.2 Daten'!B486,'2.2 Daten'!B501,'2.2 Daten'!B517,x) -> 0 | B121: =IF($A121<>0,INDEX('2.2 Daten'!C$9:C$859,MATCH('2.2'!$A121,'2.2 Daten'!$B$9:$B$859,0))," ") ->  | C121: =IF($A121<>0,INDEX('2.2 Daten'!E$9:E$859,MATCH('2.2'!$A121,'2.2 Daten'!$B$9:$B$859,0))) -> FALSE | D121: =IF($A121<>0,INDEX('2.2 Daten'!F$9:F$859,MATCH('2.2'!$A121,'2.2 Daten'!$B$9:$B$859,0))) -> FALSE | E121: =IF($A121<>0,INDEX('2.2 Daten'!G$9:G$859,MATCH('2.2'!$A121,'2.2 Daten'!$B$9:$B$859,0))) -> FALSE | F121: =IF($A121<>0,INDEX('2.2 Daten'!H$9:H$859,MATCH('2.2'!$A121,'2.2 Daten'!$B$9:$B$859,0))) -> FALSE | G121: =IF($A121<>0,INDEX('2.2 Daten'!I$9:I$859,MATCH('2.2'!$A121,'2.2 Daten'!$B$9:$B$859,0))) -> FALSE | H121: =IF($A121<>0,INDEX('2.2 Daten'!K$9:K$859,MATCH('2.2'!$A121,'2.2 Daten'!$B$9:$B$859,0))) -> FALSE | I121: =IF($A121<>0,INDEX('2.2 Daten'!L$9:L$859,MATCH('2.2'!$A121,'2.2 Daten'!$B$9:$B$859,0))) -> FALSE | J121: =IF($A121<>0,INDEX('2.2 Daten'!M$9:M$859,MATCH('2.2'!$A121,'2.2 Daten'!$B$9:$B$859,0))) -> FALSE | K121: =IF($A121<>0,INDEX('2.2 Daten'!N$9:N$859,MATCH('2.2'!$A121,'2.2 Daten'!$B$9:$B$859,0))) -> FALSE | L121: =IF($A121<>0,INDEX('2.2 Daten'!O$9:O$859,MATCH('2.2'!$A121,'2.2 Daten'!$B$9:$B$859,0))) -> FALSE
A122: =CHOOSE('2.2 Daten'!$A$2,'2.2 Daten'!B544,'2.2 Daten'!B93,'2.2 Daten'!B110,'2.2 Daten'!B127,'2.2 Daten'!B130,'2.2 Daten'!B177,'2.2 Daten'!B181,'2.2 Daten'!B236,'2.2 Daten'!B264,'2.2 Daten'!B302,'2.2 Daten'!B348,'2.2 Daten'!B446,'2.2 Daten'!B454,'2.2 Daten'!B457,'2.2 Daten'!B477,'2.2 Daten'!B487,'2.2 Daten'!B502,'2.2 Daten'!B518,x) -> Bremen | B122: =IF($A122<>0,INDEX('2.2 Daten'!C$9:C$859,MATCH('2.2'!$A122,'2.2 Daten'!$B$9:$B$859,0))," ") -> 04 | C122: =IF($A122<>0,INDEX('2.2 Daten'!E$9:E$859,MATCH('2.2'!$A122,'2.2 Daten'!$B$9:$B$859,0))) -> 35729 | D122: =IF($A122<>0,INDEX('2.2 Daten'!F$9:F$859,MATCH('2.2'!$A122,'2.2 Daten'!$B$9:$B$859,0))) -> 6380 | E122: =IF($A122<>0,INDEX('2.2 Daten'!G$9:G$859,MATCH('2.2'!$A122,'2.2 Daten'!$B$9:$B$859,0))) -> 7227 | F122: =IF($A122<>0,INDEX('2.2 Daten'!H$9:H$859,MATCH('2.2'!$A122,'2.2 Daten'!$B$9:$B$859,0))) -> 17292 | G122: =IF($A122<>0,INDEX('2.2 Daten'!I$9:I$859,MATCH('2.2'!$A122,'2.2 Daten'!$B$9:$B$859,0))) -> 4830 | H122: =IF($A122<>0,INDEX('2.2 Daten'!K$9:K$859,MATCH('2.2'!$A122,'2.2 Daten'!$B$9:$B$859,0))) -> 1.928508259 | I122: =IF($A122<>0,INDEX('2.2 Daten'!L$9:L$859,MATCH('2.2'!$A122,'2.2 Daten'!$B$9:$B$859,0))) -> -5.002977963 | J122: =IF($A122<>0,INDEX('2.2 Daten'!M$9:M$859,MATCH('2.2'!$A122,'2.2 Daten'!$B$9:$B$859,0))) -> 2.773037543 | K122: =IF($A122<>0,INDEX('2.2 Daten'!N$9:N$859,MATCH('2.2'!$A122,'2.2 Daten'!$B$9:$B$859,0))) -> 4.012030075 | L122: =IF($A122<>0,INDEX('2.2 Daten'!O$9:O$859,MATCH('2.2'!$A122,'2.2 Daten'!$B$9:$B$859,0))) -> 3.205128205
A123: =CHOOSE('2.2 Daten'!$A$2,'2.2 Daten'!B545,'2.2 Daten'!B94,'2.2 Daten'!B111,'2.2 Daten'!B128,'2.2 Daten'!B131,'2.2 Daten'!B178,'2.2 Daten'!B182,'2.2 Daten'!B237,'2.2 Daten'!B265,'2.2 Daten'!B303,'2.2 Daten'!B349,'2.2 Daten'!B447,'2.2 Daten'!B455,'2.2 Daten'!B458,'2.2 Daten'!B478,'2.2 Daten'!B488,'2.2 Daten'!B503,'2.2 Daten'!B519,x) -> Bremen, Stadt | B123: =IF($A123<>0,INDEX('2.2 Daten'!C$9:C$859,MATCH('2.2'!$A123,'2.2 Daten'!$B$9:$B$859,0))," ") -> 04011000 | C123: =IF($A123<>0,INDEX('2.2 Daten'!E$9:E$859,MATCH('2.2'!$A123,'2.2 Daten'!$B$9:$B$859,0))) -> 28430 | D123: =IF($A123<>0,INDEX('2.2 Daten'!F$9:F$859,MATCH('2.2'!$A123,'2.2 Daten'!$B$9:$B$859,0))) -> 5120 | E123: =IF($A123<>0,INDEX('2.2 Daten'!G$9:G$859,MATCH('2.2'!$A123,'2.2 Daten'!$B$9:$B$859,0))) -> 5851 | F123: =IF($A123<>0,INDEX('2.2 Daten'!H$9:H$859,MATCH('2.2'!$A123,'2.2 Daten'!$B$9:$B$859,0))) -> 13668 | G123: =IF($A123<>0,INDEX('2.2 Daten'!I$9:I$859,MATCH('2.2'!$A123,'2.2 Daten'!$B$9:$B$859,0))) -> 3791 | H123: =IF($A123<>0,INDEX('2.2 Daten'!K$9:K$859,MATCH('2.2'!$A123,'2.2 Daten'!$B$9:$B$859,0))) -> 1.170776841 | I123: =IF($A123<>0,INDEX('2.2 Daten'!L$9:L$859,MATCH('2.2'!$A123,'2.2 Daten'!$B$9:$B$859,0))) -> -6.756510654 | J123: =IF($A123<>0,INDEX('2.2 Daten'!M$9:M$859,MATCH('2.2'!$A123,'2.2 Daten'!$B$9:$B$859,0))) -> 3.283318623 | K123: =IF($A123<>0,INDEX('2.2 Daten'!N$9:N$859,MATCH('2.2'!$A123,'2.2 Daten'!$B$9:$B$859,0))) -> 3.35753176 | L123: =IF($A123<>0,INDEX('2.2 Daten'!O$9:O$859,MATCH('2.2'!$A123,'2.2 Daten'!$B$9:$B$859,0))) -> 1.881214727
A124: =CHOOSE('2.2 Daten'!$A$2,'2.2 Daten'!B546,'2.2 Daten'!B95,'2.2 Daten'!B112,'2.2 Daten'!B129,'2.2 Daten'!B132,'2.2 Daten'!B179,'2.2 Daten'!B183,'2.2 Daten'!B238,'2.2 Daten'!B266,'2.2 Daten'!B304,'2.2 Daten'!B350,'2.2 Daten'!B448,'2.2 Daten'!B456,'2.2 Daten'!B459,'2.2 Daten'!B479,'2.2 Daten'!B489,'2.2 Daten'!B504,'2.2 Daten'!B520,x) -> Bremerhaven, Stadt | B124: =IF($A124<>0,INDEX('2.2 Daten'!C$9:C$859,MATCH('2.2'!$A124,'2.2 Daten'!$B$9:$B$859,0))," ") -> 04012000 | C124: =IF($A124<>0,INDEX('2.2 Daten'!E$9:E$859,MATCH('2.2'!$A124,'2.2 Daten'!$B$9:$B$859,0))) -> 7299 | D124: =IF($A124<>0,INDEX('2.2 Daten'!F$9:F$859,MATCH('2.2'!$A124,'2.2 Daten'!$B$9:$B$859,0))) -> 1260 | E124: =IF($A124<>0,INDEX('2.2 Daten'!G$9:G$859,MATCH('2.2'!$A124,'2.2 Daten'!$B$9:$B$859,0))) -> 1376 | F124: =IF($A124<>0,INDEX('2.2 Daten'!H$9:H$859,MATCH('2.2'!$A124,'2.2 Daten'!$B$9:$B$859,0))) -> 3624 | G124: =IF($A124<>0,INDEX('2.2 Daten'!I$9:I$859,MATCH('2.2'!$A124,'2.2 Daten'!$B$9:$B$859,0))) -> 1039 | H124: =IF($A124<>0,INDEX('2.2 Daten'!K$9:K$859,MATCH('2.2'!$A124,'2.2 Daten'!$B$9:$B$859,0))) -> 4.99136939 | I124: =IF($A124<>0,INDEX('2.2 Daten'!L$9:L$859,MATCH('2.2'!$A124,'2.2 Daten'!$B$9:$B$859,0))) -> 2.857142857 | J124: =IF($A124<>0,INDEX('2.2 Daten'!M$9:M$859,MATCH('2.2'!$A124,'2.2 Daten'!$B$9:$B$859,0))) -> 0.6583760059 | K124: =IF($A124<>0,INDEX('2.2 Daten'!N$9:N$859,MATCH('2.2'!$A124,'2.2 Daten'!$B$9:$B$859,0))) -> 6.556895031 | L124: =IF($A124<>0,INDEX('2.2 Daten'!O$9:O$859,MATCH('2.2'!$A124,'2.2 Daten'!$B$9:$B$859,0))) -> 8.342022941
A125: =CHOOSE('2.2 Daten'!$A$2,'2.2 Daten'!B547,'2.2 Daten'!B96,'2.2 Daten'!B113,'2.2 Daten'!B130,'2.2 Daten'!B133,'2.2 Daten'!B180,'2.2 Daten'!B184,'2.2 Daten'!B239,'2.2 Daten'!B267,'2.2 Daten'!B305,'2.2 Daten'!B351,'2.2 Daten'!B449,'2.2 Daten'!B457,'2.2 Daten'!B460,'2.2 Daten'!B480,'2.2 Daten'!B490,'2.2 Daten'!B505,'2.2 Daten'!B521,x) -> 0 | B125: =IF($A125<>0,INDEX('2.2 Daten'!C$9:C$859,MATCH('2.2'!$A125,'2.2 Daten'!$B$9:$B$859,0))," ") ->  | C125: =IF($A125<>0,INDEX('2.2 Daten'!E$9:E$859,MATCH('2.2'!$A125,'2.2 Daten'!$B$9:$B$859,0))) -> FALSE | D125: =IF($A125<>0,INDEX('2.2 Daten'!F$9:F$859,MATCH('2.2'!$A125,'2.2 Daten'!$B$9:$B$859,0))) -> FALSE | E125: =IF($A125<>0,INDEX('2.2 Daten'!G$9:G$859,MATCH('2.2'!$A125,'2.2 Daten'!$B$9:$B$859,0))) -> FALSE | F125: =IF($A125<>0,INDEX('2.2 Daten'!H$9:H$859,MATCH('2.2'!$A125,'2.2 Daten'!$B$9:$B$859,0))) -> FALSE | G125: =IF($A125<>0,INDEX('2.2 Daten'!I$9:I$859,MATCH('2.2'!$A125,'2.2 Daten'!$B$9:$B$859,0))) -> FALSE | H125: =IF($A125<>0,INDEX('2.2 Daten'!K$9:K$859,MATCH('2.2'!$A125,'2.2 Daten'!$B$9:$B$859,0))) -> FALSE | I125: =IF($A125<>0,INDEX('2.2 Daten'!L$9:L$859,MATCH('2.2'!$A125,'2.2 Daten'!$B$9:$B$859,0))) -> FALSE | J125: =IF($A125<>0,INDEX('2.2 Daten'!M$9:M$859,MATCH('2.2'!$A125,'2.2 Daten'!$B$9:$B$859,0))) -> FALSE | K125: =IF($A125<>0,INDEX('2.2 Daten'!N$9:N$859,MATCH('2.2'!$A125,'2.2 Daten'!$B$9:$B$859,0))) -> FALSE | L125: =IF($A125<>0,INDEX('2.2 Daten'!O$9:O$859,MATCH('2.2'!$A125,'2.2 Daten'!$B$9:$B$859,0))) -> FALSE
A126: =CHOOSE('2.2 Daten'!$A$2,'2.2 Daten'!B548,'2.2 Daten'!B97,'2.2 Daten'!B114,'2.2 Daten'!B131,'2.2 Daten'!B134,'2.2 Daten'!B181,'2.2 Daten'!B185,'2.2 Daten'!B240,'2.2 Daten'!B268,'2.2 Daten'!B306,'2.2 Daten'!B352,'2.2 Daten'!B450,'2.2 Daten'!B458,'2.2 Daten'!B461,'2.2 Daten'!B481,'2.2 Daten'!B491,'2.2 Daten'!B506,'2.2 Daten'!B522,x) -> Nordrhein-Westfalen | B126: =IF($A126<>0,INDEX('2.2 Daten'!C$9:C$859,MATCH('2.2'!$A126,'2.2 Daten'!$B$9:$B$859,0))," ") -> 05 | C126: =IF($A126<>0,INDEX('2.2 Daten'!E$9:E$859,MATCH('2.2'!$A126,'2.2 Daten'!$B$9:$B$859,0))) -> 556978 | D126: =IF($A126<>0,INDEX('2.2 Daten'!F$9:F$859,MATCH('2.2'!$A126,'2.2 Daten'!$B$9:$B$859,0))) -> 88234 | E126: =IF($A126<>0,INDEX('2.2 Daten'!G$9:G$859,MATCH('2.2'!$A126,'2.2 Daten'!$B$9:$B$859,0))) -> 103764 | F126: =IF($A126<>0,INDEX('2.2 Daten'!H$9:H$859,MATCH('2.2'!$A126,'2.2 Daten'!$B$9:$B$859,0))) -> 284099 | G126: =IF($A126<>0,INDEX('2.2 Daten'!I$9:I$859,MATCH('2.2'!$A126,'2.2 Daten'!$B$9:$B$859,0))) -> 80881 | H126: =IF($A126<>0,INDEX('2.2 Daten'!K$9:K$859,MATCH('2.2'!$A126,'2.2 Daten'!$B$9:$B$859,0))) -> 1.255656088 | I126: =IF($A126<>0,INDEX('2.2 Daten'!L$9:L$859,MATCH('2.2'!$A126,'2.2 Daten'!$B$9:$B$859,0))) -> -4.509691454 | J126: =IF($A126<>0,INDEX('2.2 Daten'!M$9:M$859,MATCH('2.2'!$A126,'2.2 Daten'!$B$9:$B$859,0))) -> -0.1472328878 | K126: =IF($A126<>0,INDEX('2.2 Daten'!N$9:N$859,MATCH('2.2'!$A126,'2.2 Daten'!$B$9:$B$859,0))) -> 3.08007692 | L126: =IF($A126<>0,INDEX('2.2 Daten'!O$9:O$859,MATCH('2.2'!$A126,'2.2 Daten'!$B$9:$B$859,0))) -> 3.503832717
A127: =CHOOSE('2.2 Daten'!$A$2,'2.2 Daten'!B549,'2.2 Daten'!B98,'2.2 Daten'!B115,'2.2 Daten'!B132,'2.2 Daten'!B135,'2.2 Daten'!B182,'2.2 Daten'!B186,'2.2 Daten'!B241,'2.2 Daten'!B269,'2.2 Daten'!B307,'2.2 Daten'!B353,'2.2 Daten'!B451,'2.2 Daten'!B459,'2.2 Daten'!B462,'2.2 Daten'!B482,'2.2 Daten'!B492,'2.2 Daten'!B507,'2.2 Daten'!B523,x) -> Düsseldorf, Stadt | B127: =IF($A127<>0,INDEX('2.2 Daten'!C$9:C$859,MATCH('2.2'!$A127,'2.2 Daten'!$B$9:$B$859,0))," ") -> 05111000 | C127: =IF($A127<>0,INDEX('2.2 Daten'!E$9:E$859,MATCH('2.2'!$A127,'2.2 Daten'!$B$9:$B$859,0))) -> 18266 | D127: =IF($A127<>0,INDEX('2.2 Daten'!F$9:F$859,MATCH('2.2'!$A127,'2.2 Daten'!$B$9:$B$859,0))) -> 2497 | E127: =IF($A127<>0,INDEX('2.2 Daten'!G$9:G$859,MATCH('2.2'!$A127,'2.2 Daten'!$B$9:$B$859,0))) -> 3274 | F127: =IF($A127<>0,INDEX('2.2 Daten'!H$9:H$859,MATCH('2.2'!$A127,'2.2 Daten'!$B$9:$B$859,0))) -> 9695 | G127: =IF($A127<>0,INDEX('2.2 Daten'!I$9:I$859,MATCH('2.2'!$A127,'2.2 Daten'!$B$9:$B$859,0))) -> 2800 | H127: =IF($A127<>0,INDEX('2.2 Daten'!K$9:K$859,MATCH('2.2'!$A127,'2.2 Daten'!$B$9:$B$859,0))) -> -3.236743127 | I127: =IF($A127<>0,INDEX('2.2 Daten'!L$9:L$859,MATCH('2.2'!$A127,'2.2 Daten'!$B$9:$B$859,0))) -> -10.98039216 | J127: =IF($A127<>0,INDEX('2.2 Daten'!M$9:M$859,MATCH('2.2'!$A127,'2.2 Daten'!$B$9:$B$859,0))) -> -4.46454625 | K127: =IF($A127<>0,INDEX('2.2 Daten'!N$9:N$859,MATCH('2.2'!$A127,'2.2 Daten'!$B$9:$B$859,0))) -> -2.02122284 | L127: =IF($A127<>0,INDEX('2.2 Daten'!O$9:O$859,MATCH('2.2'!$A127,'2.2 Daten'!$B$9:$B$859,0))) -> 1.818181818
A128: =CHOOSE('2.2 Daten'!$A$2,'2.2 Daten'!B550,'2.2 Daten'!B99,'2.2 Daten'!B116,'2.2 Daten'!B133,'2.2 Daten'!B136,'2.2 Daten'!B183,'2.2 Daten'!B187,'2.2 Daten'!B242,'2.2 Daten'!B270,'2.2 Daten'!B308,'2.2 Daten'!B354,'2.2 Daten'!B452,'2.2 Daten'!B460,'2.2 Daten'!B463,'2.2 Daten'!B483,'2.2 Daten'!B493,'2.2 Daten'!B508,'2.2 Daten'!B524,x) -> Duisburg, Stadt | B128: =IF($A128<>0,INDEX('2.2 Daten'!C$9:C$859,MATCH('2.2'!$A128,'2.2 Daten'!$B$9:$B$859,0))," ") -> 05112000 | C128: =IF($A128<>0,INDEX('2.2 Daten'!E$9:E$859,MATCH('2.2'!$A128,'2.2 Daten'!$B$9:$B$859,0))) -> 26530 | D128: =IF($A128<>0,INDEX('2.2 Daten'!F$9:F$859,MATCH('2.2'!$A128,'2.2 Daten'!$B$9:$B$859,0))) -> 4250 | E128: =IF($A128<>0,INDEX('2.2 Daten'!G$9:G$859,MATCH('2.2'!$A128,'2.2 Daten'!$B$9:$B$859,0))) -> 4963 | F128: =IF($A128<>0,INDEX('2.2 Daten'!H$9:H$859,MATCH('2.2'!$A128,'2.2 Daten'!$B$9:$B$859,0))) -> 13541 | G128: =IF($A128<>0,INDEX('2.2 Daten'!I$9:I$859,MATCH('2.2'!$A128,'2.2 Daten'!$B$9:$B$859,0))) -> 3776 | H128: =IF($A128<>0,INDEX('2.2 Daten'!K$9:K$859,MATCH('2.2'!$A128,'2.2 Daten'!$B$9:$B$859,0))) -> -1.022235487 | I128: =IF($A128<>0,INDEX('2.2 Daten'!L$9:L$859,MATCH('2.2'!$A128,'2.2 Daten'!$B$9:$B$859,0))) -> -5.660377358 | J128: =IF($A128<>0,INDEX('2.2 Daten'!M$9:M$859,MATCH('2.2'!$A128,'2.2 Daten'!$B$9:$B$859,0))) -> -2.303149606 | K128: =IF($A128<>0,INDEX('2.2 Daten'!N$9:N$859,MATCH('2.2'!$A128,'2.2 Daten'!$B$9:$B$859,0))) -> 0.05172159007 | L128: =IF($A128<>0,INDEX('2.2 Daten'!O$9:O$859,MATCH('2.2'!$A128,'2.2 Daten'!$B$9:$B$859,0))) -> 2.469470828
A129: =CHOOSE('2.2 Daten'!$A$2,'2.2 Daten'!B551,'2.2 Daten'!B100,'2.2 Daten'!B117,'2.2 Daten'!B134,'2.2 Daten'!B137,'2.2 Daten'!B184,'2.2 Daten'!B188,'2.2 Daten'!B243,'2.2 Daten'!B271,'2.2 Daten'!B309,'2.2 Daten'!B355,'2.2 Daten'!B453,'2.2 Daten'!B461,'2.2 Daten'!B464,'2.2 Daten'!B484,'2.2 Daten'!B494,'2.2 Daten'!B509,'2.2 Daten'!B525,x) -> Essen, Stadt | B129: =IF($A129<>0,INDEX('2.2 Daten'!C$9:C$859,MATCH('2.2'!$A129,'2.2 Daten'!$B$9:$B$859,0))," ") -> 05113000 | C129: =IF($A129<>0,INDEX('2.2 Daten'!E$9:E$859,MATCH('2.2'!$A129,'2.2 Daten'!$B$9:$B$859,0))) -> 30210 | D129: =IF($A129<>0,INDEX('2.2 Daten'!F$9:F$859,MATCH('2.2'!$A129,'2.2 Daten'!$B$9:$B$859,0))) -> 4881 | E129: =IF($A129<>0,INDEX('2.2 Daten'!G$9:G$859,MATCH('2.2'!$A129,'2.2 Daten'!$B$9:$B$859,0))) -> 5789 | F129: =IF($A129<>0,INDEX('2.2 Daten'!H$9:H$859,MATCH('2.2'!$A129,'2.2 Daten'!$B$9:$B$859,0))) -> 15271 | G129: =IF($A129<>0,INDEX('2.2 Daten'!I$9:I$859,MATCH('2.2'!$A129,'2.2 Daten'!$B$9:$B$859,0))) -> 4269 | H129: =IF($A129<>0,INDEX('2.2 Daten'!K$9:K$859,MATCH('2.2'!$A129,'2.2 Daten'!$B$9:$B$859,0))) -> -0.9703009244 | I129: =IF($A129<>0,INDEX('2.2 Daten'!L$9:L$859,MATCH('2.2'!$A129,'2.2 Daten'!$B$9:$B$859,0))) -> -4.872344572 | J129: =IF($A129<>0,INDEX('2.2 Daten'!M$9:M$859,MATCH('2.2'!$A129,'2.2 Daten'!$B$9:$B$859,0))) -> -0.7883461868 | K129: =IF($A129<>0,INDEX('2.2 Daten'!N$9:N$859,MATCH('2.2'!$A129,'2.2 Daten'!$B$9:$B$859,0))) -> 0.03930560105 | L129: =IF($A129<>0,INDEX('2.2 Daten'!O$9:O$859,MATCH('2.2'!$A129,'2.2 Daten'!$B$9:$B$859,0))) -> -0.1403508772
A130: =CHOOSE('2.2 Daten'!$A$2,'2.2 Daten'!B552,'2.2 Daten'!B101,'2.2 Daten'!B118,'2.2 Daten'!B135,'2.2 Daten'!B138,'2.2 Daten'!B185,'2.2 Daten'!B189,'2.2 Daten'!B244,'2.2 Daten'!B272,'2.2 Daten'!B310,'2.2 Daten'!B356,'2.2 Daten'!B454,'2.2 Daten'!B462,'2.2 Daten'!B465,'2.2 Daten'!B485,'2.2 Daten'!B495,'2.2 Daten'!B510,'2.2 Daten'!B526,x) -> Krefeld, Stadt | B130: =IF($A130<>0,INDEX('2.2 Daten'!C$9:C$859,MATCH('2.2'!$A130,'2.2 Daten'!$B$9:$B$859,0))," ") -> 05114000 | C130: =IF($A130<>0,INDEX('2.2 Daten'!E$9:E$859,MATCH('2.2'!$A130,'2.2 Daten'!$B$9:$B$859,0))) -> 9163 | D130: =IF($A130<>0,INDEX('2.2 Daten'!F$9:F$859,MATCH('2.2'!$A130,'2.2 Daten'!$B$9:$B$859,0))) -> 1449 | E130: =IF($A130<>0,INDEX('2.2 Daten'!G$9:G$859,MATCH('2.2'!$A130,'2.2 Daten'!$B$9:$B$859,0))) -> 1679 | F130: =IF($A130<>0,INDEX('2.2 Daten'!H$9:H$859,MATCH('2.2'!$A130,'2.2 Daten'!$B$9:$B$859,0))) -> 4704 | G130: =IF($A130<>0,INDEX('2.2 Daten'!I$9:I$859,MATCH('2.2'!$A130,'2.2 Daten'!$B$9:$B$859,0))) -> 1331 | H130: =IF($A130<>0,INDEX('2.2 Daten'!K$9:K$859,MATCH('2.2'!$A130,'2.2 Daten'!$B$9:$B$859,0))) -> 2.609182531 | I130: =IF($A130<>0,INDEX('2.2 Daten'!L$9:L$859,MATCH('2.2'!$A130,'2.2 Daten'!$B$9:$B$859,0))) -> -5.232177894 | J130: =IF($A130<>0,INDEX('2.2 Daten'!M$9:M$859,MATCH('2.2'!$A130,'2.2 Daten'!$B$9:$B$859,0))) -> 0.1789976134 | K130: =IF($A130<>0,INDEX('2.2 Daten'!N$9:N$859,MATCH('2.2'!$A130,'2.2 Daten'!$B$9:$B$859,0))) -> 5.945945946 | L130: =IF($A130<>0,INDEX('2.2 Daten'!O$9:O$859,MATCH('2.2'!$A130,'2.2 Daten'!$B$9:$B$859,0))) -> 3.579766537
A131: =CHOOSE('2.2 Daten'!$A$2,'2.2 Daten'!B553,'2.2 Daten'!B102,'2.2 Daten'!B119,'2.2 Daten'!B136,'2.2 Daten'!B139,'2.2 Daten'!B186,'2.2 Daten'!B190,'2.2 Daten'!B245,'2.2 Daten'!B273,'2.2 Daten'!B311,'2.2 Daten'!B357,'2.2 Daten'!B455,'2.2 Daten'!B463,'2.2 Daten'!B466,'2.2 Daten'!B486,'2.2 Daten'!B496,'2.2 Daten'!B511,'2.2 Daten'!B527,x) -> Mönchengladbach, Stadt | B131: =IF($A131<>0,INDEX('2.2 Daten'!C$9:C$859,MATCH('2.2'!$A131,'2.2 Daten'!$B$9:$B$859,0))," ") -> 05116000 | C131: =IF($A131<>0,INDEX('2.2 Daten'!E$9:E$859,MATCH('2.2'!$A131,'2.2 Daten'!$B$9:$B$859,0))) -> 11867 | D131: =IF($A131<>0,INDEX('2.2 Daten'!F$9:F$859,MATCH('2.2'!$A131,'2.2 Daten'!$B$9:$B$859,0))) -> 1941 | E131: =IF($A131<>0,INDEX('2.2 Daten'!G$9:G$859,MATCH('2.2'!$A131,'2.2 Daten'!$B$9:$B$859,0))) -> 2287 | F131: =IF($A131<>0,INDEX('2.2 Daten'!H$9:H$859,MATCH('2.2'!$A131,'2.2 Daten'!$B$9:$B$859,0))) -> 5955 | G131: =IF($A131<>0,INDEX('2.2 Daten'!I$9:I$859,MATCH('2.2'!$A131,'2.2 Daten'!$B$9:$B$859,0))) -> 1684 | H131: =IF($A131<>0,INDEX('2.2 Daten'!K$9:K$859,MATCH('2.2'!$A131,'2.2 Daten'!$B$9:$B$859,0))) -> -5.832407554 | I131: =IF($A131<>0,INDEX('2.2 Daten'!L$9:L$859,MATCH('2.2'!$A131,'2.2 Daten'!$B$9:$B$859,0))) -> -7.747148289 | J131: =IF($A131<>0,INDEX('2.2 Daten'!M$9:M$859,MATCH('2.2'!$A131,'2.2 Daten'!$B$9:$B$859,0))) -> -7.108042242 | K131: =IF($A131<>0,INDEX('2.2 Daten'!N$9:N$859,MATCH('2.2'!$A131,'2.2 Daten'!$B$9:$B$859,0))) -> -5.144950621 | L131: =IF($A131<>0,INDEX('2.2 Daten'!O$9:O$859,MATCH('2.2'!$A131,'2.2 Daten'!$B$9:$B$859,0))) -> -4.209328783
A132: =CHOOSE('2.2 Daten'!$A$2,'2.2 Daten'!B554,'2.2 Daten'!B103,'2.2 Daten'!B120,'2.2 Daten'!B137,'2.2 Daten'!B140,'2.2 Daten'!B187,'2.2 Daten'!B191,'2.2 Daten'!B246,'2.2 Daten'!B274,'2.2 Daten'!B312,'2.2 Daten'!B358,'2.2 Daten'!B456,'2.2 Daten'!B464,'2.2 Daten'!B467,'2.2 Daten'!B487,'2.2 Daten'!B497,'2.2 Daten'!B512,'2.2 Daten'!B528,x) -> Mülheim an der Ruhr, Stadt | B132: =IF($A132<>0,INDEX('2.2 Daten'!C$9:C$859,MATCH('2.2'!$A132,'2.2 Daten'!$B$9:$B$859,0))," ") -> 05117000 | C132: =IF($A132<>0,INDEX('2.2 Daten'!E$9:E$859,MATCH('2.2'!$A132,'2.2 Daten'!$B$9:$B$859,0))) -> 7453 | D132: =IF($A132<>0,INDEX('2.2 Daten'!F$9:F$859,MATCH('2.2'!$A132,'2.2 Daten'!$B$9:$B$859,0))) -> 1201 | E132: =IF($A132<>0,INDEX('2.2 Daten'!G$9:G$859,MATCH('2.2'!$A132,'2.2 Daten'!$B$9:$B$859,0))) -> 1398 | F132: =IF($A132<>0,INDEX('2.2 Daten'!H$9:H$859,MATCH('2.2'!$A132,'2.2 Daten'!$B$9:$B$859,0))) -> 3758 | G132: =IF($A132<>0,INDEX('2.2 Daten'!I$9:I$859,MATCH('2.2'!$A132,'2.2 Daten'!$B$9:$B$859,0))) -> 1096 | H132: =IF($A132<>0,INDEX('2.2 Daten'!K$9:K$859,MATCH('2.2'!$A132,'2.2 Daten'!$B$9:$B$859,0))) -> 0.2016671148 | I132: =IF($A132<>0,INDEX('2.2 Daten'!L$9:L$859,MATCH('2.2'!$A132,'2.2 Daten'!$B$9:$B$859,0))) -> -2.910266774 | J132: =IF($A132<>0,INDEX('2.2 Daten'!M$9:M$859,MATCH('2.2'!$A132,'2.2 Daten'!$B$9:$B$859,0))) -> -2.578397213 | K132: =IF($A132<>0,INDEX('2.2 Daten'!N$9:N$859,MATCH('2.2'!$A132,'2.2 Daten'!$B$9:$B$859,0))) -> 0.8588298443 | L132: =IF($A132<>0,INDEX('2.2 Daten'!O$9:O$859,MATCH('2.2'!$A132,'2.2 Daten'!$B$9:$B$859,0))) -> 5.384615385
A133: =CHOOSE('2.2 Daten'!$A$2,'2.2 Daten'!B555,'2.2 Daten'!B104,'2.2 Daten'!B121,'2.2 Daten'!B138,'2.2 Daten'!B141,'2.2 Daten'!B188,'2.2 Daten'!B192,'2.2 Daten'!B247,'2.2 Daten'!B275,'2.2 Daten'!B313,'2.2 Daten'!B359,'2.2 Daten'!B457,'2.2 Daten'!B465,'2.2 Daten'!B468,'2.2 Daten'!B488,'2.2 Daten'!B498,'2.2 Daten'!B513,'2.2 Daten'!B529,x) -> Oberhausen, Stadt | B133: =IF($A133<>0,INDEX('2.2 Daten'!C$9:C$859,MATCH('2.2'!$A133,'2.2 Daten'!$B$9:$B$859,0))," ") -> 05119000 | C133: =IF($A133<>0,INDEX('2.2 Daten'!E$9:E$859,MATCH('2.2'!$A133,'2.2 Daten'!$B$9:$B$859,0))) -> 9921 | D133: =IF($A133<>0,INDEX('2.2 Daten'!F$9:F$859,MATCH('2.2'!$A133,'2.2 Daten'!$B$9:$B$859,0))) -> 1672 | E133: =IF($A133<>0,INDEX('2.2 Daten'!G$9:G$859,MATCH('2.2'!$A133,'2.2 Daten'!$B$9:$B$859,0))) -> 1942 | F133: =IF($A133<>0,INDEX('2.2 Daten'!H$9:H$859,MATCH('2.2'!$A133,'2.2 Daten'!$B$9:$B$859,0))) -> 4978 | G133: =IF($A133<>0,INDEX('2.2 Daten'!I$9:I$859,MATCH('2.2'!$A133,'2.2 Daten'!$B$9:$B$859,0))) -> 1329 | H133: =IF($A133<>0,INDEX('2.2 Daten'!K$9:K$859,MATCH('2.2'!$A133,'2.2 Daten'!$B$9:$B$859,0))) -> 2.744407622 | I133: =IF($A133<>0,INDEX('2.2 Daten'!L$9:L$859,MATCH('2.2'!$A133,'2.2 Daten'!$B$9:$B$859,0))) -> -5.107832009 | J133: =IF($A133<>0,INDEX('2.2 Daten'!M$9:M$859,MATCH('2.2'!$A133,'2.2 Daten'!$B$9:$B$859,0))) -> -0.3591585428 | K133: =IF($A133<>0,INDEX('2.2 Daten'!N$9:N$859,MATCH('2.2'!$A133,'2.2 Daten'!$B$9:$B$859,0))) -> 6.96175333 | L133: =IF($A133<>0,INDEX('2.2 Daten'!O$9:O$859,MATCH('2.2'!$A133,'2.2 Daten'!$B$9:$B$859,0))) -> 2.943454686
A134: =CHOOSE('2.2 Daten'!$A$2,'2.2 Daten'!B556,'2.2 Daten'!B105,'2.2 Daten'!B122,'2.2 Daten'!B139,'2.2 Daten'!B142,'2.2 Daten'!B189,'2.2 Daten'!B193,'2.2 Daten'!B248,'2.2 Daten'!B276,'2.2 Daten'!B314,'2.2 Daten'!B360,'2.2 Daten'!B458,'2.2 Daten'!B466,'2.2 Daten'!B469,'2.2 Daten'!B489,'2.2 Daten'!B499,'2.2 Daten'!B514,'2.2 Daten'!B530,x) -> Remscheid, Stadt | B134: =IF($A134<>0,INDEX('2.2 Daten'!C$9:C$859,MATCH('2.2'!$A134,'2.2 Daten'!$B$9:$B$859,0))," ") -> 05120000 | C134: =IF($A134<>0,INDEX('2.2 Daten'!E$9:E$859,MATCH('2.2'!$A134,'2.2 Daten'!$B$9:$B$859,0))) -> 3941 | D134: =IF($A134<>0,INDEX('2.2 Daten'!F$9:F$859,MATCH('2.2'!$A134,'2.2 Daten'!$B$9:$B$859,0))) -> 646 | E134: =IF($A134<>0,INDEX('2.2 Daten'!G$9:G$859,MATCH('2.2'!$A134,'2.2 Daten'!$B$9:$B$859,0))) -> 719 | F134: =IF($A134<>0,INDEX('2.2 Daten'!H$9:H$859,MATCH('2.2'!$A134,'2.2 Daten'!$B$9:$B$859,0))) -> 2004 | G134: =IF($A134<>0,INDEX('2.2 Daten'!I$9:I$859,MATCH('2.2'!$A134,'2.2 Daten'!$B$9:$B$859,0))) -> 572 | H134: =IF($A134<>0,INDEX('2.2 Daten'!K$9:K$859,MATCH('2.2'!$A134,'2.2 Daten'!$B$9:$B$859,0))) -> 3.194553548 | I134: =IF($A134<>0,INDEX('2.2 Daten'!L$9:L$859,MATCH('2.2'!$A134,'2.2 Daten'!$B$9:$B$859,0))) -> 2.702702703 | J134: =IF($A134<>0,INDEX('2.2 Daten'!M$9:M$859,MATCH('2.2'!$A134,'2.2 Daten'!$B$9:$B$859,0))) -> 0.8415147265 | K134: =IF($A134<>0,INDEX('2.2 Daten'!N$9:N$859,MATCH('2.2'!$A134,'2.2 Daten'!$B$9:$B$859,0))) -> 2.980472765 | L134: =IF($A134<>0,INDEX('2.2 Daten'!O$9:O$859,MATCH('2.2'!$A134,'2.2 Daten'!$B$9:$B$859,0))) -> 7.721280603
A135: =CHOOSE('2.2 Daten'!$A$2,'2.2 Daten'!B557,'2.2 Daten'!B106,'2.2 Daten'!B123,'2.2 Daten'!B140,'2.2 Daten'!B143,'2.2 Daten'!B190,'2.2 Daten'!B194,'2.2 Daten'!B249,'2.2 Daten'!B277,'2.2 Daten'!B315,'2.2 Daten'!B361,'2.2 Daten'!B459,'2.2 Daten'!B467,'2.2 Daten'!B470,'2.2 Daten'!B490,'2.2 Daten'!B500,'2.2 Daten'!B515,'2.2 Daten'!B531,x) -> Solingen, Stadt | B135: =IF($A135<>0,INDEX('2.2 Daten'!C$9:C$859,MATCH('2.2'!$A135,'2.2 Daten'!$B$9:$B$859,0))," ") -> 05122000 | C135: =IF($A135<>0,INDEX('2.2 Daten'!E$9:E$859,MATCH('2.2'!$A135,'2.2 Daten'!$B$9:$B$859,0))) -> 5223 | D135: =IF($A135<>0,INDEX('2.2 Daten'!F$9:F$859,MATCH('2.2'!$A135,'2.2 Daten'!$B$9:$B$859,0))) -> 834 | E135: =IF($A135<>0,INDEX('2.2 Daten'!G$9:G$859,MATCH('2.2'!$A135,'2.2 Daten'!$B$9:$B$859,0))) -> 966 | F135: =IF($A135<>0,INDEX('2.2 Daten'!H$9:H$859,MATCH('2.2'!$A135,'2.2 Daten'!$B$9:$B$859,0))) -> 2691 | G135: =IF($A135<>0,INDEX('2.2 Daten'!I$9:I$859,MATCH('2.2'!$A135,'2.2 Daten'!$B$9:$B$859,0))) -> 732 | H135: =IF($A135<>0,INDEX('2.2 Daten'!K$9:K$859,MATCH('2.2'!$A135,'2.2 Daten'!$B$9:$B$859,0))) -> 3.364338017 | I135: =IF($A135<>0,INDEX('2.2 Daten'!L$9:L$859,MATCH('2.2'!$A135,'2.2 Daten'!$B$9:$B$859,0))) -> -2.68378063 | J135: =IF($A135<>0,INDEX('2.2 Daten'!M$9:M$859,MATCH('2.2'!$A135,'2.2 Daten'!$B$9:$B$859,0))) -> -1.024590164 | K135: =IF($A135<>0,INDEX('2.2 Daten'!N$9:N$859,MATCH('2.2'!$A135,'2.2 Daten'!$B$9:$B$859,0))) -> 7.553956835 | L135: =IF($A135<>0,INDEX('2.2 Daten'!O$9:O$859,MATCH('2.2'!$A135,'2.2 Daten'!$B$9:$B$859,0))) -> 1.949860724
A136: =CHOOSE('2.2 Daten'!$A$2,'2.2 Daten'!B558,'2.2 Daten'!B107,'2.2 Daten'!B124,'2.2 Daten'!B141,'2.2 Daten'!B144,'2.2 Daten'!B191,'2.2 Daten'!B195,'2.2 Daten'!B250,'2.2 Daten'!B278,'2.2 Daten'!B316,'2.2 Daten'!B362,'2.2 Daten'!B460,'2.2 Daten'!B468,'2.2 Daten'!B471,'2.2 Daten'!B491,'2.2 Daten'!B501,'2.2 Daten'!B516,'2.2 Daten'!B532,x) -> Wuppertal, Stadt | B136: =IF($A136<>0,INDEX('2.2 Daten'!C$9:C$859,MATCH('2.2'!$A136,'2.2 Daten'!$B$9:$B$859,0))," ") -> 05124000 | C136: =IF($A136<>0,INDEX('2.2 Daten'!E$9:E$859,MATCH('2.2'!$A136,'2.2 Daten'!$B$9:$B$859,0))) -> 17236 | D136: =IF($A136<>0,INDEX('2.2 Daten'!F$9:F$859,MATCH('2.2'!$A136,'2.2 Daten'!$B$9:$B$859,0))) -> 2667 | E136: =IF($A136<>0,INDEX('2.2 Daten'!G$9:G$859,MATCH('2.2'!$A136,'2.2 Daten'!$B$9:$B$859,0))) -> 3324 | F136: =IF($A136<>0,INDEX('2.2 Daten'!H$9:H$859,MATCH('2.2'!$A136,'2.2 Daten'!$B$9:$B$859,0))) -> 8717 | G136: =IF($A136<>0,INDEX('2.2 Daten'!I$9:I$859,MATCH('2.2'!$A136,'2.2 Daten'!$B$9:$B$859,0))) -> 2528 | H136: =IF($A136<>0,INDEX('2.2 Daten'!K$9:K$859,MATCH('2.2'!$A136,'2.2 Daten'!$B$9:$B$859,0))) -> -4.265718729 | I136: =IF($A136<>0,INDEX('2.2 Daten'!L$9:L$859,MATCH('2.2'!$A136,'2.2 Daten'!$B$9:$B$859,0))) -> -10.05059022 | J136: =IF($A136<>0,INDEX('2.2 Daten'!M$9:M$859,MATCH('2.2'!$A136,'2.2 Daten'!$B$9:$B$859,0))) -> -5.028571429 | K136: =IF($A136<>0,INDEX('2.2 Daten'!N$9:N$859,MATCH('2.2'!$A136,'2.2 Daten'!$B$9:$B$859,0))) -> -2.559803264 | L136: =IF($A136<>0,INDEX('2.2 Daten'!O$9:O$859,MATCH('2.2'!$A136,'2.2 Daten'!$B$9:$B$859,0))) -> -2.506748939
A137: =CHOOSE('2.2 Daten'!$A$2,'2.2 Daten'!B559,'2.2 Daten'!B108,'2.2 Daten'!B125,'2.2 Daten'!B142,'2.2 Daten'!B145,'2.2 Daten'!B192,'2.2 Daten'!B196,'2.2 Daten'!B251,'2.2 Daten'!B279,'2.2 Daten'!B317,'2.2 Daten'!B363,'2.2 Daten'!B461,'2.2 Daten'!B469,'2.2 Daten'!B472,'2.2 Daten'!B492,'2.2 Daten'!B502,'2.2 Daten'!B517,'2.2 Daten'!B533,x) -> Kleve | B137: =IF($A137<>0,INDEX('2.2 Daten'!C$9:C$859,MATCH('2.2'!$A137,'2.2 Daten'!$B$9:$B$859,0))," ") -> 05154000 | C137: =IF($A137<>0,INDEX('2.2 Daten'!E$9:E$859,MATCH('2.2'!$A137,'2.2 Daten'!$B$9:$B$859,0))) -> 5747 | D137: =IF($A137<>0,INDEX('2.2 Daten'!F$9:F$859,MATCH('2.2'!$A137,'2.2 Daten'!$B$9:$B$859,0))) -> 966 | E137: =IF($A137<>0,INDEX('2.2 Daten'!G$9:G$859,MATCH('2.2'!$A137,'2.2 Daten'!$B$9:$B$859,0))) -> 1123 | F137: =IF($A137<>0,INDEX('2.2 Daten'!H$9:H$859,MATCH('2.2'!$A137,'2.2 Daten'!$B$9:$B$859,0))) -> 2881 | G137: =IF($A137<>0,INDEX('2.2 Daten'!I$9:I$859,MATCH('2.2'!$A137,'2.2 Daten'!$B$9:$B$859,0))) -> 777 | H137: =IF($A137<>0,INDEX('2.2 Daten'!K$9:K$859,MATCH('2.2'!$A137,'2.2 Daten'!$B$9:$B$859,0))) -> 5.915960192 | I137: =IF($A137<>0,INDEX('2.2 Daten'!L$9:L$859,MATCH('2.2'!$A137,'2.2 Daten'!$B$9:$B$859,0))) -> 2.765957447 | J137: =IF($A137<>0,INDEX('2.2 Daten'!M$9:M$859,MATCH('2.2'!$A137,'2.2 Daten'!$B$9:$B$859,0))) -> 5.843543827 | K137: =IF($A137<>0,INDEX('2.2 Daten'!N$9:N$859,MATCH('2.2'!$A137,'2.2 Daten'!$B$9:$B$859,0))) -> 6.036069194 | L137: =IF($A137<>0,INDEX('2.2 Daten'!O$9:O$859,MATCH('2.2'!$A137,'2.2 Daten'!$B$9:$B$859,0))) -> 9.745762712
A138: =CHOOSE('2.2 Daten'!$A$2,'2.2 Daten'!B560,'2.2 Daten'!B109,'2.2 Daten'!B126,'2.2 Daten'!B143,'2.2 Daten'!B146,'2.2 Daten'!B193,'2.2 Daten'!B197,'2.2 Daten'!B252,'2.2 Daten'!B280,'2.2 Daten'!B318,'2.2 Daten'!B364,'2.2 Daten'!B462,'2.2 Daten'!B470,'2.2 Daten'!B473,'2.2 Daten'!B493,'2.2 Daten'!B503,'2.2 Daten'!B518,'2.2 Daten'!B534,x) -> Mettmann | B138: =IF($A138<>0,INDEX('2.2 Daten'!C$9:C$859,MATCH('2.2'!$A138,'2.2 Daten'!$B$9:$B$859,0))," ") -> 05158000 | C138: =IF($A138<>0,INDEX('2.2 Daten'!E$9:E$859,MATCH('2.2'!$A138,'2.2 Daten'!$B$9:$B$859,0))) -> 13559 | D138: =IF($A138<>0,INDEX('2.2 Daten'!F$9:F$859,MATCH('2.2'!$A138,'2.2 Daten'!$B$9:$B$859,0))) -> 2138 | E138: =IF($A138<>0,INDEX('2.2 Daten'!G$9:G$859,MATCH('2.2'!$A138,'2.2 Daten'!$B$9:$B$859,0))) -> 2674 | F138: =IF($A138<>0,INDEX('2.2 Daten'!H$9:H$859,MATCH('2.2'!$A138,'2.2 Daten'!$B$9:$B$859,0))) -> 6936 | G138: =IF($A138<>0,INDEX('2.2 Daten'!I$9:I$859,MATCH('2.2'!$A138,'2.2 Daten'!$B$9:$B$859,0))) -> 1811 | H138: =IF($A138<>0,INDEX('2.2 Daten'!K$9:K$859,MATCH('2.2'!$A138,'2.2 Daten'!$B$9:$B$859,0))) -> 4.179792547 | I138: =IF($A138<>0,INDEX('2.2 Daten'!L$9:L$859,MATCH('2.2'!$A138,'2.2 Daten'!$B$9:$B$859,0))) -> -6.104523496 | J138: =IF($A138<>0,INDEX('2.2 Daten'!M$9:M$859,MATCH('2.2'!$A138,'2.2 Daten'!$B$9:$B$859,0))) -> 5.441640379 | K138: =IF($A138<>0,INDEX('2.2 Daten'!N$9:N$859,MATCH('2.2'!$A138,'2.2 Daten'!$B$9:$B$859,0))) -> 7.103150093 | L138: =IF($A138<>0,INDEX('2.2 Daten'!O$9:O$859,MATCH('2.2'!$A138,'2.2 Daten'!$B$9:$B$859,0))) -> 4.924681344
A139: =CHOOSE('2.2 Daten'!$A$2,'2.2 Daten'!B561,'2.2 Daten'!B110,'2.2 Daten'!B127,'2.2 Daten'!B144,'2.2 Daten'!B147,'2.2 Daten'!B194,'2.2 Daten'!B198,'2.2 Daten'!B253,'2.2 Daten'!B281,'2.2 Daten'!B319,'2.2 Daten'!B365,'2.2 Daten'!B463,'2.2 Daten'!B471,'2.2 Daten'!B474,'2.2 Daten'!B494,'2.2 Daten'!B504,'2.2 Daten'!B519,'2.2 Daten'!B535,x) -> Rhein-Kreis Neuss | B139: =IF($A139<>0,INDEX('2.2 Daten'!C$9:C$859,MATCH('2.2'!$A139,'2.2 Daten'!$B$9:$B$859,0))," ") -> 05162000 | C139: =IF($A139<>0,INDEX('2.2 Daten'!E$9:E$859,MATCH('2.2'!$A139,'2.2 Daten'!$B$9:$B$859,0))) -> 10754 | D139: =IF($A139<>0,INDEX('2.2 Daten'!F$9:F$859,MATCH('2.2'!$A139,'2.2 Daten'!$B$9:$B$859,0))) -> 1611 | E139: =IF($A139<>0,INDEX('2.2 Daten'!G$9:G$859,MATCH('2.2'!$A139,'2.2 Daten'!$B$9:$B$859,0))) -> 2003 | F139: =IF($A139<>0,INDEX('2.2 Daten'!H$9:H$859,MATCH('2.2'!$A139,'2.2 Daten'!$B$9:$B$859,0))) -> 5488 | G139: =IF($A139<>0,INDEX('2.2 Daten'!I$9:I$859,MATCH('2.2'!$A139,'2.2 Daten'!$B$9:$B$859,0))) -> 1652 | H139: =IF($A139<>0,INDEX('2.2 Daten'!K$9:K$859,MATCH('2.2'!$A139,'2.2 Daten'!$B$9:$B$859,0))) -> -0.4904228741 | I139: =IF($A139<>0,INDEX('2.2 Daten'!L$9:L$859,MATCH('2.2'!$A139,'2.2 Daten'!$B$9:$B$859,0))) -> -6.986143187 | J139: =IF($A139<>0,INDEX('2.2 Daten'!M$9:M$859,MATCH('2.2'!$A139,'2.2 Daten'!$B$9:$B$859,0))) -> -5.563413484 | K139: =IF($A139<>0,INDEX('2.2 Daten'!N$9:N$859,MATCH('2.2'!$A139,'2.2 Daten'!$B$9:$B$859,0))) -> 1.385553298 | L139: =IF($A139<>0,INDEX('2.2 Daten'!O$9:O$859,MATCH('2.2'!$A139,'2.2 Daten'!$B$9:$B$859,0))) -> 7.20311486
A140: =CHOOSE('2.2 Daten'!$A$2,'2.2 Daten'!B562,'2.2 Daten'!B111,'2.2 Daten'!B128,'2.2 Daten'!B145,'2.2 Daten'!B148,'2.2 Daten'!B195,'2.2 Daten'!B199,'2.2 Daten'!B254,'2.2 Daten'!B282,'2.2 Daten'!B320,'2.2 Daten'!B366,'2.2 Daten'!B464,'2.2 Daten'!B472,'2.2 Daten'!B475,'2.2 Daten'!B495,'2.2 Daten'!B505,'2.2 Daten'!B520,'2.2 Daten'!B536,x) -> Viersen | B140: =IF($A140<>0,INDEX('2.2 Daten'!C$9:C$859,MATCH('2.2'!$A140,'2.2 Daten'!$B$9:$B$859,0))," ") -> 05166000 | C140: =IF($A140<>0,INDEX('2.2 Daten'!E$9:E$859,MATCH('2.2'!$A140,'2.2 Daten'!$B$9:$B$859,0))) -> 5627 | D140: =IF($A140<>0,INDEX('2.2 Daten'!F$9:F$859,MATCH('2.2'!$A140,'2.2 Daten'!$B$9:$B$859,0))) -> 897 | E140: =IF($A140<>0,INDEX('2.2 Daten'!G$9:G$859,MATCH('2.2'!$A140,'2.2 Daten'!$B$9:$B$859,0))) -> 1002 | F140: =IF($A140<>0,INDEX('2.2 Daten'!H$9:H$859,MATCH('2.2'!$A140,'2.2 Daten'!$B$9:$B$859,0))) -> 2918 | G140: =IF($A140<>0,INDEX('2.2 Daten'!I$9:I$859,MATCH('2.2'!$A140,'2.2 Daten'!$B$9:$B$859,0))) -> 810 | H140: =IF($A140<>0,INDEX('2.2 Daten'!K$9:K$859,MATCH('2.2'!$A140,'2.2 Daten'!$B$9:$B$859,0))) -> 1.772472418 | I140: =IF($A140<>0,INDEX('2.2 Daten'!L$9:L$859,MATCH('2.2'!$A140,'2.2 Daten'!$B$9:$B$859,0))) -> -1.752464403 | J140: =IF($A140<>0,INDEX('2.2 Daten'!M$9:M$859,MATCH('2.2'!$A140,'2.2 Daten'!$B$9:$B$859,0))) -> -3.188405797 | K140: =IF($A140<>0,INDEX('2.2 Daten'!N$9:N$859,MATCH('2.2'!$A140,'2.2 Daten'!$B$9:$B$859,0))) -> 3.806474564 | L140: =IF($A140<>0,INDEX('2.2 Daten'!O$9:O$859,MATCH('2.2'!$A140,'2.2 Daten'!$B$9:$B$859,0))) -> 5.194805195
A141: =CHOOSE('2.2 Daten'!$A$2,'2.2 Daten'!B563,'2.2 Daten'!B112,'2.2 Daten'!B129,'2.2 Daten'!B146,'2.2 Daten'!B149,'2.2 Daten'!B196,'2.2 Daten'!B200,'2.2 Daten'!B255,'2.2 Daten'!B283,'2.2 Daten'!B321,'2.2 Daten'!B367,'2.2 Daten'!B465,'2.2 Daten'!B473,'2.2 Daten'!B476,'2.2 Daten'!B496,'2.2 Daten'!B506,'2.2 Daten'!B521,'2.2 Daten'!B537,x) -> Wesel | B141: =IF($A141<>0,INDEX('2.2 Daten'!C$9:C$859,MATCH('2.2'!$A141,'2.2 Daten'!$B$9:$B$859,0))," ") -> 05170000 | C141: =IF($A141<>0,INDEX('2.2 Daten'!E$9:E$859,MATCH('2.2'!$A141,'2.2 Daten'!$B$9:$B$859,0))) -> 11320 | D141: =IF($A141<>0,INDEX('2.2 Daten'!F$9:F$859,MATCH('2.2'!$A141,'2.2 Daten'!$B$9:$B$859,0))) -> 1786 | E141: =IF($A141<>0,INDEX('2.2 Daten'!G$9:G$859,MATCH('2.2'!$A141,'2.2 Daten'!$B$9:$B$859,0))) -> 2078 | F141: =IF($A141<>0,INDEX('2.2 Daten'!H$9:H$859,MATCH('2.2'!$A141,'2.2 Daten'!$B$9:$B$859,0))) -> 5770 | G141: =IF($A141<>0,INDEX('2.2 Daten'!I$9:I$859,MATCH('2.2'!$A141,'2.2 Daten'!$B$9:$B$859,0))) -> 1686 | H141: =IF($A141<>0,INDEX('2.2 Daten'!K$9:K$859,MATCH('2.2'!$A141,'2.2 Daten'!$B$9:$B$859,0))) -> 2.871683024 | I141: =IF($A141<>0,INDEX('2.2 Daten'!L$9:L$859,MATCH('2.2'!$A141,'2.2 Daten'!$B$9:$B$859,0))) -> -1.760176018 | J141: =IF($A141<>0,INDEX('2.2 Daten'!M$9:M$859,MATCH('2.2'!$A141,'2.2 Daten'!$B$9:$B$859,0))) -> 1.46484375 | K141: =IF($A141<>0,INDEX('2.2 Daten'!N$9:N$859,MATCH('2.2'!$A141,'2.2 Daten'!$B$9:$B$859,0))) -> 3.851691865 | L141: =IF($A141<>0,INDEX('2.2 Daten'!O$9:O$859,MATCH('2.2'!$A141,'2.2 Daten'!$B$9:$B$859,0))) -> 6.573957016
A142: =CHOOSE('2.2 Daten'!$A$2,'2.2 Daten'!B564,'2.2 Daten'!B113,'2.2 Daten'!B130,'2.2 Daten'!B147,'2.2 Daten'!B150,'2.2 Daten'!B197,'2.2 Daten'!B201,'2.2 Daten'!B256,'2.2 Daten'!B284,'2.2 Daten'!B322,'2.2 Daten'!B368,'2.2 Daten'!B466,'2.2 Daten'!B474,'2.2 Daten'!B477,'2.2 Daten'!B497,'2.2 Daten'!B507,'2.2 Daten'!B522,'2.2 Daten'!B538,x) -> Bonn, Stadt | B142: =IF($A142<>0,INDEX('2.2 Daten'!C$9:C$859,MATCH('2.2'!$A142,'2.2 Daten'!$B$9:$B$859,0))," ") -> 05314000 | C142: =IF($A142<>0,INDEX('2.2 Daten'!E$9:E$859,MATCH('2.2'!$A142,'2.2 Daten'!$B$9:$B$859,0))) -> 11450 | D142: =IF($A142<>0,INDEX('2.2 Daten'!F$9:F$859,MATCH('2.2'!$A142,'2.2 Daten'!$B$9:$B$859,0))) -> 1598 | E142: =IF($A142<>0,INDEX('2.2 Daten'!G$9:G$859,MATCH('2.2'!$A142,'2.2 Daten'!$B$9:$B$859,0))) -> 1967 | F142: =IF($A142<>0,INDEX('2.2 Daten'!H$9:H$859,MATCH('2.2'!$A142,'2.2 Daten'!$B$9:$B$859,0))) -> 6021 | G142: =IF($A142<>0,INDEX('2.2 Daten'!I$9:I$859,MATCH('2.2'!$A142,'2.2 Daten'!$B$9:$B$859,0))) -> 1864 | H142: =IF($A142<>0,INDEX('2.2 Daten'!K$9:K$859,MATCH('2.2'!$A142,'2.2 Daten'!$B$9:$B$859,0))) -> 1.95903829 | I142: =IF($A142<>0,INDEX('2.2 Daten'!L$9:L$859,MATCH('2.2'!$A142,'2.2 Daten'!$B$9:$B$859,0))) -> -7.469600463 | J142: =IF($A142<>0,INDEX('2.2 Daten'!M$9:M$859,MATCH('2.2'!$A142,'2.2 Daten'!$B$9:$B$859,0))) -> -2.33366435 | K142: =IF($A142<>0,INDEX('2.2 Daten'!N$9:N$859,MATCH('2.2'!$A142,'2.2 Daten'!$B$9:$B$859,0))) -> 3.756677581 | L142: =IF($A142<>0,INDEX('2.2 Daten'!O$9:O$859,MATCH('2.2'!$A142,'2.2 Daten'!$B$9:$B$859,0))) -> 10.55753262
A143: =CHOOSE('2.2 Daten'!$A$2,'2.2 Daten'!B565,'2.2 Daten'!B114,'2.2 Daten'!B131,'2.2 Daten'!B148,'2.2 Daten'!B151,'2.2 Daten'!B198,'2.2 Daten'!B202,'2.2 Daten'!B257,'2.2 Daten'!B285,'2.2 Daten'!B323,'2.2 Daten'!B369,'2.2 Daten'!B467,'2.2 Daten'!B475,'2.2 Daten'!B478,'2.2 Daten'!B498,'2.2 Daten'!B508,'2.2 Daten'!B523,'2.2 Daten'!B539,x) -> Köln, Stadt | B143: =IF($A143<>0,INDEX('2.2 Daten'!C$9:C$859,MATCH('2.2'!$A143,'2.2 Daten'!$B$9:$B$859,0))," ") -> 05315000 | C143: =IF($A143<>0,INDEX('2.2 Daten'!E$9:E$859,MATCH('2.2'!$A143,'2.2 Daten'!$B$9:$B$859,0))) -> 37630 | D143: =IF($A143<>0,INDEX('2.2 Daten'!F$9:F$859,MATCH('2.2'!$A143,'2.2 Daten'!$B$9:$B$859,0))) -> 5653 | E143: =IF($A143<>0,INDEX('2.2 Daten'!G$9:G$859,MATCH('2.2'!$A143,'2.2 Daten'!$B$9:$B$859,0))) -> 6823 | F143: =IF($A143<>0,INDEX('2.2 Daten'!H$9:H$859,MATCH('2.2'!$A143,'2.2 Daten'!$B$9:$B$859,0))) -> 19371 | G143: =IF($A143<>0,INDEX('2.2 Daten'!I$9:I$859,MATCH('2.2'!$A143,'2.2 Daten'!$B$9:$B$859,0))) -> 5783 | H143: =IF($A143<>0,INDEX('2.2 Daten'!K$9:K$859,MATCH('2.2'!$A143,'2.2 Daten'!$B$9:$B$859,0))) -> -3.105366155 | I143: =IF($A143<>0,INDEX('2.2 Daten'!L$9:L$859,MATCH('2.2'!$A143,'2.2 Daten'!$B$9:$B$859,0))) -> -8.512704321 | J143: =IF($A143<>0,INDEX('2.2 Daten'!M$9:M$859,MATCH('2.2'!$A143,'2.2 Daten'!$B$9:$B$859,0))) -> -3.96903589 | K143: =IF($A143<>0,INDEX('2.2 Daten'!N$9:N$859,MATCH('2.2'!$A143,'2.2 Daten'!$B$9:$B$859,0))) -> -2.294966206 | L143: =IF($A143<>0,INDEX('2.2 Daten'!O$9:O$859,MATCH('2.2'!$A143,'2.2 Daten'!$B$9:$B$859,0))) -> 0.9954593084
A144: =CHOOSE('2.2 Daten'!$A$2,'2.2 Daten'!B566,'2.2 Daten'!B115,'2.2 Daten'!B132,'2.2 Daten'!B149,'2.2 Daten'!B152,'2.2 Daten'!B199,'2.2 Daten'!B203,'2.2 Daten'!B258,'2.2 Daten'!B286,'2.2 Daten'!B324,'2.2 Daten'!B370,'2.2 Daten'!B468,'2.2 Daten'!B476,'2.2 Daten'!B479,'2.2 Daten'!B499,'2.2 Daten'!B509,'2.2 Daten'!B524,'2.2 Daten'!B540,x) -> Leverkusen, Stadt | B144: =IF($A144<>0,INDEX('2.2 Daten'!C$9:C$859,MATCH('2.2'!$A144,'2.2 Daten'!$B$9:$B$859,0))," ") -> 05316000 | C144: =IF($A144<>0,INDEX('2.2 Daten'!E$9:E$859,MATCH('2.2'!$A144,'2.2 Daten'!$B$9:$B$859,0))) -> 6186 | D144: =IF($A144<>0,INDEX('2.2 Daten'!F$9:F$859,MATCH('2.2'!$A144,'2.2 Daten'!$B$9:$B$859,0))) -> 1019 | E144: =IF($A144<>0,INDEX('2.2 Daten'!G$9:G$859,MATCH('2.2'!$A144,'2.2 Daten'!$B$9:$B$859,0))) -> 1153 | F144: =IF($A144<>0,INDEX('2.2 Daten'!H$9:H$859,MATCH('2.2'!$A144,'2.2 Daten'!$B$9:$B$859,0))) -> 3124 | G144: =IF($A144<>0,INDEX('2.2 Daten'!I$9:I$859,MATCH('2.2'!$A144,'2.2 Daten'!$B$9:$B$859,0))) -> 890 | H144: =IF($A144<>0,INDEX('2.2 Daten'!K$9:K$859,MATCH('2.2'!$A144,'2.2 Daten'!$B$9:$B$859,0))) -> 1.310186702 | I144: =IF($A144<>0,INDEX('2.2 Daten'!L$9:L$859,MATCH('2.2'!$A144,'2.2 Daten'!$B$9:$B$859,0))) -> -3.228869896 | J144: =IF($A144<>0,INDEX('2.2 Daten'!M$9:M$859,MATCH('2.2'!$A144,'2.2 Daten'!$B$9:$B$859,0))) -> -0.6890611542 | K144: =IF($A144<>0,INDEX('2.2 Daten'!N$9:N$859,MATCH('2.2'!$A144,'2.2 Daten'!$B$9:$B$859,0))) -> 4.063957362 | L144: =IF($A144<>0,INDEX('2.2 Daten'!O$9:O$859,MATCH('2.2'!$A144,'2.2 Daten'!$B$9:$B$859,0))) -> 0
A145: =CHOOSE('2.2 Daten'!$A$2,'2.2 Daten'!B567,'2.2 Daten'!B116,'2.2 Daten'!B133,'2.2 Daten'!B150,'2.2 Daten'!B153,'2.2 Daten'!B200,'2.2 Daten'!B204,'2.2 Daten'!B259,'2.2 Daten'!B287,'2.2 Daten'!B325,'2.2 Daten'!B371,'2.2 Daten'!B469,'2.2 Daten'!B477,'2.2 Daten'!B480,'2.2 Daten'!B500,'2.2 Daten'!B510,'2.2 Daten'!B525,'2.2 Daten'!B541,x) -> Städteregion Aachen | B145: =IF($A145<>0,INDEX('2.2 Daten'!C$9:C$859,MATCH('2.2'!$A145,'2.2 Daten'!$B$9:$B$859,0))," ") -> 05334000 | C145: =IF($A145<>0,INDEX('2.2 Daten'!E$9:E$859,MATCH('2.2'!$A145,'2.2 Daten'!$B$9:$B$859,0))) -> 15497 | D145: =IF($A145<>0,INDEX('2.2 Daten'!F$9:F$859,MATCH('2.2'!$A145,'2.2 Daten'!$B$9:$B$859,0))) -> 2521 | E145: =IF($A145<>0,INDEX('2.2 Daten'!G$9:G$859,MATCH('2.2'!$A145,'2.2 Daten'!$B$9:$B$859,0))) -> 2869 | F145: =IF($A145<>0,INDEX('2.2 Daten'!H$9:H$859,MATCH('2.2'!$A145,'2.2 Daten'!$B$9:$B$859,0))) -> 7853 | G145: =IF($A145<>0,INDEX('2.2 Daten'!I$9:I$859,MATCH('2.2'!$A145,'2.2 Daten'!$B$9:$B$859,0))) -> 2254 | H145: =IF($A145<>0,INDEX('2.2 Daten'!K$9:K$859,MATCH('2.2'!$A145,'2.2 Daten'!$B$9:$B$859,0))) -> -3.864764268 | I145: =IF($A145<>0,INDEX('2.2 Daten'!L$9:L$859,MATCH('2.2'!$A145,'2.2 Daten'!$B$9:$B$859,0))) -> -8.989169675 | J145: =IF($A145<>0,INDEX('2.2 Daten'!M$9:M$859,MATCH('2.2'!$A145,'2.2 Daten'!$B$9:$B$859,0))) -> -5.125661376 | K145: =IF($A145<>0,INDEX('2.2 Daten'!N$9:N$859,MATCH('2.2'!$A145,'2.2 Daten'!$B$9:$B$859,0))) -> -1.763822867 | L145: =IF($A145<>0,INDEX('2.2 Daten'!O$9:O$859,MATCH('2.2'!$A145,'2.2 Daten'!$B$9:$B$859,0))) -> -3.344768439
A146: =CHOOSE('2.2 Daten'!$A$2,'2.2 Daten'!B568,'2.2 Daten'!B117,'2.2 Daten'!B134,'2.2 Daten'!B151,'2.2 Daten'!B154,'2.2 Daten'!B201,'2.2 Daten'!B205,'2.2 Daten'!B260,'2.2 Daten'!B288,'2.2 Daten'!B326,'2.2 Daten'!B372,'2.2 Daten'!B470,'2.2 Daten'!B478,'2.2 Daten'!B481,'2.2 Daten'!B501,'2.2 Daten'!B511,'2.2 Daten'!B526,'2.2 Daten'!B542,x) -> Düren | B146: =IF($A146<>0,INDEX('2.2 Daten'!C$9:C$859,MATCH('2.2'!$A146,'2.2 Daten'!$B$9:$B$859,0))," ") -> 05358000 | C146: =IF($A146<>0,INDEX('2.2 Daten'!E$9:E$859,MATCH('2.2'!$A146,'2.2 Daten'!$B$9:$B$859,0))) -> 7704 | D146: =IF($A146<>0,INDEX('2.2 Daten'!F$9:F$859,MATCH('2.2'!$A146,'2.2 Daten'!$B$9:$B$859,0))) -> 1305 | E146: =IF($A146<>0,INDEX('2.2 Daten'!G$9:G$859,MATCH('2.2'!$A146,'2.2 Daten'!$B$9:$B$859,0))) -> 1344 | F146: =IF($A146<>0,INDEX('2.2 Daten'!H$9:H$859,MATCH('2.2'!$A146,'2.2 Daten'!$B$9:$B$859,0))) -> 3958 | G146: =IF($A146<>0,INDEX('2.2 Daten'!I$9:I$859,MATCH('2.2'!$A146,'2.2 Daten'!$B$9:$B$859,0))) -> 1097 | H146: =IF($A146<>0,INDEX('2.2 Daten'!K$9:K$859,MATCH('2.2'!$A146,'2.2 Daten'!$B$9:$B$859,0))) -> 1.475237092 | I146: =IF($A146<>0,INDEX('2.2 Daten'!L$9:L$859,MATCH('2.2'!$A146,'2.2 Daten'!$B$9:$B$859,0))) -> -3.831982314 | J146: =IF($A146<>0,INDEX('2.2 Daten'!M$9:M$859,MATCH('2.2'!$A146,'2.2 Daten'!$B$9:$B$859,0))) -> -2.254545455 | K146: =IF($A146<>0,INDEX('2.2 Daten'!N$9:N$859,MATCH('2.2'!$A146,'2.2 Daten'!$B$9:$B$859,0))) -> 4.185311924 | L146: =IF($A146<>0,INDEX('2.2 Daten'!O$9:O$859,MATCH('2.2'!$A146,'2.2 Daten'!$B$9:$B$859,0))) -> 3.393025448
A147: =CHOOSE('2.2 Daten'!$A$2,'2.2 Daten'!B569,'2.2 Daten'!B118,'2.2 Daten'!B135,'2.2 Daten'!B152,'2.2 Daten'!B155,'2.2 Daten'!B202,'2.2 Daten'!B206,'2.2 Daten'!B261,'2.2 Daten'!B289,'2.2 Daten'!B327,'2.2 Daten'!B373,'2.2 Daten'!B471,'2.2 Daten'!B479,'2.2 Daten'!B482,'2.2 Daten'!B502,'2.2 Daten'!B512,'2.2 Daten'!B527,'2.2 Daten'!B543,x) -> Rhein-Erft-Kreis | B147: =IF($A147<>0,INDEX('2.2 Daten'!C$9:C$859,MATCH('2.2'!$A147,'2.2 Daten'!$B$9:$B$859,0))," ") -> 05362000 | C147: =IF($A147<>0,INDEX('2.2 Daten'!E$9:E$859,MATCH('2.2'!$A147,'2.2 Daten'!$B$9:$B$859,0))) -> 12069 | D147: =IF($A147<>0,INDEX('2.2 Daten'!F$9:F$859,MATCH('2.2'!$A147,'2.2 Daten'!$B$9:$B$859,0))) -> 1848 | E147: =IF($A147<>0,INDEX('2.2 Daten'!G$9:G$859,MATCH('2.2'!$A147,'2.2 Daten'!$B$9:$B$859,0))) -> 2264 | F147: =IF($A147<>0,INDEX('2.2 Daten'!H$9:H$859,MATCH('2.2'!$A147,'2.2 Daten'!$B$9:$B$859,0))) -> 6120 | G147: =IF($A147<>0,INDEX('2.2 Daten'!I$9:I$859,MATCH('2.2'!$A147,'2.2 Daten'!$B$9:$B$859,0))) -> 1837 | H147: =IF($A147<>0,INDEX('2.2 Daten'!K$9:K$859,MATCH('2.2'!$A147,'2.2 Daten'!$B$9:$B$859,0))) -> 3.401302262 | I147: =IF($A147<>0,INDEX('2.2 Daten'!L$9:L$859,MATCH('2.2'!$A147,'2.2 Daten'!$B$9:$B$859,0))) -> -4.347826087 | J147: =IF($A147<>0,INDEX('2.2 Daten'!M$9:M$859,MATCH('2.2'!$A147,'2.2 Daten'!$B$9:$B$859,0))) -> 3.996325218 | K147: =IF($A147<>0,INDEX('2.2 Daten'!N$9:N$859,MATCH('2.2'!$A147,'2.2 Daten'!$B$9:$B$859,0))) -> 4.152484683 | L147: =IF($A147<>0,INDEX('2.2 Daten'!O$9:O$859,MATCH('2.2'!$A147,'2.2 Daten'!$B$9:$B$859,0))) -> 8.891523414
A148: =CHOOSE('2.2 Daten'!$A$2,'2.2 Daten'!B570,'2.2 Daten'!B119,'2.2 Daten'!B136,'2.2 Daten'!B153,'2.2 Daten'!B156,'2.2 Daten'!B203,'2.2 Daten'!B207,'2.2 Daten'!B262,'2.2 Daten'!B290,'2.2 Daten'!B328,'2.2 Daten'!B374,'2.2 Daten'!B472,'2.2 Daten'!B480,'2.2 Daten'!B483,'2.2 Daten'!B503,'2.2 Daten'!B513,'2.2 Daten'!B528,'2.2 Daten'!B544,x) -> Euskirchen | B148: =IF($A148<>0,INDEX('2.2 Daten'!C$9:C$859,MATCH('2.2'!$A148,'2.2 Daten'!$B$9:$B$859,0))," ") -> 05366000 | C148: =IF($A148<>0,INDEX('2.2 Daten'!E$9:E$859,MATCH('2.2'!$A148,'2.2 Daten'!$B$9:$B$859,0))) -> 3862 | D148: =IF($A148<>0,INDEX('2.2 Daten'!F$9:F$859,MATCH('2.2'!$A148,'2.2 Daten'!$B$9:$B$859,0))) -> 576 | E148: =IF($A148<>0,INDEX('2.2 Daten'!G$9:G$859,MATCH('2.2'!$A148,'2.2 Daten'!$B$9:$B$859,0))) -> 710 | F148: =IF($A148<>0,INDEX('2.2 Daten'!H$9:H$859,MATCH('2.2'!$A148,'2.2 Daten'!$B$9:$B$859,0))) -> 2033 | G148: =IF($A148<>0,INDEX('2.2 Daten'!I$9:I$859,MATCH('2.2'!$A148,'2.2 Daten'!$B$9:$B$859,0))) -> 543 | H148: =IF($A148<>0,INDEX('2.2 Daten'!K$9:K$859,MATCH('2.2'!$A148,'2.2 Daten'!$B$9:$B$859,0))) -> 2.822151225 | I148: =IF($A148<>0,INDEX('2.2 Daten'!L$9:L$859,MATCH('2.2'!$A148,'2.2 Daten'!$B$9:$B$859,0))) -> -8.716323296 | J148: =IF($A148<>0,INDEX('2.2 Daten'!M$9:M$859,MATCH('2.2'!$A148,'2.2 Daten'!$B$9:$B$859,0))) -> -1.933701657 | K148: =IF($A148<>0,INDEX('2.2 Daten'!N$9:N$859,MATCH('2.2'!$A148,'2.2 Daten'!$B$9:$B$859,0))) -> 6.439790576 | L148: =IF($A148<>0,INDEX('2.2 Daten'!O$9:O$859,MATCH('2.2'!$A148,'2.2 Daten'!$B$9:$B$859,0))) -> 10.59063136
A149: =CHOOSE('2.2 Daten'!$A$2,'2.2 Daten'!B571,'2.2 Daten'!B120,'2.2 Daten'!B137,'2.2 Daten'!B154,'2.2 Daten'!B157,'2.2 Daten'!B204,'2.2 Daten'!B208,'2.2 Daten'!B263,'2.2 Daten'!B291,'2.2 Daten'!B329,'2.2 Daten'!B375,'2.2 Daten'!B473,'2.2 Daten'!B481,'2.2 Daten'!B484,'2.2 Daten'!B504,'2.2 Daten'!B514,'2.2 Daten'!B529,'2.2 Daten'!B545,x) -> Heinsberg | B149: =IF($A149<>0,INDEX('2.2 Daten'!C$9:C$859,MATCH('2.2'!$A149,'2.2 Daten'!$B$9:$B$859,0))," ") -> 05370000 | C149: =IF($A149<>0,INDEX('2.2 Daten'!E$9:E$859,MATCH('2.2'!$A149,'2.2 Daten'!$B$9:$B$859,0))) -> 5683 | D149: =IF($A149<>0,INDEX('2.2 Daten'!F$9:F$859,MATCH('2.2'!$A149,'2.2 Daten'!$B$9:$B$859,0))) -> 937 | E149: =IF($A149<>0,INDEX('2.2 Daten'!G$9:G$859,MATCH('2.2'!$A149,'2.2 Daten'!$B$9:$B$859,0))) -> 1029 | F149: =IF($A149<>0,INDEX('2.2 Daten'!H$9:H$859,MATCH('2.2'!$A149,'2.2 Daten'!$B$9:$B$859,0))) -> 2950 | G149: =IF($A149<>0,INDEX('2.2 Daten'!I$9:I$859,MATCH('2.2'!$A149,'2.2 Daten'!$B$9:$B$859,0))) -> 767 | H149: =IF($A149<>0,INDEX('2.2 Daten'!K$9:K$859,MATCH('2.2'!$A149,'2.2 Daten'!$B$9:$B$859,0))) -> 2.359510086 | I149: =IF($A149<>0,INDEX('2.2 Daten'!L$9:L$859,MATCH('2.2'!$A149,'2.2 Daten'!$B$9:$B$859,0))) -> -1.678908709 | J149: =IF($A149<>0,INDEX('2.2 Daten'!M$9:M$859,MATCH('2.2'!$A149,'2.2 Daten'!$B$9:$B$859,0))) -> -0.7714561234 | K149: =IF($A149<>0,INDEX('2.2 Daten'!N$9:N$859,MATCH('2.2'!$A149,'2.2 Daten'!$B$9:$B$859,0))) -> 5.31952874 | L149: =IF($A149<>0,INDEX('2.2 Daten'!O$9:O$859,MATCH('2.2'!$A149,'2.2 Daten'!$B$9:$B$859,0))) -> 0.7884362681
A150: =CHOOSE('2.2 Daten'!$A$2,'2.2 Daten'!B572,'2.2 Daten'!B121,'2.2 Daten'!B138,'2.2 Daten'!B155,'2.2 Daten'!B158,'2.2 Daten'!B205,'2.2 Daten'!B209,'2.2 Daten'!B264,'2.2 Daten'!B292,'2.2 Daten'!B330,'2.2 Daten'!B376,'2.2 Daten'!B474,'2.2 Daten'!B482,'2.2 Daten'!B485,'2.2 Daten'!B505,'2.2 Daten'!B515,'2.2 Daten'!B530,'2.2 Daten'!B546,x) -> Oberbergischer Kreis | B150: =IF($A150<>0,INDEX('2.2 Daten'!C$9:C$859,MATCH('2.2'!$A150,'2.2 Daten'!$B$9:$B$859,0))," ") -> 05374000 | C150: =IF($A150<>0,INDEX('2.2 Daten'!E$9:E$859,MATCH('2.2'!$A150,'2.2 Daten'!$B$9:$B$859,0))) -> 5371 | D150: =IF($A150<>0,INDEX('2.2 Daten'!F$9:F$859,MATCH('2.2'!$A150,'2.2 Daten'!$B$9:$B$859,0))) -> 878 | E150: =IF($A150<>0,INDEX('2.2 Daten'!G$9:G$859,MATCH('2.2'!$A150,'2.2 Daten'!$B$9:$B$859,0))) -> 1056 | F150: =IF($A150<>0,INDEX('2.2 Daten'!H$9:H$859,MATCH('2.2'!$A150,'2.2 Daten'!$B$9:$B$859,0))) -> 2683 | G150: =IF($A150<>0,INDEX('2.2 Daten'!I$9:I$859,MATCH('2.2'!$A150,'2.2 Daten'!$B$9:$B$859,0))) -> 754 | H150: =IF($A150<>0,INDEX('2.2 Daten'!K$9:K$859,MATCH('2.2'!$A150,'2.2 Daten'!$B$9:$B$859,0))) -> 15.75431034 | I150: =IF($A150<>0,INDEX('2.2 Daten'!L$9:L$859,MATCH('2.2'!$A150,'2.2 Daten'!$B$9:$B$859,0))) -> 2.331002331 | J150: =IF($A150<>0,INDEX('2.2 Daten'!M$9:M$859,MATCH('2.2'!$A150,'2.2 Daten'!$B$9:$B$859,0))) -> 16.4277839 | K150: =IF($A150<>0,INDEX('2.2 Daten'!N$9:N$859,MATCH('2.2'!$A150,'2.2 Daten'!$B$9:$B$859,0))) -> 21.40271493 | L150: =IF($A150<>0,INDEX('2.2 Daten'!O$9:O$859,MATCH('2.2'!$A150,'2.2 Daten'!$B$9:$B$859,0))) -> 13.38345865
A151: =CHOOSE('2.2 Daten'!$A$2,'2.2 Daten'!B573,'2.2 Daten'!B122,'2.2 Daten'!B139,'2.2 Daten'!B156,'2.2 Daten'!B159,'2.2 Daten'!B206,'2.2 Daten'!B210,'2.2 Daten'!B265,'2.2 Daten'!B293,'2.2 Daten'!B331,'2.2 Daten'!B377,'2.2 Daten'!B475,'2.2 Daten'!B483,'2.2 Daten'!B486,'2.2 Daten'!B506,'2.2 Daten'!B516,'2.2 Daten'!B531,'2.2 Daten'!B547,x) -> Rheinisch-Bergischer Kreis | B151: =IF($A151<>0,INDEX('2.2 Daten'!C$9:C$859,MATCH('2.2'!$A151,'2.2 Daten'!$B$9:$B$859,0))," ") -> 05378000 | C151: =IF($A151<>0,INDEX('2.2 Daten'!E$9:E$859,MATCH('2.2'!$A151,'2.2 Daten'!$B$9:$B$859,0))) -> 6216 | D151: =IF($A151<>0,INDEX('2.2 Daten'!F$9:F$859,MATCH('2.2'!$A151,'2.2 Daten'!$B$9:$B$859,0))) -> 955 | E151: =IF($A151<>0,INDEX('2.2 Daten'!G$9:G$859,MATCH('2.2'!$A151,'2.2 Daten'!$B$9:$B$859,0))) -> 1108 | F151: =IF($A151<>0,INDEX('2.2 Daten'!H$9:H$859,MATCH('2.2'!$A151,'2.2 Daten'!$B$9:$B$859,0))) -> 3228 | G151: =IF($A151<>0,INDEX('2.2 Daten'!I$9:I$859,MATCH('2.2'!$A151,'2.2 Daten'!$B$9:$B$859,0))) -> 925 | H151: =IF($A151<>0,INDEX('2.2 Daten'!K$9:K$859,MATCH('2.2'!$A151,'2.2 Daten'!$B$9:$B$859,0))) -> 11.27819549 | I151: =IF($A151<>0,INDEX('2.2 Daten'!L$9:L$859,MATCH('2.2'!$A151,'2.2 Daten'!$B$9:$B$859,0))) -> 7.90960452 | J151: =IF($A151<>0,INDEX('2.2 Daten'!M$9:M$859,MATCH('2.2'!$A151,'2.2 Daten'!$B$9:$B$859,0))) -> 2.119815668 | K151: =IF($A151<>0,INDEX('2.2 Daten'!N$9:N$859,MATCH('2.2'!$A151,'2.2 Daten'!$B$9:$B$859,0))) -> 14.91634033 | L151: =IF($A151<>0,INDEX('2.2 Daten'!O$9:O$859,MATCH('2.2'!$A151,'2.2 Daten'!$B$9:$B$859,0))) -> 14.622057
A152: =CHOOSE('2.2 Daten'!$A$2,'2.2 Daten'!B574,'2.2 Daten'!B123,'2.2 Daten'!B140,'2.2 Daten'!B157,'2.2 Daten'!B160,'2.2 Daten'!B207,'2.2 Daten'!B211,'2.2 Daten'!B266,'2.2 Daten'!B294,'2.2 Daten'!B332,'2.2 Daten'!B378,'2.2 Daten'!B476,'2.2 Daten'!B484,'2.2 Daten'!B487,'2.2 Daten'!B507,'2.2 Daten'!B517,'2.2 Daten'!B532,'2.2 Daten'!B548,x) -> Rhein-Sieg-Kreis | B152: =IF($A152<>0,INDEX('2.2 Daten'!C$9:C$859,MATCH('2.2'!$A152,'2.2 Daten'!$B$9:$B$859,0))," ") -> 05382000 | C152: =IF($A152<>0,INDEX('2.2 Daten'!E$9:E$859,MATCH('2.2'!$A152,'2.2 Daten'!$B$9:$B$859,0))) -> 12502 | D152: =IF($A152<>0,INDEX('2.2 Daten'!F$9:F$859,MATCH('2.2'!$A152,'2.2 Daten'!$B$9:$B$859,0))) -> 1922 | E152: =IF($A152<>0,INDEX('2.2 Daten'!G$9:G$859,MATCH('2.2'!$A152,'2.2 Daten'!$B$9:$B$859,0))) -> 2259 | F152: =IF($A152<>0,INDEX('2.2 Daten'!H$9:H$859,MATCH('2.2'!$A152,'2.2 Daten'!$B$9:$B$859,0))) -> 6508 | G152: =IF($A152<>0,INDEX('2.2 Daten'!I$9:I$859,MATCH('2.2'!$A152,'2.2 Daten'!$B$9:$B$859,0))) -> 1813 | H152: =IF($A152<>0,INDEX('2.2 Daten'!K$9:K$859,MATCH('2.2'!$A152,'2.2 Daten'!$B$9:$B$859,0))) -> 3.347937505 | I152: =IF($A152<>0,INDEX('2.2 Daten'!L$9:L$859,MATCH('2.2'!$A152,'2.2 Daten'!$B$9:$B$859,0))) -> -5.226824458 | J152: =IF($A152<>0,INDEX('2.2 Daten'!M$9:M$859,MATCH('2.2'!$A152,'2.2 Daten'!$B$9:$B$859,0))) -> 1.119068935 | K152: =IF($A152<>0,INDEX('2.2 Daten'!N$9:N$859,MATCH('2.2'!$A152,'2.2 Daten'!$B$9:$B$859,0))) -> 5.461027386 | L152: =IF($A152<>0,INDEX('2.2 Daten'!O$9:O$859,MATCH('2.2'!$A152,'2.2 Daten'!$B$9:$B$859,0))) -> 8.954326923
A153: =CHOOSE('2.2 Daten'!$A$2,'2.2 Daten'!B575,'2.2 Daten'!B124,'2.2 Daten'!B141,'2.2 Daten'!B158,'2.2 Daten'!B161,'2.2 Daten'!B208,'2.2 Daten'!B212,'2.2 Daten'!B267,'2.2 Daten'!B295,'2.2 Daten'!B333,'2.2 Daten'!B379,'2.2 Daten'!B477,'2.2 Daten'!B485,'2.2 Daten'!B488,'2.2 Daten'!B508,'2.2 Daten'!B518,'2.2 Daten'!B533,'2.2 Daten'!B549,x) -> Bottrop, Stadt | B153: =IF($A153<>0,INDEX('2.2 Daten'!C$9:C$859,MATCH('2.2'!$A153,'2.2 Daten'!$B$9:$B$859,0))," ") -> 05512000 | C153: =IF($A153<>0,INDEX('2.2 Daten'!E$9:E$859,MATCH('2.2'!$A153,'2.2 Daten'!$B$9:$B$859,0))) -> 3636 | D153: =IF($A153<>0,INDEX('2.2 Daten'!F$9:F$859,MATCH('2.2'!$A153,'2.2 Daten'!$B$9:$B$859,0))) -> 640 | E153: =IF($A153<>0,INDEX('2.2 Daten'!G$9:G$859,MATCH('2.2'!$A153,'2.2 Daten'!$B$9:$B$859,0))) -> 657 | F153: =IF($A153<>0,INDEX('2.2 Daten'!H$9:H$859,MATCH('2.2'!$A153,'2.2 Daten'!$B$9:$B$859,0))) -> 1824 | G153: =IF($A153<>0,INDEX('2.2 Daten'!I$9:I$859,MATCH('2.2'!$A153,'2.2 Daten'!$B$9:$B$859,0))) -> 515 | H153: =IF($A153<>0,INDEX('2.2 Daten'!K$9:K$859,MATCH('2.2'!$A153,'2.2 Daten'!$B$9:$B$859,0))) -> -7.809330629 | I153: =IF($A153<>0,INDEX('2.2 Daten'!L$9:L$859,MATCH('2.2'!$A153,'2.2 Daten'!$B$9:$B$859,0))) -> -8.701854494 | J153: =IF($A153<>0,INDEX('2.2 Daten'!M$9:M$859,MATCH('2.2'!$A153,'2.2 Daten'!$B$9:$B$859,0))) -> -10.12311902 | K153: =IF($A153<>0,INDEX('2.2 Daten'!N$9:N$859,MATCH('2.2'!$A153,'2.2 Daten'!$B$9:$B$859,0))) -> -6.986231515 | L153: =IF($A153<>0,INDEX('2.2 Daten'!O$9:O$859,MATCH('2.2'!$A153,'2.2 Daten'!$B$9:$B$859,0))) -> -6.533575318
A154: =CHOOSE('2.2 Daten'!$A$2,'2.2 Daten'!B576,'2.2 Daten'!B125,'2.2 Daten'!B142,'2.2 Daten'!B159,'2.2 Daten'!B162,'2.2 Daten'!B209,'2.2 Daten'!B213,'2.2 Daten'!B268,'2.2 Daten'!B296,'2.2 Daten'!B334,'2.2 Daten'!B380,'2.2 Daten'!B478,'2.2 Daten'!B486,'2.2 Daten'!B489,'2.2 Daten'!B509,'2.2 Daten'!B519,'2.2 Daten'!B534,'2.2 Daten'!B550,x) -> Gelsenkirchen, Stadt | B154: =IF($A154<>0,INDEX('2.2 Daten'!C$9:C$859,MATCH('2.2'!$A154,'2.2 Daten'!$B$9:$B$859,0))," ") -> 05513000 | C154: =IF($A154<>0,INDEX('2.2 Daten'!E$9:E$859,MATCH('2.2'!$A154,'2.2 Daten'!$B$9:$B$859,0))) -> 19673 | D154: =IF($A154<>0,INDEX('2.2 Daten'!F$9:F$859,MATCH('2.2'!$A154,'2.2 Daten'!$B$9:$B$859,0))) -> 3292 | E154: =IF($A154<>0,INDEX('2.2 Daten'!G$9:G$859,MATCH('2.2'!$A154,'2.2 Daten'!$B$9:$B$859,0))) -> 3736 | F154: =IF($A154<>0,INDEX('2.2 Daten'!H$9:H$859,MATCH('2.2'!$A154,'2.2 Daten'!$B$9:$B$859,0))) -> 9913 | G154: =IF($A154<>0,INDEX('2.2 Daten'!I$9:I$859,MATCH('2.2'!$A154,'2.2 Daten'!$B$9:$B$859,0))) -> 2732 | H154: =IF($A154<>0,INDEX('2.2 Daten'!K$9:K$859,MATCH('2.2'!$A154,'2.2 Daten'!$B$9:$B$859,0))) -> 1.078970354 | I154: =IF($A154<>0,INDEX('2.2 Daten'!L$9:L$859,MATCH('2.2'!$A154,'2.2 Daten'!$B$9:$B$859,0))) -> -1.848539058 | J154: =IF($A154<>0,INDEX('2.2 Daten'!M$9:M$859,MATCH('2.2'!$A154,'2.2 Daten'!$B$9:$B$859,0))) -> 0.4031174415 | K154: =IF($A154<>0,INDEX('2.2 Daten'!N$9:N$859,MATCH('2.2'!$A154,'2.2 Daten'!$B$9:$B$859,0))) -> 2.36472532 | L154: =IF($A154<>0,INDEX('2.2 Daten'!O$9:O$859,MATCH('2.2'!$A154,'2.2 Daten'!$B$9:$B$859,0))) -> 1.035502959
A155: =CHOOSE('2.2 Daten'!$A$2,'2.2 Daten'!B577,'2.2 Daten'!B126,'2.2 Daten'!B143,'2.2 Daten'!B160,'2.2 Daten'!B163,'2.2 Daten'!B210,'2.2 Daten'!B214,'2.2 Daten'!B269,'2.2 Daten'!B297,'2.2 Daten'!B335,'2.2 Daten'!B381,'2.2 Daten'!B479,'2.2 Daten'!B487,'2.2 Daten'!B490,'2.2 Daten'!B510,'2.2 Daten'!B520,'2.2 Daten'!B535,'2.2 Daten'!B551,x) -> Münster, Stadt | B155: =IF($A155<>0,INDEX('2.2 Daten'!C$9:C$859,MATCH('2.2'!$A155,'2.2 Daten'!$B$9:$B$859,0))," ") -> 05515000 | C155: =IF($A155<>0,INDEX('2.2 Daten'!E$9:E$859,MATCH('2.2'!$A155,'2.2 Daten'!$B$9:$B$859,0))) -> 7042 | D155: =IF($A155<>0,INDEX('2.2 Daten'!F$9:F$859,MATCH('2.2'!$A155,'2.2 Daten'!$B$9:$B$859,0))) -> 1080 | E155: =IF($A155<>0,INDEX('2.2 Daten'!G$9:G$859,MATCH('2.2'!$A155,'2.2 Daten'!$B$9:$B$859,0))) -> 1306 | F155: =IF($A155<>0,INDEX('2.2 Daten'!H$9:H$859,MATCH('2.2'!$A155,'2.2 Daten'!$B$9:$B$859,0))) -> 3661 | G155: =IF($A155<>0,INDEX('2.2 Daten'!I$9:I$859,MATCH('2.2'!$A155,'2.2 Daten'!$B$9:$B$859,0))) -> 995 | H155: =IF($A155<>0,INDEX('2.2 Daten'!K$9:K$859,MATCH('2.2'!$A155,'2.2 Daten'!$B$9:$B$859,0))) -> 1.792425557 | I155: =IF($A155<>0,INDEX('2.2 Daten'!L$9:L$859,MATCH('2.2'!$A155,'2.2 Daten'!$B$9:$B$859,0))) -> -6.25 | J155: =IF($A155<>0,INDEX('2.2 Daten'!M$9:M$859,MATCH('2.2'!$A155,'2.2 Daten'!$B$9:$B$859,0))) -> -1.951951952 | K155: =IF($A155<>0,INDEX('2.2 Daten'!N$9:N$859,MATCH('2.2'!$A155,'2.2 Daten'!$B$9:$B$859,0))) -> 5.050215208 | L155: =IF($A155<>0,INDEX('2.2 Daten'!O$9:O$859,MATCH('2.2'!$A155,'2.2 Daten'!$B$9:$B$859,0))) -> 4.847207587
A156: =CHOOSE('2.2 Daten'!$A$2,'2.2 Daten'!B578,'2.2 Daten'!B127,'2.2 Daten'!B144,'2.2 Daten'!B161,'2.2 Daten'!B164,'2.2 Daten'!B211,'2.2 Daten'!B215,'2.2 Daten'!B270,'2.2 Daten'!B298,'2.2 Daten'!B336,'2.2 Daten'!B382,'2.2 Daten'!B480,'2.2 Daten'!B488,'2.2 Daten'!B491,'2.2 Daten'!B511,'2.2 Daten'!B521,'2.2 Daten'!B536,'2.2 Daten'!B552,x) -> Borken | B156: =IF($A156<>0,INDEX('2.2 Daten'!C$9:C$859,MATCH('2.2'!$A156,'2.2 Daten'!$B$9:$B$859,0))," ") -> 05554000 | C156: =IF($A156<>0,INDEX('2.2 Daten'!E$9:E$859,MATCH('2.2'!$A156,'2.2 Daten'!$B$9:$B$859,0))) -> 5733 | D156: =IF($A156<>0,INDEX('2.2 Daten'!F$9:F$859,MATCH('2.2'!$A156,'2.2 Daten'!$B$9:$B$859,0))) -> 880 | E156: =IF($A156<>0,INDEX('2.2 Daten'!G$9:G$859,MATCH('2.2'!$A156,'2.2 Daten'!$B$9:$B$859,0))) -> 1046 | F156: =IF($A156<>0,INDEX('2.2 Daten'!H$9:H$859,MATCH('2.2'!$A156,'2.2 Daten'!$B$9:$B$859,0))) -> 3001 | G156: =IF($A156<>0,INDEX('2.2 Daten'!I$9:I$859,MATCH('2.2'!$A156,'2.2 Daten'!$B$9:$B$859,0))) -> 806 | H156: =IF($A156<>0,INDEX('2.2 Daten'!K$9:K$859,MATCH('2.2'!$A156,'2.2 Daten'!$B$9:$B$859,0))) -> 10.88974855 | I156: =IF($A156<>0,INDEX('2.2 Daten'!L$9:L$859,MATCH('2.2'!$A156,'2.2 Daten'!$B$9:$B$859,0))) -> 5.13739546 | J156: =IF($A156<>0,INDEX('2.2 Daten'!M$9:M$859,MATCH('2.2'!$A156,'2.2 Daten'!$B$9:$B$859,0))) -> 6.408952187 | K156: =IF($A156<>0,INDEX('2.2 Daten'!N$9:N$859,MATCH('2.2'!$A156,'2.2 Daten'!$B$9:$B$859,0))) -> 14.41097979 | L156: =IF($A156<>0,INDEX('2.2 Daten'!O$9:O$859,MATCH('2.2'!$A156,'2.2 Daten'!$B$9:$B$859,0))) -> 10.86657497
A157: =CHOOSE('2.2 Daten'!$A$2,'2.2 Daten'!B579,'2.2 Daten'!B128,'2.2 Daten'!B145,'2.2 Daten'!B162,'2.2 Daten'!B165,'2.2 Daten'!B212,'2.2 Daten'!B216,'2.2 Daten'!B271,'2.2 Daten'!B299,'2.2 Daten'!B337,'2.2 Daten'!B383,'2.2 Daten'!B481,'2.2 Daten'!B489,'2.2 Daten'!B492,'2.2 Daten'!B512,'2.2 Daten'!B522,'2.2 Daten'!B537,'2.2 Daten'!B553,x) -> Coesfeld | B157: =IF($A157<>0,INDEX('2.2 Daten'!C$9:C$859,MATCH('2.2'!$A157,'2.2 Daten'!$B$9:$B$859,0))," ") -> 05558000 | C157: =IF($A157<>0,INDEX('2.2 Daten'!E$9:E$859,MATCH('2.2'!$A157,'2.2 Daten'!$B$9:$B$859,0))) -> 2997 | D157: =IF($A157<>0,INDEX('2.2 Daten'!F$9:F$859,MATCH('2.2'!$A157,'2.2 Daten'!$B$9:$B$859,0))) -> 499 | E157: =IF($A157<>0,INDEX('2.2 Daten'!G$9:G$859,MATCH('2.2'!$A157,'2.2 Daten'!$B$9:$B$859,0))) -> 575 | F157: =IF($A157<>0,INDEX('2.2 Daten'!H$9:H$859,MATCH('2.2'!$A157,'2.2 Daten'!$B$9:$B$859,0))) -> 1522 | G157: =IF($A157<>0,INDEX('2.2 Daten'!I$9:I$859,MATCH('2.2'!$A157,'2.2 Daten'!$B$9:$B$859,0))) -> 401 | H157: =IF($A157<>0,INDEX('2.2 Daten'!K$9:K$859,MATCH('2.2'!$A157,'2.2 Daten'!$B$9:$B$859,0))) -> 8.194945848 | I157: =IF($A157<>0,INDEX('2.2 Daten'!L$9:L$859,MATCH('2.2'!$A157,'2.2 Daten'!$B$9:$B$859,0))) -> 2.674897119 | J157: =IF($A157<>0,INDEX('2.2 Daten'!M$9:M$859,MATCH('2.2'!$A157,'2.2 Daten'!$B$9:$B$859,0))) -> 9.523809524 | K157: =IF($A157<>0,INDEX('2.2 Daten'!N$9:N$859,MATCH('2.2'!$A157,'2.2 Daten'!$B$9:$B$859,0))) -> 9.496402878 | L157: =IF($A157<>0,INDEX('2.2 Daten'!O$9:O$859,MATCH('2.2'!$A157,'2.2 Daten'!$B$9:$B$859,0))) -> 8.672086721
A158: =CHOOSE('2.2 Daten'!$A$2,'2.2 Daten'!B580,'2.2 Daten'!B129,'2.2 Daten'!B146,'2.2 Daten'!B163,'2.2 Daten'!B166,'2.2 Daten'!B213,'2.2 Daten'!B217,'2.2 Daten'!B272,'2.2 Daten'!B300,'2.2 Daten'!B338,'2.2 Daten'!B384,'2.2 Daten'!B482,'2.2 Daten'!B490,'2.2 Daten'!B493,'2.2 Daten'!B513,'2.2 Daten'!B523,'2.2 Daten'!B538,'2.2 Daten'!B554,x) -> Recklinghausen | B158: =IF($A158<>0,INDEX('2.2 Daten'!C$9:C$859,MATCH('2.2'!$A158,'2.2 Daten'!$B$9:$B$859,0))," ") -> 05562000 | C158: =IF($A158<>0,INDEX('2.2 Daten'!E$9:E$859,MATCH('2.2'!$A158,'2.2 Daten'!$B$9:$B$859,0))) -> 23755 | D158: =IF($A158<>0,INDEX('2.2 Daten'!F$9:F$859,MATCH('2.2'!$A158,'2.2 Daten'!$B$9:$B$859,0))) -> 3919 | E158: =IF($A158<>0,INDEX('2.2 Daten'!G$9:G$859,MATCH('2.2'!$A158,'2.2 Daten'!$B$9:$B$859,0))) -> 4491 | F158: =IF($A158<>0,INDEX('2.2 Daten'!H$9:H$859,MATCH('2.2'!$A158,'2.2 Daten'!$B$9:$B$859,0))) -> 11913 | G158: =IF($A158<>0,INDEX('2.2 Daten'!I$9:I$859,MATCH('2.2'!$A158,'2.2 Daten'!$B$9:$B$859,0))) -> 3432 | H158: =IF($A158<>0,INDEX('2.2 Daten'!K$9:K$859,MATCH('2.2'!$A158,'2.2 Daten'!$B$9:$B$859,0))) -> -0.2854384418 | I158: =IF($A158<>0,INDEX('2.2 Daten'!L$9:L$859,MATCH('2.2'!$A158,'2.2 Daten'!$B$9:$B$859,0))) -> -2.244948865 | J158: =IF($A158<>0,INDEX('2.2 Daten'!M$9:M$859,MATCH('2.2'!$A158,'2.2 Daten'!$B$9:$B$859,0))) -> -1.513157895 | K158: =IF($A158<>0,INDEX('2.2 Daten'!N$9:N$859,MATCH('2.2'!$A158,'2.2 Daten'!$B$9:$B$859,0))) -> 0.8209207854 | L158: =IF($A158<>0,INDEX('2.2 Daten'!O$9:O$859,MATCH('2.2'!$A158,'2.2 Daten'!$B$9:$B$859,0))) -> -0.1745200698
A159: =CHOOSE('2.2 Daten'!$A$2,'2.2 Daten'!B581,'2.2 Daten'!B130,'2.2 Daten'!B147,'2.2 Daten'!B164,'2.2 Daten'!B167,'2.2 Daten'!B214,'2.2 Daten'!B218,'2.2 Daten'!B273,'2.2 Daten'!B301,'2.2 Daten'!B339,'2.2 Daten'!B385,'2.2 Daten'!B483,'2.2 Daten'!B491,'2.2 Daten'!B494,'2.2 Daten'!B514,'2.2 Daten'!B524,'2.2 Daten'!B539,'2.2 Daten'!B555,x) -> Steinfurt | B159: =IF($A159<>0,INDEX('2.2 Daten'!C$9:C$859,MATCH('2.2'!$A159,'2.2 Daten'!$B$9:$B$859,0))," ") -> 05566000 | C159: =IF($A159<>0,INDEX('2.2 Daten'!E$9:E$859,MATCH('2.2'!$A159,'2.2 Daten'!$B$9:$B$859,0))) -> 7991 | D159: =IF($A159<>0,INDEX('2.2 Daten'!F$9:F$859,MATCH('2.2'!$A159,'2.2 Daten'!$B$9:$B$859,0))) -> 1326 | E159: =IF($A159<>0,INDEX('2.2 Daten'!G$9:G$859,MATCH('2.2'!$A159,'2.2 Daten'!$B$9:$B$859,0))) -> 1570 | F159: =IF($A159<>0,INDEX('2.2 Daten'!H$9:H$859,MATCH('2.2'!$A159,'2.2 Daten'!$B$9:$B$859,0))) -> 4029 | G159: =IF($A159<>0,INDEX('2.2 Daten'!I$9:I$859,MATCH('2.2'!$A159,'2.2 Daten'!$B$9:$B$859,0))) -> 1066 | H159: =IF($A159<>0,INDEX('2.2 Daten'!K$9:K$859,MATCH('2.2'!$A159,'2.2 Daten'!$B$9:$B$859,0))) -> 6.220922504 | I159: =IF($A159<>0,INDEX('2.2 Daten'!L$9:L$859,MATCH('2.2'!$A159,'2.2 Daten'!$B$9:$B$859,0))) -> -3.211678832 | J159: =IF($A159<>0,INDEX('2.2 Daten'!M$9:M$859,MATCH('2.2'!$A159,'2.2 Daten'!$B$9:$B$859,0))) -> 5.016722408 | K159: =IF($A159<>0,INDEX('2.2 Daten'!N$9:N$859,MATCH('2.2'!$A159,'2.2 Daten'!$B$9:$B$859,0))) -> 6.898381534 | L159: =IF($A159<>0,INDEX('2.2 Daten'!O$9:O$859,MATCH('2.2'!$A159,'2.2 Daten'!$B$9:$B$859,0))) -> 19.91001125
A160: =CHOOSE('2.2 Daten'!$A$2,'2.2 Daten'!B582,'2.2 Daten'!B131,'2.2 Daten'!B148,'2.2 Daten'!B165,'2.2 Daten'!B168,'2.2 Daten'!B215,'2.2 Daten'!B219,'2.2 Daten'!B274,'2.2 Daten'!B302,'2.2 Daten'!B340,'2.2 Daten'!B386,'2.2 Daten'!B484,'2.2 Daten'!B492,'2.2 Daten'!B495,'2.2 Daten'!B515,'2.2 Daten'!B525,'2.2 Daten'!B540,'2.2 Daten'!B556,x) -> Warendorf | B160: =IF($A160<>0,INDEX('2.2 Daten'!C$9:C$859,MATCH('2.2'!$A160,'2.2 Daten'!$B$9:$B$859,0))," ") -> 05570000 | C160: =IF($A160<>0,INDEX('2.2 Daten'!E$9:E$859,MATCH('2.2'!$A160,'2.2 Daten'!$B$9:$B$859,0))) -> 5031 | D160: =IF($A160<>0,INDEX('2.2 Daten'!F$9:F$859,MATCH('2.2'!$A160,'2.2 Daten'!$B$9:$B$859,0))) -> 762 | E160: =IF($A160<>0,INDEX('2.2 Daten'!G$9:G$859,MATCH('2.2'!$A160,'2.2 Daten'!$B$9:$B$859,0))) -> 857 | F160: =IF($A160<>0,INDEX('2.2 Daten'!H$9:H$859,MATCH('2.2'!$A160,'2.2 Daten'!$B$9:$B$859,0))) -> 2630 | G160: =IF($A160<>0,INDEX('2.2 Daten'!I$9:I$859,MATCH('2.2'!$A160,'2.2 Daten'!$B$9:$B$859,0))) -> 782 | H160: =IF($A160<>0,INDEX('2.2 Daten'!K$9:K$859,MATCH('2.2'!$A160,'2.2 Daten'!$B$9:$B$859,0))) -> -3.786574871 | I160: =IF($A160<>0,INDEX('2.2 Daten'!L$9:L$859,MATCH('2.2'!$A160,'2.2 Daten'!$B$9:$B$859,0))) -> -5.341614907 | J160: =IF($A160<>0,INDEX('2.2 Daten'!M$9:M$859,MATCH('2.2'!$A160,'2.2 Daten'!$B$9:$B$859,0))) -> -11.55830753 | K160: =IF($A160<>0,INDEX('2.2 Daten'!N$9:N$859,MATCH('2.2'!$A160,'2.2 Daten'!$B$9:$B$859,0))) -> -0.5295007564 | L160: =IF($A160<>0,INDEX('2.2 Daten'!O$9:O$859,MATCH('2.2'!$A160,'2.2 Daten'!$B$9:$B$859,0))) -> -3.575832306
A161: =CHOOSE('2.2 Daten'!$A$2,'2.2 Daten'!B583,'2.2 Daten'!B132,'2.2 Daten'!B149,'2.2 Daten'!B166,'2.2 Daten'!B169,'2.2 Daten'!B216,'2.2 Daten'!B220,'2.2 Daten'!B275,'2.2 Daten'!B303,'2.2 Daten'!B341,'2.2 Daten'!B387,'2.2 Daten'!B485,'2.2 Daten'!B493,'2.2 Daten'!B496,'2.2 Daten'!B516,'2.2 Daten'!B526,'2.2 Daten'!B541,'2.2 Daten'!B557,x) -> Bielefeld, Stadt | B161: =IF($A161<>0,INDEX('2.2 Daten'!C$9:C$859,MATCH('2.2'!$A161,'2.2 Daten'!$B$9:$B$859,0))," ") -> 05711000 | C161: =IF($A161<>0,INDEX('2.2 Daten'!E$9:E$859,MATCH('2.2'!$A161,'2.2 Daten'!$B$9:$B$859,0))) -> 12351 | D161: =IF($A161<>0,INDEX('2.2 Daten'!F$9:F$859,MATCH('2.2'!$A161,'2.2 Daten'!$B$9:$B$859,0))) -> 1913 | E161: =IF($A161<>0,INDEX('2.2 Daten'!G$9:G$859,MATCH('2.2'!$A161,'2.2 Daten'!$B$9:$B$859,0))) -> 2214 | F161: =IF($A161<>0,INDEX('2.2 Daten'!H$9:H$859,MATCH('2.2'!$A161,'2.2 Daten'!$B$9:$B$859,0))) -> 6260 | G161: =IF($A161<>0,INDEX('2.2 Daten'!I$9:I$859,MATCH('2.2'!$A161,'2.2 Daten'!$B$9:$B$859,0))) -> 1964 | H161: =IF($A161<>0,INDEX('2.2 Daten'!K$9:K$859,MATCH('2.2'!$A161,'2.2 Daten'!$B$9:$B$859,0))) -> -0.515505437 | I161: =IF($A161<>0,INDEX('2.2 Daten'!L$9:L$859,MATCH('2.2'!$A161,'2.2 Daten'!$B$9:$B$859,0))) -> -8.293384468 | J161: =IF($A161<>0,INDEX('2.2 Daten'!M$9:M$859,MATCH('2.2'!$A161,'2.2 Daten'!$B$9:$B$859,0))) -> 4.433962264 | K161: =IF($A161<>0,INDEX('2.2 Daten'!N$9:N$859,MATCH('2.2'!$A161,'2.2 Daten'!$B$9:$B$859,0))) -> 0.7564783518 | L161: =IF($A161<>0,INDEX('2.2 Daten'!O$9:O$859,MATCH('2.2'!$A161,'2.2 Daten'!$B$9:$B$859,0))) -> -1.603206413
A162: =CHOOSE('2.2 Daten'!$A$2,'2.2 Daten'!B584,'2.2 Daten'!B133,'2.2 Daten'!B150,'2.2 Daten'!B167,'2.2 Daten'!B170,'2.2 Daten'!B217,'2.2 Daten'!B221,'2.2 Daten'!B276,'2.2 Daten'!B304,'2.2 Daten'!B342,'2.2 Daten'!B388,'2.2 Daten'!B486,'2.2 Daten'!B494,'2.2 Daten'!B497,'2.2 Daten'!B517,'2.2 Daten'!B527,'2.2 Daten'!B542,'2.2 Daten'!B558,x) -> Gütersloh | B162: =IF($A162<>0,INDEX('2.2 Daten'!C$9:C$859,MATCH('2.2'!$A162,'2.2 Daten'!$B$9:$B$859,0))," ") -> 05754000 | C162: =IF($A162<>0,INDEX('2.2 Daten'!E$9:E$859,MATCH('2.2'!$A162,'2.2 Daten'!$B$9:$B$859,0))) -> 6641 | D162: =IF($A162<>0,INDEX('2.2 Daten'!F$9:F$859,MATCH('2.2'!$A162,'2.2 Daten'!$B$9:$B$859,0))) -> 1000 | E162: =IF($A162<>0,INDEX('2.2 Daten'!G$9:G$859,MATCH('2.2'!$A162,'2.2 Daten'!$B$9:$B$859,0))) -> 1218 | F162: =IF($A162<>0,INDEX('2.2 Daten'!H$9:H$859,MATCH('2.2'!$A162,'2.2 Daten'!$B$9:$B$859,0))) -> 3432 | G162: =IF($A162<>0,INDEX('2.2 Daten'!I$9:I$859,MATCH('2.2'!$A162,'2.2 Daten'!$B$9:$B$859,0))) -> 991 | H162: =IF($A162<>0,INDEX('2.2 Daten'!K$9:K$859,MATCH('2.2'!$A162,'2.2 Daten'!$B$9:$B$859,0))) -> 10.48078523 | I162: =IF($A162<>0,INDEX('2.2 Daten'!L$9:L$859,MATCH('2.2'!$A162,'2.2 Daten'!$B$9:$B$859,0))) -> 1.83299389 | J162: =IF($A162<>0,INDEX('2.2 Daten'!M$9:M$859,MATCH('2.2'!$A162,'2.2 Daten'!$B$9:$B$859,0))) -> 11.74311927 | K162: =IF($A162<>0,INDEX('2.2 Daten'!N$9:N$859,MATCH('2.2'!$A162,'2.2 Daten'!$B$9:$B$859,0))) -> 12.52459016 | L162: =IF($A162<>0,INDEX('2.2 Daten'!O$9:O$859,MATCH('2.2'!$A162,'2.2 Daten'!$B$9:$B$859,0))) -> 11.4735658
A163: =CHOOSE('2.2 Daten'!$A$2,'2.2 Daten'!B585,'2.2 Daten'!B134,'2.2 Daten'!B151,'2.2 Daten'!B168,'2.2 Daten'!B171,'2.2 Daten'!B218,'2.2 Daten'!B222,'2.2 Daten'!B277,'2.2 Daten'!B305,'2.2 Daten'!B343,'2.2 Daten'!B389,'2.2 Daten'!B487,'2.2 Daten'!B495,'2.2 Daten'!B498,'2.2 Daten'!B518,'2.2 Daten'!B528,'2.2 Daten'!B543,'2.2 Daten'!B559,x) -> Herford | B163: =IF($A163<>0,INDEX('2.2 Daten'!C$9:C$859,MATCH('2.2'!$A163,'2.2 Daten'!$B$9:$B$859,0))," ") -> 05758000 | C163: =IF($A163<>0,INDEX('2.2 Daten'!E$9:E$859,MATCH('2.2'!$A163,'2.2 Daten'!$B$9:$B$859,0))) -> 6003 | D163: =IF($A163<>0,INDEX('2.2 Daten'!F$9:F$859,MATCH('2.2'!$A163,'2.2 Daten'!$B$9:$B$859,0))) -> 958 | E163: =IF($A163<>0,INDEX('2.2 Daten'!G$9:G$859,MATCH('2.2'!$A163,'2.2 Daten'!$B$9:$B$859,0))) -> 1128 | F163: =IF($A163<>0,INDEX('2.2 Daten'!H$9:H$859,MATCH('2.2'!$A163,'2.2 Daten'!$B$9:$B$859,0))) -> 3054 | G163: =IF($A163<>0,INDEX('2.2 Daten'!I$9:I$859,MATCH('2.2'!$A163,'2.2 Daten'!$B$9:$B$859,0))) -> 863 | H163: =IF($A163<>0,INDEX('2.2 Daten'!K$9:K$859,MATCH('2.2'!$A163,'2.2 Daten'!$B$9:$B$859,0))) -> 8.631921824 | I163: =IF($A163<>0,INDEX('2.2 Daten'!L$9:L$859,MATCH('2.2'!$A163,'2.2 Daten'!$B$9:$B$859,0))) -> 1.590668081 | J163: =IF($A163<>0,INDEX('2.2 Daten'!M$9:M$859,MATCH('2.2'!$A163,'2.2 Daten'!$B$9:$B$859,0))) -> 10.37181996 | K163: =IF($A163<>0,INDEX('2.2 Daten'!N$9:N$859,MATCH('2.2'!$A163,'2.2 Daten'!$B$9:$B$859,0))) -> 10.1334295 | L163: =IF($A163<>0,INDEX('2.2 Daten'!O$9:O$859,MATCH('2.2'!$A163,'2.2 Daten'!$B$9:$B$859,0))) -> 9.517766497
A164: =CHOOSE('2.2 Daten'!$A$2,'2.2 Daten'!B586,'2.2 Daten'!B135,'2.2 Daten'!B152,'2.2 Daten'!B169,'2.2 Daten'!B172,'2.2 Daten'!B219,'2.2 Daten'!B223,'2.2 Daten'!B278,'2.2 Daten'!B306,'2.2 Daten'!B344,'2.2 Daten'!B390,'2.2 Daten'!B488,'2.2 Daten'!B496,'2.2 Daten'!B499,'2.2 Daten'!B519,'2.2 Daten'!B529,'2.2 Daten'!B544,'2.2 Daten'!B560,x) -> Höxter | B164: =IF($A164<>0,INDEX('2.2 Daten'!C$9:C$859,MATCH('2.2'!$A164,'2.2 Daten'!$B$9:$B$859,0))," ") -> 05762000 | C164: =IF($A164<>0,INDEX('2.2 Daten'!E$9:E$859,MATCH('2.2'!$A164,'2.2 Daten'!$B$9:$B$859,0))) -> 2452 | D164: =IF($A164<>0,INDEX('2.2 Daten'!F$9:F$859,MATCH('2.2'!$A164,'2.2 Daten'!$B$9:$B$859,0))) -> 406 | E164: =IF($A164<>0,INDEX('2.2 Daten'!G$9:G$859,MATCH('2.2'!$A164,'2.2 Daten'!$B$9:$B$859,0))) -> 469 | F164: =IF($A164<>0,INDEX('2.2 Daten'!H$9:H$859,MATCH('2.2'!$A164,'2.2 Daten'!$B$9:$B$859,0))) -> 1275 | G164: =IF($A164<>0,INDEX('2.2 Daten'!I$9:I$859,MATCH('2.2'!$A164,'2.2 Daten'!$B$9:$B$859,0))) -> 302 | H164: =IF($A164<>0,INDEX('2.2 Daten'!K$9:K$859,MATCH('2.2'!$A164,'2.2 Daten'!$B$9:$B$859,0))) -> 13.30868762 | I164: =IF($A164<>0,INDEX('2.2 Daten'!L$9:L$859,MATCH('2.2'!$A164,'2.2 Daten'!$B$9:$B$859,0))) -> 7.978723404 | J164: =IF($A164<>0,INDEX('2.2 Daten'!M$9:M$859,MATCH('2.2'!$A164,'2.2 Daten'!$B$9:$B$859,0))) -> 14.11192214 | K164: =IF($A164<>0,INDEX('2.2 Daten'!N$9:N$859,MATCH('2.2'!$A164,'2.2 Daten'!$B$9:$B$859,0))) -> 16.54478976 | L164: =IF($A164<>0,INDEX('2.2 Daten'!O$9:O$859,MATCH('2.2'!$A164,'2.2 Daten'!$B$9:$B$859,0))) -> 6.713780919
A165: =CHOOSE('2.2 Daten'!$A$2,'2.2 Daten'!B587,'2.2 Daten'!B136,'2.2 Daten'!B153,'2.2 Daten'!B170,'2.2 Daten'!B173,'2.2 Daten'!B220,'2.2 Daten'!B224,'2.2 Daten'!B279,'2.2 Daten'!B307,'2.2 Daten'!B345,'2.2 Daten'!B391,'2.2 Daten'!B489,'2.2 Daten'!B497,'2.2 Daten'!B500,'2.2 Daten'!B520,'2.2 Daten'!B530,'2.2 Daten'!B545,'2.2 Daten'!B561,x) -> Lippe | B165: =IF($A165<>0,INDEX('2.2 Daten'!C$9:C$859,MATCH('2.2'!$A165,'2.2 Daten'!$B$9:$B$859,0))," ") -> 05766000 | C165: =IF($A165<>0,INDEX('2.2 Daten'!E$9:E$859,MATCH('2.2'!$A165,'2.2 Daten'!$B$9:$B$859,0))) -> 9541 | D165: =IF($A165<>0,INDEX('2.2 Daten'!F$9:F$859,MATCH('2.2'!$A165,'2.2 Daten'!$B$9:$B$859,0))) -> 1526 | E165: =IF($A165<>0,INDEX('2.2 Daten'!G$9:G$859,MATCH('2.2'!$A165,'2.2 Daten'!$B$9:$B$859,0))) -> 1782 | F165: =IF($A165<>0,INDEX('2.2 Daten'!H$9:H$859,MATCH('2.2'!$A165,'2.2 Daten'!$B$9:$B$859,0))) -> 4831 | G165: =IF($A165<>0,INDEX('2.2 Daten'!I$9:I$859,MATCH('2.2'!$A165,'2.2 Daten'!$B$9:$B$859,0))) -> 1402 | H165: =IF($A165<>0,INDEX('2.2 Daten'!K$9:K$859,MATCH('2.2'!$A165,'2.2 Daten'!$B$9:$B$859,0))) -> 10.76155096 | I165: =IF($A165<>0,INDEX('2.2 Daten'!L$9:L$859,MATCH('2.2'!$A165,'2.2 Daten'!$B$9:$B$859,0))) -> 2.416107383 | J165: =IF($A165<>0,INDEX('2.2 Daten'!M$9:M$859,MATCH('2.2'!$A165,'2.2 Daten'!$B$9:$B$859,0))) -> 13.64795918 | K165: =IF($A165<>0,INDEX('2.2 Daten'!N$9:N$859,MATCH('2.2'!$A165,'2.2 Daten'!$B$9:$B$859,0))) -> 12.01020172 | L165: =IF($A165<>0,INDEX('2.2 Daten'!O$9:O$859,MATCH('2.2'!$A165,'2.2 Daten'!$B$9:$B$859,0))) -> 12.79163315
A166: =CHOOSE('2.2 Daten'!$A$2,'2.2 Daten'!B588,'2.2 Daten'!B137,'2.2 Daten'!B154,'2.2 Daten'!B171,'2.2 Daten'!B174,'2.2 Daten'!B221,'2.2 Daten'!B225,'2.2 Daten'!B280,'2.2 Daten'!B308,'2.2 Daten'!B346,'2.2 Daten'!B392,'2.2 Daten'!B490,'2.2 Daten'!B498,'2.2 Daten'!B501,'2.2 Daten'!B521,'2.2 Daten'!B531,'2.2 Daten'!B546,'2.2 Daten'!B562,x) -> Minden-Lübbecke | B166: =IF($A166<>0,INDEX('2.2 Daten'!C$9:C$859,MATCH('2.2'!$A166,'2.2 Daten'!$B$9:$B$859,0))," ") -> 05770000 | C166: =IF($A166<>0,INDEX('2.2 Daten'!E$9:E$859,MATCH('2.2'!$A166,'2.2 Daten'!$B$9:$B$859,0))) -> 9090 | D166: =IF($A166<>0,INDEX('2.2 Daten'!F$9:F$859,MATCH('2.2'!$A166,'2.2 Daten'!$B$9:$B$859,0))) -> 1347 | E166: =IF($A166<>0,INDEX('2.2 Daten'!G$9:G$859,MATCH('2.2'!$A166,'2.2 Daten'!$B$9:$B$859,0))) -> 1705 | F166: =IF($A166<>0,INDEX('2.2 Daten'!H$9:H$859,MATCH('2.2'!$A166,'2.2 Daten'!$B$9:$B$859,0))) -> 4675 | G166: =IF($A166<>0,INDEX('2.2 Daten'!I$9:I$859,MATCH('2.2'!$A166,'2.2 Daten'!$B$9:$B$859,0))) -> 1363 | H166: =IF($A166<>0,INDEX('2.2 Daten'!K$9:K$859,MATCH('2.2'!$A166,'2.2 Daten'!$B$9:$B$859,0))) -> 13.72450895 | I166: =IF($A166<>0,INDEX('2.2 Daten'!L$9:L$859,MATCH('2.2'!$A166,'2.2 Daten'!$B$9:$B$859,0))) -> 3.218390805 | J166: =IF($A166<>0,INDEX('2.2 Daten'!M$9:M$859,MATCH('2.2'!$A166,'2.2 Daten'!$B$9:$B$859,0))) -> 13.81842457 | K166: =IF($A166<>0,INDEX('2.2 Daten'!N$9:N$859,MATCH('2.2'!$A166,'2.2 Daten'!$B$9:$B$859,0))) -> 16.00496278 | L166: =IF($A166<>0,INDEX('2.2 Daten'!O$9:O$859,MATCH('2.2'!$A166,'2.2 Daten'!$B$9:$B$859,0))) -> 17.5
A167: =CHOOSE('2.2 Daten'!$A$2,'2.2 Daten'!B589,'2.2 Daten'!B138,'2.2 Daten'!B155,'2.2 Daten'!B172,'2.2 Daten'!B175,'2.2 Daten'!B222,'2.2 Daten'!B226,'2.2 Daten'!B281,'2.2 Daten'!B309,'2.2 Daten'!B347,'2.2 Daten'!B393,'2.2 Daten'!B491,'2.2 Daten'!B499,'2.2 Daten'!B502,'2.2 Daten'!B522,'2.2 Daten'!B532,'2.2 Daten'!B547,'2.2 Daten'!B563,x) -> Paderborn | B167: =IF($A167<>0,INDEX('2.2 Daten'!C$9:C$859,MATCH('2.2'!$A167,'2.2 Daten'!$B$9:$B$859,0))," ") -> 05774000 | C167: =IF($A167<>0,INDEX('2.2 Daten'!E$9:E$859,MATCH('2.2'!$A167,'2.2 Daten'!$B$9:$B$859,0))) -> 6838 | D167: =IF($A167<>0,INDEX('2.2 Daten'!F$9:F$859,MATCH('2.2'!$A167,'2.2 Daten'!$B$9:$B$859,0))) -> 1112 | E167: =IF($A167<>0,INDEX('2.2 Daten'!G$9:G$859,MATCH('2.2'!$A167,'2.2 Daten'!$B$9:$B$859,0))) -> 1179 | F167: =IF($A167<>0,INDEX('2.2 Daten'!H$9:H$859,MATCH('2.2'!$A167,'2.2 Daten'!$B$9:$B$859,0))) -> 3574 | G167: =IF($A167<>0,INDEX('2.2 Daten'!I$9:I$859,MATCH('2.2'!$A167,'2.2 Daten'!$B$9:$B$859,0))) -> 973 | H167: =IF($A167<>0,INDEX('2.2 Daten'!K$9:K$859,MATCH('2.2'!$A167,'2.2 Daten'!$B$9:$B$859,0))) -> 4.285496416 | I167: =IF($A167<>0,INDEX('2.2 Daten'!L$9:L$859,MATCH('2.2'!$A167,'2.2 Daten'!$B$9:$B$859,0))) -> 4.217432052 | J167: =IF($A167<>0,INDEX('2.2 Daten'!M$9:M$859,MATCH('2.2'!$A167,'2.2 Daten'!$B$9:$B$859,0))) -> -2.722772277 | K167: =IF($A167<>0,INDEX('2.2 Daten'!N$9:N$859,MATCH('2.2'!$A167,'2.2 Daten'!$B$9:$B$859,0))) -> 6.116389549 | L167: =IF($A167<>0,INDEX('2.2 Daten'!O$9:O$859,MATCH('2.2'!$A167,'2.2 Daten'!$B$9:$B$859,0))) -> 6.923076923
A168: =CHOOSE('2.2 Daten'!$A$2,'2.2 Daten'!B590,'2.2 Daten'!B139,'2.2 Daten'!B156,'2.2 Daten'!B173,'2.2 Daten'!B176,'2.2 Daten'!B223,'2.2 Daten'!B227,'2.2 Daten'!B282,'2.2 Daten'!B310,'2.2 Daten'!B348,'2.2 Daten'!B394,'2.2 Daten'!B492,'2.2 Daten'!B500,'2.2 Daten'!B503,'2.2 Daten'!B523,'2.2 Daten'!B533,'2.2 Daten'!B548,'2.2 Daten'!B564,x) -> Bochum, Stadt | B168: =IF($A168<>0,INDEX('2.2 Daten'!C$9:C$859,MATCH('2.2'!$A168,'2.2 Daten'!$B$9:$B$859,0))," ") -> 05911000 | C168: =IF($A168<>0,INDEX('2.2 Daten'!E$9:E$859,MATCH('2.2'!$A168,'2.2 Daten'!$B$9:$B$859,0))) -> 13861 | D168: =IF($A168<>0,INDEX('2.2 Daten'!F$9:F$859,MATCH('2.2'!$A168,'2.2 Daten'!$B$9:$B$859,0))) -> 2132 | E168: =IF($A168<>0,INDEX('2.2 Daten'!G$9:G$859,MATCH('2.2'!$A168,'2.2 Daten'!$B$9:$B$859,0))) -> 2554 | F168: =IF($A168<>0,INDEX('2.2 Daten'!H$9:H$859,MATCH('2.2'!$A168,'2.2 Daten'!$B$9:$B$859,0))) -> 7089 | G168: =IF($A168<>0,INDEX('2.2 Daten'!I$9:I$859,MATCH('2.2'!$A168,'2.2 Daten'!$B$9:$B$859,0))) -> 2086 | H168: =IF($A168<>0,INDEX('2.2 Daten'!K$9:K$859,MATCH('2.2'!$A168,'2.2 Daten'!$B$9:$B$859,0))) -> -0.9787112445 | I168: =IF($A168<>0,INDEX('2.2 Daten'!L$9:L$859,MATCH('2.2'!$A168,'2.2 Daten'!$B$9:$B$859,0))) -> -10.26936027 | J168: =IF($A168<>0,INDEX('2.2 Daten'!M$9:M$859,MATCH('2.2'!$A168,'2.2 Daten'!$B$9:$B$859,0))) -> -5.44242873 | K168: =IF($A168<>0,INDEX('2.2 Daten'!N$9:N$859,MATCH('2.2'!$A168,'2.2 Daten'!$B$9:$B$859,0))) -> 3.097731239 | L168: =IF($A168<>0,INDEX('2.2 Daten'!O$9:O$859,MATCH('2.2'!$A168,'2.2 Daten'!$B$9:$B$859,0))) -> 2.004889976
A169: =CHOOSE('2.2 Daten'!$A$2,'2.2 Daten'!B591,'2.2 Daten'!B140,'2.2 Daten'!B157,'2.2 Daten'!B174,'2.2 Daten'!B177,'2.2 Daten'!B224,'2.2 Daten'!B228,'2.2 Daten'!B283,'2.2 Daten'!B311,'2.2 Daten'!B349,'2.2 Daten'!B395,'2.2 Daten'!B493,'2.2 Daten'!B501,'2.2 Daten'!B504,'2.2 Daten'!B524,'2.2 Daten'!B534,'2.2 Daten'!B549,'2.2 Daten'!B565,x) -> Dortmund, Stadt | B169: =IF($A169<>0,INDEX('2.2 Daten'!C$9:C$859,MATCH('2.2'!$A169,'2.2 Daten'!$B$9:$B$859,0))," ") -> 05913000 | C169: =IF($A169<>0,INDEX('2.2 Daten'!E$9:E$859,MATCH('2.2'!$A169,'2.2 Daten'!$B$9:$B$859,0))) -> 29864 | D169: =IF($A169<>0,INDEX('2.2 Daten'!F$9:F$859,MATCH('2.2'!$A169,'2.2 Daten'!$B$9:$B$859,0))) -> 4944 | E169: =IF($A169<>0,INDEX('2.2 Daten'!G$9:G$859,MATCH('2.2'!$A169,'2.2 Daten'!$B$9:$B$859,0))) -> 5737 | F169: =IF($A169<>0,INDEX('2.2 Daten'!H$9:H$859,MATCH('2.2'!$A169,'2.2 Daten'!$B$9:$B$859,0))) -> 14884 | G169: =IF($A169<>0,INDEX('2.2 Daten'!I$9:I$859,MATCH('2.2'!$A169,'2.2 Daten'!$B$9:$B$859,0))) -> 4299 | H169: =IF($A169<>0,INDEX('2.2 Daten'!K$9:K$859,MATCH('2.2'!$A169,'2.2 Daten'!$B$9:$B$859,0))) -> 2.650122022 | I169: =IF($A169<>0,INDEX('2.2 Daten'!L$9:L$859,MATCH('2.2'!$A169,'2.2 Daten'!$B$9:$B$859,0))) -> -3.096824775 | J169: =IF($A169<>0,INDEX('2.2 Daten'!M$9:M$859,MATCH('2.2'!$A169,'2.2 Daten'!$B$9:$B$859,0))) -> 2.66642806 | K169: =IF($A169<>0,INDEX('2.2 Daten'!N$9:N$859,MATCH('2.2'!$A169,'2.2 Daten'!$B$9:$B$859,0))) -> 4.603275002 | L169: =IF($A169<>0,INDEX('2.2 Daten'!O$9:O$859,MATCH('2.2'!$A169,'2.2 Daten'!$B$9:$B$859,0))) -> 2.994729276
A170: =CHOOSE('2.2 Daten'!$A$2,'2.2 Daten'!B592,'2.2 Daten'!B141,'2.2 Daten'!B158,'2.2 Daten'!B175,'2.2 Daten'!B178,'2.2 Daten'!B225,'2.2 Daten'!B229,'2.2 Daten'!B284,'2.2 Daten'!B312,'2.2 Daten'!B350,'2.2 Daten'!B396,'2.2 Daten'!B494,'2.2 Daten'!B502,'2.2 Daten'!B505,'2.2 Daten'!B525,'2.2 Daten'!B535,'2.2 Daten'!B550,'2.2 Daten'!B566,x) -> Hagen, Stadt | B170: =IF($A170<>0,INDEX('2.2 Daten'!C$9:C$859,MATCH('2.2'!$A170,'2.2 Daten'!$B$9:$B$859,0))," ") -> 05914000 | C170: =IF($A170<>0,INDEX('2.2 Daten'!E$9:E$859,MATCH('2.2'!$A170,'2.2 Daten'!$B$9:$B$859,0))) -> 10315 | D170: =IF($A170<>0,INDEX('2.2 Daten'!F$9:F$859,MATCH('2.2'!$A170,'2.2 Daten'!$B$9:$B$859,0))) -> 1709 | E170: =IF($A170<>0,INDEX('2.2 Daten'!G$9:G$859,MATCH('2.2'!$A170,'2.2 Daten'!$B$9:$B$859,0))) -> 1872 | F170: =IF($A170<>0,INDEX('2.2 Daten'!H$9:H$859,MATCH('2.2'!$A170,'2.2 Daten'!$B$9:$B$859,0))) -> 5265 | G170: =IF($A170<>0,INDEX('2.2 Daten'!I$9:I$859,MATCH('2.2'!$A170,'2.2 Daten'!$B$9:$B$859,0))) -> 1469 | H170: =IF($A170<>0,INDEX('2.2 Daten'!K$9:K$859,MATCH('2.2'!$A170,'2.2 Daten'!$B$9:$B$859,0))) -> -0.07749685169 | I170: =IF($A170<>0,INDEX('2.2 Daten'!L$9:L$859,MATCH('2.2'!$A170,'2.2 Daten'!$B$9:$B$859,0))) -> -7.321041215 | J170: =IF($A170<>0,INDEX('2.2 Daten'!M$9:M$859,MATCH('2.2'!$A170,'2.2 Daten'!$B$9:$B$859,0))) -> -1.109350238 | K170: =IF($A170<>0,INDEX('2.2 Daten'!N$9:N$859,MATCH('2.2'!$A170,'2.2 Daten'!$B$9:$B$859,0))) -> 1.876934985 | L170: =IF($A170<>0,INDEX('2.2 Daten'!O$9:O$859,MATCH('2.2'!$A170,'2.2 Daten'!$B$9:$B$859,0))) -> 3.596614951
A171: =CHOOSE('2.2 Daten'!$A$2,'2.2 Daten'!B593,'2.2 Daten'!B142,'2.2 Daten'!B159,'2.2 Daten'!B176,'2.2 Daten'!B179,'2.2 Daten'!B226,'2.2 Daten'!B230,'2.2 Daten'!B285,'2.2 Daten'!B313,'2.2 Daten'!B351,'2.2 Daten'!B397,'2.2 Daten'!B495,'2.2 Daten'!B503,'2.2 Daten'!B506,'2.2 Daten'!B526,'2.2 Daten'!B536,'2.2 Daten'!B551,'2.2 Daten'!B567,x) -> Hamm, Stadt | B171: =IF($A171<>0,INDEX('2.2 Daten'!C$9:C$859,MATCH('2.2'!$A171,'2.2 Daten'!$B$9:$B$859,0))," ") -> 05915000 | C171: =IF($A171<>0,INDEX('2.2 Daten'!E$9:E$859,MATCH('2.2'!$A171,'2.2 Daten'!$B$9:$B$859,0))) -> 5900 | D171: =IF($A171<>0,INDEX('2.2 Daten'!F$9:F$859,MATCH('2.2'!$A171,'2.2 Daten'!$B$9:$B$859,0))) -> 937 | E171: =IF($A171<>0,INDEX('2.2 Daten'!G$9:G$859,MATCH('2.2'!$A171,'2.2 Daten'!$B$9:$B$859,0))) -> 1106 | F171: =IF($A171<>0,INDEX('2.2 Daten'!H$9:H$859,MATCH('2.2'!$A171,'2.2 Daten'!$B$9:$B$859,0))) -> 2986 | G171: =IF($A171<>0,INDEX('2.2 Daten'!I$9:I$859,MATCH('2.2'!$A171,'2.2 Daten'!$B$9:$B$859,0))) -> 871 | H171: =IF($A171<>0,INDEX('2.2 Daten'!K$9:K$859,MATCH('2.2'!$A171,'2.2 Daten'!$B$9:$B$859,0))) -> -2.880658436 | I171: =IF($A171<>0,INDEX('2.2 Daten'!L$9:L$859,MATCH('2.2'!$A171,'2.2 Daten'!$B$9:$B$859,0))) -> -7.684729064 | J171: =IF($A171<>0,INDEX('2.2 Daten'!M$9:M$859,MATCH('2.2'!$A171,'2.2 Daten'!$B$9:$B$859,0))) -> -5.227077978 | K171: =IF($A171<>0,INDEX('2.2 Daten'!N$9:N$859,MATCH('2.2'!$A171,'2.2 Daten'!$B$9:$B$859,0))) -> 0 | L171: =IF($A171<>0,INDEX('2.2 Daten'!O$9:O$859,MATCH('2.2'!$A171,'2.2 Daten'!$B$9:$B$859,0))) -> -3.969128997
A172: =CHOOSE('2.2 Daten'!$A$2,'2.2 Daten'!B594,'2.2 Daten'!B143,'2.2 Daten'!B160,'2.2 Daten'!B177,'2.2 Daten'!B180,'2.2 Daten'!B227,'2.2 Daten'!B231,'2.2 Daten'!B286,'2.2 Daten'!B314,'2.2 Daten'!B352,'2.2 Daten'!B398,'2.2 Daten'!B496,'2.2 Daten'!B504,'2.2 Daten'!B507,'2.2 Daten'!B527,'2.2 Daten'!B537,'2.2 Daten'!B552,'2.2 Daten'!B568,x) -> Herne, Stadt | B172: =IF($A172<>0,INDEX('2.2 Daten'!C$9:C$859,MATCH('2.2'!$A172,'2.2 Daten'!$B$9:$B$859,0))," ") -> 05916000 | C172: =IF($A172<>0,INDEX('2.2 Daten'!E$9:E$859,MATCH('2.2'!$A172,'2.2 Daten'!$B$9:$B$859,0))) -> 7888 | D172: =IF($A172<>0,INDEX('2.2 Daten'!F$9:F$859,MATCH('2.2'!$A172,'2.2 Daten'!$B$9:$B$859,0))) -> 1342 | E172: =IF($A172<>0,INDEX('2.2 Daten'!G$9:G$859,MATCH('2.2'!$A172,'2.2 Daten'!$B$9:$B$859,0))) -> 1480 | F172: =IF($A172<>0,INDEX('2.2 Daten'!H$9:H$859,MATCH('2.2'!$A172,'2.2 Daten'!$B$9:$B$859,0))) -> 3930 | G172: =IF($A172<>0,INDEX('2.2 Daten'!I$9:I$859,MATCH('2.2'!$A172,'2.2 Daten'!$B$9:$B$859,0))) -> 1136 | H172: =IF($A172<>0,INDEX('2.2 Daten'!K$9:K$859,MATCH('2.2'!$A172,'2.2 Daten'!$B$9:$B$859,0))) -> 0.7922310248 | I172: =IF($A172<>0,INDEX('2.2 Daten'!L$9:L$859,MATCH('2.2'!$A172,'2.2 Daten'!$B$9:$B$859,0))) -> -3.661162958 | J172: =IF($A172<>0,INDEX('2.2 Daten'!M$9:M$859,MATCH('2.2'!$A172,'2.2 Daten'!$B$9:$B$859,0))) -> 4.667609618 | K172: =IF($A172<>0,INDEX('2.2 Daten'!N$9:N$859,MATCH('2.2'!$A172,'2.2 Daten'!$B$9:$B$859,0))) -> 2.184087363 | L172: =IF($A172<>0,INDEX('2.2 Daten'!O$9:O$859,MATCH('2.2'!$A172,'2.2 Daten'!$B$9:$B$859,0))) -> -3.1543052
A173: =CHOOSE('2.2 Daten'!$A$2,'2.2 Daten'!B595,'2.2 Daten'!B144,'2.2 Daten'!B161,'2.2 Daten'!B178,'2.2 Daten'!B181,'2.2 Daten'!B228,'2.2 Daten'!B232,'2.2 Daten'!B287,'2.2 Daten'!B315,'2.2 Daten'!B353,'2.2 Daten'!B399,'2.2 Daten'!B497,'2.2 Daten'!B505,'2.2 Daten'!B508,'2.2 Daten'!B528,'2.2 Daten'!B538,'2.2 Daten'!B553,'2.2 Daten'!B569,x) -> Ennepe-Ruhr-Kreis | B173: =IF($A173<>0,INDEX('2.2 Daten'!C$9:C$859,MATCH('2.2'!$A173,'2.2 Daten'!$B$9:$B$859,0))," ") -> 05954000 | C173: =IF($A173<>0,INDEX('2.2 Daten'!E$9:E$859,MATCH('2.2'!$A173,'2.2 Daten'!$B$9:$B$859,0))) -> 8345 | D173: =IF($A173<>0,INDEX('2.2 Daten'!F$9:F$859,MATCH('2.2'!$A173,'2.2 Daten'!$B$9:$B$859,0))) -> 1382 | E173: =IF($A173<>0,INDEX('2.2 Daten'!G$9:G$859,MATCH('2.2'!$A173,'2.2 Daten'!$B$9:$B$859,0))) -> 1591 | F173: =IF($A173<>0,INDEX('2.2 Daten'!H$9:H$859,MATCH('2.2'!$A173,'2.2 Daten'!$B$9:$B$859,0))) -> 4179 | G173: =IF($A173<>0,INDEX('2.2 Daten'!I$9:I$859,MATCH('2.2'!$A173,'2.2 Daten'!$B$9:$B$859,0))) -> 1193 | H173: =IF($A173<>0,INDEX('2.2 Daten'!K$9:K$859,MATCH('2.2'!$A173,'2.2 Daten'!$B$9:$B$859,0))) -> -0.666587311 | I173: =IF($A173<>0,INDEX('2.2 Daten'!L$9:L$859,MATCH('2.2'!$A173,'2.2 Daten'!$B$9:$B$859,0))) -> -5.922396188 | J173: =IF($A173<>0,INDEX('2.2 Daten'!M$9:M$859,MATCH('2.2'!$A173,'2.2 Daten'!$B$9:$B$859,0))) -> -6.631455399 | K173: =IF($A173<>0,INDEX('2.2 Daten'!N$9:N$859,MATCH('2.2'!$A173,'2.2 Daten'!$B$9:$B$859,0))) -> 1.976573939 | L173: =IF($A173<>0,INDEX('2.2 Daten'!O$9:O$859,MATCH('2.2'!$A173,'2.2 Daten'!$B$9:$B$859,0))) -> 5.575221239
A174: =CHOOSE('2.2 Daten'!$A$2,'2.2 Daten'!B596,'2.2 Daten'!B145,'2.2 Daten'!B162,'2.2 Daten'!B179,'2.2 Daten'!B182,'2.2 Daten'!B229,'2.2 Daten'!B233,'2.2 Daten'!B288,'2.2 Daten'!B316,'2.2 Daten'!B354,'2.2 Daten'!B400,'2.2 Daten'!B498,'2.2 Daten'!B506,'2.2 Daten'!B509,'2.2 Daten'!B529,'2.2 Daten'!B539,'2.2 Daten'!B554,'2.2 Daten'!B570,x) -> Hochsauerlandkreis | B174: =IF($A174<>0,INDEX('2.2 Daten'!C$9:C$859,MATCH('2.2'!$A174,'2.2 Daten'!$B$9:$B$859,0))," ") -> 05958000 | C174: =IF($A174<>0,INDEX('2.2 Daten'!E$9:E$859,MATCH('2.2'!$A174,'2.2 Daten'!$B$9:$B$859,0))) -> 4588 | D174: =IF($A174<>0,INDEX('2.2 Daten'!F$9:F$859,MATCH('2.2'!$A174,'2.2 Daten'!$B$9:$B$859,0))) -> 687 | E174: =IF($A174<>0,INDEX('2.2 Daten'!G$9:G$859,MATCH('2.2'!$A174,'2.2 Daten'!$B$9:$B$859,0))) -> 839 | F174: =IF($A174<>0,INDEX('2.2 Daten'!H$9:H$859,MATCH('2.2'!$A174,'2.2 Daten'!$B$9:$B$859,0))) -> 2396 | G174: =IF($A174<>0,INDEX('2.2 Daten'!I$9:I$859,MATCH('2.2'!$A174,'2.2 Daten'!$B$9:$B$859,0))) -> 666 | H174: =IF($A174<>0,INDEX('2.2 Daten'!K$9:K$859,MATCH('2.2'!$A174,'2.2 Daten'!$B$9:$B$859,0))) -> 9.708273553 | I174: =IF($A174<>0,INDEX('2.2 Daten'!L$9:L$859,MATCH('2.2'!$A174,'2.2 Daten'!$B$9:$B$859,0))) -> 1.029411765 | J174: =IF($A174<>0,INDEX('2.2 Daten'!M$9:M$859,MATCH('2.2'!$A174,'2.2 Daten'!$B$9:$B$859,0))) -> 1.944106926 | K174: =IF($A174<>0,INDEX('2.2 Daten'!N$9:N$859,MATCH('2.2'!$A174,'2.2 Daten'!$B$9:$B$859,0))) -> 15.35869042 | L174: =IF($A174<>0,INDEX('2.2 Daten'!O$9:O$859,MATCH('2.2'!$A174,'2.2 Daten'!$B$9:$B$859,0))) -> 10.63122924
A175: =CHOOSE('2.2 Daten'!$A$2,'2.2 Daten'!B597,'2.2 Daten'!B146,'2.2 Daten'!B163,'2.2 Daten'!B180,'2.2 Daten'!B183,'2.2 Daten'!B230,'2.2 Daten'!B234,'2.2 Daten'!B289,'2.2 Daten'!B317,'2.2 Daten'!B355,'2.2 Daten'!B401,'2.2 Daten'!B499,'2.2 Daten'!B507,'2.2 Daten'!B510,'2.2 Daten'!B530,'2.2 Daten'!B540,'2.2 Daten'!B555,'2.2 Daten'!B571,x) -> Märkischer Kreis | B175: =IF($A175<>0,INDEX('2.2 Daten'!C$9:C$859,MATCH('2.2'!$A175,'2.2 Daten'!$B$9:$B$859,0))," ") -> 05962000 | C175: =IF($A175<>0,INDEX('2.2 Daten'!E$9:E$859,MATCH('2.2'!$A175,'2.2 Daten'!$B$9:$B$859,0))) -> 10926 | D175: =IF($A175<>0,INDEX('2.2 Daten'!F$9:F$859,MATCH('2.2'!$A175,'2.2 Daten'!$B$9:$B$859,0))) -> 1761 | E175: =IF($A175<>0,INDEX('2.2 Daten'!G$9:G$859,MATCH('2.2'!$A175,'2.2 Daten'!$B$9:$B$859,0))) -> 2068 | F175: =IF($A175<>0,INDEX('2.2 Daten'!H$9:H$859,MATCH('2.2'!$A175,'2.2 Daten'!$B$9:$B$859,0))) -> 5481 | G175: =IF($A175<>0,INDEX('2.2 Daten'!I$9:I$859,MATCH('2.2'!$A175,'2.2 Daten'!$B$9:$B$859,0))) -> 1616 | H175: =IF($A175<>0,INDEX('2.2 Daten'!K$9:K$859,MATCH('2.2'!$A175,'2.2 Daten'!$B$9:$B$859,0))) -> 2.543406851 | I175: =IF($A175<>0,INDEX('2.2 Daten'!L$9:L$859,MATCH('2.2'!$A175,'2.2 Daten'!$B$9:$B$859,0))) -> -1.399776036 | J175: =IF($A175<>0,INDEX('2.2 Daten'!M$9:M$859,MATCH('2.2'!$A175,'2.2 Daten'!$B$9:$B$859,0))) -> 2.022693636 | K175: =IF($A175<>0,INDEX('2.2 Daten'!N$9:N$859,MATCH('2.2'!$A175,'2.2 Daten'!$B$9:$B$859,0))) -> 3.278688525 | L175: =IF($A175<>0,INDEX('2.2 Daten'!O$9:O$859,MATCH('2.2'!$A175,'2.2 Daten'!$B$9:$B$859,0))) -> 5.276872964
A176: =CHOOSE('2.2 Daten'!$A$2,'2.2 Daten'!B598,'2.2 Daten'!B147,'2.2 Daten'!B164,'2.2 Daten'!B181,'2.2 Daten'!B184,'2.2 Daten'!B231,'2.2 Daten'!B235,'2.2 Daten'!B290,'2.2 Daten'!B318,'2.2 Daten'!B356,'2.2 Daten'!B402,'2.2 Daten'!B500,'2.2 Daten'!B508,'2.2 Daten'!B511,'2.2 Daten'!B531,'2.2 Daten'!B541,'2.2 Daten'!B556,'2.2 Daten'!B572,x) -> Olpe | B176: =IF($A176<>0,INDEX('2.2 Daten'!C$9:C$859,MATCH('2.2'!$A176,'2.2 Daten'!$B$9:$B$859,0))," ") -> 05966000 | C176: =IF($A176<>0,INDEX('2.2 Daten'!E$9:E$859,MATCH('2.2'!$A176,'2.2 Daten'!$B$9:$B$859,0))) -> 1862 | D176: =IF($A176<>0,INDEX('2.2 Daten'!F$9:F$859,MATCH('2.2'!$A176,'2.2 Daten'!$B$9:$B$859,0))) -> 270 | E176: =IF($A176<>0,INDEX('2.2 Daten'!G$9:G$859,MATCH('2.2'!$A176,'2.2 Daten'!$B$9:$B$859,0))) -> 339 | F176: =IF($A176<>0,INDEX('2.2 Daten'!H$9:H$859,MATCH('2.2'!$A176,'2.2 Daten'!$B$9:$B$859,0))) -> 983 | G176: =IF($A176<>0,INDEX('2.2 Daten'!I$9:I$859,MATCH('2.2'!$A176,'2.2 Daten'!$B$9:$B$859,0))) -> 270 | H176: =IF($A176<>0,INDEX('2.2 Daten'!K$9:K$859,MATCH('2.2'!$A176,'2.2 Daten'!$B$9:$B$859,0))) -> 7.817023741 | I176: =IF($A176<>0,INDEX('2.2 Daten'!L$9:L$859,MATCH('2.2'!$A176,'2.2 Daten'!$B$9:$B$859,0))) -> 5.46875 | J176: =IF($A176<>0,INDEX('2.2 Daten'!M$9:M$859,MATCH('2.2'!$A176,'2.2 Daten'!$B$9:$B$859,0))) -> 3.039513678 | K176: =IF($A176<>0,INDEX('2.2 Daten'!N$9:N$859,MATCH('2.2'!$A176,'2.2 Daten'!$B$9:$B$859,0))) -> 6.964091404 | L176: =IF($A176<>0,INDEX('2.2 Daten'!O$9:O$859,MATCH('2.2'!$A176,'2.2 Daten'!$B$9:$B$859,0))) -> 21.07623318
A177: =CHOOSE('2.2 Daten'!$A$2,'2.2 Daten'!B599,'2.2 Daten'!B148,'2.2 Daten'!B165,'2.2 Daten'!B182,'2.2 Daten'!B185,'2.2 Daten'!B232,'2.2 Daten'!B236,'2.2 Daten'!B291,'2.2 Daten'!B319,'2.2 Daten'!B357,'2.2 Daten'!B403,'2.2 Daten'!B501,'2.2 Daten'!B509,'2.2 Daten'!B512,'2.2 Daten'!B532,'2.2 Daten'!B542,'2.2 Daten'!B557,'2.2 Daten'!B573,x) -> Siegen-Wittgenstein | B177: =IF($A177<>0,INDEX('2.2 Daten'!C$9:C$859,MATCH('2.2'!$A177,'2.2 Daten'!$B$9:$B$859,0))," ") -> 05970000 | C177: =IF($A177<>0,INDEX('2.2 Daten'!E$9:E$859,MATCH('2.2'!$A177,'2.2 Daten'!$B$9:$B$859,0))) -> 6057 | D177: =IF($A177<>0,INDEX('2.2 Daten'!F$9:F$859,MATCH('2.2'!$A177,'2.2 Daten'!$B$9:$B$859,0))) -> 978 | E177: =IF($A177<>0,INDEX('2.2 Daten'!G$9:G$859,MATCH('2.2'!$A177,'2.2 Daten'!$B$9:$B$859,0))) -> 1145 | F177: =IF($A177<>0,INDEX('2.2 Daten'!H$9:H$859,MATCH('2.2'!$A177,'2.2 Daten'!$B$9:$B$859,0))) -> 3123 | G177: =IF($A177<>0,INDEX('2.2 Daten'!I$9:I$859,MATCH('2.2'!$A177,'2.2 Daten'!$B$9:$B$859,0))) -> 811 | H177: =IF($A177<>0,INDEX('2.2 Daten'!K$9:K$859,MATCH('2.2'!$A177,'2.2 Daten'!$B$9:$B$859,0))) -> 0.8995502249 | I177: =IF($A177<>0,INDEX('2.2 Daten'!L$9:L$859,MATCH('2.2'!$A177,'2.2 Daten'!$B$9:$B$859,0))) -> -8.082706767 | J177: =IF($A177<>0,INDEX('2.2 Daten'!M$9:M$859,MATCH('2.2'!$A177,'2.2 Daten'!$B$9:$B$859,0))) -> 0.8810572687 | K177: =IF($A177<>0,INDEX('2.2 Daten'!N$9:N$859,MATCH('2.2'!$A177,'2.2 Daten'!$B$9:$B$859,0))) -> 3.926788686 | L177: =IF($A177<>0,INDEX('2.2 Daten'!O$9:O$859,MATCH('2.2'!$A177,'2.2 Daten'!$B$9:$B$859,0))) -> 1.501877347
A178: =CHOOSE('2.2 Daten'!$A$2,'2.2 Daten'!B600,'2.2 Daten'!B149,'2.2 Daten'!B166,'2.2 Daten'!B183,'2.2 Daten'!B186,'2.2 Daten'!B233,'2.2 Daten'!B237,'2.2 Daten'!B292,'2.2 Daten'!B320,'2.2 Daten'!B358,'2.2 Daten'!B404,'2.2 Daten'!B502,'2.2 Daten'!B510,'2.2 Daten'!B513,'2.2 Daten'!B533,'2.2 Daten'!B543,'2.2 Daten'!B558,'2.2 Daten'!B574,x) -> Soest | B178: =IF($A178<>0,INDEX('2.2 Daten'!C$9:C$859,MATCH('2.2'!$A178,'2.2 Daten'!$B$9:$B$859,0))," ") -> 05974000 | C178: =IF($A178<>0,INDEX('2.2 Daten'!E$9:E$859,MATCH('2.2'!$A178,'2.2 Daten'!$B$9:$B$859,0))) -> 6140 | D178: =IF($A178<>0,INDEX('2.2 Daten'!F$9:F$859,MATCH('2.2'!$A178,'2.2 Daten'!$B$9:$B$859,0))) -> 981 | E178: =IF($A178<>0,INDEX('2.2 Daten'!G$9:G$859,MATCH('2.2'!$A178,'2.2 Daten'!$B$9:$B$859,0))) -> 1174 | F178: =IF($A178<>0,INDEX('2.2 Daten'!H$9:H$859,MATCH('2.2'!$A178,'2.2 Daten'!$B$9:$B$859,0))) -> 3125 | G178: =IF($A178<>0,INDEX('2.2 Daten'!I$9:I$859,MATCH('2.2'!$A178,'2.2 Daten'!$B$9:$B$859,0))) -> 860 | H178: =IF($A178<>0,INDEX('2.2 Daten'!K$9:K$859,MATCH('2.2'!$A178,'2.2 Daten'!$B$9:$B$859,0))) -> 7.080572027 | I178: =IF($A178<>0,INDEX('2.2 Daten'!L$9:L$859,MATCH('2.2'!$A178,'2.2 Daten'!$B$9:$B$859,0))) -> -1.998001998 | J178: =IF($A178<>0,INDEX('2.2 Daten'!M$9:M$859,MATCH('2.2'!$A178,'2.2 Daten'!$B$9:$B$859,0))) -> 12.99326275 | K178: =IF($A178<>0,INDEX('2.2 Daten'!N$9:N$859,MATCH('2.2'!$A178,'2.2 Daten'!$B$9:$B$859,0))) -> 8.960948396 | L178: =IF($A178<>0,INDEX('2.2 Daten'!O$9:O$859,MATCH('2.2'!$A178,'2.2 Daten'!$B$9:$B$859,0))) -> 4.11622276
A179: =CHOOSE('2.2 Daten'!$A$2,'2.2 Daten'!B601,'2.2 Daten'!B150,'2.2 Daten'!B167,'2.2 Daten'!B184,'2.2 Daten'!B187,'2.2 Daten'!B234,'2.2 Daten'!B238,'2.2 Daten'!B293,'2.2 Daten'!B321,'2.2 Daten'!B359,'2.2 Daten'!B405,'2.2 Daten'!B503,'2.2 Daten'!B511,'2.2 Daten'!B514,'2.2 Daten'!B534,'2.2 Daten'!B544,'2.2 Daten'!B559,'2.2 Daten'!B575,x) -> Unna | B179: =IF($A179<>0,INDEX('2.2 Daten'!C$9:C$859,MATCH('2.2'!$A179,'2.2 Daten'!$B$9:$B$859,0))," ") -> 05978000 | C179: =IF($A179<>0,INDEX('2.2 Daten'!E$9:E$859,MATCH('2.2'!$A179,'2.2 Daten'!$B$9:$B$859,0))) -> 11471 | D179: =IF($A179<>0,INDEX('2.2 Daten'!F$9:F$859,MATCH('2.2'!$A179,'2.2 Daten'!$B$9:$B$859,0))) -> 1803 | E179: =IF($A179<>0,INDEX('2.2 Daten'!G$9:G$859,MATCH('2.2'!$A179,'2.2 Daten'!$B$9:$B$859,0))) -> 2123 | F179: =IF($A179<>0,INDEX('2.2 Daten'!H$9:H$859,MATCH('2.2'!$A179,'2.2 Daten'!$B$9:$B$859,0))) -> 5908 | G179: =IF($A179<>0,INDEX('2.2 Daten'!I$9:I$859,MATCH('2.2'!$A179,'2.2 Daten'!$B$9:$B$859,0))) -> 1637 | H179: =IF($A179<>0,INDEX('2.2 Daten'!K$9:K$859,MATCH('2.2'!$A179,'2.2 Daten'!$B$9:$B$859,0))) -> 1.720315687 | I179: =IF($A179<>0,INDEX('2.2 Daten'!L$9:L$859,MATCH('2.2'!$A179,'2.2 Daten'!$B$9:$B$859,0))) -> -3.84 | J179: =IF($A179<>0,INDEX('2.2 Daten'!M$9:M$859,MATCH('2.2'!$A179,'2.2 Daten'!$B$9:$B$859,0))) -> -1.849283403 | K179: =IF($A179<>0,INDEX('2.2 Daten'!N$9:N$859,MATCH('2.2'!$A179,'2.2 Daten'!$B$9:$B$859,0))) -> 4.418522446 | L179: =IF($A179<>0,INDEX('2.2 Daten'!O$9:O$859,MATCH('2.2'!$A179,'2.2 Daten'!$B$9:$B$859,0))) -> 3.542061986
A180: =CHOOSE('2.2 Daten'!$A$2,'2.2 Daten'!B602,'2.2 Daten'!B151,'2.2 Daten'!B168,'2.2 Daten'!B185,'2.2 Daten'!B188,'2.2 Daten'!B235,'2.2 Daten'!B239,'2.2 Daten'!B294,'2.2 Daten'!B322,'2.2 Daten'!B360,'2.2 Daten'!B406,'2.2 Daten'!B504,'2.2 Daten'!B512,'2.2 Daten'!B515,'2.2 Daten'!B535,'2.2 Daten'!B545,'2.2 Daten'!B560,'2.2 Daten'!B576,x) -> 0 | B180: =IF($A180<>0,INDEX('2.2 Daten'!C$9:C$859,MATCH('2.2'!$A180,'2.2 Daten'!$B$9:$B$859,0))," ") ->  | C180: =IF($A180<>0,INDEX('2.2 Daten'!E$9:E$859,MATCH('2.2'!$A180,'2.2 Daten'!$B$9:$B$859,0))) -> FALSE | D180: =IF($A180<>0,INDEX('2.2 Daten'!F$9:F$859,MATCH('2.2'!$A180,'2.2 Daten'!$B$9:$B$859,0))) -> FALSE | E180: =IF($A180<>0,INDEX('2.2 Daten'!G$9:G$859,MATCH('2.2'!$A180,'2.2 Daten'!$B$9:$B$859,0))) -> FALSE | F180: =IF($A180<>0,INDEX('2.2 Daten'!H$9:H$859,MATCH('2.2'!$A180,'2.2 Daten'!$B$9:$B$859,0))) -> FALSE | G180: =IF($A180<>0,INDEX('2.2 Daten'!I$9:I$859,MATCH('2.2'!$A180,'2.2 Daten'!$B$9:$B$859,0))) -> FALSE | H180: =IF($A180<>0,INDEX('2.2 Daten'!K$9:K$859,MATCH('2.2'!$A180,'2.2 Daten'!$B$9:$B$859,0))) -> FALSE | I180: =IF($A180<>0,INDEX('2.2 Daten'!L$9:L$859,MATCH('2.2'!$A180,'2.2 Daten'!$B$9:$B$859,0))) -> FALSE | J180: =IF($A180<>0,INDEX('2.2 Daten'!M$9:M$859,MATCH('2.2'!$A180,'2.2 Daten'!$B$9:$B$859,0))) -> FALSE | K180: =IF($A180<>0,INDEX('2.2 Daten'!N$9:N$859,MATCH('2.2'!$A180,'2.2 Daten'!$B$9:$B$859,0))) -> FALSE | L180: =IF($A180<>0,INDEX('2.2 Daten'!O$9:O$859,MATCH('2.2'!$A180,'2.2 Daten'!$B$9:$B$859,0))) -> FALSE
A181: =CHOOSE('2.2 Daten'!$A$2,'2.2 Daten'!B603,'2.2 Daten'!B152,'2.2 Daten'!B169,'2.2 Daten'!B186,'2.2 Daten'!B189,'2.2 Daten'!B236,'2.2 Daten'!B240,'2.2 Daten'!B295,'2.2 Daten'!B323,'2.2 Daten'!B361,'2.2 Daten'!B407,'2.2 Daten'!B505,'2.2 Daten'!B513,'2.2 Daten'!B516,'2.2 Daten'!B536,'2.2 Daten'!B546,'2.2 Daten'!B561,'2.2 Daten'!B577,x) -> Hessen | B181: =IF($A181<>0,INDEX('2.2 Daten'!C$9:C$859,MATCH('2.2'!$A181,'2.2 Daten'!$B$9:$B$859,0))," ") -> 06 | C181: =IF($A181<>0,INDEX('2.2 Daten'!E$9:E$859,MATCH('2.2'!$A181,'2.2 Daten'!$B$9:$B$859,0))) -> 150672 | D181: =IF($A181<>0,INDEX('2.2 Daten'!F$9:F$859,MATCH('2.2'!$A181,'2.2 Daten'!$B$9:$B$859,0))) -> 24351 | E181: =IF($A181<>0,INDEX('2.2 Daten'!G$9:G$859,MATCH('2.2'!$A181,'2.2 Daten'!$B$9:$B$859,0))) -> 28874 | F181: =IF($A181<>0,INDEX('2.2 Daten'!H$9:H$859,MATCH('2.2'!$A181,'2.2 Daten'!$B$9:$B$859,0))) -> 76172 | G181: =IF($A181<>0,INDEX('2.2 Daten'!I$9:I$859,MATCH('2.2'!$A181,'2.2 Daten'!$B$9:$B$859,0))) -> 21275 | H181: =IF($A181<>0,INDEX('2.2 Daten'!K$9:K$859,MATCH('2.2'!$A181,'2.2 Daten'!$B$9:$B$859,0))) -> 4.588302259 | I181: =IF($A181<>0,INDEX('2.2 Daten'!L$9:L$859,MATCH('2.2'!$A181,'2.2 Daten'!$B$9:$B$859,0))) -> -2.95699996 | J181: =IF($A181<>0,INDEX('2.2 Daten'!M$9:M$859,MATCH('2.2'!$A181,'2.2 Daten'!$B$9:$B$859,0))) -> 1.952614668 | K181: =IF($A181<>0,INDEX('2.2 Daten'!N$9:N$859,MATCH('2.2'!$A181,'2.2 Daten'!$B$9:$B$859,0))) -> 7.520749816 | L181: =IF($A181<>0,INDEX('2.2 Daten'!O$9:O$859,MATCH('2.2'!$A181,'2.2 Daten'!$B$9:$B$859,0))) -> 7.427792365
A182: =CHOOSE('2.2 Daten'!$A$2,'2.2 Daten'!B604,'2.2 Daten'!B153,'2.2 Daten'!B170,'2.2 Daten'!B187,'2.2 Daten'!B190,'2.2 Daten'!B237,'2.2 Daten'!B241,'2.2 Daten'!B296,'2.2 Daten'!B324,'2.2 Daten'!B362,'2.2 Daten'!B408,'2.2 Daten'!B506,'2.2 Daten'!B514,'2.2 Daten'!B517,'2.2 Daten'!B537,'2.2 Daten'!B547,'2.2 Daten'!B562,'2.2 Daten'!B578,x) -> Darmstadt, Wissenschaftsstadt | B182: =IF($A182<>0,INDEX('2.2 Daten'!C$9:C$859,MATCH('2.2'!$A182,'2.2 Daten'!$B$9:$B$859,0))," ") -> 06411000 | C182: =IF($A182<>0,INDEX('2.2 Daten'!E$9:E$859,MATCH('2.2'!$A182,'2.2 Daten'!$B$9:$B$859,0))) -> 4859 | D182: =IF($A182<>0,INDEX('2.2 Daten'!F$9:F$859,MATCH('2.2'!$A182,'2.2 Daten'!$B$9:$B$859,0))) -> 797 | E182: =IF($A182<>0,INDEX('2.2 Daten'!G$9:G$859,MATCH('2.2'!$A182,'2.2 Daten'!$B$9:$B$859,0))) -> 965 | F182: =IF($A182<>0,INDEX('2.2 Daten'!H$9:H$859,MATCH('2.2'!$A182,'2.2 Daten'!$B$9:$B$859,0))) -> 2431 | G182: =IF($A182<>0,INDEX('2.2 Daten'!I$9:I$859,MATCH('2.2'!$A182,'2.2 Daten'!$B$9:$B$859,0))) -> 666 | H182: =IF($A182<>0,INDEX('2.2 Daten'!K$9:K$859,MATCH('2.2'!$A182,'2.2 Daten'!$B$9:$B$859,0))) -> -3.149292406 | I182: =IF($A182<>0,INDEX('2.2 Daten'!L$9:L$859,MATCH('2.2'!$A182,'2.2 Daten'!$B$9:$B$859,0))) -> -11.5427303 | J182: =IF($A182<>0,INDEX('2.2 Daten'!M$9:M$859,MATCH('2.2'!$A182,'2.2 Daten'!$B$9:$B$859,0))) -> 2.988260406 | K182: =IF($A182<>0,INDEX('2.2 Daten'!N$9:N$859,MATCH('2.2'!$A182,'2.2 Daten'!$B$9:$B$859,0))) -> -3.875049427 | L182: =IF($A182<>0,INDEX('2.2 Daten'!O$9:O$859,MATCH('2.2'!$A182,'2.2 Daten'!$B$9:$B$859,0))) -> 2.461538462
A183: =CHOOSE('2.2 Daten'!$A$2,'2.2 Daten'!B605,'2.2 Daten'!B154,'2.2 Daten'!B171,'2.2 Daten'!B188,'2.2 Daten'!B191,'2.2 Daten'!B238,'2.2 Daten'!B242,'2.2 Daten'!B297,'2.2 Daten'!B325,'2.2 Daten'!B363,'2.2 Daten'!B409,'2.2 Daten'!B507,'2.2 Daten'!B515,'2.2 Daten'!B518,'2.2 Daten'!B538,'2.2 Daten'!B548,'2.2 Daten'!B563,'2.2 Daten'!B579,x) -> Frankfurt am Main, Stadt | B183: =IF($A183<>0,INDEX('2.2 Daten'!C$9:C$859,MATCH('2.2'!$A183,'2.2 Daten'!$B$9:$B$859,0))," ") -> 06412000 | C183: =IF($A183<>0,INDEX('2.2 Daten'!E$9:E$859,MATCH('2.2'!$A183,'2.2 Daten'!$B$9:$B$859,0))) -> 22318 | D183: =IF($A183<>0,INDEX('2.2 Daten'!F$9:F$859,MATCH('2.2'!$A183,'2.2 Daten'!$B$9:$B$859,0))) -> 3681 | E183: =IF($A183<>0,INDEX('2.2 Daten'!G$9:G$859,MATCH('2.2'!$A183,'2.2 Daten'!$B$9:$B$859,0))) -> 4324 | F183: =IF($A183<>0,INDEX('2.2 Daten'!H$9:H$859,MATCH('2.2'!$A183,'2.2 Daten'!$B$9:$B$859,0))) -> 11129 | G183: =IF($A183<>0,INDEX('2.2 Daten'!I$9:I$859,MATCH('2.2'!$A183,'2.2 Daten'!$B$9:$B$859,0))) -> 3184 | H183: =IF($A183<>0,INDEX('2.2 Daten'!K$9:K$859,MATCH('2.2'!$A183,'2.2 Daten'!$B$9:$B$859,0))) -> -6.470538932 | I183: =IF($A183<>0,INDEX('2.2 Daten'!L$9:L$859,MATCH('2.2'!$A183,'2.2 Daten'!$B$9:$B$859,0))) -> -12.04301075 | J183: =IF($A183<>0,INDEX('2.2 Daten'!M$9:M$859,MATCH('2.2'!$A183,'2.2 Daten'!$B$9:$B$859,0))) -> -7.468435694 | K183: =IF($A183<>0,INDEX('2.2 Daten'!N$9:N$859,MATCH('2.2'!$A183,'2.2 Daten'!$B$9:$B$859,0))) -> -4.652159013 | L183: =IF($A183<>0,INDEX('2.2 Daten'!O$9:O$859,MATCH('2.2'!$A183,'2.2 Daten'!$B$9:$B$859,0))) -> -4.441776711
A184: =CHOOSE('2.2 Daten'!$A$2,'2.2 Daten'!B606,'2.2 Daten'!B155,'2.2 Daten'!B172,'2.2 Daten'!B189,'2.2 Daten'!B192,'2.2 Daten'!B239,'2.2 Daten'!B243,'2.2 Daten'!B298,'2.2 Daten'!B326,'2.2 Daten'!B364,'2.2 Daten'!B410,'2.2 Daten'!B508,'2.2 Daten'!B516,'2.2 Daten'!B519,'2.2 Daten'!B539,'2.2 Daten'!B549,'2.2 Daten'!B564,'2.2 Daten'!B580,x) -> Offenbach am Main, Stadt | B184: =IF($A184<>0,INDEX('2.2 Daten'!C$9:C$859,MATCH('2.2'!$A184,'2.2 Daten'!$B$9:$B$859,0))," ") -> 06413000 | C184: =IF($A184<>0,INDEX('2.2 Daten'!E$9:E$859,MATCH('2.2'!$A184,'2.2 Daten'!$B$9:$B$859,0))) -> 5302 | D184: =IF($A184<>0,INDEX('2.2 Daten'!F$9:F$859,MATCH('2.2'!$A184,'2.2 Daten'!$B$9:$B$859,0))) -> 750 | E184: =IF($A184<>0,INDEX('2.2 Daten'!G$9:G$859,MATCH('2.2'!$A184,'2.2 Daten'!$B$9:$B$859,0))) -> 978 | F184: =IF($A184<>0,INDEX('2.2 Daten'!H$9:H$859,MATCH('2.2'!$A184,'2.2 Daten'!$B$9:$B$859,0))) -> 2732 | G184: =IF($A184<>0,INDEX('2.2 Daten'!I$9:I$859,MATCH('2.2'!$A184,'2.2 Daten'!$B$9:$B$859,0))) -> 842 | H184: =IF($A184<>0,INDEX('2.2 Daten'!K$9:K$859,MATCH('2.2'!$A184,'2.2 Daten'!$B$9:$B$859,0))) -> -4.571634269 | I184: =IF($A184<>0,INDEX('2.2 Daten'!L$9:L$859,MATCH('2.2'!$A184,'2.2 Daten'!$B$9:$B$859,0))) -> -9.747292419 | J184: =IF($A184<>0,INDEX('2.2 Daten'!M$9:M$859,MATCH('2.2'!$A184,'2.2 Daten'!$B$9:$B$859,0))) -> -3.929273084 | K184: =IF($A184<>0,INDEX('2.2 Daten'!N$9:N$859,MATCH('2.2'!$A184,'2.2 Daten'!$B$9:$B$859,0))) -> -4.375218761 | L184: =IF($A184<>0,INDEX('2.2 Daten'!O$9:O$859,MATCH('2.2'!$A184,'2.2 Daten'!$B$9:$B$859,0))) -> -0.9411764706
A185: =CHOOSE('2.2 Daten'!$A$2,'2.2 Daten'!B607,'2.2 Daten'!B156,'2.2 Daten'!B173,'2.2 Daten'!B190,'2.2 Daten'!B193,'2.2 Daten'!B240,'2.2 Daten'!B244,'2.2 Daten'!B299,'2.2 Daten'!B327,'2.2 Daten'!B365,'2.2 Daten'!B411,'2.2 Daten'!B509,'2.2 Daten'!B517,'2.2 Daten'!B520,'2.2 Daten'!B540,'2.2 Daten'!B550,'2.2 Daten'!B565,'2.2 Daten'!B581,x) -> Wiesbaden, Landeshauptstadt | B185: =IF($A185<>0,INDEX('2.2 Daten'!C$9:C$859,MATCH('2.2'!$A185,'2.2 Daten'!$B$9:$B$859,0))," ") -> 06414000 | C185: =IF($A185<>0,INDEX('2.2 Daten'!E$9:E$859,MATCH('2.2'!$A185,'2.2 Daten'!$B$9:$B$859,0))) -> 10786 | D185: =IF($A185<>0,INDEX('2.2 Daten'!F$9:F$859,MATCH('2.2'!$A185,'2.2 Daten'!$B$9:$B$859,0))) -> 1728 | E185: =IF($A185<>0,INDEX('2.2 Daten'!G$9:G$859,MATCH('2.2'!$A185,'2.2 Daten'!$B$9:$B$859,0))) -> 2024 | F185: =IF($A185<>0,INDEX('2.2 Daten'!H$9:H$859,MATCH('2.2'!$A185,'2.2 Daten'!$B$9:$B$859,0))) -> 5489 | G185: =IF($A185<>0,INDEX('2.2 Daten'!I$9:I$859,MATCH('2.2'!$A185,'2.2 Daten'!$B$9:$B$859,0))) -> 1545 | H185: =IF($A185<>0,INDEX('2.2 Daten'!K$9:K$859,MATCH('2.2'!$A185,'2.2 Daten'!$B$9:$B$859,0))) -> 1.362653886 | I185: =IF($A185<>0,INDEX('2.2 Daten'!L$9:L$859,MATCH('2.2'!$A185,'2.2 Daten'!$B$9:$B$859,0))) -> -1.985252411 | J185: =IF($A185<>0,INDEX('2.2 Daten'!M$9:M$859,MATCH('2.2'!$A185,'2.2 Daten'!$B$9:$B$859,0))) -> -0.6381934217 | K185: =IF($A185<>0,INDEX('2.2 Daten'!N$9:N$859,MATCH('2.2'!$A185,'2.2 Daten'!$B$9:$B$859,0))) -> 3.585582185 | L185: =IF($A185<>0,INDEX('2.2 Daten'!O$9:O$859,MATCH('2.2'!$A185,'2.2 Daten'!$B$9:$B$859,0))) -> 0.1945525292
A186: =CHOOSE('2.2 Daten'!$A$2,'2.2 Daten'!B608,'2.2 Daten'!B157,'2.2 Daten'!B174,'2.2 Daten'!B191,'2.2 Daten'!B194,'2.2 Daten'!B241,'2.2 Daten'!B245,'2.2 Daten'!B300,'2.2 Daten'!B328,'2.2 Daten'!B366,'2.2 Daten'!B412,'2.2 Daten'!B510,'2.2 Daten'!B518,'2.2 Daten'!B521,'2.2 Daten'!B541,'2.2 Daten'!B551,'2.2 Daten'!B566,'2.2 Daten'!B582,x) -> Bergstraße | B186: =IF($A186<>0,INDEX('2.2 Daten'!C$9:C$859,MATCH('2.2'!$A186,'2.2 Daten'!$B$9:$B$859,0))," ") -> 06431000 | C186: =IF($A186<>0,INDEX('2.2 Daten'!E$9:E$859,MATCH('2.2'!$A186,'2.2 Daten'!$B$9:$B$859,0))) -> 5380 | D186: =IF($A186<>0,INDEX('2.2 Daten'!F$9:F$859,MATCH('2.2'!$A186,'2.2 Daten'!$B$9:$B$859,0))) -> 889 | E186: =IF($A186<>0,INDEX('2.2 Daten'!G$9:G$859,MATCH('2.2'!$A186,'2.2 Daten'!$B$9:$B$859,0))) -> 1014 | F186: =IF($A186<>0,INDEX('2.2 Daten'!H$9:H$859,MATCH('2.2'!$A186,'2.2 Daten'!$B$9:$B$859,0))) -> 2734 | G186: =IF($A186<>0,INDEX('2.2 Daten'!I$9:I$859,MATCH('2.2'!$A186,'2.2 Daten'!$B$9:$B$859,0))) -> 743 | H186: =IF($A186<>0,INDEX('2.2 Daten'!K$9:K$859,MATCH('2.2'!$A186,'2.2 Daten'!$B$9:$B$859,0))) -> 12.85924061 | I186: =IF($A186<>0,INDEX('2.2 Daten'!L$9:L$859,MATCH('2.2'!$A186,'2.2 Daten'!$B$9:$B$859,0))) -> 3.976608187 | J186: =IF($A186<>0,INDEX('2.2 Daten'!M$9:M$859,MATCH('2.2'!$A186,'2.2 Daten'!$B$9:$B$859,0))) -> 6.736842105 | K186: =IF($A186<>0,INDEX('2.2 Daten'!N$9:N$859,MATCH('2.2'!$A186,'2.2 Daten'!$B$9:$B$859,0))) -> 17.43986254 | L186: =IF($A186<>0,INDEX('2.2 Daten'!O$9:O$859,MATCH('2.2'!$A186,'2.2 Daten'!$B$9:$B$859,0))) -> 17.19242902
A187: =CHOOSE('2.2 Daten'!$A$2,'2.2 Daten'!B609,'2.2 Daten'!B158,'2.2 Daten'!B175,'2.2 Daten'!B192,'2.2 Daten'!B195,'2.2 Daten'!B242,'2.2 Daten'!B246,'2.2 Daten'!B301,'2.2 Daten'!B329,'2.2 Daten'!B367,'2.2 Daten'!B413,'2.2 Daten'!B511,'2.2 Daten'!B519,'2.2 Daten'!B522,'2.2 Daten'!B542,'2.2 Daten'!B552,'2.2 Daten'!B567,'2.2 Daten'!B583,x) -> Darmstadt-Dieburg | B187: =IF($A187<>0,INDEX('2.2 Daten'!C$9:C$859,MATCH('2.2'!$A187,'2.2 Daten'!$B$9:$B$859,0))," ") -> 06432000 | C187: =IF($A187<>0,INDEX('2.2 Daten'!E$9:E$859,MATCH('2.2'!$A187,'2.2 Daten'!$B$9:$B$859,0))) -> 5764 | D187: =IF($A187<>0,INDEX('2.2 Daten'!F$9:F$859,MATCH('2.2'!$A187,'2.2 Daten'!$B$9:$B$859,0))) -> 913 | E187: =IF($A187<>0,INDEX('2.2 Daten'!G$9:G$859,MATCH('2.2'!$A187,'2.2 Daten'!$B$9:$B$859,0))) -> 1089 | F187: =IF($A187<>0,INDEX('2.2 Daten'!H$9:H$859,MATCH('2.2'!$A187,'2.2 Daten'!$B$9:$B$859,0))) -> 2988 | G187: =IF($A187<>0,INDEX('2.2 Daten'!I$9:I$859,MATCH('2.2'!$A187,'2.2 Daten'!$B$9:$B$859,0))) -> 774 | H187: =IF($A187<>0,INDEX('2.2 Daten'!K$9:K$859,MATCH('2.2'!$A187,'2.2 Daten'!$B$9:$B$859,0))) -> 12.88679984 | I187: =IF($A187<>0,INDEX('2.2 Daten'!L$9:L$859,MATCH('2.2'!$A187,'2.2 Daten'!$B$9:$B$859,0))) -> 2.469135802 | J187: =IF($A187<>0,INDEX('2.2 Daten'!M$9:M$859,MATCH('2.2'!$A187,'2.2 Daten'!$B$9:$B$859,0))) -> 11.23595506 | K187: =IF($A187<>0,INDEX('2.2 Daten'!N$9:N$859,MATCH('2.2'!$A187,'2.2 Daten'!$B$9:$B$859,0))) -> 18.24297586 | L187: =IF($A187<>0,INDEX('2.2 Daten'!O$9:O$859,MATCH('2.2'!$A187,'2.2 Daten'!$B$9:$B$859,0))) -> 9.167842031
A188: =CHOOSE('2.2 Daten'!$A$2,'2.2 Daten'!B610,'2.2 Daten'!B159,'2.2 Daten'!B176,'2.2 Daten'!B193,'2.2 Daten'!B196,'2.2 Daten'!B243,'2.2 Daten'!B247,'2.2 Daten'!B302,'2.2 Daten'!B330,'2.2 Daten'!B368,'2.2 Daten'!B414,'2.2 Daten'!B512,'2.2 Daten'!B520,'2.2 Daten'!B523,'2.2 Daten'!B543,'2.2 Daten'!B553,'2.2 Daten'!B568,'2.2 Daten'!B584,x) -> Groß-Gerau | B188: =IF($A188<>0,INDEX('2.2 Daten'!C$9:C$859,MATCH('2.2'!$A188,'2.2 Daten'!$B$9:$B$859,0))," ") -> 06433000 | C188: =IF($A188<>0,INDEX('2.2 Daten'!E$9:E$859,MATCH('2.2'!$A188,'2.2 Daten'!$B$9:$B$859,0))) -> 7284 | D188: =IF($A188<>0,INDEX('2.2 Daten'!F$9:F$859,MATCH('2.2'!$A188,'2.2 Daten'!$B$9:$B$859,0))) -> 1184 | E188: =IF($A188<>0,INDEX('2.2 Daten'!G$9:G$859,MATCH('2.2'!$A188,'2.2 Daten'!$B$9:$B$859,0))) -> 1350 | F188: =IF($A188<>0,INDEX('2.2 Daten'!H$9:H$859,MATCH('2.2'!$A188,'2.2 Daten'!$B$9:$B$859,0))) -> 3701 | G188: =IF($A188<>0,INDEX('2.2 Daten'!I$9:I$859,MATCH('2.2'!$A188,'2.2 Daten'!$B$9:$B$859,0))) -> 1049 | H188: =IF($A188<>0,INDEX('2.2 Daten'!K$9:K$859,MATCH('2.2'!$A188,'2.2 Daten'!$B$9:$B$859,0))) -> -1.046053525 | I188: =IF($A188<>0,INDEX('2.2 Daten'!L$9:L$859,MATCH('2.2'!$A188,'2.2 Daten'!$B$9:$B$859,0))) -> -2.310231023 | J188: =IF($A188<>0,INDEX('2.2 Daten'!M$9:M$859,MATCH('2.2'!$A188,'2.2 Daten'!$B$9:$B$859,0))) -> -3.982930299 | K188: =IF($A188<>0,INDEX('2.2 Daten'!N$9:N$859,MATCH('2.2'!$A188,'2.2 Daten'!$B$9:$B$859,0))) -> 0.5706521739 | L188: =IF($A188<>0,INDEX('2.2 Daten'!O$9:O$859,MATCH('2.2'!$A188,'2.2 Daten'!$B$9:$B$859,0))) -> -1.317027281
A189: =CHOOSE('2.2 Daten'!$A$2,'2.2 Daten'!B611,'2.2 Daten'!B160,'2.2 Daten'!B177,'2.2 Daten'!B194,'2.2 Daten'!B197,'2.2 Daten'!B244,'2.2 Daten'!B248,'2.2 Daten'!B303,'2.2 Daten'!B331,'2.2 Daten'!B369,'2.2 Daten'!B415,'2.2 Daten'!B513,'2.2 Daten'!B521,'2.2 Daten'!B524,'2.2 Daten'!B544,'2.2 Daten'!B554,'2.2 Daten'!B569,'2.2 Daten'!B585,x) -> Hochtaunuskreis | B189: =IF($A189<>0,INDEX('2.2 Daten'!C$9:C$859,MATCH('2.2'!$A189,'2.2 Daten'!$B$9:$B$859,0))," ") -> 06434000 | C189: =IF($A189<>0,INDEX('2.2 Daten'!E$9:E$859,MATCH('2.2'!$A189,'2.2 Daten'!$B$9:$B$859,0))) -> 4675 | D189: =IF($A189<>0,INDEX('2.2 Daten'!F$9:F$859,MATCH('2.2'!$A189,'2.2 Daten'!$B$9:$B$859,0))) -> 704 | E189: =IF($A189<>0,INDEX('2.2 Daten'!G$9:G$859,MATCH('2.2'!$A189,'2.2 Daten'!$B$9:$B$859,0))) -> 884 | F189: =IF($A189<>0,INDEX('2.2 Daten'!H$9:H$859,MATCH('2.2'!$A189,'2.2 Daten'!$B$9:$B$859,0))) -> 2439 | G189: =IF($A189<>0,INDEX('2.2 Daten'!I$9:I$859,MATCH('2.2'!$A189,'2.2 Daten'!$B$9:$B$859,0))) -> 648 | H189: =IF($A189<>0,INDEX('2.2 Daten'!K$9:K$859,MATCH('2.2'!$A189,'2.2 Daten'!$B$9:$B$859,0))) -> 21.05126877 | I189: =IF($A189<>0,INDEX('2.2 Daten'!L$9:L$859,MATCH('2.2'!$A189,'2.2 Daten'!$B$9:$B$859,0))) -> 11.2164297 | J189: =IF($A189<>0,INDEX('2.2 Daten'!M$9:M$859,MATCH('2.2'!$A189,'2.2 Daten'!$B$9:$B$859,0))) -> 15.55555556 | K189: =IF($A189<>0,INDEX('2.2 Daten'!N$9:N$859,MATCH('2.2'!$A189,'2.2 Daten'!$B$9:$B$859,0))) -> 26.24223602 | L189: =IF($A189<>0,INDEX('2.2 Daten'!O$9:O$859,MATCH('2.2'!$A189,'2.2 Daten'!$B$9:$B$859,0))) -> 21.80451128
A190: =CHOOSE('2.2 Daten'!$A$2,'2.2 Daten'!B612,'2.2 Daten'!B161,'2.2 Daten'!B178,'2.2 Daten'!B195,'2.2 Daten'!B198,'2.2 Daten'!B245,'2.2 Daten'!B249,'2.2 Daten'!B304,'2.2 Daten'!B332,'2.2 Daten'!B370,'2.2 Daten'!B416,'2.2 Daten'!B514,'2.2 Daten'!B522,'2.2 Daten'!B525,'2.2 Daten'!B545,'2.2 Daten'!B555,'2.2 Daten'!B570,'2.2 Daten'!B586,x) -> Main-Kinzig-Kreis | B190: =IF($A190<>0,INDEX('2.2 Daten'!C$9:C$859,MATCH('2.2'!$A190,'2.2 Daten'!$B$9:$B$859,0))," ") -> 06435000 | C190: =IF($A190<>0,INDEX('2.2 Daten'!E$9:E$859,MATCH('2.2'!$A190,'2.2 Daten'!$B$9:$B$859,0))) -> 9704 | D190: =IF($A190<>0,INDEX('2.2 Daten'!F$9:F$859,MATCH('2.2'!$A190,'2.2 Daten'!$B$9:$B$859,0))) -> 1547 | E190: =IF($A190<>0,INDEX('2.2 Daten'!G$9:G$859,MATCH('2.2'!$A190,'2.2 Daten'!$B$9:$B$859,0))) -> 1832 | F190: =IF($A190<>0,INDEX('2.2 Daten'!H$9:H$859,MATCH('2.2'!$A190,'2.2 Daten'!$B$9:$B$859,0))) -> 4902 | G190: =IF($A190<>0,INDEX('2.2 Daten'!I$9:I$859,MATCH('2.2'!$A190,'2.2 Daten'!$B$9:$B$859,0))) -> 1423 | H190: =IF($A190<>0,INDEX('2.2 Daten'!K$9:K$859,MATCH('2.2'!$A190,'2.2 Daten'!$B$9:$B$859,0))) -> 4.659188956 | I190: =IF($A190<>0,INDEX('2.2 Daten'!L$9:L$859,MATCH('2.2'!$A190,'2.2 Daten'!$B$9:$B$859,0))) -> -1.902346227 | J190: =IF($A190<>0,INDEX('2.2 Daten'!M$9:M$859,MATCH('2.2'!$A190,'2.2 Daten'!$B$9:$B$859,0))) -> -0.6507592191 | K190: =IF($A190<>0,INDEX('2.2 Daten'!N$9:N$859,MATCH('2.2'!$A190,'2.2 Daten'!$B$9:$B$859,0))) -> 6.70439704 | L190: =IF($A190<>0,INDEX('2.2 Daten'!O$9:O$859,MATCH('2.2'!$A190,'2.2 Daten'!$B$9:$B$859,0))) -> 13.20604614
A191: =CHOOSE('2.2 Daten'!$A$2,'2.2 Daten'!B613,'2.2 Daten'!B162,'2.2 Daten'!B179,'2.2 Daten'!B196,'2.2 Daten'!B199,'2.2 Daten'!B246,'2.2 Daten'!B250,'2.2 Daten'!B305,'2.2 Daten'!B333,'2.2 Daten'!B371,'2.2 Daten'!B417,'2.2 Daten'!B515,'2.2 Daten'!B523,'2.2 Daten'!B526,'2.2 Daten'!B546,'2.2 Daten'!B556,'2.2 Daten'!B571,'2.2 Daten'!B587,x) -> Main-Taunus-Kreis | B191: =IF($A191<>0,INDEX('2.2 Daten'!C$9:C$859,MATCH('2.2'!$A191,'2.2 Daten'!$B$9:$B$859,0))," ") -> 06436000 | C191: =IF($A191<>0,INDEX('2.2 Daten'!E$9:E$859,MATCH('2.2'!$A191,'2.2 Daten'!$B$9:$B$859,0))) -> 4366 | D191: =IF($A191<>0,INDEX('2.2 Daten'!F$9:F$859,MATCH('2.2'!$A191,'2.2 Daten'!$B$9:$B$859,0))) -> 612 | E191: =IF($A191<>0,INDEX('2.2 Daten'!G$9:G$859,MATCH('2.2'!$A191,'2.2 Daten'!$B$9:$B$859,0))) -> 781 | F191: =IF($A191<>0,INDEX('2.2 Daten'!H$9:H$859,MATCH('2.2'!$A191,'2.2 Daten'!$B$9:$B$859,0))) -> 2292 | G191: =IF($A191<>0,INDEX('2.2 Daten'!I$9:I$859,MATCH('2.2'!$A191,'2.2 Daten'!$B$9:$B$859,0))) -> 681 | H191: =IF($A191<>0,INDEX('2.2 Daten'!K$9:K$859,MATCH('2.2'!$A191,'2.2 Daten'!$B$9:$B$859,0))) -> 10.89662179 | I191: =IF($A191<>0,INDEX('2.2 Daten'!L$9:L$859,MATCH('2.2'!$A191,'2.2 Daten'!$B$9:$B$859,0))) -> -2.547770701 | J191: =IF($A191<>0,INDEX('2.2 Daten'!M$9:M$859,MATCH('2.2'!$A191,'2.2 Daten'!$B$9:$B$859,0))) -> 6.548431105 | K191: =IF($A191<>0,INDEX('2.2 Daten'!N$9:N$859,MATCH('2.2'!$A191,'2.2 Daten'!$B$9:$B$859,0))) -> 14.20029895 | L191: =IF($A191<>0,INDEX('2.2 Daten'!O$9:O$859,MATCH('2.2'!$A191,'2.2 Daten'!$B$9:$B$859,0))) -> 19.68365554
A192: =CHOOSE('2.2 Daten'!$A$2,'2.2 Daten'!B614,'2.2 Daten'!B163,'2.2 Daten'!B180,'2.2 Daten'!B197,'2.2 Daten'!B200,'2.2 Daten'!B247,'2.2 Daten'!B251,'2.2 Daten'!B306,'2.2 Daten'!B334,'2.2 Daten'!B372,'2.2 Daten'!B418,'2.2 Daten'!B516,'2.2 Daten'!B524,'2.2 Daten'!B527,'2.2 Daten'!B547,'2.2 Daten'!B557,'2.2 Daten'!B572,'2.2 Daten'!B588,x) -> Odenwaldkreis | B192: =IF($A192<>0,INDEX('2.2 Daten'!C$9:C$859,MATCH('2.2'!$A192,'2.2 Daten'!$B$9:$B$859,0))," ") -> 06437000 | C192: =IF($A192<>0,INDEX('2.2 Daten'!E$9:E$859,MATCH('2.2'!$A192,'2.2 Daten'!$B$9:$B$859,0))) -> 1976 | D192: =IF($A192<>0,INDEX('2.2 Daten'!F$9:F$859,MATCH('2.2'!$A192,'2.2 Daten'!$B$9:$B$859,0))) -> 326 | E192: =IF($A192<>0,INDEX('2.2 Daten'!G$9:G$859,MATCH('2.2'!$A192,'2.2 Daten'!$B$9:$B$859,0))) -> 373 | F192: =IF($A192<>0,INDEX('2.2 Daten'!H$9:H$859,MATCH('2.2'!$A192,'2.2 Daten'!$B$9:$B$859,0))) -> 968 | G192: =IF($A192<>0,INDEX('2.2 Daten'!I$9:I$859,MATCH('2.2'!$A192,'2.2 Daten'!$B$9:$B$859,0))) -> 309 | H192: =IF($A192<>0,INDEX('2.2 Daten'!K$9:K$859,MATCH('2.2'!$A192,'2.2 Daten'!$B$9:$B$859,0))) -> 6.065485776 | I192: =IF($A192<>0,INDEX('2.2 Daten'!L$9:L$859,MATCH('2.2'!$A192,'2.2 Daten'!$B$9:$B$859,0))) -> -0.6097560976 | J192: =IF($A192<>0,INDEX('2.2 Daten'!M$9:M$859,MATCH('2.2'!$A192,'2.2 Daten'!$B$9:$B$859,0))) -> 3.611111111 | K192: =IF($A192<>0,INDEX('2.2 Daten'!N$9:N$859,MATCH('2.2'!$A192,'2.2 Daten'!$B$9:$B$859,0))) -> 7.198228128 | L192: =IF($A192<>0,INDEX('2.2 Daten'!O$9:O$859,MATCH('2.2'!$A192,'2.2 Daten'!$B$9:$B$859,0))) -> 13.60294118
A193: =CHOOSE('2.2 Daten'!$A$2,'2.2 Daten'!B615,'2.2 Daten'!B164,'2.2 Daten'!B181,'2.2 Daten'!B198,'2.2 Daten'!B201,'2.2 Daten'!B248,'2.2 Daten'!B252,'2.2 Daten'!B307,'2.2 Daten'!B335,'2.2 Daten'!B373,'2.2 Daten'!B419,'2.2 Daten'!B517,'2.2 Daten'!B525,'2.2 Daten'!B528,'2.2 Daten'!B548,'2.2 Daten'!B558,'2.2 Daten'!B573,'2.2 Daten'!B589,x) -> Offenbach | B193: =IF($A193<>0,INDEX('2.2 Daten'!C$9:C$859,MATCH('2.2'!$A193,'2.2 Daten'!$B$9:$B$859,0))," ") -> 06438000 | C193: =IF($A193<>0,INDEX('2.2 Daten'!E$9:E$859,MATCH('2.2'!$A193,'2.2 Daten'!$B$9:$B$859,0))) -> 8416 | D193: =IF($A193<>0,INDEX('2.2 Daten'!F$9:F$859,MATCH('2.2'!$A193,'2.2 Daten'!$B$9:$B$859,0))) -> 1368 | E193: =IF($A193<>0,INDEX('2.2 Daten'!G$9:G$859,MATCH('2.2'!$A193,'2.2 Daten'!$B$9:$B$859,0))) -> 1622 | F193: =IF($A193<>0,INDEX('2.2 Daten'!H$9:H$859,MATCH('2.2'!$A193,'2.2 Daten'!$B$9:$B$859,0))) -> 4200 | G193: =IF($A193<>0,INDEX('2.2 Daten'!I$9:I$859,MATCH('2.2'!$A193,'2.2 Daten'!$B$9:$B$859,0))) -> 1226 | H193: =IF($A193<>0,INDEX('2.2 Daten'!K$9:K$859,MATCH('2.2'!$A193,'2.2 Daten'!$B$9:$B$859,0))) -> 1.937984496 | I193: =IF($A193<>0,INDEX('2.2 Daten'!L$9:L$859,MATCH('2.2'!$A193,'2.2 Daten'!$B$9:$B$859,0))) -> -1.084598698 | J193: =IF($A193<>0,INDEX('2.2 Daten'!M$9:M$859,MATCH('2.2'!$A193,'2.2 Daten'!$B$9:$B$859,0))) -> -1.934703748 | K193: =IF($A193<>0,INDEX('2.2 Daten'!N$9:N$859,MATCH('2.2'!$A193,'2.2 Daten'!$B$9:$B$859,0))) -> 4.451628948 | L193: =IF($A193<>0,INDEX('2.2 Daten'!O$9:O$859,MATCH('2.2'!$A193,'2.2 Daten'!$B$9:$B$859,0))) -> 2.337228715
A194: =CHOOSE('2.2 Daten'!$A$2,'2.2 Daten'!B616,'2.2 Daten'!B165,'2.2 Daten'!B182,'2.2 Daten'!B199,'2.2 Daten'!B202,'2.2 Daten'!B249,'2.2 Daten'!B253,'2.2 Daten'!B308,'2.2 Daten'!B336,'2.2 Daten'!B374,'2.2 Daten'!B420,'2.2 Daten'!B518,'2.2 Daten'!B526,'2.2 Daten'!B529,'2.2 Daten'!B549,'2.2 Daten'!B559,'2.2 Daten'!B574,'2.2 Daten'!B590,x) -> Rheingau-Taunus-Kreis | B194: =IF($A194<>0,INDEX('2.2 Daten'!C$9:C$859,MATCH('2.2'!$A194,'2.2 Daten'!$B$9:$B$859,0))," ") -> 06439000 | C194: =IF($A194<>0,INDEX('2.2 Daten'!E$9:E$859,MATCH('2.2'!$A194,'2.2 Daten'!$B$9:$B$859,0))) -> 3636 | D194: =IF($A194<>0,INDEX('2.2 Daten'!F$9:F$859,MATCH('2.2'!$A194,'2.2 Daten'!$B$9:$B$859,0))) -> 540 | E194: =IF($A194<>0,INDEX('2.2 Daten'!G$9:G$859,MATCH('2.2'!$A194,'2.2 Daten'!$B$9:$B$859,0))) -> 723 | F194: =IF($A194<>0,INDEX('2.2 Daten'!H$9:H$859,MATCH('2.2'!$A194,'2.2 Daten'!$B$9:$B$859,0))) -> 1865 | G194: =IF($A194<>0,INDEX('2.2 Daten'!I$9:I$859,MATCH('2.2'!$A194,'2.2 Daten'!$B$9:$B$859,0))) -> 508 | H194: =IF($A194<>0,INDEX('2.2 Daten'!K$9:K$859,MATCH('2.2'!$A194,'2.2 Daten'!$B$9:$B$859,0))) -> 12.32622799 | I194: =IF($A194<>0,INDEX('2.2 Daten'!L$9:L$859,MATCH('2.2'!$A194,'2.2 Daten'!$B$9:$B$859,0))) -> -5.096660808 | J194: =IF($A194<>0,INDEX('2.2 Daten'!M$9:M$859,MATCH('2.2'!$A194,'2.2 Daten'!$B$9:$B$859,0))) -> 15.31100478 | K194: =IF($A194<>0,INDEX('2.2 Daten'!N$9:N$859,MATCH('2.2'!$A194,'2.2 Daten'!$B$9:$B$859,0))) -> 17.59142497 | L194: =IF($A194<>0,INDEX('2.2 Daten'!O$9:O$859,MATCH('2.2'!$A194,'2.2 Daten'!$B$9:$B$859,0))) -> 11.64835165
A195: =CHOOSE('2.2 Daten'!$A$2,'2.2 Daten'!B617,'2.2 Daten'!B166,'2.2 Daten'!B183,'2.2 Daten'!B200,'2.2 Daten'!B203,'2.2 Daten'!B250,'2.2 Daten'!B254,'2.2 Daten'!B309,'2.2 Daten'!B337,'2.2 Daten'!B375,'2.2 Daten'!B421,'2.2 Daten'!B519,'2.2 Daten'!B527,'2.2 Daten'!B530,'2.2 Daten'!B550,'2.2 Daten'!B560,'2.2 Daten'!B575,'2.2 Daten'!B591,x) -> Wetteraukreis | B195: =IF($A195<>0,INDEX('2.2 Daten'!C$9:C$859,MATCH('2.2'!$A195,'2.2 Daten'!$B$9:$B$859,0))," ") -> 06440000 | C195: =IF($A195<>0,INDEX('2.2 Daten'!E$9:E$859,MATCH('2.2'!$A195,'2.2 Daten'!$B$9:$B$859,0))) -> 5218 | D195: =IF($A195<>0,INDEX('2.2 Daten'!F$9:F$859,MATCH('2.2'!$A195,'2.2 Daten'!$B$9:$B$859,0))) -> 820 | E195: =IF($A195<>0,INDEX('2.2 Daten'!G$9:G$859,MATCH('2.2'!$A195,'2.2 Daten'!$B$9:$B$859,0))) -> 969 | F195: =IF($A195<>0,INDEX('2.2 Daten'!H$9:H$859,MATCH('2.2'!$A195,'2.2 Daten'!$B$9:$B$859,0))) -> 2662 | G195: =IF($A195<>0,INDEX('2.2 Daten'!I$9:I$859,MATCH('2.2'!$A195,'2.2 Daten'!$B$9:$B$859,0))) -> 767 | H195: =IF($A195<>0,INDEX('2.2 Daten'!K$9:K$859,MATCH('2.2'!$A195,'2.2 Daten'!$B$9:$B$859,0))) -> 3.634558093 | I195: =IF($A195<>0,INDEX('2.2 Daten'!L$9:L$859,MATCH('2.2'!$A195,'2.2 Daten'!$B$9:$B$859,0))) -> -3.415783274 | J195: =IF($A195<>0,INDEX('2.2 Daten'!M$9:M$859,MATCH('2.2'!$A195,'2.2 Daten'!$B$9:$B$859,0))) -> 4.756756757 | K195: =IF($A195<>0,INDEX('2.2 Daten'!N$9:N$859,MATCH('2.2'!$A195,'2.2 Daten'!$B$9:$B$859,0))) -> 4.803149606 | L195: =IF($A195<>0,INDEX('2.2 Daten'!O$9:O$859,MATCH('2.2'!$A195,'2.2 Daten'!$B$9:$B$859,0))) -> 6.380027739
A196: =CHOOSE('2.2 Daten'!$A$2,'2.2 Daten'!B618,'2.2 Daten'!B167,'2.2 Daten'!B184,'2.2 Daten'!B201,'2.2 Daten'!B204,'2.2 Daten'!B251,'2.2 Daten'!B255,'2.2 Daten'!B310,'2.2 Daten'!B338,'2.2 Daten'!B376,'2.2 Daten'!B422,'2.2 Daten'!B520,'2.2 Daten'!B528,'2.2 Daten'!B531,'2.2 Daten'!B551,'2.2 Daten'!B561,'2.2 Daten'!B576,'2.2 Daten'!B592,x) -> Gießen | B196: =IF($A196<>0,INDEX('2.2 Daten'!C$9:C$859,MATCH('2.2'!$A196,'2.2 Daten'!$B$9:$B$859,0))," ") -> 06531000 | C196: =IF($A196<>0,INDEX('2.2 Daten'!E$9:E$859,MATCH('2.2'!$A196,'2.2 Daten'!$B$9:$B$859,0))) -> 7424 | D196: =IF($A196<>0,INDEX('2.2 Daten'!F$9:F$859,MATCH('2.2'!$A196,'2.2 Daten'!$B$9:$B$859,0))) -> 1291 | E196: =IF($A196<>0,INDEX('2.2 Daten'!G$9:G$859,MATCH('2.2'!$A196,'2.2 Daten'!$B$9:$B$859,0))) -> 1490 | F196: =IF($A196<>0,INDEX('2.2 Daten'!H$9:H$859,MATCH('2.2'!$A196,'2.2 Daten'!$B$9:$B$859,0))) -> 3637 | G196: =IF($A196<>0,INDEX('2.2 Daten'!I$9:I$859,MATCH('2.2'!$A196,'2.2 Daten'!$B$9:$B$859,0))) -> 1006 | H196: =IF($A196<>0,INDEX('2.2 Daten'!K$9:K$859,MATCH('2.2'!$A196,'2.2 Daten'!$B$9:$B$859,0))) -> 9.192528313 | I196: =IF($A196<>0,INDEX('2.2 Daten'!L$9:L$859,MATCH('2.2'!$A196,'2.2 Daten'!$B$9:$B$859,0))) -> 1.974723539 | J196: =IF($A196<>0,INDEX('2.2 Daten'!M$9:M$859,MATCH('2.2'!$A196,'2.2 Daten'!$B$9:$B$859,0))) -> 7.503607504 | K196: =IF($A196<>0,INDEX('2.2 Daten'!N$9:N$859,MATCH('2.2'!$A196,'2.2 Daten'!$B$9:$B$859,0))) -> 12.8101737 | L196: =IF($A196<>0,INDEX('2.2 Daten'!O$9:O$859,MATCH('2.2'!$A196,'2.2 Daten'!$B$9:$B$859,0))) -> 8.992416035
A197: =CHOOSE('2.2 Daten'!$A$2,'2.2 Daten'!B619,'2.2 Daten'!B168,'2.2 Daten'!B185,'2.2 Daten'!B202,'2.2 Daten'!B205,'2.2 Daten'!B252,'2.2 Daten'!B256,'2.2 Daten'!B311,'2.2 Daten'!B339,'2.2 Daten'!B377,'2.2 Daten'!B423,'2.2 Daten'!B521,'2.2 Daten'!B529,'2.2 Daten'!B532,'2.2 Daten'!B552,'2.2 Daten'!B562,'2.2 Daten'!B577,'2.2 Daten'!B593,x) -> Lahn-Dill-Kreis | B197: =IF($A197<>0,INDEX('2.2 Daten'!C$9:C$859,MATCH('2.2'!$A197,'2.2 Daten'!$B$9:$B$859,0))," ") -> 06532000 | C197: =IF($A197<>0,INDEX('2.2 Daten'!E$9:E$859,MATCH('2.2'!$A197,'2.2 Daten'!$B$9:$B$859,0))) -> 6607 | D197: =IF($A197<>0,INDEX('2.2 Daten'!F$9:F$859,MATCH('2.2'!$A197,'2.2 Daten'!$B$9:$B$859,0))) -> 1090 | E197: =IF($A197<>0,INDEX('2.2 Daten'!G$9:G$859,MATCH('2.2'!$A197,'2.2 Daten'!$B$9:$B$859,0))) -> 1260 | F197: =IF($A197<>0,INDEX('2.2 Daten'!H$9:H$859,MATCH('2.2'!$A197,'2.2 Daten'!$B$9:$B$859,0))) -> 3337 | G197: =IF($A197<>0,INDEX('2.2 Daten'!I$9:I$859,MATCH('2.2'!$A197,'2.2 Daten'!$B$9:$B$859,0))) -> 920 | H197: =IF($A197<>0,INDEX('2.2 Daten'!K$9:K$859,MATCH('2.2'!$A197,'2.2 Daten'!$B$9:$B$859,0))) -> 12.34483931 | I197: =IF($A197<>0,INDEX('2.2 Daten'!L$9:L$859,MATCH('2.2'!$A197,'2.2 Daten'!$B$9:$B$859,0))) -> 4.506232023 | J197: =IF($A197<>0,INDEX('2.2 Daten'!M$9:M$859,MATCH('2.2'!$A197,'2.2 Daten'!$B$9:$B$859,0))) -> 5.351170569 | K197: =IF($A197<>0,INDEX('2.2 Daten'!N$9:N$859,MATCH('2.2'!$A197,'2.2 Daten'!$B$9:$B$859,0))) -> 15.78764747 | L197: =IF($A197<>0,INDEX('2.2 Daten'!O$9:O$859,MATCH('2.2'!$A197,'2.2 Daten'!$B$9:$B$859,0))) -> 21.05263158
A198: =CHOOSE('2.2 Daten'!$A$2,'2.2 Daten'!B620,'2.2 Daten'!B169,'2.2 Daten'!B186,'2.2 Daten'!B203,'2.2 Daten'!B206,'2.2 Daten'!B253,'2.2 Daten'!B257,'2.2 Daten'!B312,'2.2 Daten'!B340,'2.2 Daten'!B378,'2.2 Daten'!B424,'2.2 Daten'!B522,'2.2 Daten'!B530,'2.2 Daten'!B533,'2.2 Daten'!B553,'2.2 Daten'!B563,'2.2 Daten'!B578,'2.2 Daten'!B594,x) -> Limburg-Weilburg | B198: =IF($A198<>0,INDEX('2.2 Daten'!C$9:C$859,MATCH('2.2'!$A198,'2.2 Daten'!$B$9:$B$859,0))," ") -> 06533000 | C198: =IF($A198<>0,INDEX('2.2 Daten'!E$9:E$859,MATCH('2.2'!$A198,'2.2 Daten'!$B$9:$B$859,0))) -> 3415 | D198: =IF($A198<>0,INDEX('2.2 Daten'!F$9:F$859,MATCH('2.2'!$A198,'2.2 Daten'!$B$9:$B$859,0))) -> 535 | E198: =IF($A198<>0,INDEX('2.2 Daten'!G$9:G$859,MATCH('2.2'!$A198,'2.2 Daten'!$B$9:$B$859,0))) -> 642 | F198: =IF($A198<>0,INDEX('2.2 Daten'!H$9:H$859,MATCH('2.2'!$A198,'2.2 Daten'!$B$9:$B$859,0))) -> 1727 | G198: =IF($A198<>0,INDEX('2.2 Daten'!I$9:I$859,MATCH('2.2'!$A198,'2.2 Daten'!$B$9:$B$859,0))) -> 511 | H198: =IF($A198<>0,INDEX('2.2 Daten'!K$9:K$859,MATCH('2.2'!$A198,'2.2 Daten'!$B$9:$B$859,0))) -> 1.035502959 | I198: =IF($A198<>0,INDEX('2.2 Daten'!L$9:L$859,MATCH('2.2'!$A198,'2.2 Daten'!$B$9:$B$859,0))) -> -6.304728546 | J198: =IF($A198<>0,INDEX('2.2 Daten'!M$9:M$859,MATCH('2.2'!$A198,'2.2 Daten'!$B$9:$B$859,0))) -> -4.035874439 | K198: =IF($A198<>0,INDEX('2.2 Daten'!N$9:N$859,MATCH('2.2'!$A198,'2.2 Daten'!$B$9:$B$859,0))) -> 5.176613886 | L198: =IF($A198<>0,INDEX('2.2 Daten'!O$9:O$859,MATCH('2.2'!$A198,'2.2 Daten'!$B$9:$B$859,0))) -> 2.610441767
A199: =CHOOSE('2.2 Daten'!$A$2,'2.2 Daten'!B621,'2.2 Daten'!B170,'2.2 Daten'!B187,'2.2 Daten'!B204,'2.2 Daten'!B207,'2.2 Daten'!B254,'2.2 Daten'!B258,'2.2 Daten'!B313,'2.2 Daten'!B341,'2.2 Daten'!B379,'2.2 Daten'!B425,'2.2 Daten'!B523,'2.2 Daten'!B531,'2.2 Daten'!B534,'2.2 Daten'!B554,'2.2 Daten'!B564,'2.2 Daten'!B579,'2.2 Daten'!B595,x) -> Marburg-Biedenkopf | B199: =IF($A199<>0,INDEX('2.2 Daten'!C$9:C$859,MATCH('2.2'!$A199,'2.2 Daten'!$B$9:$B$859,0))," ") -> 06534000 | C199: =IF($A199<>0,INDEX('2.2 Daten'!E$9:E$859,MATCH('2.2'!$A199,'2.2 Daten'!$B$9:$B$859,0))) -> 4746 | D199: =IF($A199<>0,INDEX('2.2 Daten'!F$9:F$859,MATCH('2.2'!$A199,'2.2 Daten'!$B$9:$B$859,0))) -> 747 | E199: =IF($A199<>0,INDEX('2.2 Daten'!G$9:G$859,MATCH('2.2'!$A199,'2.2 Daten'!$B$9:$B$859,0))) -> 879 | F199: =IF($A199<>0,INDEX('2.2 Daten'!H$9:H$859,MATCH('2.2'!$A199,'2.2 Daten'!$B$9:$B$859,0))) -> 2447 | G199: =IF($A199<>0,INDEX('2.2 Daten'!I$9:I$859,MATCH('2.2'!$A199,'2.2 Daten'!$B$9:$B$859,0))) -> 673 | H199: =IF($A199<>0,INDEX('2.2 Daten'!K$9:K$859,MATCH('2.2'!$A199,'2.2 Daten'!$B$9:$B$859,0))) -> 12.49111164 | I199: =IF($A199<>0,INDEX('2.2 Daten'!L$9:L$859,MATCH('2.2'!$A199,'2.2 Daten'!$B$9:$B$859,0))) -> 1.494565217 | J199: =IF($A199<>0,INDEX('2.2 Daten'!M$9:M$859,MATCH('2.2'!$A199,'2.2 Daten'!$B$9:$B$859,0))) -> 9.192546584 | K199: =IF($A199<>0,INDEX('2.2 Daten'!N$9:N$859,MATCH('2.2'!$A199,'2.2 Daten'!$B$9:$B$859,0))) -> 16.3575844 | L199: =IF($A199<>0,INDEX('2.2 Daten'!O$9:O$859,MATCH('2.2'!$A199,'2.2 Daten'!$B$9:$B$859,0))) -> 17.04347826
A200: =CHOOSE('2.2 Daten'!$A$2,'2.2 Daten'!B622,'2.2 Daten'!B171,'2.2 Daten'!B188,'2.2 Daten'!B205,'2.2 Daten'!B208,'2.2 Daten'!B255,'2.2 Daten'!B259,'2.2 Daten'!B314,'2.2 Daten'!B342,'2.2 Daten'!B380,'2.2 Daten'!B426,'2.2 Daten'!B524,'2.2 Daten'!B532,'2.2 Daten'!B535,'2.2 Daten'!B555,'2.2 Daten'!B565,'2.2 Daten'!B580,'2.2 Daten'!B596,x) -> Vogelsbergkreis | B200: =IF($A200<>0,INDEX('2.2 Daten'!C$9:C$859,MATCH('2.2'!$A200,'2.2 Daten'!$B$9:$B$859,0))," ") -> 06535000 | C200: =IF($A200<>0,INDEX('2.2 Daten'!E$9:E$859,MATCH('2.2'!$A200,'2.2 Daten'!$B$9:$B$859,0))) -> 1573 | D200: =IF($A200<>0,INDEX('2.2 Daten'!F$9:F$859,MATCH('2.2'!$A200,'2.2 Daten'!$B$9:$B$859,0))) -> 253 | E200: =IF($A200<>0,INDEX('2.2 Daten'!G$9:G$859,MATCH('2.2'!$A200,'2.2 Daten'!$B$9:$B$859,0))) -> 313 | F200: =IF($A200<>0,INDEX('2.2 Daten'!H$9:H$859,MATCH('2.2'!$A200,'2.2 Daten'!$B$9:$B$859,0))) -> 791 | G200: =IF($A200<>0,INDEX('2.2 Daten'!I$9:I$859,MATCH('2.2'!$A200,'2.2 Daten'!$B$9:$B$859,0))) -> 216 | H200: =IF($A200<>0,INDEX('2.2 Daten'!K$9:K$859,MATCH('2.2'!$A200,'2.2 Daten'!$B$9:$B$859,0))) -> 14.56664239 | I200: =IF($A200<>0,INDEX('2.2 Daten'!L$9:L$859,MATCH('2.2'!$A200,'2.2 Daten'!$B$9:$B$859,0))) -> 4.979253112 | J200: =IF($A200<>0,INDEX('2.2 Daten'!M$9:M$859,MATCH('2.2'!$A200,'2.2 Daten'!$B$9:$B$859,0))) -> 1.954397394 | K200: =IF($A200<>0,INDEX('2.2 Daten'!N$9:N$859,MATCH('2.2'!$A200,'2.2 Daten'!$B$9:$B$859,0))) -> 23.98119122 | L200: =IF($A200<>0,INDEX('2.2 Daten'!O$9:O$859,MATCH('2.2'!$A200,'2.2 Daten'!$B$9:$B$859,0))) -> 15.50802139
A201: =CHOOSE('2.2 Daten'!$A$2,'2.2 Daten'!B623,'2.2 Daten'!B172,'2.2 Daten'!B189,'2.2 Daten'!B206,'2.2 Daten'!B209,'2.2 Daten'!B256,'2.2 Daten'!B260,'2.2 Daten'!B315,'2.2 Daten'!B343,'2.2 Daten'!B381,'2.2 Daten'!B427,'2.2 Daten'!B525,'2.2 Daten'!B533,'2.2 Daten'!B536,'2.2 Daten'!B556,'2.2 Daten'!B566,'2.2 Daten'!B581,'2.2 Daten'!B597,x) -> Kassel, documenta-Stadt | B201: =IF($A201<>0,INDEX('2.2 Daten'!C$9:C$859,MATCH('2.2'!$A201,'2.2 Daten'!$B$9:$B$859,0))," ") -> 06611000 | C201: =IF($A201<>0,INDEX('2.2 Daten'!E$9:E$859,MATCH('2.2'!$A201,'2.2 Daten'!$B$9:$B$859,0))) -> 9124 | D201: =IF($A201<>0,INDEX('2.2 Daten'!F$9:F$859,MATCH('2.2'!$A201,'2.2 Daten'!$B$9:$B$859,0))) -> 1647 | E201: =IF($A201<>0,INDEX('2.2 Daten'!G$9:G$859,MATCH('2.2'!$A201,'2.2 Daten'!$B$9:$B$859,0))) -> 1814 | F201: =IF($A201<>0,INDEX('2.2 Daten'!H$9:H$859,MATCH('2.2'!$A201,'2.2 Daten'!$B$9:$B$859,0))) -> 4450 | G201: =IF($A201<>0,INDEX('2.2 Daten'!I$9:I$859,MATCH('2.2'!$A201,'2.2 Daten'!$B$9:$B$859,0))) -> 1213 | H201: =IF($A201<>0,INDEX('2.2 Daten'!K$9:K$859,MATCH('2.2'!$A201,'2.2 Daten'!$B$9:$B$859,0))) -> 7.089201878 | I201: =IF($A201<>0,INDEX('2.2 Daten'!L$9:L$859,MATCH('2.2'!$A201,'2.2 Daten'!$B$9:$B$859,0))) -> -0.5434782609 | J201: =IF($A201<>0,INDEX('2.2 Daten'!M$9:M$859,MATCH('2.2'!$A201,'2.2 Daten'!$B$9:$B$859,0))) -> 4.013761468 | K201: =IF($A201<>0,INDEX('2.2 Daten'!N$9:N$859,MATCH('2.2'!$A201,'2.2 Daten'!$B$9:$B$859,0))) -> 8.45722642 | L201: =IF($A201<>0,INDEX('2.2 Daten'!O$9:O$859,MATCH('2.2'!$A201,'2.2 Daten'!$B$9:$B$859,0))) -> 19.27236971
A202: =CHOOSE('2.2 Daten'!$A$2,'2.2 Daten'!B624,'2.2 Daten'!B173,'2.2 Daten'!B190,'2.2 Daten'!B207,'2.2 Daten'!B210,'2.2 Daten'!B257,'2.2 Daten'!B261,'2.2 Daten'!B316,'2.2 Daten'!B344,'2.2 Daten'!B382,'2.2 Daten'!B428,'2.2 Daten'!B526,'2.2 Daten'!B534,'2.2 Daten'!B537,'2.2 Daten'!B557,'2.2 Daten'!B567,'2.2 Daten'!B582,'2.2 Daten'!B598,x) -> Fulda | B202: =IF($A202<>0,INDEX('2.2 Daten'!C$9:C$859,MATCH('2.2'!$A202,'2.2 Daten'!$B$9:$B$859,0))," ") -> 06631000 | C202: =IF($A202<>0,INDEX('2.2 Daten'!E$9:E$859,MATCH('2.2'!$A202,'2.2 Daten'!$B$9:$B$859,0))) -> 3742 | D202: =IF($A202<>0,INDEX('2.2 Daten'!F$9:F$859,MATCH('2.2'!$A202,'2.2 Daten'!$B$9:$B$859,0))) -> 606 | E202: =IF($A202<>0,INDEX('2.2 Daten'!G$9:G$859,MATCH('2.2'!$A202,'2.2 Daten'!$B$9:$B$859,0))) -> 703 | F202: =IF($A202<>0,INDEX('2.2 Daten'!H$9:H$859,MATCH('2.2'!$A202,'2.2 Daten'!$B$9:$B$859,0))) -> 1943 | G202: =IF($A202<>0,INDEX('2.2 Daten'!I$9:I$859,MATCH('2.2'!$A202,'2.2 Daten'!$B$9:$B$859,0))) -> 490 | H202: =IF($A202<>0,INDEX('2.2 Daten'!K$9:K$859,MATCH('2.2'!$A202,'2.2 Daten'!$B$9:$B$859,0))) -> 15.17389966 | I202: =IF($A202<>0,INDEX('2.2 Daten'!L$9:L$859,MATCH('2.2'!$A202,'2.2 Daten'!$B$9:$B$859,0))) -> 2.192242833 | J202: =IF($A202<>0,INDEX('2.2 Daten'!M$9:M$859,MATCH('2.2'!$A202,'2.2 Daten'!$B$9:$B$859,0))) -> 4.613095238 | K202: =IF($A202<>0,INDEX('2.2 Daten'!N$9:N$859,MATCH('2.2'!$A202,'2.2 Daten'!$B$9:$B$859,0))) -> 25.35483871 | L202: =IF($A202<>0,INDEX('2.2 Daten'!O$9:O$859,MATCH('2.2'!$A202,'2.2 Daten'!$B$9:$B$859,0))) -> 12.90322581
A203: =CHOOSE('2.2 Daten'!$A$2,'2.2 Daten'!B625,'2.2 Daten'!B174,'2.2 Daten'!B191,'2.2 Daten'!B208,'2.2 Daten'!B211,'2.2 Daten'!B258,'2.2 Daten'!B262,'2.2 Daten'!B317,'2.2 Daten'!B345,'2.2 Daten'!B383,'2.2 Daten'!B429,'2.2 Daten'!B527,'2.2 Daten'!B535,'2.2 Daten'!B538,'2.2 Daten'!B558,'2.2 Daten'!B568,'2.2 Daten'!B583,'2.2 Daten'!B599,x) -> Hersfeld-Rotenburg | B203: =IF($A203<>0,INDEX('2.2 Daten'!C$9:C$859,MATCH('2.2'!$A203,'2.2 Daten'!$B$9:$B$859,0))," ") -> 06632000 | C203: =IF($A203<>0,INDEX('2.2 Daten'!E$9:E$859,MATCH('2.2'!$A203,'2.2 Daten'!$B$9:$B$859,0))) -> 2296 | D203: =IF($A203<>0,INDEX('2.2 Daten'!F$9:F$859,MATCH('2.2'!$A203,'2.2 Daten'!$B$9:$B$859,0))) -> 373 | E203: =IF($A203<>0,INDEX('2.2 Daten'!G$9:G$859,MATCH('2.2'!$A203,'2.2 Daten'!$B$9:$B$859,0))) -> 442 | F203: =IF($A203<>0,INDEX('2.2 Daten'!H$9:H$859,MATCH('2.2'!$A203,'2.2 Daten'!$B$9:$B$859,0))) -> 1187 | G203: =IF($A203<>0,INDEX('2.2 Daten'!I$9:I$859,MATCH('2.2'!$A203,'2.2 Daten'!$B$9:$B$859,0))) -> 294 | H203: =IF($A203<>0,INDEX('2.2 Daten'!K$9:K$859,MATCH('2.2'!$A203,'2.2 Daten'!$B$9:$B$859,0))) -> 14.22885572 | I203: =IF($A203<>0,INDEX('2.2 Daten'!L$9:L$859,MATCH('2.2'!$A203,'2.2 Daten'!$B$9:$B$859,0))) -> -0.2673796791 | J203: =IF($A203<>0,INDEX('2.2 Daten'!M$9:M$859,MATCH('2.2'!$A203,'2.2 Daten'!$B$9:$B$859,0))) -> 10.2244389 | K203: =IF($A203<>0,INDEX('2.2 Daten'!N$9:N$859,MATCH('2.2'!$A203,'2.2 Daten'!$B$9:$B$859,0))) -> 21.74358974 | L203: =IF($A203<>0,INDEX('2.2 Daten'!O$9:O$859,MATCH('2.2'!$A203,'2.2 Daten'!$B$9:$B$859,0))) -> 13.07692308
A204: =CHOOSE('2.2 Daten'!$A$2,'2.2 Daten'!B626,'2.2 Daten'!B175,'2.2 Daten'!B192,'2.2 Daten'!B209,'2.2 Daten'!B212,'2.2 Daten'!B259,'2.2 Daten'!B263,'2.2 Daten'!B318,'2.2 Daten'!B346,'2.2 Daten'!B384,'2.2 Daten'!B430,'2.2 Daten'!B528,'2.2 Daten'!B536,'2.2 Daten'!B539,'2.2 Daten'!B559,'2.2 Daten'!B569,'2.2 Daten'!B584,'2.2 Daten'!B600,x) -> Kassel | B204: =IF($A204<>0,INDEX('2.2 Daten'!C$9:C$859,MATCH('2.2'!$A204,'2.2 Daten'!$B$9:$B$859,0))," ") -> 06633000 | C204: =IF($A204<>0,INDEX('2.2 Daten'!E$9:E$859,MATCH('2.2'!$A204,'2.2 Daten'!$B$9:$B$859,0))) -> 4272 | D204: =IF($A204<>0,INDEX('2.2 Daten'!F$9:F$859,MATCH('2.2'!$A204,'2.2 Daten'!$B$9:$B$859,0))) -> 646 | E204: =IF($A204<>0,INDEX('2.2 Daten'!G$9:G$859,MATCH('2.2'!$A204,'2.2 Daten'!$B$9:$B$859,0))) -> 875 | F204: =IF($A204<>0,INDEX('2.2 Daten'!H$9:H$859,MATCH('2.2'!$A204,'2.2 Daten'!$B$9:$B$859,0))) -> 2154 | G204: =IF($A204<>0,INDEX('2.2 Daten'!I$9:I$859,MATCH('2.2'!$A204,'2.2 Daten'!$B$9:$B$859,0))) -> 597 | H204: =IF($A204<>0,INDEX('2.2 Daten'!K$9:K$859,MATCH('2.2'!$A204,'2.2 Daten'!$B$9:$B$859,0))) -> 19.06354515 | I204: =IF($A204<>0,INDEX('2.2 Daten'!L$9:L$859,MATCH('2.2'!$A204,'2.2 Daten'!$B$9:$B$859,0))) -> -4.719764012 | J204: =IF($A204<>0,INDEX('2.2 Daten'!M$9:M$859,MATCH('2.2'!$A204,'2.2 Daten'!$B$9:$B$859,0))) -> 15.74074074 | K204: =IF($A204<>0,INDEX('2.2 Daten'!N$9:N$859,MATCH('2.2'!$A204,'2.2 Daten'!$B$9:$B$859,0))) -> 27.90973872 | L204: =IF($A204<>0,INDEX('2.2 Daten'!O$9:O$859,MATCH('2.2'!$A204,'2.2 Daten'!$B$9:$B$859,0))) -> 27.0212766
A205: =CHOOSE('2.2 Daten'!$A$2,'2.2 Daten'!B627,'2.2 Daten'!B176,'2.2 Daten'!B193,'2.2 Daten'!B210,'2.2 Daten'!B213,'2.2 Daten'!B260,'2.2 Daten'!B264,'2.2 Daten'!B319,'2.2 Daten'!B347,'2.2 Daten'!B385,'2.2 Daten'!B431,'2.2 Daten'!B529,'2.2 Daten'!B537,'2.2 Daten'!B540,'2.2 Daten'!B560,'2.2 Daten'!B570,'2.2 Daten'!B585,'2.2 Daten'!B601,x) -> Schwalm-Eder-Kreis | B205: =IF($A205<>0,INDEX('2.2 Daten'!C$9:C$859,MATCH('2.2'!$A205,'2.2 Daten'!$B$9:$B$859,0))," ") -> 06634000 | C205: =IF($A205<>0,INDEX('2.2 Daten'!E$9:E$859,MATCH('2.2'!$A205,'2.2 Daten'!$B$9:$B$859,0))) -> 2994 | D205: =IF($A205<>0,INDEX('2.2 Daten'!F$9:F$859,MATCH('2.2'!$A205,'2.2 Daten'!$B$9:$B$859,0))) -> 470 | E205: =IF($A205<>0,INDEX('2.2 Daten'!G$9:G$859,MATCH('2.2'!$A205,'2.2 Daten'!$B$9:$B$859,0))) -> 585 | F205: =IF($A205<>0,INDEX('2.2 Daten'!H$9:H$859,MATCH('2.2'!$A205,'2.2 Daten'!$B$9:$B$859,0))) -> 1558 | G205: =IF($A205<>0,INDEX('2.2 Daten'!I$9:I$859,MATCH('2.2'!$A205,'2.2 Daten'!$B$9:$B$859,0))) -> 381 | H205: =IF($A205<>0,INDEX('2.2 Daten'!K$9:K$859,MATCH('2.2'!$A205,'2.2 Daten'!$B$9:$B$859,0))) -> 7.697841727 | I205: =IF($A205<>0,INDEX('2.2 Daten'!L$9:L$859,MATCH('2.2'!$A205,'2.2 Daten'!$B$9:$B$859,0))) -> -4.858299595 | J205: =IF($A205<>0,INDEX('2.2 Daten'!M$9:M$859,MATCH('2.2'!$A205,'2.2 Daten'!$B$9:$B$859,0))) -> 4.838709677 | K205: =IF($A205<>0,INDEX('2.2 Daten'!N$9:N$859,MATCH('2.2'!$A205,'2.2 Daten'!$B$9:$B$859,0))) -> 11.68458781 | L205: =IF($A205<>0,INDEX('2.2 Daten'!O$9:O$859,MATCH('2.2'!$A205,'2.2 Daten'!$B$9:$B$859,0))) -> 14.41441441
A206: =CHOOSE('2.2 Daten'!$A$2,'2.2 Daten'!B628,'2.2 Daten'!B177,'2.2 Daten'!B194,'2.2 Daten'!B211,'2.2 Daten'!B214,'2.2 Daten'!B261,'2.2 Daten'!B265,'2.2 Daten'!B320,'2.2 Daten'!B348,'2.2 Daten'!B386,'2.2 Daten'!B432,'2.2 Daten'!B530,'2.2 Daten'!B538,'2.2 Daten'!B541,'2.2 Daten'!B561,'2.2 Daten'!B571,'2.2 Daten'!B586,'2.2 Daten'!B602,x) -> Waldeck-Frankenberg | B206: =IF($A206<>0,INDEX('2.2 Daten'!C$9:C$859,MATCH('2.2'!$A206,'2.2 Daten'!$B$9:$B$859,0))," ") -> 06635000 | C206: =IF($A206<>0,INDEX('2.2 Daten'!E$9:E$859,MATCH('2.2'!$A206,'2.2 Daten'!$B$9:$B$859,0))) -> 2635 | D206: =IF($A206<>0,INDEX('2.2 Daten'!F$9:F$859,MATCH('2.2'!$A206,'2.2 Daten'!$B$9:$B$859,0))) -> 462 | E206: =IF($A206<>0,INDEX('2.2 Daten'!G$9:G$859,MATCH('2.2'!$A206,'2.2 Daten'!$B$9:$B$859,0))) -> 508 | F206: =IF($A206<>0,INDEX('2.2 Daten'!H$9:H$859,MATCH('2.2'!$A206,'2.2 Daten'!$B$9:$B$859,0))) -> 1344 | G206: =IF($A206<>0,INDEX('2.2 Daten'!I$9:I$859,MATCH('2.2'!$A206,'2.2 Daten'!$B$9:$B$859,0))) -> 321 | H206: =IF($A206<>0,INDEX('2.2 Daten'!K$9:K$859,MATCH('2.2'!$A206,'2.2 Daten'!$B$9:$B$859,0))) -> 11.65254237 | I206: =IF($A206<>0,INDEX('2.2 Daten'!L$9:L$859,MATCH('2.2'!$A206,'2.2 Daten'!$B$9:$B$859,0))) -> 5 | J206: =IF($A206<>0,INDEX('2.2 Daten'!M$9:M$859,MATCH('2.2'!$A206,'2.2 Daten'!$B$9:$B$859,0))) -> 10.19522777 | K206: =IF($A206<>0,INDEX('2.2 Daten'!N$9:N$859,MATCH('2.2'!$A206,'2.2 Daten'!$B$9:$B$859,0))) -> 17.17523976 | L206: =IF($A206<>0,INDEX('2.2 Daten'!O$9:O$859,MATCH('2.2'!$A206,'2.2 Daten'!$B$9:$B$859,0))) -> 2.884615385
A207: =CHOOSE('2.2 Daten'!$A$2,'2.2 Daten'!B629,'2.2 Daten'!B178,'2.2 Daten'!B195,'2.2 Daten'!B212,'2.2 Daten'!B215,'2.2 Daten'!B262,'2.2 Daten'!B266,'2.2 Daten'!B321,'2.2 Daten'!B349,'2.2 Daten'!B387,'2.2 Daten'!B433,'2.2 Daten'!B531,'2.2 Daten'!B539,'2.2 Daten'!B542,'2.2 Daten'!B562,'2.2 Daten'!B572,'2.2 Daten'!B587,'2.2 Daten'!B603,x) -> Werra-Meißner-Kreis | B207: =IF($A207<>0,INDEX('2.2 Daten'!C$9:C$859,MATCH('2.2'!$A207,'2.2 Daten'!$B$9:$B$859,0))," ") -> 06636000 | C207: =IF($A207<>0,INDEX('2.2 Daten'!E$9:E$859,MATCH('2.2'!$A207,'2.2 Daten'!$B$9:$B$859,0))) -> 2160 | D207: =IF($A207<>0,INDEX('2.2 Daten'!F$9:F$859,MATCH('2.2'!$A207,'2.2 Daten'!$B$9:$B$859,0))) -> 372 | E207: =IF($A207<>0,INDEX('2.2 Daten'!G$9:G$859,MATCH('2.2'!$A207,'2.2 Daten'!$B$9:$B$859,0))) -> 435 | F207: =IF($A207<>0,INDEX('2.2 Daten'!H$9:H$859,MATCH('2.2'!$A207,'2.2 Daten'!$B$9:$B$859,0))) -> 1065 | G207: =IF($A207<>0,INDEX('2.2 Daten'!I$9:I$859,MATCH('2.2'!$A207,'2.2 Daten'!$B$9:$B$859,0))) -> 288 | H207: =IF($A207<>0,INDEX('2.2 Daten'!K$9:K$859,MATCH('2.2'!$A207,'2.2 Daten'!$B$9:$B$859,0))) -> 1.360863444 | I207: =IF($A207<>0,INDEX('2.2 Daten'!L$9:L$859,MATCH('2.2'!$A207,'2.2 Daten'!$B$9:$B$859,0))) -> -6.060606061 | J207: =IF($A207<>0,INDEX('2.2 Daten'!M$9:M$859,MATCH('2.2'!$A207,'2.2 Daten'!$B$9:$B$859,0))) -> -5.021834061 | K207: =IF($A207<>0,INDEX('2.2 Daten'!N$9:N$859,MATCH('2.2'!$A207,'2.2 Daten'!$B$9:$B$859,0))) -> 3.801169591 | L207: =IF($A207<>0,INDEX('2.2 Daten'!O$9:O$859,MATCH('2.2'!$A207,'2.2 Daten'!$B$9:$B$859,0))) -> 14.74103586
A208: =CHOOSE('2.2 Daten'!$A$2,'2.2 Daten'!B630,'2.2 Daten'!B179,'2.2 Daten'!B196,'2.2 Daten'!B213,'2.2 Daten'!B216,'2.2 Daten'!B263,'2.2 Daten'!B267,'2.2 Daten'!B322,'2.2 Daten'!B350,'2.2 Daten'!B388,'2.2 Daten'!B434,'2.2 Daten'!B532,'2.2 Daten'!B540,'2.2 Daten'!B543,'2.2 Daten'!B563,'2.2 Daten'!B573,'2.2 Daten'!B588,'2.2 Daten'!B604,x) -> 0 | B208: =IF($A208<>0,INDEX('2.2 Daten'!C$9:C$859,MATCH('2.2'!$A208,'2.2 Daten'!$B$9:$B$859,0))," ") ->  | C208: =IF($A208<>0,INDEX('2.2 Daten'!E$9:E$859,MATCH('2.2'!$A208,'2.2 Daten'!$B$9:$B$859,0))) -> FALSE | D208: =IF($A208<>0,INDEX('2.2 Daten'!F$9:F$859,MATCH('2.2'!$A208,'2.2 Daten'!$B$9:$B$859,0))) -> FALSE | E208: =IF($A208<>0,INDEX('2.2 Daten'!G$9:G$859,MATCH('2.2'!$A208,'2.2 Daten'!$B$9:$B$859,0))) -> FALSE | F208: =IF($A208<>0,INDEX('2.2 Daten'!H$9:H$859,MATCH('2.2'!$A208,'2.2 Daten'!$B$9:$B$859,0))) -> FALSE | G208: =IF($A208<>0,INDEX('2.2 Daten'!I$9:I$859,MATCH('2.2'!$A208,'2.2 Daten'!$B$9:$B$859,0))) -> FALSE | H208: =IF($A208<>0,INDEX('2.2 Daten'!K$9:K$859,MATCH('2.2'!$A208,'2.2 Daten'!$B$9:$B$859,0))) -> FALSE | I208: =IF($A208<>0,INDEX('2.2 Daten'!L$9:L$859,MATCH('2.2'!$A208,'2.2 Daten'!$B$9:$B$859,0))) -> FALSE | J208: =IF($A208<>0,INDEX('2.2 Daten'!M$9:M$859,MATCH('2.2'!$A208,'2.2 Daten'!$B$9:$B$859,0))) -> FALSE | K208: =IF($A208<>0,INDEX('2.2 Daten'!N$9:N$859,MATCH('2.2'!$A208,'2.2 Daten'!$B$9:$B$859,0))) -> FALSE | L208: =IF($A208<>0,INDEX('2.2 Daten'!O$9:O$859,MATCH('2.2'!$A208,'2.2 Daten'!$B$9:$B$859,0))) -> FALSE
A209: =CHOOSE('2.2 Daten'!$A$2,'2.2 Daten'!B631,'2.2 Daten'!B180,'2.2 Daten'!B197,'2.2 Daten'!B214,'2.2 Daten'!B217,'2.2 Daten'!B264,'2.2 Daten'!B268,'2.2 Daten'!B323,'2.2 Daten'!B351,'2.2 Daten'!B389,'2.2 Daten'!B435,'2.2 Daten'!B533,'2.2 Daten'!B541,'2.2 Daten'!B544,'2.2 Daten'!B564,'2.2 Daten'!B574,'2.2 Daten'!B589,'2.2 Daten'!B605,x) -> Rheinland-Pfalz | B209: =IF($A209<>0,INDEX('2.2 Daten'!C$9:C$859,MATCH('2.2'!$A209,'2.2 Daten'!$B$9:$B$859,0))," ") -> 07 | C209: =IF($A209<>0,INDEX('2.2 Daten'!E$9:E$859,MATCH('2.2'!$A209,'2.2 Daten'!$B$9:$B$859,0))) -> 80417 | D209: =IF($A209<>0,INDEX('2.2 Daten'!F$9:F$859,MATCH('2.2'!$A209,'2.2 Daten'!$B$9:$B$859,0))) -> 13271 | E209: =IF($A209<>0,INDEX('2.2 Daten'!G$9:G$859,MATCH('2.2'!$A209,'2.2 Daten'!$B$9:$B$859,0))) -> 15421 | F209: =IF($A209<>0,INDEX('2.2 Daten'!H$9:H$859,MATCH('2.2'!$A209,'2.2 Daten'!$B$9:$B$859,0))) -> 40810 | G209: =IF($A209<>0,INDEX('2.2 Daten'!I$9:I$859,MATCH('2.2'!$A209,'2.2 Daten'!$B$9:$B$859,0))) -> 10915 | H209: =IF($A209<>0,INDEX('2.2 Daten'!K$9:K$859,MATCH('2.2'!$A209,'2.2 Daten'!$B$9:$B$859,0))) -> 6.530925855 | I209: =IF($A209<>0,INDEX('2.2 Daten'!L$9:L$859,MATCH('2.2'!$A209,'2.2 Daten'!$B$9:$B$859,0))) -> -2.347314202 | J209: =IF($A209<>0,INDEX('2.2 Daten'!M$9:M$859,MATCH('2.2'!$A209,'2.2 Daten'!$B$9:$B$859,0))) -> 4.2593469 | K209: =IF($A209<>0,INDEX('2.2 Daten'!N$9:N$859,MATCH('2.2'!$A209,'2.2 Daten'!$B$9:$B$859,0))) -> 10.04745982 | L209: =IF($A209<>0,INDEX('2.2 Daten'!O$9:O$859,MATCH('2.2'!$A209,'2.2 Daten'!$B$9:$B$859,0))) -> 8.910397126
A210: =CHOOSE('2.2 Daten'!$A$2,'2.2 Daten'!B632,'2.2 Daten'!B181,'2.2 Daten'!B198,'2.2 Daten'!B215,'2.2 Daten'!B218,'2.2 Daten'!B265,'2.2 Daten'!B269,'2.2 Daten'!B324,'2.2 Daten'!B352,'2.2 Daten'!B390,'2.2 Daten'!B436,'2.2 Daten'!B534,'2.2 Daten'!B542,'2.2 Daten'!B545,'2.2 Daten'!B565,'2.2 Daten'!B575,'2.2 Daten'!B590,'2.2 Daten'!B606,x) -> Koblenz, kreisfreie Stadt | B210: =IF($A210<>0,INDEX('2.2 Daten'!C$9:C$859,MATCH('2.2'!$A210,'2.2 Daten'!$B$9:$B$859,0))," ") -> 07111000 | C210: =IF($A210<>0,INDEX('2.2 Daten'!E$9:E$859,MATCH('2.2'!$A210,'2.2 Daten'!$B$9:$B$859,0))) -> 3332 | D210: =IF($A210<>0,INDEX('2.2 Daten'!F$9:F$859,MATCH('2.2'!$A210,'2.2 Daten'!$B$9:$B$859,0))) -> 549 | E210: =IF($A210<>0,INDEX('2.2 Daten'!G$9:G$859,MATCH('2.2'!$A210,'2.2 Daten'!$B$9:$B$859,0))) -> 628 | F210: =IF($A210<>0,INDEX('2.2 Daten'!H$9:H$859,MATCH('2.2'!$A210,'2.2 Daten'!$B$9:$B$859,0))) -> 1689 | G210: =IF($A210<>0,INDEX('2.2 Daten'!I$9:I$859,MATCH('2.2'!$A210,'2.2 Daten'!$B$9:$B$859,0))) -> 466 | H210: =IF($A210<>0,INDEX('2.2 Daten'!K$9:K$859,MATCH('2.2'!$A210,'2.2 Daten'!$B$9:$B$859,0))) -> 6.624 | I210: =IF($A210<>0,INDEX('2.2 Daten'!L$9:L$859,MATCH('2.2'!$A210,'2.2 Daten'!$B$9:$B$859,0))) -> -5.831903945 | J210: =IF($A210<>0,INDEX('2.2 Daten'!M$9:M$859,MATCH('2.2'!$A210,'2.2 Daten'!$B$9:$B$859,0))) -> 2.614379085 | K210: =IF($A210<>0,INDEX('2.2 Daten'!N$9:N$859,MATCH('2.2'!$A210,'2.2 Daten'!$B$9:$B$859,0))) -> 12.45006658 | L210: =IF($A210<>0,INDEX('2.2 Daten'!O$9:O$859,MATCH('2.2'!$A210,'2.2 Daten'!$B$9:$B$859,0))) -> 8.878504673
A211: =CHOOSE('2.2 Daten'!$A$2,'2.2 Daten'!B633,'2.2 Daten'!B182,'2.2 Daten'!B199,'2.2 Daten'!B216,'2.2 Daten'!B219,'2.2 Daten'!B266,'2.2 Daten'!B270,'2.2 Daten'!B325,'2.2 Daten'!B353,'2.2 Daten'!B391,'2.2 Daten'!B437,'2.2 Daten'!B535,'2.2 Daten'!B543,'2.2 Daten'!B546,'2.2 Daten'!B566,'2.2 Daten'!B576,'2.2 Daten'!B591,'2.2 Daten'!B607,x) -> Ahrweiler | B211: =IF($A211<>0,INDEX('2.2 Daten'!C$9:C$859,MATCH('2.2'!$A211,'2.2 Daten'!$B$9:$B$859,0))," ") -> 07131000 | C211: =IF($A211<>0,INDEX('2.2 Daten'!E$9:E$859,MATCH('2.2'!$A211,'2.2 Daten'!$B$9:$B$859,0))) -> 1778 | D211: =IF($A211<>0,INDEX('2.2 Daten'!F$9:F$859,MATCH('2.2'!$A211,'2.2 Daten'!$B$9:$B$859,0))) -> 310 | E211: =IF($A211<>0,INDEX('2.2 Daten'!G$9:G$859,MATCH('2.2'!$A211,'2.2 Daten'!$B$9:$B$859,0))) -> 376 | F211: =IF($A211<>0,INDEX('2.2 Daten'!H$9:H$859,MATCH('2.2'!$A211,'2.2 Daten'!$B$9:$B$859,0))) -> 864 | G211: =IF($A211<>0,INDEX('2.2 Daten'!I$9:I$859,MATCH('2.2'!$A211,'2.2 Daten'!$B$9:$B$859,0))) -> 228 | H211: =IF($A211<>0,INDEX('2.2 Daten'!K$9:K$859,MATCH('2.2'!$A211,'2.2 Daten'!$B$9:$B$859,0))) -> -4.767005892 | I211: =IF($A211<>0,INDEX('2.2 Daten'!L$9:L$859,MATCH('2.2'!$A211,'2.2 Daten'!$B$9:$B$859,0))) -> -19.27083333 | J211: =IF($A211<>0,INDEX('2.2 Daten'!M$9:M$859,MATCH('2.2'!$A211,'2.2 Daten'!$B$9:$B$859,0))) -> 2.452316076 | K211: =IF($A211<>0,INDEX('2.2 Daten'!N$9:N$859,MATCH('2.2'!$A211,'2.2 Daten'!$B$9:$B$859,0))) -> -0.9174311927 | L211: =IF($A211<>0,INDEX('2.2 Daten'!O$9:O$859,MATCH('2.2'!$A211,'2.2 Daten'!$B$9:$B$859,0))) -> -6.557377049
A212: =CHOOSE('2.2 Daten'!$A$2,'2.2 Daten'!B634,'2.2 Daten'!B183,'2.2 Daten'!B200,'2.2 Daten'!B217,'2.2 Daten'!B220,'2.2 Daten'!B267,'2.2 Daten'!B271,'2.2 Daten'!B326,'2.2 Daten'!B354,'2.2 Daten'!B392,'2.2 Daten'!B438,'2.2 Daten'!B536,'2.2 Daten'!B544,'2.2 Daten'!B547,'2.2 Daten'!B567,'2.2 Daten'!B577,'2.2 Daten'!B592,'2.2 Daten'!B608,x) -> Altenkirchen (Westerwald) | B212: =IF($A212<>0,INDEX('2.2 Daten'!C$9:C$859,MATCH('2.2'!$A212,'2.2 Daten'!$B$9:$B$859,0))," ") -> 07132000 | C212: =IF($A212<>0,INDEX('2.2 Daten'!E$9:E$859,MATCH('2.2'!$A212,'2.2 Daten'!$B$9:$B$859,0))) -> 2496 | D212: =IF($A212<>0,INDEX('2.2 Daten'!F$9:F$859,MATCH('2.2'!$A212,'2.2 Daten'!$B$9:$B$859,0))) -> 413 | E212: =IF($A212<>0,INDEX('2.2 Daten'!G$9:G$859,MATCH('2.2'!$A212,'2.2 Daten'!$B$9:$B$859,0))) -> 437 | F212: =IF($A212<>0,INDEX('2.2 Daten'!H$9:H$859,MATCH('2.2'!$A212,'2.2 Daten'!$B$9:$B$859,0))) -> 1313 | G212: =IF($A212<>0,INDEX('2.2 Daten'!I$9:I$859,MATCH('2.2'!$A212,'2.2 Daten'!$B$9:$B$859,0))) -> 333 | H212: =IF($A212<>0,INDEX('2.2 Daten'!K$9:K$859,MATCH('2.2'!$A212,'2.2 Daten'!$B$9:$B$859,0))) -> 27.41194487 | I212: =IF($A212<>0,INDEX('2.2 Daten'!L$9:L$859,MATCH('2.2'!$A212,'2.2 Daten'!$B$9:$B$859,0))) -> 26.29969419 | J212: =IF($A212<>0,INDEX('2.2 Daten'!M$9:M$859,MATCH('2.2'!$A212,'2.2 Daten'!$B$9:$B$859,0))) -> 16.84491979 | K212: =IF($A212<>0,INDEX('2.2 Daten'!N$9:N$859,MATCH('2.2'!$A212,'2.2 Daten'!$B$9:$B$859,0))) -> 29.23228346 | L212: =IF($A212<>0,INDEX('2.2 Daten'!O$9:O$859,MATCH('2.2'!$A212,'2.2 Daten'!$B$9:$B$859,0))) -> 37.60330579
A213: =CHOOSE('2.2 Daten'!$A$2,'2.2 Daten'!B635,'2.2 Daten'!B184,'2.2 Daten'!B201,'2.2 Daten'!B218,'2.2 Daten'!B221,'2.2 Daten'!B268,'2.2 Daten'!B272,'2.2 Daten'!B327,'2.2 Daten'!B355,'2.2 Daten'!B393,'2.2 Daten'!B439,'2.2 Daten'!B537,'2.2 Daten'!B545,'2.2 Daten'!B548,'2.2 Daten'!B568,'2.2 Daten'!B578,'2.2 Daten'!B593,'2.2 Daten'!B609,x) -> Bad Kreuznach | B213: =IF($A213<>0,INDEX('2.2 Daten'!C$9:C$859,MATCH('2.2'!$A213,'2.2 Daten'!$B$9:$B$859,0))," ") -> 07133000 | C213: =IF($A213<>0,INDEX('2.2 Daten'!E$9:E$859,MATCH('2.2'!$A213,'2.2 Daten'!$B$9:$B$859,0))) -> 3640 | D213: =IF($A213<>0,INDEX('2.2 Daten'!F$9:F$859,MATCH('2.2'!$A213,'2.2 Daten'!$B$9:$B$859,0))) -> 560 | E213: =IF($A213<>0,INDEX('2.2 Daten'!G$9:G$859,MATCH('2.2'!$A213,'2.2 Daten'!$B$9:$B$859,0))) -> 697 | F213: =IF($A213<>0,INDEX('2.2 Daten'!H$9:H$859,MATCH('2.2'!$A213,'2.2 Daten'!$B$9:$B$859,0))) -> 1862 | G213: =IF($A213<>0,INDEX('2.2 Daten'!I$9:I$859,MATCH('2.2'!$A213,'2.2 Daten'!$B$9:$B$859,0))) -> 521 | H213: =IF($A213<>0,INDEX('2.2 Daten'!K$9:K$859,MATCH('2.2'!$A213,'2.2 Daten'!$B$9:$B$859,0))) -> 8.527131783 | I213: =IF($A213<>0,INDEX('2.2 Daten'!L$9:L$859,MATCH('2.2'!$A213,'2.2 Daten'!$B$9:$B$859,0))) -> -1.926444834 | J213: =IF($A213<>0,INDEX('2.2 Daten'!M$9:M$859,MATCH('2.2'!$A213,'2.2 Daten'!$B$9:$B$859,0))) -> 4.969879518 | K213: =IF($A213<>0,INDEX('2.2 Daten'!N$9:N$859,MATCH('2.2'!$A213,'2.2 Daten'!$B$9:$B$859,0))) -> 11.69766047 | L213: =IF($A213<>0,INDEX('2.2 Daten'!O$9:O$859,MATCH('2.2'!$A213,'2.2 Daten'!$B$9:$B$859,0))) -> 15.26548673
A214: =CHOOSE('2.2 Daten'!$A$2,'2.2 Daten'!B636,'2.2 Daten'!B185,'2.2 Daten'!B202,'2.2 Daten'!B219,'2.2 Daten'!B222,'2.2 Daten'!B269,'2.2 Daten'!B273,'2.2 Daten'!B328,'2.2 Daten'!B356,'2.2 Daten'!B394,'2.2 Daten'!B440,'2.2 Daten'!B538,'2.2 Daten'!B546,'2.2 Daten'!B549,'2.2 Daten'!B569,'2.2 Daten'!B579,'2.2 Daten'!B594,'2.2 Daten'!B610,x) -> Birkenfeld | B214: =IF($A214<>0,INDEX('2.2 Daten'!C$9:C$859,MATCH('2.2'!$A214,'2.2 Daten'!$B$9:$B$859,0))," ") -> 07134000 | C214: =IF($A214<>0,INDEX('2.2 Daten'!E$9:E$859,MATCH('2.2'!$A214,'2.2 Daten'!$B$9:$B$859,0))) -> 2248 | D214: =IF($A214<>0,INDEX('2.2 Daten'!F$9:F$859,MATCH('2.2'!$A214,'2.2 Daten'!$B$9:$B$859,0))) -> 399 | E214: =IF($A214<>0,INDEX('2.2 Daten'!G$9:G$859,MATCH('2.2'!$A214,'2.2 Daten'!$B$9:$B$859,0))) -> 451 | F214: =IF($A214<>0,INDEX('2.2 Daten'!H$9:H$859,MATCH('2.2'!$A214,'2.2 Daten'!$B$9:$B$859,0))) -> 1154 | G214: =IF($A214<>0,INDEX('2.2 Daten'!I$9:I$859,MATCH('2.2'!$A214,'2.2 Daten'!$B$9:$B$859,0))) -> 244 | H214: =IF($A214<>0,INDEX('2.2 Daten'!K$9:K$859,MATCH('2.2'!$A214,'2.2 Daten'!$B$9:$B$859,0))) -> 3.929727231 | I214: =IF($A214<>0,INDEX('2.2 Daten'!L$9:L$859,MATCH('2.2'!$A214,'2.2 Daten'!$B$9:$B$859,0))) -> -8.275862069 | J214: =IF($A214<>0,INDEX('2.2 Daten'!M$9:M$859,MATCH('2.2'!$A214,'2.2 Daten'!$B$9:$B$859,0))) -> 1.348314607 | K214: =IF($A214<>0,INDEX('2.2 Daten'!N$9:N$859,MATCH('2.2'!$A214,'2.2 Daten'!$B$9:$B$859,0))) -> 11.06833494 | L214: =IF($A214<>0,INDEX('2.2 Daten'!O$9:O$859,MATCH('2.2'!$A214,'2.2 Daten'!$B$9:$B$859,0))) -> 0
A215: =CHOOSE('2.2 Daten'!$A$2,'2.2 Daten'!B637,'2.2 Daten'!B186,'2.2 Daten'!B203,'2.2 Daten'!B220,'2.2 Daten'!B223,'2.2 Daten'!B270,'2.2 Daten'!B274,'2.2 Daten'!B329,'2.2 Daten'!B357,'2.2 Daten'!B395,'2.2 Daten'!B441,'2.2 Daten'!B539,'2.2 Daten'!B547,'2.2 Daten'!B550,'2.2 Daten'!B570,'2.2 Daten'!B580,'2.2 Daten'!B595,'2.2 Daten'!B611,x) -> Cochem-Zell | B215: =IF($A215<>0,INDEX('2.2 Daten'!C$9:C$859,MATCH('2.2'!$A215,'2.2 Daten'!$B$9:$B$859,0))," ") -> 07135000 | C215: =IF($A215<>0,INDEX('2.2 Daten'!E$9:E$859,MATCH('2.2'!$A215,'2.2 Daten'!$B$9:$B$859,0))) -> 930 | D215: =IF($A215<>0,INDEX('2.2 Daten'!F$9:F$859,MATCH('2.2'!$A215,'2.2 Daten'!$B$9:$B$859,0))) -> 158 | E215: =IF($A215<>0,INDEX('2.2 Daten'!G$9:G$859,MATCH('2.2'!$A215,'2.2 Daten'!$B$9:$B$859,0))) -> 180 | F215: =IF($A215<>0,INDEX('2.2 Daten'!H$9:H$859,MATCH('2.2'!$A215,'2.2 Daten'!$B$9:$B$859,0))) -> 487 | G215: =IF($A215<>0,INDEX('2.2 Daten'!I$9:I$859,MATCH('2.2'!$A215,'2.2 Daten'!$B$9:$B$859,0))) -> 105 | H215: =IF($A215<>0,INDEX('2.2 Daten'!K$9:K$859,MATCH('2.2'!$A215,'2.2 Daten'!$B$9:$B$859,0))) -> 31.3559322 | I215: =IF($A215<>0,INDEX('2.2 Daten'!L$9:L$859,MATCH('2.2'!$A215,'2.2 Daten'!$B$9:$B$859,0))) -> 20.61068702 | J215: =IF($A215<>0,INDEX('2.2 Daten'!M$9:M$859,MATCH('2.2'!$A215,'2.2 Daten'!$B$9:$B$859,0))) -> 10.42944785 | K215: =IF($A215<>0,INDEX('2.2 Daten'!N$9:N$859,MATCH('2.2'!$A215,'2.2 Daten'!$B$9:$B$859,0))) -> 44.51038576 | L215: =IF($A215<>0,INDEX('2.2 Daten'!O$9:O$859,MATCH('2.2'!$A215,'2.2 Daten'!$B$9:$B$859,0))) -> 36.36363636
A216: =CHOOSE('2.2 Daten'!$A$2,'2.2 Daten'!B638,'2.2 Daten'!B187,'2.2 Daten'!B204,'2.2 Daten'!B221,'2.2 Daten'!B224,'2.2 Daten'!B271,'2.2 Daten'!B275,'2.2 Daten'!B330,'2.2 Daten'!B358,'2.2 Daten'!B396,'2.2 Daten'!B442,'2.2 Daten'!B540,'2.2 Daten'!B548,'2.2 Daten'!B551,'2.2 Daten'!B571,'2.2 Daten'!B581,'2.2 Daten'!B596,'2.2 Daten'!B612,x) -> Mayen-Koblenz | B216: =IF($A216<>0,INDEX('2.2 Daten'!C$9:C$859,MATCH('2.2'!$A216,'2.2 Daten'!$B$9:$B$859,0))," ") -> 07137000 | C216: =IF($A216<>0,INDEX('2.2 Daten'!E$9:E$859,MATCH('2.2'!$A216,'2.2 Daten'!$B$9:$B$859,0))) -> 3283 | D216: =IF($A216<>0,INDEX('2.2 Daten'!F$9:F$859,MATCH('2.2'!$A216,'2.2 Daten'!$B$9:$B$859,0))) -> 506 | E216: =IF($A216<>0,INDEX('2.2 Daten'!G$9:G$859,MATCH('2.2'!$A216,'2.2 Daten'!$B$9:$B$859,0))) -> 650 | F216: =IF($A216<>0,INDEX('2.2 Daten'!H$9:H$859,MATCH('2.2'!$A216,'2.2 Daten'!$B$9:$B$859,0))) -> 1675 | G216: =IF($A216<>0,INDEX('2.2 Daten'!I$9:I$859,MATCH('2.2'!$A216,'2.2 Daten'!$B$9:$B$859,0))) -> 452 | H216: =IF($A216<>0,INDEX('2.2 Daten'!K$9:K$859,MATCH('2.2'!$A216,'2.2 Daten'!$B$9:$B$859,0))) -> 9.983249581 | I216: =IF($A216<>0,INDEX('2.2 Daten'!L$9:L$859,MATCH('2.2'!$A216,'2.2 Daten'!$B$9:$B$859,0))) -> -9.156193896 | J216: =IF($A216<>0,INDEX('2.2 Daten'!M$9:M$859,MATCH('2.2'!$A216,'2.2 Daten'!$B$9:$B$859,0))) -> 16.07142857 | K216: =IF($A216<>0,INDEX('2.2 Daten'!N$9:N$859,MATCH('2.2'!$A216,'2.2 Daten'!$B$9:$B$859,0))) -> 14.023145 | L216: =IF($A216<>0,INDEX('2.2 Daten'!O$9:O$859,MATCH('2.2'!$A216,'2.2 Daten'!$B$9:$B$859,0))) -> 13.28320802
A217: =CHOOSE('2.2 Daten'!$A$2,'2.2 Daten'!B639,'2.2 Daten'!B188,'2.2 Daten'!B205,'2.2 Daten'!B222,'2.2 Daten'!B225,'2.2 Daten'!B272,'2.2 Daten'!B276,'2.2 Daten'!B331,'2.2 Daten'!B359,'2.2 Daten'!B397,'2.2 Daten'!B443,'2.2 Daten'!B541,'2.2 Daten'!B549,'2.2 Daten'!B552,'2.2 Daten'!B572,'2.2 Daten'!B582,'2.2 Daten'!B597,'2.2 Daten'!B613,x) -> Neuwied | B217: =IF($A217<>0,INDEX('2.2 Daten'!C$9:C$859,MATCH('2.2'!$A217,'2.2 Daten'!$B$9:$B$859,0))," ") -> 07138000 | C217: =IF($A217<>0,INDEX('2.2 Daten'!E$9:E$859,MATCH('2.2'!$A217,'2.2 Daten'!$B$9:$B$859,0))) -> 3379 | D217: =IF($A217<>0,INDEX('2.2 Daten'!F$9:F$859,MATCH('2.2'!$A217,'2.2 Daten'!$B$9:$B$859,0))) -> 572 | E217: =IF($A217<>0,INDEX('2.2 Daten'!G$9:G$859,MATCH('2.2'!$A217,'2.2 Daten'!$B$9:$B$859,0))) -> 642 | F217: =IF($A217<>0,INDEX('2.2 Daten'!H$9:H$859,MATCH('2.2'!$A217,'2.2 Daten'!$B$9:$B$859,0))) -> 1685 | G217: =IF($A217<>0,INDEX('2.2 Daten'!I$9:I$859,MATCH('2.2'!$A217,'2.2 Daten'!$B$9:$B$859,0))) -> 480 | H217: =IF($A217<>0,INDEX('2.2 Daten'!K$9:K$859,MATCH('2.2'!$A217,'2.2 Daten'!$B$9:$B$859,0))) -> -4.655756208 | I217: =IF($A217<>0,INDEX('2.2 Daten'!L$9:L$859,MATCH('2.2'!$A217,'2.2 Daten'!$B$9:$B$859,0))) -> -12.26993865 | J217: =IF($A217<>0,INDEX('2.2 Daten'!M$9:M$859,MATCH('2.2'!$A217,'2.2 Daten'!$B$9:$B$859,0))) -> -6.413994169 | K217: =IF($A217<>0,INDEX('2.2 Daten'!N$9:N$859,MATCH('2.2'!$A217,'2.2 Daten'!$B$9:$B$859,0))) -> -2.993667242 | L217: =IF($A217<>0,INDEX('2.2 Daten'!O$9:O$859,MATCH('2.2'!$A217,'2.2 Daten'!$B$9:$B$859,0))) -> 2.345415778
A218: =CHOOSE('2.2 Daten'!$A$2,'2.2 Daten'!B640,'2.2 Daten'!B189,'2.2 Daten'!B206,'2.2 Daten'!B223,'2.2 Daten'!B226,'2.2 Daten'!B273,'2.2 Daten'!B277,'2.2 Daten'!B332,'2.2 Daten'!B360,'2.2 Daten'!B398,'2.2 Daten'!B444,'2.2 Daten'!B542,'2.2 Daten'!B550,'2.2 Daten'!B553,'2.2 Daten'!B573,'2.2 Daten'!B583,'2.2 Daten'!B598,'2.2 Daten'!B614,x) -> Rhein-Hunsrück-Kreis | B218: =IF($A218<>0,INDEX('2.2 Daten'!C$9:C$859,MATCH('2.2'!$A218,'2.2 Daten'!$B$9:$B$859,0))," ") -> 07140000 | C218: =IF($A218<>0,INDEX('2.2 Daten'!E$9:E$859,MATCH('2.2'!$A218,'2.2 Daten'!$B$9:$B$859,0))) -> 1681 | D218: =IF($A218<>0,INDEX('2.2 Daten'!F$9:F$859,MATCH('2.2'!$A218,'2.2 Daten'!$B$9:$B$859,0))) -> 274 | E218: =IF($A218<>0,INDEX('2.2 Daten'!G$9:G$859,MATCH('2.2'!$A218,'2.2 Daten'!$B$9:$B$859,0))) -> 300 | F218: =IF($A218<>0,INDEX('2.2 Daten'!H$9:H$859,MATCH('2.2'!$A218,'2.2 Daten'!$B$9:$B$859,0))) -> 885 | G218: =IF($A218<>0,INDEX('2.2 Daten'!I$9:I$859,MATCH('2.2'!$A218,'2.2 Daten'!$B$9:$B$859,0))) -> 222 | H218: =IF($A218<>0,INDEX('2.2 Daten'!K$9:K$859,MATCH('2.2'!$A218,'2.2 Daten'!$B$9:$B$859,0))) -> 20.24320458 | I218: =IF($A218<>0,INDEX('2.2 Daten'!L$9:L$859,MATCH('2.2'!$A218,'2.2 Daten'!$B$9:$B$859,0))) -> 9.6 | J218: =IF($A218<>0,INDEX('2.2 Daten'!M$9:M$859,MATCH('2.2'!$A218,'2.2 Daten'!$B$9:$B$859,0))) -> 6.007067138 | K218: =IF($A218<>0,INDEX('2.2 Daten'!N$9:N$859,MATCH('2.2'!$A218,'2.2 Daten'!$B$9:$B$859,0))) -> 29.57540264 | L218: =IF($A218<>0,INDEX('2.2 Daten'!O$9:O$859,MATCH('2.2'!$A218,'2.2 Daten'!$B$9:$B$859,0))) -> 21.97802198
A219: =CHOOSE('2.2 Daten'!$A$2,'2.2 Daten'!B641,'2.2 Daten'!B190,'2.2 Daten'!B207,'2.2 Daten'!B224,'2.2 Daten'!B227,'2.2 Daten'!B274,'2.2 Daten'!B278,'2.2 Daten'!B333,'2.2 Daten'!B361,'2.2 Daten'!B399,'2.2 Daten'!B445,'2.2 Daten'!B543,'2.2 Daten'!B551,'2.2 Daten'!B554,'2.2 Daten'!B574,'2.2 Daten'!B584,'2.2 Daten'!B599,'2.2 Daten'!B615,x) -> Rhein-Lahn-Kreis | B219: =IF($A219<>0,INDEX('2.2 Daten'!C$9:C$859,MATCH('2.2'!$A219,'2.2 Daten'!$B$9:$B$859,0))," ") -> 07141000 | C219: =IF($A219<>0,INDEX('2.2 Daten'!E$9:E$859,MATCH('2.2'!$A219,'2.2 Daten'!$B$9:$B$859,0))) -> 2050 | D219: =IF($A219<>0,INDEX('2.2 Daten'!F$9:F$859,MATCH('2.2'!$A219,'2.2 Daten'!$B$9:$B$859,0))) -> 322 | E219: =IF($A219<>0,INDEX('2.2 Daten'!G$9:G$859,MATCH('2.2'!$A219,'2.2 Daten'!$B$9:$B$859,0))) -> 422 | F219: =IF($A219<>0,INDEX('2.2 Daten'!H$9:H$859,MATCH('2.2'!$A219,'2.2 Daten'!$B$9:$B$859,0))) -> 1025 | G219: =IF($A219<>0,INDEX('2.2 Daten'!I$9:I$859,MATCH('2.2'!$A219,'2.2 Daten'!$B$9:$B$859,0))) -> 281 | H219: =IF($A219<>0,INDEX('2.2 Daten'!K$9:K$859,MATCH('2.2'!$A219,'2.2 Daten'!$B$9:$B$859,0))) -> 7.442348008 | I219: =IF($A219<>0,INDEX('2.2 Daten'!L$9:L$859,MATCH('2.2'!$A219,'2.2 Daten'!$B$9:$B$859,0))) -> -3.880597015 | J219: =IF($A219<>0,INDEX('2.2 Daten'!M$9:M$859,MATCH('2.2'!$A219,'2.2 Daten'!$B$9:$B$859,0))) -> 11.64021164 | K219: =IF($A219<>0,INDEX('2.2 Daten'!N$9:N$859,MATCH('2.2'!$A219,'2.2 Daten'!$B$9:$B$859,0))) -> 9.39167556 | L219: =IF($A219<>0,INDEX('2.2 Daten'!O$9:O$859,MATCH('2.2'!$A219,'2.2 Daten'!$B$9:$B$859,0))) -> 8.914728682
